Workbook

Sheet Päätehtävä
A1: Lähtöpaikka | B1: LatA | D1: 0 | E1: ° | F1: 0 | G1: ' | H1: P | I1: LonA | J1: 0 | K1: ° | L1: 0 | M1: ' | N1: I | P1: Heikki Laakso 2012 | U1: rad | V1: =Päätehtävä!Matka -> 60.000 | W1: Matka
A2: Tosisuunta | B2: SPS | D2: 0 | E2: ° | I2: Matka | J2: 60 | K2: M | W2: 0.000 | X2: =Päätehtävä!Sin_SPS*Päätehtävä!Matka -> 0.000
A3: Päätehtävä | B3: Asteet | D3: Aste | F3: Minuutti | H3: Suunta | U3: xc | V3: yc | W3: 0.000 | X3: =Päätehtävä!Cos_SPS*Päätehtävä!Matka -> 60.000
A4: LatA | B4: =IF(Suunta="P",Aste+Minuutti/60,IF(Suunta="E",-(Aste+Minuutti/60),"Suunta?")) -> 0 | C4: ° | D4: =D1 -> 0 | E4: ° | F4: =F1 -> 0.0 | G4: ' | H4: =UPPER(H1) -> P | S4: Sarja2 | U4: 0.000 | V4: 0.000 | W4: Dlat
A5: LonA | B5: =IF(Suunta="I",Aste+Minuutti/60,IF(Suunta="L",-(Aste+Minuutti/60),"Suunta?")) -> 0 | C5: ° | D5: =J1 -> 0 | E5: ° | F5: =L1 -> 0.0 | G5: ' | H5: =UPPER(N1) -> I | T5: angle | U5: x | V5: y | W5: 0.000 | X5: 0.000
A6: Matka | B6: =J2 -> 60.0 | C6: M | S6: Sarja1 | T6: 0 | U6: =xc + rad * COS(RADIANS(angle)) -> 60.000 | V6: =xc + rad * SIN(RADIANS(angle)) -> 0.000 | W6: 0.000 | X6: =X3 -> 60.000
A7: SPS | B7: =MOD(D2+360,360) -> 0 | C7: ° | D7: =INT(IF(SPS>270,360-SPS,IF(SPS>180,SPS-180,IF(SPS>90,180-SPS,SPS)))) -> 0 | E7: ° | F7: =ABS(MOD(SPS,1)*60) -> 0.0 | G7: ' | H7: =IF(SPS>270,"PL",IF(SPS>180,"EL",IF(SPS>90,"EI","PI"))) -> PI | T7: 15 | U7: 57.956 | V7: 15.529 | W7: Dep
A8: Cos SPS | B8: =COS(RADIANS(SPS)) -> 1.000 | T8: 30 | U8: 51.962 | V8: 30.000 | W8: 0.000 | X8: =X2 -> 0.000
A9: Sin SPS | B9: =SIN(RADIANS(SPS)) -> 0.000 | T9: 45 | U9: 42.426 | V9: 42.426 | W9: =X3 -> 60.000 | X9: =X3 -> 60.000
A10: Dlat | B10: =Cos_SPS*Matka -> 60.0 | C10: M | D10: =INT(ABS(Dlat/60)) -> 1 | E10: ° | F10: =MOD(ABS(Dlat/60),1)*60 -> 0.0 | G10: ' | H10: =IF(Dlat>=0,"P","E") -> P | T10: 60 | U10: 30.000 | V10: 51.962
A11: dep | B11: =Sin_SPS*Matka -> 0.0 | C11: M | H11: =IF(dep>=0,"I","L") -> I | T11: 75 | U11: 15.529 | V11: 57.956
A12: Klat | B12: =LatA+Dlat/120 -> 0.5 | C12: ° | D12: =INT(ABS(Klat)) -> 0 | E12: ° | F12: =MOD(ABS(Klat),1)*60 -> 30.0 | G12: ' | H12: =IF(Klat>=0,"P","E") -> P | T12: 90 | U12: 0.000 | V12: 60.000
A13: m | B13: =1/COS(RADIANS(Klat)) -> 1.000 | T13: 105 | U13: -15.529 | V13: 57.956
A14: Dlon | B14: =m*dep/60 -> 0.0 | C14: ° | D14: =INT(ABS(Dlon)) -> 0 | E14: ° | F14: =MOD(ABS(Dlon),1)*60 -> 0.0 | G14: ' | H14: =IF(Dlon>=0,"P","E") -> P | T14: 120 | U14: -30.000 | V14: 51.962
A15: LatB | B15: =LatA+Dlat/60 -> 1.0 | C15: ° | D15: =INT(ABS(LatB)) -> 1 | E15: ° | F15: =MOD(ABS(LatB),1)*60 -> 0.0 | G15: ' | H15: =IF(LatB>=0,"P","E") -> P | T15: 135 | U15: -42.426 | V15: 42.426
A16: LonB | B16: =LonA+Dlon -> 0.0 | C16: ° | D16: =INT(ABS(LonB)) -> 0 | E16: ° | F16: =MOD(ABS(LonB),1)*60 -> 0.0 | G16: ' | H16: =IF(LonB>=0,"I","L") -> I | T16: 150 | U16: -51.962 | V16: 30.000
A17: Tulopaikka | B17: LatB | D17: =D15 -> 1 | E17: ° | F17: 0.0 | G17: ' | H17: P | I17: LonB | J17: =D16 -> 0 | K17: ° | L17: 0 | M17: ' | N17: I | T17: 165 | U17: -57.956 | V17: 15.529
T18: 180 | U18: -60.000 | V18: 0.000
T19: 195 | U19: -57.956 | V19: -15.529
T20: 210 | U20: -51.962 | V20: -30.000
T21: 225 | U21: -42.426 | V21: -42.426
T22: 240 | U22: -30.000 | V22: -51.962
T23: 255 | U23: -15.529 | V23: -57.956
T24: 270 | U24: -0.000 | V24: -60.000
T25: 285 | U25: 15.529 | V25: -57.956
T26: 300 | U26: 30.000 | V26: -51.962
T27: 315 | U27: 42.426 | V27: -42.426
T28: 330 | U28: 51.962 | V28: -30.000
T29: 345 | U29: 57.956 | V29: -15.529
T30: 360 | U30: 60.000 | V30: -0.000

Sheet Käänteistehtävä
A1: Lähtöpaikka | B1: LatA | D1: 0 | E1: ° | F1: 0 | G1: ' | H1: P | I1: LonA | J1: 0 | K1: ° | L1: 0 | M1: ' | N1: I | P1: Heikki Laakso 2012 | U1: rad | V1: =Matka -> 60.000 | W1: Matka
A2: Tulopaikka | B2: LatB | D2: 0 | E2: ° | F2: 0 | G2: ' | H2: P | I2: LonB | J2: 1 | K2: ° | L2: 0 | M2: ' | N2: I | W2: 0.000 | X2: =dep -> 60.000
A3: Käänteistehtävä | B3: Asteet | D3: Aste | F3: Minuutti | H3: Suunta | U3: xc | V3: yc | W3: 0.000 | X3: =Dlat -> 0.000
A4: LatA | B4: =IF(Suunta="P",Aste+Minuutti/60,IF(Suunta="E",-(Aste+Minuutti/60),"Suunta?")) -> 0 | C4: ° | D4: =D1 -> 0 | E4: ° | F4: =F1 -> 0.0 | G4: ' | H4: =UPPER(H1) -> P | S4: Sarja2 | U4: 0.000 | V4: 0.000 | W4: Dlat
A5: LonA | B5: =IF(Suunta="I",Aste+Minuutti/60,IF(Suunta="L",-(Aste+Minuutti/60),"Suunta?")) -> 0 | C5: ° | D5: =J1 -> 0 | E5: ° | F5: =L1 -> 0.0 | G5: ' | H5: =UPPER(N1) -> I | T5: angle | U5: x | V5: y | W5: 0.000 | X5: 0.000
A6: LatB | B6: =IF(Suunta="P",Aste+Minuutti/60,IF(Suunta="E",-(Aste+Minuutti/60),"Suunta?")) -> 0 | C6: ° | D6: =D2 -> 0 | E6: ° | F6: =F2 -> 0.0 | G6: ' | H6: =UPPER(H2) -> P | S6: Sarja1 | T6: 0 | U6: =xc + rad * COS(RADIANS(angle)) -> 60.000 | V6: =xc + rad * SIN(RADIANS(angle)) -> 0.000 | W6: 0.000 | X6: =X3 -> 0.000
A7: LonB | B7: =IF(Suunta="I",Aste+Minuutti/60,IF(Suunta="L",-(Aste+Minuutti/60),"Suunta?")) -> 1 | C7: ° | D7: =J2 -> 1 | E7: ° | F7: =L2 -> 0.0 | G7: ' | H7: =UPPER(N2) -> I | T7: 15 | U7: 57.956 | V7: 15.529 | W7: Dep
A8: Dlat | B8: =(LatB-LatA)*60 -> 0.0 | C8: M | D8: =INT(ABS(Dlat/60)) -> 0 | E8: ° | F8: =MOD(ABS(Dlat/60),1)*60 -> 0.0 | G8: ' | H8: =IF(Dlat>=0,"P","E") -> P | T8: 30 | U8: 51.962 | V8: 30.000 | W8: 0.000 | X8: =X2 -> 60.000
A9: Klat | B9: =LatA+Dlat/120 -> 0.0 | C9: ° | D9: =INT(ABS(Klat)) -> 0 | E9: ° | F9: =MOD(ABS(Klat),1)*60 -> 0.0 | G9: ' | H9: =IF(Klat>=0,"P","E") -> P | T9: 45 | U9: 42.426 | V9: 42.426 | W9: =X3 -> 0.000 | X9: =X3 -> 0.000
A10: Dlon | B10: =LonB-LonA -> 1.0 | C10: ° | D10: =INT(ABS(Dlon)) -> 1 | E10: ° | F10: =MOD(ABS(Dlon),1)*60 -> 0.0 | G10: ' | H10: =IF(Dlon>=0,"I","L") -> I | T10: 60 | U10: 30.000 | V10: 51.962
A11: m | B11: =1/COS(RADIANS(Klat)) -> 1.000 | T11: 75 | U11: 15.529 | V11: 57.956
A12: dep | B12: =Dlon/m*60 -> 60.0 | C12: M | H12: =IF(dep>=0,"I","L") -> I | T12: 90 | U12: 0.000 | V12: 60.000
A13: Asteluku | B13: =IF(LatA=LatB,90,DEGREES(ATAN(dep/Dlat))) -> 90.0 | C13: ° | T13: 105 | U13: -15.529 | V13: 57.956
T14: 120 | U14: -30.000 | V14: 51.962
A15: Matka | B15: =SQRT(POWER(Dlat,2)+POWER(dep,2)) -> 60.0 | C15: M | T15: 135 | U15: -42.426 | V15: 42.426
A16: SPS | B16: =IF(LatA>LatB,As+180,IF(LonA>LonB,IF(As=90,270,As+360),As)) -> 90.0 | C16: ° | T16: 150 | U16: -51.962 | V16: 30.000
A17: Tosisuunta | B17: SPS | D17: =SPS -> 90 | E17: ° | I17: Matka | J17: =Matka -> 60 | K17: M | T17: 165 | U17: -57.956 | V17: 15.529
T18: 180 | U18: -60.000 | V18: 0.000
T19: 195 | U19: -57.956 | V19: -15.529
T20: 210 | U20: -51.962 | V20: -30.000
T21: 225 | U21: -42.426 | V21: -42.426
T22: 240 | U22: -30.000 | V22: -51.962
T23: 255 | U23: -15.529 | V23: -57.956
T24: 270 | U24: -0.000 | V24: -60.000
T25: 285 | U25: 15.529 | V25: -57.956
T26: 300 | U26: 30.000 | V26: -51.962
T27: 315 | U27: 42.426 | V27: -42.426
T28: 330 | U28: 51.962 | V28: -30.000
T29: 345 | U29: 57.956 | V29: -15.529
T30: 360 | U30: 60.000 | V30: -0.000

Sheet Taulukko 1
A1: suunta | B1: 0 | D1: 1 | F1: 2 | H1: 3 | J1: 4 | L1: 5 | N1: 6 | P1: 7 | R1: 8 | T1: 9 | V1: 10 | X1: 11 | Z1: 12 | AB1: 13 | AD1: 14 | AF1: 15 | AH1: 16 | AJ1: 17 | AL1: 18 | AN1: 19 | AP1: 20 | AR1: 21 | AT1: 22 | AV1: 23 | AX1: 24 | AZ1: 25 | BB1: 26 | BD1: 27 | BF1: 28 | BH1: 29 | BJ1: 30 | BL1: 31 | BN1: 32 | BP1: 33 | BR1: 34 | BT1: 35 | BV1: 36 | BX1: 37 | BZ1: 38 | CB1: 39 | CD1: 40 | CF1: 41 | CH1: 42 | CJ1: 43 | CL1: 44 | CN1: 45 | CP1: 46 | CR1: 47 | CT1: 48 | CV1: 49 | CX1: 50 | CZ1: 51 | DB1: 52 | DD1: 53 | DF1: 54 | DH1: 55 | DJ1: 56 | DL1: 57 | DN1: 58 | DP1: 59 | DR1: 60 | DT1: 61 | DV1: 62 | DX1: 63 | DZ1: 64 | EB1: 65 | ED1: 66 | EF1: 67 | EH1: 68 | EJ1: 69 | EL1: 70 | EN1: 71 | EP1: 72 | ER1: 73 | ET1: 74 | EV1: 75 | EX1: 76 | EZ1: 77 | FB1: 78 | FD1: 79 | FF1: 80 | FH1: 81 | FJ1: 82 | FL1: 83 | FN1: 84 | FP1: 85 | FR1: 86 | FT1: 87 | FV1: 88 | FX1: 89 | FZ1: 90 | GB1: 91 | GD1: 92 | GF1: 93 | GH1: 94 | GJ1: 95 | GL1: 96 | GN1: 97 | GP1: 98 | GR1: 99 | GT1: 100 | GV1: 101 | GX1: 102 | GZ1: 103 | HB1: 104 | HD1: 105 | HF1: 106 | HH1: 107 | HJ1: 108 | HL1: 109 | HN1: 110 | HP1: 111 | HR1: 112 | HT1: 113 | HV1: 114 | HX1: 115 | HZ1: 116 | IB1: 117 | ID1: 118 | IF1: 119 | IH1: 120 | IJ1: 121 | IL1: 122 | IN1: 123 | IP1: 124 | IR1: 125 | IT1: 126 | IV1: 127 | IX1: 128 | IZ1: 129 | JB1: 130 | JD1: 131 | JF1: 132 | JH1: 133 | JJ1: 134 | JL1: 135 | JN1: 136 | JP1: 137 | JR1: 138 | JT1: 139 | JV1: 140 | JX1: 141 | JZ1: 142 | KB1: 143 | KD1: 144 | KF1: 145 | KH1: 146 | KJ1: 147 | KL1: 148 | KN1: 149 | KP1: 150 | KR1: 151 | KT1: 152 | KV1: 153 | KX1: 154 | KZ1: 155 | LB1: 156 | LD1: 157 | LF1: 158 | LH1: 159 | LJ1: 160 | LL1: 161 | LN1: 162 | LP1: 163 | LR1: 164 | LT1: 165 | LV1: 166 | LX1: 167 | LZ1: 168 | MB1: 169 | MD1: 170 | MF1: 171 | MH1: 172 | MJ1: 173 | ML1: 174 | MN1: 175 | MP1: 176 | MR1: 177 | MT1: 178 | MV1: 179 | MX1: 180 | MZ1: 181 | NB1: 182 | ND1: 183 | NF1: 184 | NH1: 185 | NJ1: 186 | NL1: 187 | NN1: 188 | NP1: 189 | NR1: 190 | NT1: 191 | NV1: 192 | NX1: 193 | NZ1: 194 | OB1: 195 | OD1: 196 | OF1: 197 | OH1: 198 | OJ1: 199 | OL1: 200 | ON1: 201 | OP1: 202 | OR1: 203 | OT1: 204 | OV1: 205 | OX1: 206 | OZ1: 207 | PB1: 208 | PD1: 209 | PF1: 210 | PH1: 211 | PJ1: 212 | PL1: 213 | PN1: 214 | PP1: 215 | PR1: 216 | PT1: 217 | PV1: 218 | PX1: 219 | PZ1: 220 | QB1: 221 | QD1: 222 | QF1: 223 | QH1: 224 | QJ1: 225 | QL1: 226 | QN1: 227 | QP1: 228 | QR1: 229 | QT1: 230 | QV1: 231 | QX1: 232 | QZ1: 233 | RB1: 234 | RD1: 235 | RF1: 236 | RH1: 237 | RJ1: 238 | RL1: 239 | RN1: 240 | RP1: 241 | RR1: 242 | RT1: 243 | RV1: 244 | RX1: 245 | RZ1: 246 | SB1: 247 | SD1: 248 | SF1: 249 | SH1: 250 | SJ1: 251 | SL1: 252 | SN1: 253 | SP1: 254 | SR1: 255 | ST1: 256 | SV1: 257 | SX1: 258 | SZ1: 259 | TB1: 260 | TD1: 261 | TF1: 262 | TH1: 263 | TJ1: 264 | TL1: 265 | TN1: 266 | TP1: 267 | TR1: 268 | TT1: 269 | TV1: 270 | TX1: 271 | TZ1: 272 | UB1: 273 | UD1: 274 | UF1: 275 | UH1: 276 | UJ1: 277 | UL1: 278 | UN1: 279 | UP1: 280 | UR1: 281 | UT1: 282 | UV1: 283 | UX1: 284 | UZ1: 285 | VB1: 286 | VD1: 287 | VF1: 288 | VH1: 289 | VJ1: 290 | VL1: 291 | VN1: 292 | VP1: 293 | VR1: 294 | VT1: 295 | VV1: 296 | VX1: 297 | VZ1: 298 | WB1: 299 | WD1: 300 | WF1: 301 | WH1: 302 | WJ1: 303 | WL1: 304 | WN1: 305 | WP1: 306 | WR1: 307 | WT1: 308 | WV1: 309 | WX1: 310 | WZ1: 311 | XB1: 312 | XD1: 313 | XF1: 314 | XH1: 315 | XJ1: 316 | XL1: 317 | XN1: 318 | XP1: 319 | XR1: 320 | XT1: 321 | XV1: 322 | XX1: 323 | XZ1: 324 | YB1: 325 | YD1: 326 | YF1: 327 | YH1: 328 | YJ1: 329 | YL1: 330 | YN1: 331 | YP1: 332 | YR1: 333 | YT1: 334 | YV1: 335 | YX1: 336 | YZ1: 337 | ZB1: 338 | ZD1: 339 | ZF1: 340 | ZH1: 341 | ZJ1: 342 | ZL1: 343 | ZN1: 344 | ZP1: 345 | ZR1: 346 | ZT1: 347 | ZV1: 348 | ZX1: 349 | ZZ1: 350 | AAB1: 351 | AAD1: 352 | AAF1: 353 | AAH1: 354 | AAJ1: 355 | AAL1: 356 | AAN1: 357 | AAP1: 358 | AAR1: 359 | AAT1: 360
A2: matka | B2: D.lat | C2: dep | D2: D.lat | E2: dep | F2: D.lat | G2: dep | H2: D.lat | I2: dep | J2: D.lat | K2: dep | L2: D.lat | M2: dep | N2: D.lat | O2: dep | P2: D.lat | Q2: dep | R2: D.lat | S2: dep | T2: D.lat | U2: dep | V2: D.lat | W2: dep | X2: D.lat | Y2: dep | Z2: D.lat | AA2: dep | AB2: D.lat | AC2: dep | AD2: D.lat | AE2: dep | AF2: D.lat | AG2: dep | AH2: D.lat | AI2: dep | AJ2: D.lat | AK2: dep | AL2: D.lat | AM2: dep | AN2: D.lat | AO2: dep | AP2: D.lat | AQ2: dep | AR2: D.lat | AS2: dep | AT2: D.lat | AU2: dep | AV2: D.lat | AW2: dep | AX2: D.lat | AY2: dep | AZ2: D.lat | BA2: dep | BB2: D.lat | BC2: dep | BD2: D.lat | BE2: dep | BF2: D.lat | BG2: dep | BH2: D.lat | BI2: dep | BJ2: D.lat | BK2: dep | BL2: D.lat | BM2: dep | BN2: D.lat | BO2: dep | BP2: D.lat | BQ2: dep | BR2: D.lat | BS2: dep | BT2: D.lat | BU2: dep | BV2: D.lat | BW2: dep | BX2: D.lat | BY2: dep | BZ2: D.lat | CA2: dep | CB2: D.lat | CC2: dep | CD2: D.lat | CE2: dep | CF2: D.lat | CG2: dep | CH2: D.lat | CI2: dep | CJ2: D.lat | CK2: dep | CL2: D.lat | CM2: dep | CN2: D.lat | CO2: dep | CP2: D.lat | CQ2: dep | CR2: D.lat | CS2: dep | CT2: D.lat | CU2: dep | CV2: D.lat | CW2: dep | CX2: D.lat | CY2: dep | CZ2: D.lat | DA2: dep | DB2: D.lat | DC2: dep | DD2: D.lat | DE2: dep | DF2: D.lat | DG2: dep | DH2: D.lat | DI2: dep | DJ2: D.lat | DK2: dep | DL2: D.lat | DM2: dep | DN2: D.lat | DO2: dep | DP2: D.lat | DQ2: dep | DR2: D.lat | DS2: dep | DT2: D.lat | DU2: dep | DV2: D.lat | DW2: dep | DX2: D.lat | DY2: dep | DZ2: D.lat | EA2: dep | EB2: D.lat | EC2: dep | ED2: D.lat | EE2: dep | EF2: D.lat | EG2: dep | EH2: D.lat | EI2: dep | EJ2: D.lat | EK2: dep | EL2: D.lat | EM2: dep | EN2: D.lat | EO2: dep | EP2: D.lat | EQ2: dep | ER2: D.lat | ES2: dep | ET2: D.lat | EU2: dep | EV2: D.lat | EW2: dep | EX2: D.lat | EY2: dep | EZ2: D.lat | FA2: dep | FB2: D.lat | FC2: dep | FD2: D.lat | FE2: dep | FF2: D.lat | FG2: dep | FH2: D.lat | FI2: dep | FJ2: D.lat | FK2: dep | FL2: D.lat | FM2: dep | FN2: D.lat | FO2: dep | FP2: D.lat | FQ2: dep | FR2: D.lat | FS2: dep | FT2: D.lat | FU2: dep | FV2: D.lat | FW2: dep | FX2: D.lat | FY2: dep | FZ2: D.lat | GA2: dep | GB2: D.lat | GC2: dep | GD2: D.lat | GE2: dep | GF2: D.lat | GG2: dep | GH2: D.lat | GI2: dep | GJ2: D.lat | GK2: dep | GL2: D.lat | GM2: dep | GN2: D.lat | GO2: dep | GP2: D.lat | GQ2: dep | GR2: D.lat | GS2: dep | GT2: D.lat | GU2: dep | GV2: D.lat | GW2: dep | GX2: D.lat | GY2: dep | GZ2: D.lat | HA2: dep | HB2: D.lat | HC2: dep | HD2: D.lat | HE2: dep | HF2: D.lat | HG2: dep | HH2: D.lat | HI2: dep | HJ2: D.lat | HK2: dep | HL2: D.lat | HM2: dep | HN2: D.lat | HO2: dep | HP2: D.lat | HQ2: dep | HR2: D.lat | HS2: dep | HT2: D.lat | HU2: dep | HV2: D.lat | HW2: dep | HX2: D.lat | HY2: dep | HZ2: D.lat | IA2: dep | IB2: D.lat | IC2: dep | ID2: D.lat | IE2: dep | IF2: D.lat | IG2: dep | IH2: D.lat | II2: dep | IJ2: D.lat | IK2: dep | IL2: D.lat | IM2: dep | IN2: D.lat | IO2: dep | IP2: D.lat | IQ2: dep | IR2: D.lat | IS2: dep | IT2: D.lat | IU2: dep | IV2: D.lat | IW2: dep | IX2: D.lat | IY2: dep | IZ2: D.lat | JA2: dep | JB2: D.lat | JC2: dep | JD2: D.lat | JE2: dep | JF2: D.lat | JG2: dep | JH2: D.lat | JI2: dep | JJ2: D.lat | JK2: dep | JL2: D.lat | JM2: dep | JN2: D.lat | JO2: dep | JP2: D.lat | JQ2: dep | JR2: D.lat | JS2: dep | JT2: D.lat | JU2: dep | JV2: D.lat | JW2: dep | JX2: D.lat | JY2: dep | JZ2: D.lat | KA2: dep | KB2: D.lat | KC2: dep | KD2: D.lat | KE2: dep | KF2: D.lat | KG2: dep | KH2: D.lat | KI2: dep | KJ2: D.lat | KK2: dep | KL2: D.lat | KM2: dep | KN2: D.lat | KO2: dep | KP2: D.lat | KQ2: dep | KR2: D.lat | KS2: dep | KT2: D.lat | KU2: dep | KV2: D.lat | KW2: dep | KX2: D.lat | KY2: dep | KZ2: D.lat | LA2: dep | LB2: D.lat | LC2: dep | LD2: D.lat | LE2: dep | LF2: D.lat | LG2: dep | LH2: D.lat | LI2: dep | LJ2: D.lat | LK2: dep | LL2: D.lat | LM2: dep | LN2: D.lat | LO2: dep | LP2: D.lat | LQ2: dep | LR2: D.lat | LS2: dep | LT2: D.lat | LU2: dep | LV2: D.lat | LW2: dep | LX2: D.lat | LY2: dep | LZ2: D.lat | MA2: dep | MB2: D.lat | MC2: dep | MD2: D.lat | ME2: dep | MF2: D.lat | MG2: dep | MH2: D.lat | MI2: dep | MJ2: D.lat | MK2: dep | ML2: D.lat | MM2: dep | MN2: D.lat | MO2: dep | MP2: D.lat | MQ2: dep | MR2: D.lat | MS2: dep | MT2: D.lat | MU2: dep | MV2: D.lat | MW2: dep | MX2: D.lat | MY2: dep | MZ2: D.lat | NA2: dep | NB2: D.lat | NC2: dep | ND2: D.lat | NE2: dep | NF2: D.lat | NG2: dep | NH2: D.lat | NI2: dep | NJ2: D.lat | NK2: dep | NL2: D.lat | NM2: dep | NN2: D.lat | NO2: dep | NP2: D.lat | NQ2: dep | NR2: D.lat | NS2: dep | NT2: D.lat | NU2: dep | NV2: D.lat | NW2: dep | NX2: D.lat | NY2: dep | NZ2: D.lat | OA2: dep | OB2: D.lat | OC2: dep | OD2: D.lat | OE2: dep | OF2: D.lat | OG2: dep | OH2: D.lat | OI2: dep | OJ2: D.lat | OK2: dep | OL2: D.lat | OM2: dep | ON2: D.lat | OO2: dep | OP2: D.lat | OQ2: dep | OR2: D.lat | OS2: dep | OT2: D.lat | OU2: dep | OV2: D.lat | OW2: dep | OX2: D.lat | OY2: dep | OZ2: D.lat | PA2: dep | PB2: D.lat | PC2: dep | PD2: D.lat | PE2: dep | PF2: D.lat | PG2: dep | PH2: D.lat | PI2: dep | PJ2: D.lat | PK2: dep | PL2: D.lat | PM2: dep | PN2: D.lat | PO2: dep | PP2: D.lat | PQ2: dep | PR2: D.lat | PS2: dep | PT2: D.lat | PU2: dep | PV2: D.lat | PW2: dep | PX2: D.lat | PY2: dep | PZ2: D.lat | QA2: dep | QB2: D.lat | QC2: dep | QD2: D.lat | QE2: dep | QF2: D.lat | QG2: dep | QH2: D.lat | QI2: dep | QJ2: D.lat | QK2: dep | QL2: D.lat | QM2: dep | QN2: D.lat | QO2: dep | QP2: D.lat | QQ2: dep | QR2: D.lat | QS2: dep | QT2: D.lat | QU2: dep | QV2: D.lat | QW2: dep | QX2: D.lat | QY2: dep | QZ2: D.lat | RA2: dep | RB2: D.lat | RC2: dep | RD2: D.lat | RE2: dep | RF2: D.lat | RG2: dep | RH2: D.lat | RI2: dep | RJ2: D.lat | RK2: dep | RL2: D.lat | RM2: dep | RN2: D.lat | RO2: dep | RP2: D.lat | RQ2: dep | RR2: D.lat | RS2: dep | RT2: D.lat | RU2: dep | RV2: D.lat | RW2: dep | RX2: D.lat | RY2: dep | RZ2: D.lat | SA2: dep | SB2: D.lat | SC2: dep | SD2: D.lat | SE2: dep | SF2: D.lat | SG2: dep | SH2: D.lat | SI2: dep | SJ2: D.lat | SK2: dep | SL2: D.lat | SM2: dep | SN2: D.lat | SO2: dep | SP2: D.lat | SQ2: dep | SR2: D.lat | SS2: dep | ST2: D.lat | SU2: dep | SV2: D.lat | SW2: dep | SX2: D.lat | SY2: dep | SZ2: D.lat | TA2: dep | TB2: D.lat | TC2: dep | TD2: D.lat | TE2: dep | TF2: D.lat | TG2: dep | TH2: D.lat | TI2: dep | TJ2: D.lat | TK2: dep | TL2: D.lat | TM2: dep | TN2: D.lat | TO2: dep | TP2: D.lat | TQ2: dep | TR2: D.lat | TS2: dep | TT2: D.lat | TU2: dep | TV2: D.lat | TW2: dep | TX2: D.lat | TY2: dep | TZ2: D.lat | UA2: dep | UB2: D.lat | UC2: dep | UD2: D.lat | UE2: dep | UF2: D.lat | UG2: dep | UH2: D.lat | UI2: dep | UJ2: D.lat | UK2: dep | UL2: D.lat | UM2: dep | UN2: D.lat | UO2: dep | UP2: D.lat | UQ2: dep | UR2: D.lat | US2: dep | UT2: D.lat | UU2: dep | UV2: D.lat | UW2: dep | UX2: D.lat | UY2: dep | UZ2: D.lat | VA2: dep | VB2: D.lat | VC2: dep | VD2: D.lat | VE2: dep | VF2: D.lat | VG2: dep | VH2: D.lat | VI2: dep | VJ2: D.lat | VK2: dep | VL2: D.lat | VM2: dep | VN2: D.lat | VO2: dep | VP2: D.lat | VQ2: dep | VR2: D.lat | VS2: dep | VT2: D.lat | VU2: dep | VV2: D.lat | VW2: dep | VX2: D.lat | VY2: dep | VZ2: D.lat | WA2: dep | WB2: D.lat | WC2: dep | WD2: D.lat | WE2: dep | WF2: D.lat | WG2: dep | WH2: D.lat | WI2: dep | WJ2: D.lat | WK2: dep | WL2: D.lat | WM2: dep | WN2: D.lat | WO2: dep | WP2: D.lat | WQ2: dep | WR2: D.lat | WS2: dep | WT2: D.lat | WU2: dep | WV2: D.lat | WW2: dep | WX2: D.lat | WY2: dep | WZ2: D.lat | XA2: dep | XB2: D.lat | XC2: dep | XD2: D.lat | XE2: dep | XF2: D.lat | XG2: dep | XH2: D.lat | XI2: dep | XJ2: D.lat | XK2: dep | XL2: D.lat | XM2: dep | XN2: D.lat | XO2: dep | XP2: D.lat | XQ2: dep | XR2: D.lat | XS2: dep | XT2: D.lat | XU2: dep | XV2: D.lat | XW2: dep | XX2: D.lat | XY2: dep | XZ2: D.lat | YA2: dep | YB2: D.lat | YC2: dep | YD2: D.lat | YE2: dep | YF2: D.lat | YG2: dep | YH2: D.lat | YI2: dep | YJ2: D.lat | YK2: dep | YL2: D.lat | YM2: dep | YN2: D.lat | YO2: dep | YP2: D.lat | YQ2: dep | YR2: D.lat | YS2: dep | YT2: D.lat | YU2: dep | YV2: D.lat | YW2: dep | YX2: D.lat | YY2: dep | YZ2: D.lat | ZA2: dep | ZB2: D.lat | ZC2: dep | ZD2: D.lat | ZE2: dep | ZF2: D.lat | ZG2: dep | ZH2: D.lat | ZI2: dep | ZJ2: D.lat | ZK2: dep | ZL2: D.lat | ZM2: dep | ZN2: D.lat | ZO2: dep | ZP2: D.lat | ZQ2: dep | ZR2: D.lat | ZS2: dep | ZT2: D.lat | ZU2: dep | ZV2: D.lat | ZW2: dep | ZX2: D.lat | ZY2: dep | ZZ2: D.lat | AAA2: dep | AAB2: D.lat | AAC2: dep | AAD2: D.lat | AAE2: dep | AAF2: D.lat | AAG2: dep | AAH2: D.lat | AAI2: dep | AAJ2: D.lat | AAK2: dep | AAL2: D.lat | AAM2: dep | AAN2: D.lat | AAO2: dep | AAP2: D.lat | AAQ2: dep | AAR2: D.lat | AAS2: dep | AAT2: D.lat | AAU2: dep
A3: 1 | B3: =COS(B$1/360*2*PI())*$A3 -> 1.0 | C3: =SIN(B$1/360*2*PI())*$A3 -> 0.0 | D3: =COS(D$1/360*2*PI())*$A3 -> 1.0 | E3: =SIN(D$1/360*2*PI())*$A3 -> 0.0 | F3: =COS(F$1/360*2*PI())*$A3 -> 1.0 | G3: =SIN(F$1/360*2*PI())*$A3 -> 0.0 | H3: =COS(H$1/360*2*PI())*$A3 -> 1.0 | I3: =SIN(H$1/360*2*PI())*$A3 -> 0.1 | J3: =COS(J$1/360*2*PI())*$A3 -> 1.0 | K3: =SIN(J$1/360*2*PI())*$A3 -> 0.1 | L3: =COS(L$1/360*2*PI())*$A3 -> 1.0 | M3: =SIN(L$1/360*2*PI())*$A3 -> 0.1 | N3: =COS(N$1/360*2*PI())*$A3 -> 1.0 | O3: =SIN(N$1/360*2*PI())*$A3 -> 0.1 | P3: =COS(P$1/360*2*PI())*$A3 -> 1.0 | Q3: =SIN(P$1/360*2*PI())*$A3 -> 0.1 | R3: =COS(R$1/360*2*PI())*$A3 -> 1.0 | S3: =SIN(R$1/360*2*PI())*$A3 -> 0.1 | T3: =COS(T$1/360*2*PI())*$A3 -> 1.0 | U3: =SIN(T$1/360*2*PI())*$A3 -> 0.2 | V3: =COS(V$1/360*2*PI())*$A3 -> 1.0 | W3: =SIN(V$1/360*2*PI())*$A3 -> 0.2 | X3: =COS(X$1/360*2*PI())*$A3 -> 1.0 | Y3: =SIN(X$1/360*2*PI())*$A3 -> 0.2 | Z3: =COS(Z$1/360*2*PI())*$A3 -> 1.0 | AA3: =SIN(Z$1/360*2*PI())*$A3 -> 0.2 | AB3: =COS(AB$1/360*2*PI())*$A3 -> 1.0 | AC3: =SIN(AB$1/360*2*PI())*$A3 -> 0.2 | AD3: =COS(AD$1/360*2*PI())*$A3 -> 1.0 | AE3: =SIN(AD$1/360*2*PI())*$A3 -> 0.2 | AF3: =COS(AF$1/360*2*PI())*$A3 -> 1.0 | AG3: =SIN(AF$1/360*2*PI())*$A3 -> 0.3 | AH3: =COS(AH$1/360*2*PI())*$A3 -> 1.0 | AI3: =SIN(AH$1/360*2*PI())*$A3 -> 0.3 | AJ3: =COS(AJ$1/360*2*PI())*$A3 -> 1.0 | AK3: =SIN(AJ$1/360*2*PI())*$A3 -> 0.3 | AL3: =COS(AL$1/360*2*PI())*$A3 -> 1.0 | AM3: =SIN(AL$1/360*2*PI())*$A3 -> 0.3 | AN3: =COS(AN$1/360*2*PI())*$A3 -> 0.9 | AO3: =SIN(AN$1/360*2*PI())*$A3 -> 0.3 | AP3: =COS(AP$1/360*2*PI())*$A3 -> 0.9 | AQ3: =SIN(AP$1/360*2*PI())*$A3 -> 0.3 | AR3: =COS(AR$1/360*2*PI())*$A3 -> 0.9 | AS3: =SIN(AR$1/360*2*PI())*$A3 -> 0.4 | AT3: =COS(AT$1/360*2*PI())*$A3 -> 0.9 | AU3: =SIN(AT$1/360*2*PI())*$A3 -> 0.4 | AV3: =COS(AV$1/360*2*PI())*$A3 -> 0.9 | AW3: =SIN(AV$1/360*2*PI())*$A3 -> 0.4 | AX3: =COS(AX$1/360*2*PI())*$A3 -> 0.9 | AY3: =SIN(AX$1/360*2*PI())*$A3 -> 0.4 | AZ3: =COS(AZ$1/360*2*PI())*$A3 -> 0.9 | BA3: =SIN(AZ$1/360*2*PI())*$A3 -> 0.4 | BB3: =COS(BB$1/360*2*PI())*$A3 -> 0.9 | BC3: =SIN(BB$1/360*2*PI())*$A3 -> 0.4 | BD3: =COS(BD$1/360*2*PI())*$A3 -> 0.9 | BE3: =SIN(BD$1/360*2*PI())*$A3 -> 0.5 | BF3: =COS(BF$1/360*2*PI())*$A3 -> 0.9 | BG3: =SIN(BF$1/360*2*PI())*$A3 -> 0.5 | BH3: =COS(BH$1/360*2*PI())*$A3 -> 0.9 | BI3: =SIN(BH$1/360*2*PI())*$A3 -> 0.5 | BJ3: =COS(BJ$1/360*2*PI())*$A3 -> 0.9 | BK3: =SIN(BJ$1/360*2*PI())*$A3 -> 0.5 | BL3: =COS(BL$1/360*2*PI())*$A3 -> 0.9 | BM3: =SIN(BL$1/360*2*PI())*$A3 -> 0.5 | BN3: =COS(BN$1/360*2*PI())*$A3 -> 0.8 | BO3: =SIN(BN$1/360*2*PI())*$A3 -> 0.5 | BP3: =COS(BP$1/360*2*PI())*$A3 -> 0.8 | BQ3: =SIN(BP$1/360*2*PI())*$A3 -> 0.5 | BR3: =COS(BR$1/360*2*PI())*$A3 -> 0.8 | BS3: =SIN(BR$1/360*2*PI())*$A3 -> 0.6 | BT3: =COS(BT$1/360*2*PI())*$A3 -> 0.8 | BU3: =SIN(BT$1/360*2*PI())*$A3 -> 0.6 | BV3: =COS(BV$1/360*2*PI())*$A3 -> 0.8 | BW3: =SIN(BV$1/360*2*PI())*$A3 -> 0.6 | BX3: =COS(BX$1/360*2*PI())*$A3 -> 0.8 | BY3: =SIN(BX$1/360*2*PI())*$A3 -> 0.6 | BZ3: =COS(BZ$1/360*2*PI())*$A3 -> 0.8 | CA3: =SIN(BZ$1/360*2*PI())*$A3 -> 0.6 | CB3: =COS(CB$1/360*2*PI())*$A3 -> 0.8 | CC3: =SIN(CB$1/360*2*PI())*$A3 -> 0.6 | CD3: =COS(CD$1/360*2*PI())*$A3 -> 0.8 | CE3: =SIN(CD$1/360*2*PI())*$A3 -> 0.6 | CF3: =COS(CF$1/360*2*PI())*$A3 -> 0.8 | CG3: =SIN(CF$1/360*2*PI())*$A3 -> 0.7 | CH3: =COS(CH$1/360*2*PI())*$A3 -> 0.7 | CI3: =SIN(CH$1/360*2*PI())*$A3 -> 0.7 | CJ3: =COS(CJ$1/360*2*PI())*$A3 -> 0.7 | CK3: =SIN(CJ$1/360*2*PI())*$A3 -> 0.7 | CL3: =COS(CL$1/360*2*PI())*$A3 -> 0.7 | CM3: =SIN(CL$1/360*2*PI())*$A3 -> 0.7 | CN3: =COS(CN$1/360*2*PI())*$A3 -> 0.7 | CO3: =SIN(CN$1/360*2*PI())*$A3 -> 0.7 | CP3: 0.7 | CQ3: 0.7 | CR3: 0.7 | CS3: 0.7 | CT3: 0.7 | CU3: 0.7 | CV3: 0.7 | CW3: 0.8 | CX3: 0.6 | CY3: 0.8 | CZ3: 0.6 | DA3: 0.8 | DB3: 0.6 | DC3: 0.8 | DD3: 0.6 | DE3: =SIN(DD$1/360*2*PI())*$A3 -> 0.8 | DF3: 0.6 | DG3: 0.8 | DH3: 0.6 | DI3: 0.8 | DJ3: 0.6 | DK3: 0.8 | DL3: 0.5 | DM3: 0.8 | DN3: 0.5 | DO3: 0.8 | DP3: 0.5 | DQ3: 0.9 | DR3: 0.5 | DS3: 0.9 | DT3: 0.5 | DU3: =SIN(DT$1/360*2*PI())*$A3 -> 0.9 | DV3: 0.5 | DW3: 0.9 | DX3: 0.5 | DY3: 0.9 | DZ3: 0.4 | EA3: 0.9 | EB3: 0.4 | EC3: 0.9 | ED3: 0.4 | EE3: 0.9 | EF3: 0.4 | EG3: 0.9 | EH3: 0.4 | EI3: 0.9 | EJ3: 0.4 | EK3: =SIN(EJ$1/360*2*PI())*$A3 -> 0.9 | EL3: 0.3 | EM3: 0.9 | EN3: 0.3 | EO3: 0.9 | EP3: 0.3 | EQ3: 1.0 | ER3: 0.3 | ES3: 1.0 | ET3: 0.3 | EU3: 1.0 | EV3: 0.3 | EW3: 1.0 | EX3: 0.2 | EY3: 1.0 | EZ3: =COS(EZ$1/360*2*PI())*$A3 -> 0.2 | FA3: =SIN(EZ$1/360*2*PI())*$A3 -> 1.0 | FB3: 0.2 | FC3: 1.0 | FD3: 0.2 | FE3: 1.0 | FF3: 0.2 | FG3: 1.0 | FH3: 0.2 | FI3: 1.0 | FJ3: 0.1 | FK3: 1.0 | FL3: 0.1 | FM3: 1.0 | FN3: 0.1 | FO3: 1.0 | FP3: 0.1 | FQ3: =SIN(FP$1/360*2*PI())*$A3 -> 1.0 | FR3: 0.1 | FS3: 1.0 | FT3: 0.1 | FU3: 1.0 | FV3: 0.0 | FW3: 1.0 | FX3: 0.0 | FY3: 1.0 | FZ3: 0.0 | GA3: 1.0 | GB3: -0.0 | GC3: 1.0 | GD3: -0.0 | GE3: 1.0 | GF3: -0.1 | GG3: =SIN(GF$1/360*2*PI())*$A3 -> 1.0 | GH3: -0.1 | GI3: 1.0 | GJ3: -0.1 | GK3: 1.0 | GL3: -0.1 | GM3: 1.0 | GN3: -0.1 | GO3: 1.0 | GP3: -0.1 | GQ3: 1.0 | GR3: -0.2 | GS3: 1.0 | GT3: -0.2 | GU3: 1.0 | GV3: -0.2 | GW3: =SIN(GV$1/360*2*PI())*$A3 -> 1.0 | GX3: -0.2 | GY3: 1.0 | GZ3: -0.2 | HA3: 1.0 | HB3: -0.2 | HC3: 1.0 | HD3: -0.3 | HE3: 1.0 | HF3: -0.3 | HG3: 1.0 | HH3: -0.3 | HI3: 1.0 | HJ3: -0.3 | HK3: 1.0 | HL3: =COS(HL$1/360*2*PI())*$A3 -> -0.3 | HM3: =SIN(HL$1/360*2*PI())*$A3 -> 0.9 | HN3: -0.3 | HO3: 0.9 | HP3: -0.4 | HQ3: 0.9 | HR3: -0.4 | HS3: 0.9 | HT3: -0.4 | HU3: 0.9 | HV3: -0.4 | HW3: 0.9 | HX3: -0.4 | HY3: 0.9 | HZ3: -0.4 | IA3: 0.9 | IB3: -0.5 | IC3: =SIN(IB$1/360*2*PI())*$A3 -> 0.9 | ID3: -0.5 | IE3: 0.9 | IF3: -0.5 | IG3: 0.9 | IH3: -0.5 | II3: 0.9 | IJ3: -0.5 | IK3: 0.9 | IL3: -0.5 | IM3: 0.8 | IN3: -0.5 | IO3: 0.8 | IP3: -0.6 | IQ3: 0.8 | IR3: -0.6 | IS3: =SIN(IR$1/360*2*PI())*$A3 -> 0.8 | IT3: -0.6 | IU3: 0.8 | IV3: -0.6 | IW3: 0.8 | IX3: -0.6 | IY3: 0.8 | IZ3: -0.6 | JA3: 0.8 | JB3: -0.6 | JC3: 0.8 | JD3: -0.7 | JE3: 0.8 | JF3: -0.7 | JG3: 0.7 | JH3: -0.7 | JI3: =SIN(JH$1/360*2*PI())*$A3 -> 0.7 | JJ3: -0.7 | JK3: 0.7 | JL3: -0.7 | JM3: 0.7 | JN3: -0.7 | JO3: 0.7 | JP3: -0.7 | JQ3: 0.7 | JR3: -0.7 | JS3: 0.7 | JT3: -0.8 | JU3: 0.7 | JV3: -0.8 | JW3: 0.6 | JX3: =COS(JX$1/360*2*PI())*$A3 -> -0.8 | JY3: =SIN(JX$1/360*2*PI())*$A3 -> 0.6 | JZ3: -0.8 | KA3: 0.6 | KB3: -0.8 | KC3: 0.6 | KD3: -0.8 | KE3: 0.6 | KF3: -0.8 | KG3: 0.6 | KH3: -0.8 | KI3: 0.6 | KJ3: -0.8 | KK3: 0.5 | KL3: -0.8 | KM3: 0.5 | KN3: -0.9 | KO3: =SIN(KN$1/360*2*PI())*$A3 -> 0.5 | KP3: -0.9 | KQ3: 0.5 | KR3: -0.9 | KS3: 0.5 | KT3: -0.9 | KU3: 0.5 | KV3: -0.9 | KW3: 0.5 | KX3: -0.9 | KY3: 0.4 | KZ3: -0.9 | LA3: 0.4 | LB3: -0.9 | LC3: 0.4 | LD3: -0.9 | LE3: =SIN(LD$1/360*2*PI())*$A3 -> 0.4 | LF3: -0.9 | LG3: 0.4 | LH3: -0.9 | LI3: 0.4 | LJ3: -0.9 | LK3: 0.3 | LL3: -0.9 | LM3: 0.3 | LN3: -1.0 | LO3: 0.3 | LP3: -1.0 | LQ3: 0.3 | LR3: -1.0 | LS3: 0.3 | LT3: -1.0 | LU3: =SIN(LT$1/360*2*PI())*$A3 -> 0.3 | LV3: -1.0 | LW3: 0.2 | LX3: -1.0 | LY3: 0.2 | LZ3: -1.0 | MA3: 0.2 | MB3: -1.0 | MC3: 0.2 | MD3: -1.0 | ME3: 0.2 | MF3: -1.0 | MG3: 0.2 | MH3: -1.0 | MI3: 0.1 | MJ3: =COS(MJ$1/360*2*PI())*$A3 -> -1.0 | MK3: =SIN(MJ$1/360*2*PI())*$A3 -> 0.1 | ML3: -1.0 | MM3: 0.1 | MN3: -1.0 | MO3: 0.1 | MP3: -1.0 | MQ3: 0.1 | MR3: -1.0 | MS3: 0.1 | MT3: -1.0 | MU3: 0.0 | MV3: -1.0 | MW3: 0.0 | MX3: -1.0 | MY3: 0.0 | MZ3: -1.0 | NA3: =SIN(MZ$1/360*2*PI())*$A3 -> -0.0 | NB3: -1.0 | NC3: -0.0 | ND3: -1.0 | NE3: -0.1 | NF3: -1.0 | NG3: -0.1 | NH3: -1.0 | NI3: -0.1 | NJ3: -1.0 | NK3: -0.1 | NL3: -1.0 | NM3: -0.1 | NN3: -1.0 | NO3: -0.1 | NP3: -1.0 | NQ3: =SIN(NP$1/360*2*PI())*$A3 -> -0.2 | NR3: -1.0 | NS3: -0.2 | NT3: -1.0 | NU3: -0.2 | NV3: -1.0 | NW3: -0.2 | NX3: -1.0 | NY3: -0.2 | NZ3: -1.0 | OA3: -0.2 | OB3: -1.0 | OC3: -0.3 | OD3: -1.0 | OE3: -0.3 | OF3: -1.0 | OG3: =SIN(OF$1/360*2*PI())*$A3 -> -0.3 | OH3: -1.0 | OI3: -0.3 | OJ3: -0.9 | OK3: -0.3 | OL3: -0.9 | OM3: -0.3 | ON3: -0.9 | OO3: -0.4 | OP3: -0.9 | OQ3: -0.4 | OR3: -0.9 | OS3: -0.4 | OT3: -0.9 | OU3: -0.4 | OV3: =COS(OV$1/360*2*PI())*$A3 -> -0.9 | OW3: =SIN(OV$1/360*2*PI())*$A3 -> -0.4 | OX3: -0.9 | OY3: -0.4 | OZ3: -0.9 | PA3: -0.5 | PB3: -0.9 | PC3: -0.5 | PD3: -0.9 | PE3: -0.5 | PF3: -0.9 | PG3: -0.5 | PH3: -0.9 | PI3: -0.5 | PJ3: -0.8 | PK3: -0.5 | PL3: -0.8 | PM3: =SIN(PL$1/360*2*PI())*$A3 -> -0.5 | PN3: -0.8 | PO3: -0.6 | PP3: -0.8 | PQ3: -0.6 | PR3: -0.8 | PS3: -0.6 | PT3: -0.8 | PU3: -0.6 | PV3: -0.8 | PW3: -0.6 | PX3: -0.8 | PY3: -0.6 | PZ3: -0.8 | QA3: -0.6 | QB3: -0.8 | QC3: =SIN(QB$1/360*2*PI())*$A3 -> -0.7 | QD3: -0.7 | QE3: -0.7 | QF3: -0.7 | QG3: -0.7 | QH3: -0.7 | QI3: -0.7 | QJ3: -0.7 | QK3: -0.7 | QL3: -0.7 | QM3: -0.7 | QN3: -0.7 | QO3: -0.7 | QP3: -0.7 | QQ3: -0.7 | QR3: -0.7 | QS3: =SIN(QR$1/360*2*PI())*$A3 -> -0.8 | QT3: -0.6 | QU3: -0.8 | QV3: -0.6 | QW3: -0.8 | QX3: -0.6 | QY3: -0.8 | QZ3: -0.6 | RA3: -0.8 | RB3: -0.6 | RC3: -0.8 | RD3: -0.6 | RE3: -0.8 | RF3: -0.6 | RG3: -0.8 | RH3: =COS(RH$1/360*2*PI())*$A3 -> -0.5 | RI3: =SIN(RH$1/360*2*PI())*$A3 -> -0.8 | RJ3: -0.5 | RK3: -0.8 | RL3: -0.5 | RM3: -0.9 | RN3: -0.5 | RO3: -0.9 | RP3: -0.5 | RQ3: -0.9 | RR3: -0.5 | RS3: -0.9 | RT3: -0.5 | RU3: -0.9 | RV3: -0.4 | RW3: -0.9 | RX3: -0.4 | RY3: =SIN(RX$1/360*2*PI())*$A3 -> -0.9 | RZ3: -0.4 | SA3: -0.9 | SB3: -0.4 | SC3: -0.9 | SD3: -0.4 | SE3: -0.9 | SF3: -0.4 | SG3: -0.9 | SH3: -0.3 | SI3: -0.9 | SJ3: -0.3 | SK3: -0.9 | SL3: -0.3 | SM3: -1.0 | SN3: -0.3 | SO3: =SIN(SN$1/360*2*PI())*$A3 -> -1.0 | SP3: -0.3 | SQ3: -1.0 | SR3: -0.3 | SS3: -1.0 | ST3: -0.2 | SU3: -1.0 | SV3: -0.2 | SW3: -1.0 | SX3: -0.2 | SY3: -1.0 | SZ3: -0.2 | TA3: -1.0 | TB3: -0.2 | TC3: -1.0 | TD3: -0.2 | TE3: =SIN(TD$1/360*2*PI())*$A3 -> -1.0 | TF3: -0.1 | TG3: -1.0 | TH3: -0.1 | TI3: -1.0 | TJ3: -0.1 | TK3: -1.0 | TL3: -0.1 | TM3: -1.0 | TN3: -0.1 | TO3: -1.0 | TP3: -0.1 | TQ3: -1.0 | TR3: -0.0 | TS3: -1.0 | TT3: =COS(TT$1/360*2*PI())*$A3 -> -0.0 | TU3: =SIN(TT$1/360*2*PI())*$A3 -> -1.0 | TV3: -0.0 | TW3: -1.0 | TX3: 0.0 | TY3: -1.0 | TZ3: 0.0 | UA3: -1.0 | UB3: 0.1 | UC3: -1.0 | UD3: 0.1 | UE3: -1.0 | UF3: 0.1 | UG3: -1.0 | UH3: 0.1 | UI3: -1.0 | UJ3: 0.1 | UK3: =SIN(UJ$1/360*2*PI())*$A3 -> -1.0 | UL3: 0.1 | UM3: -1.0 | UN3: 0.2 | UO3: -1.0 | UP3: 0.2 | UQ3: -1.0 | UR3: 0.2 | US3: -1.0 | UT3: 0.2 | UU3: -1.0 | UV3: 0.2 | UW3: -1.0 | UX3: 0.2 | UY3: -1.0 | UZ3: 0.3 | VA3: =SIN(UZ$1/360*2*PI())*$A3 -> -1.0 | VB3: 0.3 | VC3: -1.0 | VD3: 0.3 | VE3: -1.0 | VF3: 0.3 | VG3: -1.0 | VH3: 0.3 | VI3: -0.9 | VJ3: 0.3 | VK3: -0.9 | VL3: 0.4 | VM3: -0.9 | VN3: 0.4 | VO3: -0.9 | VP3: 0.4 | VQ3: =SIN(VP$1/360*2*PI())*$A3 -> -0.9 | VR3: 0.4 | VS3: -0.9 | VT3: 0.4 | VU3: -0.9 | VV3: 0.4 | VW3: -0.9 | VX3: 0.5 | VY3: -0.9 | VZ3: 0.5 | WA3: -0.9 | WB3: 0.5 | WC3: -0.9 | WD3: 0.5 | WE3: -0.9 | WF3: =COS(WF$1/360*2*PI())*$A3 -> 0.5 | WG3: =SIN(WF$1/360*2*PI())*$A3 -> -0.9 | WH3: 0.5 | WI3: -0.8 | WJ3: 0.5 | WK3: -0.8 | WL3: 0.6 | WM3: -0.8 | WN3: 0.6 | WO3: -0.8 | WP3: 0.6 | WQ3: -0.8 | WR3: 0.6 | WS3: -0.8 | WT3: 0.6 | WU3: -0.8 | WV3: 0.6 | WW3: =SIN(WV$1/360*2*PI())*$A3 -> -0.8 | WX3: 0.6 | WY3: -0.8 | WZ3: 0.7 | XA3: -0.8 | XB3: 0.7 | XC3: -0.7 | XD3: 0.7 | XE3: -0.7 | XF3: 0.7 | XG3: -0.7 | XH3: 0.7 | XI3: -0.7 | XJ3: 0.7 | XK3: -0.7 | XL3: 0.7 | XM3: =SIN(XL$1/360*2*PI())*$A3 -> -0.7 | XN3: 0.7 | XO3: -0.7 | XP3: 0.8 | XQ3: -0.7 | XR3: 0.8 | XS3: -0.6 | XT3: 0.8 | XU3: -0.6 | XV3: 0.8 | XW3: -0.6 | XX3: 0.8 | XY3: -0.6 | XZ3: 0.8 | YA3: -0.6 | YB3: 0.8 | YC3: =SIN(YB$1/360*2*PI())*$A3 -> -0.6 | YD3: 0.8 | YE3: -0.6 | YF3: 0.8 | YG3: -0.5 | YH3: 0.8 | YI3: -0.5 | YJ3: 0.9 | YK3: -0.5 | YL3: 0.9 | YM3: -0.5 | YN3: 0.9 | YO3: -0.5 | YP3: 0.9 | YQ3: -0.5 | YR3: =COS(YR$1/360*2*PI())*$A3 -> 0.9 | YS3: =SIN(YR$1/360*2*PI())*$A3 -> -0.5 | YT3: 0.9 | YU3: -0.4 | YV3: 0.9 | YW3: -0.4 | YX3: 0.9 | YY3: -0.4 | YZ3: 0.9 | ZA3: -0.4 | ZB3: 0.9 | ZC3: -0.4 | ZD3: 0.9 | ZE3: -0.4 | ZF3: 0.9 | ZG3: -0.3 | ZH3: 0.9 | ZI3: =SIN(ZH$1/360*2*PI())*$A3 -> -0.3 | ZJ3: 1.0 | ZK3: -0.3 | ZL3: 1.0 | ZM3: -0.3 | ZN3: 1.0 | ZO3: -0.3 | ZP3: 1.0 | ZQ3: -0.3 | ZR3: 1.0 | ZS3: -0.2 | ZT3: 1.0 | ZU3: -0.2 | ZV3: 1.0 | ZW3: -0.2 | ZX3: 1.0 | ZY3: =SIN(ZX$1/360*2*PI())*$A3 -> -0.2 | ZZ3: 1.0 | AAA3: -0.2 | AAB3: 1.0 | AAC3: -0.2 | AAD3: 1.0 | AAE3: -0.1 | AAF3: 1.0 | AAG3: -0.1 | AAH3: 1.0 | AAI3: -0.1 | AAJ3: 1.0 | AAK3: -0.1 | AAL3: 1.0 | AAM3: -0.1 | AAN3: 1.0 | AAO3: =SIN(AAN$1/360*2*PI())*$A3 -> -0.1 | AAP3: 1.0 | AAQ3: -0.0 | AAR3: 1.0 | AAS3: -0.0 | AAT3: 1.0 | AAU3: -0.0
A4: 2 | B4: =COS(B$1/360*2*PI())*$A4 -> 2.0 | C4: =SIN(B$1/360*2*PI())*$A4 -> 0.0 | D4: =COS(D$1/360*2*PI())*$A4 -> 2.0 | E4: =SIN(D$1/360*2*PI())*$A4 -> 0.0 | F4: 2.0 | G4: 0.1 | H4: 2.0 | I4: 0.1 | J4: 2.0 | K4: 0.1 | L4: 2.0 | M4: 0.2 | N4: 2.0 | O4: 0.2 | P4: 2.0 | Q4: 0.2 | R4: 2.0 | S4: 0.3 | T4: 2.0 | U4: 0.3 | V4: 2.0 | W4: 0.3 | X4: 2.0 | Y4: 0.4 | Z4: 2.0 | AA4: 0.4 | AB4: 1.9 | AC4: 0.4 | AD4: 1.9 | AE4: 0.5 | AF4: 1.9 | AG4: 0.5 | AH4: 1.9 | AI4: 0.6 | AJ4: 1.9 | AK4: 0.6 | AL4: 1.9 | AM4: 0.6 | AN4: 1.9 | AO4: 0.7 | AP4: 1.9 | AQ4: 0.7 | AR4: 1.9 | AS4: 0.7 | AT4: 1.9 | AU4: 0.7 | AV4: 1.8 | AW4: 0.8 | AX4: 1.8 | AY4: 0.8 | AZ4: 1.8 | BA4: 0.8 | BB4: 1.8 | BC4: 0.9 | BD4: 1.8 | BE4: 0.9 | BF4: 1.8 | BG4: 0.9 | BH4: 1.7 | BI4: 1.0 | BJ4: 1.7 | BK4: 1.0 | BL4: 1.7 | BM4: 1.0 | BN4: 1.7 | BO4: 1.1 | BP4: 1.7 | BQ4: 1.1 | BR4: 1.7 | BS4: 1.1 | BT4: 1.6 | BU4: 1.1 | BV4: 1.6 | BW4: 1.2 | BX4: 1.6 | BY4: 1.2 | BZ4: 1.6 | CA4: 1.2 | CB4: 1.6 | CC4: 1.3 | CD4: 1.5 | CE4: 1.3 | CF4: 1.5 | CG4: 1.3 | CH4: 1.5 | CI4: 1.3 | CJ4: 1.5 | CK4: 1.4 | CL4: 1.4 | CM4: 1.4 | CN4: 1.4 | CO4: 1.4 | CP4: 1.4 | CQ4: 1.4 | CR4: 1.4 | CS4: 1.5 | CT4: 1.3 | CU4: 1.5 | CV4: 1.3 | CW4: 1.5 | CX4: 1.3 | CY4: 1.5 | CZ4: 1.3 | DA4: 1.6 | DB4: 1.2 | DC4: 1.6 | DD4: 1.2 | DE4: 1.6 | DF4: 1.2 | DG4: 1.6 | DH4: 1.1 | DI4: 1.6 | DJ4: 1.1 | DK4: 1.7 | DL4: 1.1 | DM4: 1.7 | DN4: 1.1 | DO4: 1.7 | DP4: 1.0 | DQ4: 1.7 | DR4: 1.0 | DS4: 1.7 | DT4: 1.0 | DU4: 1.7 | DV4: 0.9 | DW4: 1.8 | DX4: 0.9 | DY4: 1.8 | DZ4: 0.9 | EA4: 1.8 | EB4: 0.8 | EC4: 1.8 | ED4: 0.8 | EE4: 1.8 | EF4: 0.8 | EG4: 1.8 | EH4: 0.7 | EI4: 1.9 | EJ4: 0.7 | EK4: 1.9 | EL4: 0.7 | EM4: 1.9 | EN4: 0.7 | EO4: 1.9 | EP4: 0.6 | EQ4: 1.9 | ER4: 0.6 | ES4: 1.9 | ET4: 0.6 | EU4: 1.9 | EV4: 0.5 | EW4: 1.9 | EX4: 0.5 | EY4: 1.9 | EZ4: 0.4 | FA4: 1.9 | FB4: 0.4 | FC4: 2.0 | FD4: 0.4 | FE4: 2.0 | FF4: 0.3 | FG4: 2.0 | FH4: 0.3 | FI4: 2.0 | FJ4: 0.3 | FK4: 2.0 | FL4: 0.2 | FM4: 2.0 | FN4: 0.2 | FO4: 2.0 | FP4: 0.2 | FQ4: 2.0 | FR4: 0.1 | FS4: 2.0 | FT4: 0.1 | FU4: 2.0 | FV4: 0.1 | FW4: 2.0 | FX4: 0.0 | FY4: 2.0 | FZ4: 0.0 | GA4: 2.0 | GB4: -0.0 | GC4: 2.0 | GD4: -0.1 | GE4: 2.0 | GF4: -0.1 | GG4: 2.0 | GH4: -0.1 | GI4: 2.0 | GJ4: -0.2 | GK4: 2.0 | GL4: -0.2 | GM4: 2.0 | GN4: -0.2 | GO4: 2.0 | GP4: -0.3 | GQ4: 2.0 | GR4: -0.3 | GS4: 2.0 | GT4: -0.3 | GU4: 2.0 | GV4: -0.4 | GW4: 2.0 | GX4: -0.4 | GY4: 2.0 | GZ4: -0.4 | HA4: 1.9 | HB4: -0.5 | HC4: 1.9 | HD4: -0.5 | HE4: 1.9 | HF4: -0.6 | HG4: 1.9 | HH4: -0.6 | HI4: 1.9 | HJ4: -0.6 | HK4: 1.9 | HL4: -0.7 | HM4: 1.9 | HN4: -0.7 | HO4: 1.9 | HP4: -0.7 | HQ4: 1.9 | HR4: -0.7 | HS4: 1.9 | HT4: -0.8 | HU4: 1.8 | HV4: -0.8 | HW4: 1.8 | HX4: -0.8 | HY4: 1.8 | HZ4: -0.9 | IA4: 1.8 | IB4: -0.9 | IC4: 1.8 | ID4: -0.9 | IE4: 1.8 | IF4: -1.0 | IG4: 1.7 | IH4: -1.0 | II4: 1.7 | IJ4: -1.0 | IK4: 1.7 | IL4: -1.1 | IM4: 1.7 | IN4: -1.1 | IO4: 1.7 | IP4: -1.1 | IQ4: 1.7 | IR4: -1.1 | IS4: 1.6 | IT4: -1.2 | IU4: 1.6 | IV4: -1.2 | IW4: 1.6 | IX4: -1.2 | IY4: 1.6 | IZ4: -1.3 | JA4: 1.6 | JB4: -1.3 | JC4: 1.5 | JD4: -1.3 | JE4: 1.5 | JF4: -1.3 | JG4: 1.5 | JH4: -1.4 | JI4: 1.5 | JJ4: -1.4 | JK4: 1.4 | JL4: -1.4 | JM4: 1.4 | JN4: -1.4 | JO4: 1.4 | JP4: -1.5 | JQ4: 1.4 | JR4: -1.5 | JS4: 1.3 | JT4: -1.5 | JU4: 1.3 | JV4: -1.5 | JW4: 1.3 | JX4: -1.6 | JY4: 1.3 | JZ4: -1.6 | KA4: 1.2 | KB4: -1.6 | KC4: 1.2 | KD4: -1.6 | KE4: 1.2 | KF4: -1.6 | KG4: 1.1 | KH4: -1.7 | KI4: 1.1 | KJ4: -1.7 | KK4: 1.1 | KL4: -1.7 | KM4: 1.1 | KN4: -1.7 | KO4: 1.0 | KP4: -1.7 | KQ4: 1.0 | KR4: -1.7 | KS4: 1.0 | KT4: -1.8 | KU4: 0.9 | KV4: -1.8 | KW4: 0.9 | KX4: -1.8 | KY4: 0.9 | KZ4: -1.8 | LA4: 0.8 | LB4: -1.8 | LC4: 0.8 | LD4: -1.8 | LE4: 0.8 | LF4: -1.9 | LG4: 0.7 | LH4: -1.9 | LI4: 0.7 | LJ4: -1.9 | LK4: 0.7 | LL4: -1.9 | LM4: 0.7 | LN4: -1.9 | LO4: 0.6 | LP4: -1.9 | LQ4: 0.6 | LR4: -1.9 | LS4: 0.6 | LT4: -1.9 | LU4: 0.5 | LV4: -1.9 | LW4: 0.5 | LX4: -1.9 | LY4: 0.4 | LZ4: -2.0 | MA4: 0.4 | MB4: -2.0 | MC4: 0.4 | MD4: -2.0 | ME4: 0.3 | MF4: -2.0 | MG4: 0.3 | MH4: -2.0 | MI4: 0.3 | MJ4: -2.0 | MK4: 0.2 | ML4: -2.0 | MM4: 0.2 | MN4: -2.0 | MO4: 0.2 | MP4: -2.0 | MQ4: 0.1 | MR4: -2.0 | MS4: 0.1 | MT4: -2.0 | MU4: 0.1 | MV4: -2.0 | MW4: 0.0 | MX4: -2.0 | MY4: 0.0 | MZ4: -2.0 | NA4: -0.0 | NB4: -2.0 | NC4: -0.1 | ND4: -2.0 | NE4: -0.1 | NF4: -2.0 | NG4: -0.1 | NH4: -2.0 | NI4: -0.2 | NJ4: -2.0 | NK4: -0.2 | NL4: -2.0 | NM4: -0.2 | NN4: -2.0 | NO4: -0.3 | NP4: -2.0 | NQ4: -0.3 | NR4: -2.0 | NS4: -0.3 | NT4: -2.0 | NU4: -0.4 | NV4: -2.0 | NW4: -0.4 | NX4: -1.9 | NY4: -0.4 | NZ4: -1.9 | OA4: -0.5 | OB4: -1.9 | OC4: -0.5 | OD4: -1.9 | OE4: -0.6 | OF4: -1.9 | OG4: -0.6 | OH4: -1.9 | OI4: -0.6 | OJ4: -1.9 | OK4: -0.7 | OL4: -1.9 | OM4: -0.7 | ON4: -1.9 | OO4: -0.7 | OP4: -1.9 | OQ4: -0.7 | OR4: -1.8 | OS4: -0.8 | OT4: -1.8 | OU4: -0.8 | OV4: -1.8 | OW4: -0.8 | OX4: -1.8 | OY4: -0.9 | OZ4: -1.8 | PA4: -0.9 | PB4: -1.8 | PC4: -0.9 | PD4: -1.7 | PE4: -1.0 | PF4: -1.7 | PG4: -1.0 | PH4: -1.7 | PI4: -1.0 | PJ4: -1.7 | PK4: -1.1 | PL4: -1.7 | PM4: -1.1 | PN4: -1.7 | PO4: -1.1 | PP4: -1.6 | PQ4: -1.1 | PR4: -1.6 | PS4: -1.2 | PT4: -1.6 | PU4: -1.2 | PV4: -1.6 | PW4: -1.2 | PX4: -1.6 | PY4: -1.3 | PZ4: -1.5 | QA4: -1.3 | QB4: -1.5 | QC4: -1.3 | QD4: -1.5 | QE4: -1.3 | QF4: -1.5 | QG4: -1.4 | QH4: -1.4 | QI4: -1.4 | QJ4: -1.4 | QK4: -1.4 | QL4: -1.4 | QM4: -1.4 | QN4: -1.4 | QO4: -1.5 | QP4: -1.3 | QQ4: -1.5 | QR4: -1.3 | QS4: -1.5 | QT4: -1.3 | QU4: -1.5 | QV4: -1.3 | QW4: -1.6 | QX4: -1.2 | QY4: -1.6 | QZ4: -1.2 | RA4: -1.6 | RB4: -1.2 | RC4: -1.6 | RD4: -1.1 | RE4: -1.6 | RF4: -1.1 | RG4: -1.7 | RH4: -1.1 | RI4: -1.7 | RJ4: -1.1 | RK4: -1.7 | RL4: -1.0 | RM4: -1.7 | RN4: -1.0 | RO4: -1.7 | RP4: -1.0 | RQ4: -1.7 | RR4: -0.9 | RS4: -1.8 | RT4: -0.9 | RU4: -1.8 | RV4: -0.9 | RW4: -1.8 | RX4: -0.8 | RY4: -1.8 | RZ4: -0.8 | SA4: -1.8 | SB4: -0.8 | SC4: -1.8 | SD4: -0.7 | SE4: -1.9 | SF4: -0.7 | SG4: -1.9 | SH4: -0.7 | SI4: -1.9 | SJ4: -0.7 | SK4: -1.9 | SL4: -0.6 | SM4: -1.9 | SN4: -0.6 | SO4: -1.9 | SP4: -0.6 | SQ4: -1.9 | SR4: -0.5 | SS4: -1.9 | ST4: -0.5 | SU4: -1.9 | SV4: -0.4 | SW4: -1.9 | SX4: -0.4 | SY4: -2.0 | SZ4: -0.4 | TA4: -2.0 | TB4: -0.3 | TC4: -2.0 | TD4: -0.3 | TE4: -2.0 | TF4: -0.3 | TG4: -2.0 | TH4: -0.2 | TI4: -2.0 | TJ4: -0.2 | TK4: -2.0 | TL4: -0.2 | TM4: -2.0 | TN4: -0.1 | TO4: -2.0 | TP4: -0.1 | TQ4: -2.0 | TR4: -0.1 | TS4: -2.0 | TT4: -0.0 | TU4: -2.0 | TV4: -0.0 | TW4: -2.0 | TX4: 0.0 | TY4: -2.0 | TZ4: 0.1 | UA4: -2.0 | UB4: 0.1 | UC4: -2.0 | UD4: 0.1 | UE4: -2.0 | UF4: 0.2 | UG4: -2.0 | UH4: 0.2 | UI4: -2.0 | UJ4: 0.2 | UK4: -2.0 | UL4: 0.3 | UM4: -2.0 | UN4: 0.3 | UO4: -2.0 | UP4: 0.3 | UQ4: -2.0 | UR4: 0.4 | US4: -2.0 | UT4: 0.4 | UU4: -2.0 | UV4: 0.4 | UW4: -1.9 | UX4: 0.5 | UY4: -1.9 | UZ4: 0.5 | VA4: -1.9 | VB4: 0.6 | VC4: -1.9 | VD4: 0.6 | VE4: -1.9 | VF4: 0.6 | VG4: -1.9 | VH4: 0.7 | VI4: -1.9 | VJ4: 0.7 | VK4: -1.9 | VL4: 0.7 | VM4: -1.9 | VN4: 0.7 | VO4: -1.9 | VP4: 0.8 | VQ4: -1.8 | VR4: 0.8 | VS4: -1.8 | VT4: 0.8 | VU4: -1.8 | VV4: 0.9 | VW4: -1.8 | VX4: 0.9 | VY4: -1.8 | VZ4: 0.9 | WA4: -1.8 | WB4: 1.0 | WC4: -1.7 | WD4: 1.0 | WE4: -1.7 | WF4: 1.0 | WG4: -1.7 | WH4: 1.1 | WI4: -1.7 | WJ4: 1.1 | WK4: -1.7 | WL4: 1.1 | WM4: -1.7 | WN4: 1.1 | WO4: -1.6 | WP4: 1.2 | WQ4: -1.6 | WR4: 1.2 | WS4: -1.6 | WT4: 1.2 | WU4: -1.6 | WV4: 1.3 | WW4: -1.6 | WX4: 1.3 | WY4: -1.5 | WZ4: 1.3 | XA4: -1.5 | XB4: 1.3 | XC4: -1.5 | XD4: 1.4 | XE4: -1.5 | XF4: 1.4 | XG4: -1.4 | XH4: 1.4 | XI4: -1.4 | XJ4: 1.4 | XK4: -1.4 | XL4: 1.5 | XM4: -1.4 | XN4: 1.5 | XO4: -1.3 | XP4: 1.5 | XQ4: -1.3 | XR4: 1.5 | XS4: -1.3 | XT4: 1.6 | XU4: -1.3 | XV4: 1.6 | XW4: -1.2 | XX4: 1.6 | XY4: -1.2 | XZ4: 1.6 | YA4: -1.2 | YB4: 1.6 | YC4: -1.1 | YD4: 1.7 | YE4: -1.1 | YF4: 1.7 | YG4: -1.1 | YH4: 1.7 | YI4: -1.1 | YJ4: 1.7 | YK4: -1.0 | YL4: 1.7 | YM4: -1.0 | YN4: 1.7 | YO4: -1.0 | YP4: 1.8 | YQ4: -0.9 | YR4: 1.8 | YS4: -0.9 | YT4: 1.8 | YU4: -0.9 | YV4: 1.8 | YW4: -0.8 | YX4: 1.8 | YY4: -0.8 | YZ4: 1.8 | ZA4: -0.8 | ZB4: 1.9 | ZC4: -0.7 | ZD4: 1.9 | ZE4: -0.7 | ZF4: 1.9 | ZG4: -0.7 | ZH4: 1.9 | ZI4: -0.7 | ZJ4: 1.9 | ZK4: -0.6 | ZL4: 1.9 | ZM4: -0.6 | ZN4: 1.9 | ZO4: -0.6 | ZP4: 1.9 | ZQ4: -0.5 | ZR4: 1.9 | ZS4: -0.5 | ZT4: 1.9 | ZU4: -0.4 | ZV4: 2.0 | ZW4: -0.4 | ZX4: 2.0 | ZY4: -0.4 | ZZ4: 2.0 | AAA4: -0.3 | AAB4: 2.0 | AAC4: -0.3 | AAD4: 2.0 | AAE4: -0.3 | AAF4: 2.0 | AAG4: -0.2 | AAH4: 2.0 | AAI4: -0.2 | AAJ4: 2.0 | AAK4: -0.2 | AAL4: 2.0 | AAM4: -0.1 | AAN4: 2.0 | AAO4: -0.1 | AAP4: 2.0 | AAQ4: -0.1 | AAR4: 2.0 | AAS4: -0.0 | AAT4: 2.0 | AAU4: -0.0
A5: 3 | B5: 3.0 | C5: 0.0 | D5: 3.0 | E5: 0.1 | F5: 3.0 | G5: 0.1 | H5: 3.0 | I5: 0.2 | J5: 3.0 | K5: 0.2 | L5: 3.0 | M5: 0.3 | N5: 3.0 | O5: 0.3 | P5: 3.0 | Q5: 0.4 | R5: 3.0 | S5: 0.4 | T5: 3.0 | U5: 0.5 | V5: 3.0 | W5: 0.5 | X5: 2.9 | Y5: 0.6 | Z5: 2.9 | AA5: 0.6 | AB5: 2.9 | AC5: 0.7 | AD5: 2.9 | AE5: 0.7 | AF5: 2.9 | AG5: 0.8 | AH5: 2.9 | AI5: 0.8 | AJ5: 2.9 | AK5: 0.9 | AL5: 2.9 | AM5: 0.9 | AN5: 2.8 | AO5: 1.0 | AP5: 2.8 | AQ5: 1.0 | AR5: 2.8 | AS5: 1.1 | AT5: 2.8 | AU5: 1.1 | AV5: 2.8 | AW5: 1.2 | AX5: 2.7 | AY5: 1.2 | AZ5: 2.7 | BA5: 1.3 | BB5: 2.7 | BC5: 1.3 | BD5: 2.7 | BE5: 1.4 | BF5: 2.6 | BG5: 1.4 | BH5: 2.6 | BI5: 1.5 | BJ5: 2.6 | BK5: 1.5 | BL5: 2.6 | BM5: 1.5 | BN5: 2.5 | BO5: 1.6 | BP5: 2.5 | BQ5: 1.6 | BR5: 2.5 | BS5: 1.7 | BT5: 2.5 | BU5: 1.7 | BV5: 2.4 | BW5: 1.8 | BX5: 2.4 | BY5: 1.8 | BZ5: 2.4 | CA5: 1.8 | CB5: 2.3 | CC5: 1.9 | CD5: 2.3 | CE5: 1.9 | CF5: 2.3 | CG5: 2.0 | CH5: 2.2 | CI5: 2.0 | CJ5: 2.2 | CK5: 2.0 | CL5: 2.2 | CM5: 2.1 | CN5: 2.1 | CO5: 2.1 | CP5: 2.1 | CQ5: 2.2 | CR5: 2.0 | CS5: 2.2 | CT5: 2.0 | CU5: 2.2 | CV5: 2.0 | CW5: 2.3 | CX5: 1.9 | CY5: 2.3 | CZ5: 1.9 | DA5: 2.3 | DB5: 1.8 | DC5: 2.4 | DD5: 1.8 | DE5: 2.4 | DF5: 1.8 | DG5: 2.4 | DH5: 1.7 | DI5: 2.5 | DJ5: 1.7 | DK5: 2.5 | DL5: 1.6 | DM5: 2.5 | DN5: 1.6 | DO5: 2.5 | DP5: 1.5 | DQ5: 2.6 | DR5: 1.5 | DS5: 2.6 | DT5: 1.5 | DU5: 2.6 | DV5: 1.4 | DW5: 2.6 | DX5: 1.4 | DY5: 2.7 | DZ5: 1.3 | EA5: 2.7 | EB5: 1.3 | EC5: 2.7 | ED5: 1.2 | EE5: 2.7 | EF5: 1.2 | EG5: 2.8 | EH5: 1.1 | EI5: 2.8 | EJ5: 1.1 | EK5: 2.8 | EL5: 1.0 | EM5: 2.8 | EN5: 1.0 | EO5: 2.8 | EP5: 0.9 | EQ5: 2.9 | ER5: 0.9 | ES5: 2.9 | ET5: 0.8 | EU5: 2.9 | EV5: 0.8 | EW5: 2.9 | EX5: 0.7 | EY5: 2.9 | EZ5: 0.7 | FA5: 2.9 | FB5: 0.6 | FC5: 2.9 | FD5: 0.6 | FE5: 2.9 | FF5: 0.5 | FG5: 3.0 | FH5: 0.5 | FI5: 3.0 | FJ5: 0.4 | FK5: 3.0 | FL5: 0.4 | FM5: 3.0 | FN5: 0.3 | FO5: 3.0 | FP5: 0.3 | FQ5: 3.0 | FR5: 0.2 | FS5: 3.0 | FT5: 0.2 | FU5: 3.0 | FV5: 0.1 | FW5: 3.0 | FX5: 0.1 | FY5: 3.0 | FZ5: 0.0 | GA5: 3.0 | GB5: -0.1 | GC5: 3.0 | GD5: -0.1 | GE5: 3.0 | GF5: -0.2 | GG5: 3.0 | GH5: -0.2 | GI5: 3.0 | GJ5: -0.3 | GK5: 3.0 | GL5: -0.3 | GM5: 3.0 | GN5: -0.4 | GO5: 3.0 | GP5: -0.4 | GQ5: 3.0 | GR5: -0.5 | GS5: 3.0 | GT5: -0.5 | GU5: 3.0 | GV5: -0.6 | GW5: 2.9 | GX5: -0.6 | GY5: 2.9 | GZ5: -0.7 | HA5: 2.9 | HB5: -0.7 | HC5: 2.9 | HD5: -0.8 | HE5: 2.9 | HF5: -0.8 | HG5: 2.9 | HH5: -0.9 | HI5: 2.9 | HJ5: -0.9 | HK5: 2.9 | HL5: -1.0 | HM5: 2.8 | HN5: -1.0 | HO5: 2.8 | HP5: -1.1 | HQ5: 2.8 | HR5: -1.1 | HS5: 2.8 | HT5: -1.2 | HU5: 2.8 | HV5: -1.2 | HW5: 2.7 | HX5: -1.3 | HY5: 2.7 | HZ5: -1.3 | IA5: 2.7 | IB5: -1.4 | IC5: 2.7 | ID5: -1.4 | IE5: 2.6 | IF5: -1.5 | IG5: 2.6 | IH5: -1.5 | II5: 2.6 | IJ5: -1.5 | IK5: 2.6 | IL5: -1.6 | IM5: 2.5 | IN5: -1.6 | IO5: 2.5 | IP5: -1.7 | IQ5: 2.5 | IR5: -1.7 | IS5: 2.5 | IT5: -1.8 | IU5: 2.4 | IV5: -1.8 | IW5: 2.4 | IX5: -1.8 | IY5: 2.4 | IZ5: -1.9 | JA5: 2.3 | JB5: -1.9 | JC5: 2.3 | JD5: -2.0 | JE5: 2.3 | JF5: -2.0 | JG5: 2.2 | JH5: -2.0 | JI5: 2.2 | JJ5: -2.1 | JK5: 2.2 | JL5: -2.1 | JM5: 2.1 | JN5: -2.2 | JO5: 2.1 | JP5: -2.2 | JQ5: 2.0 | JR5: -2.2 | JS5: 2.0 | JT5: -2.3 | JU5: 2.0 | JV5: -2.3 | JW5: 1.9 | JX5: -2.3 | JY5: 1.9 | JZ5: -2.4 | KA5: 1.8 | KB5: -2.4 | KC5: 1.8 | KD5: -2.4 | KE5: 1.8 | KF5: -2.5 | KG5: 1.7 | KH5: -2.5 | KI5: 1.7 | KJ5: -2.5 | KK5: 1.6 | KL5: -2.5 | KM5: 1.6 | KN5: -2.6 | KO5: 1.5 | KP5: -2.6 | KQ5: 1.5 | KR5: -2.6 | KS5: 1.5 | KT5: -2.6 | KU5: 1.4 | KV5: -2.7 | KW5: 1.4 | KX5: -2.7 | KY5: 1.3 | KZ5: -2.7 | LA5: 1.3 | LB5: -2.7 | LC5: 1.2 | LD5: -2.8 | LE5: 1.2 | LF5: -2.8 | LG5: 1.1 | LH5: -2.8 | LI5: 1.1 | LJ5: -2.8 | LK5: 1.0 | LL5: -2.8 | LM5: 1.0 | LN5: -2.9 | LO5: 0.9 | LP5: -2.9 | LQ5: 0.9 | LR5: -2.9 | LS5: 0.8 | LT5: -2.9 | LU5: 0.8 | LV5: -2.9 | LW5: 0.7 | LX5: -2.9 | LY5: 0.7 | LZ5: -2.9 | MA5: 0.6 | MB5: -2.9 | MC5: 0.6 | MD5: -3.0 | ME5: 0.5 | MF5: -3.0 | MG5: 0.5 | MH5: -3.0 | MI5: 0.4 | MJ5: -3.0 | MK5: 0.4 | ML5: -3.0 | MM5: 0.3 | MN5: -3.0 | MO5: 0.3 | MP5: -3.0 | MQ5: 0.2 | MR5: -3.0 | MS5: 0.2 | MT5: -3.0 | MU5: 0.1 | MV5: -3.0 | MW5: 0.1 | MX5: -3.0 | MY5: 0.0 | MZ5: -3.0 | NA5: -0.1 | NB5: -3.0 | NC5: -0.1 | ND5: -3.0 | NE5: -0.2 | NF5: -3.0 | NG5: -0.2 | NH5: -3.0 | NI5: -0.3 | NJ5: -3.0 | NK5: -0.3 | NL5: -3.0 | NM5: -0.4 | NN5: -3.0 | NO5: -0.4 | NP5: -3.0 | NQ5: -0.5 | NR5: -3.0 | NS5: -0.5 | NT5: -2.9 | NU5: -0.6 | NV5: -2.9 | NW5: -0.6 | NX5: -2.9 | NY5: -0.7 | NZ5: -2.9 | OA5: -0.7 | OB5: -2.9 | OC5: -0.8 | OD5: -2.9 | OE5: -0.8 | OF5: -2.9 | OG5: -0.9 | OH5: -2.9 | OI5: -0.9 | OJ5: -2.8 | OK5: -1.0 | OL5: -2.8 | OM5: -1.0 | ON5: -2.8 | OO5: -1.1 | OP5: -2.8 | OQ5: -1.1 | OR5: -2.8 | OS5: -1.2 | OT5: -2.7 | OU5: -1.2 | OV5: -2.7 | OW5: -1.3 | OX5: -2.7 | OY5: -1.3 | OZ5: -2.7 | PA5: -1.4 | PB5: -2.6 | PC5: -1.4 | PD5: -2.6 | PE5: -1.5 | PF5: -2.6 | PG5: -1.5 | PH5: -2.6 | PI5: -1.5 | PJ5: -2.5 | PK5: -1.6 | PL5: -2.5 | PM5: -1.6 | PN5: -2.5 | PO5: -1.7 | PP5: -2.5 | PQ5: -1.7 | PR5: -2.4 | PS5: -1.8 | PT5: -2.4 | PU5: -1.8 | PV5: -2.4 | PW5: -1.8 | PX5: -2.3 | PY5: -1.9 | PZ5: -2.3 | QA5: -1.9 | QB5: -2.3 | QC5: -2.0 | QD5: -2.2 | QE5: -2.0 | QF5: -2.2 | QG5: -2.0 | QH5: -2.2 | QI5: -2.1 | QJ5: -2.1 | QK5: -2.1 | QL5: -2.1 | QM5: -2.2 | QN5: -2.0 | QO5: -2.2 | QP5: -2.0 | QQ5: -2.2 | QR5: -2.0 | QS5: -2.3 | QT5: -1.9 | QU5: -2.3 | QV5: -1.9 | QW5: -2.3 | QX5: -1.8 | QY5: -2.4 | QZ5: -1.8 | RA5: -2.4 | RB5: -1.8 | RC5: -2.4 | RD5: -1.7 | RE5: -2.5 | RF5: -1.7 | RG5: -2.5 | RH5: -1.6 | RI5: -2.5 | RJ5: -1.6 | RK5: -2.5 | RL5: -1.5 | RM5: -2.6 | RN5: -1.5 | RO5: -2.6 | RP5: -1.5 | RQ5: -2.6 | RR5: -1.4 | RS5: -2.6 | RT5: -1.4 | RU5: -2.7 | RV5: -1.3 | RW5: -2.7 | RX5: -1.3 | RY5: -2.7 | RZ5: -1.2 | SA5: -2.7 | SB5: -1.2 | SC5: -2.8 | SD5: -1.1 | SE5: -2.8 | SF5: -1.1 | SG5: -2.8 | SH5: -1.0 | SI5: -2.8 | SJ5: -1.0 | SK5: -2.8 | SL5: -0.9 | SM5: -2.9 | SN5: -0.9 | SO5: -2.9 | SP5: -0.8 | SQ5: -2.9 | SR5: -0.8 | SS5: -2.9 | ST5: -0.7 | SU5: -2.9 | SV5: -0.7 | SW5: -2.9 | SX5: -0.6 | SY5: -2.9 | SZ5: -0.6 | TA5: -2.9 | TB5: -0.5 | TC5: -3.0 | TD5: -0.5 | TE5: -3.0 | TF5: -0.4 | TG5: -3.0 | TH5: -0.4 | TI5: -3.0 | TJ5: -0.3 | TK5: -3.0 | TL5: -0.3 | TM5: -3.0 | TN5: -0.2 | TO5: -3.0 | TP5: -0.2 | TQ5: -3.0 | TR5: -0.1 | TS5: -3.0 | TT5: -0.1 | TU5: -3.0 | TV5: -0.0 | TW5: -3.0 | TX5: 0.1 | TY5: -3.0 | TZ5: 0.1 | UA5: -3.0 | UB5: 0.2 | UC5: -3.0 | UD5: 0.2 | UE5: -3.0 | UF5: 0.3 | UG5: -3.0 | UH5: 0.3 | UI5: -3.0 | UJ5: 0.4 | UK5: -3.0 | UL5: 0.4 | UM5: -3.0 | UN5: 0.5 | UO5: -3.0 | UP5: 0.5 | UQ5: -3.0 | UR5: 0.6 | US5: -2.9 | UT5: 0.6 | UU5: -2.9 | UV5: 0.7 | UW5: -2.9 | UX5: 0.7 | UY5: -2.9 | UZ5: 0.8 | VA5: -2.9 | VB5: 0.8 | VC5: -2.9 | VD5: 0.9 | VE5: -2.9 | VF5: 0.9 | VG5: -2.9 | VH5: 1.0 | VI5: -2.8 | VJ5: 1.0 | VK5: -2.8 | VL5: 1.1 | VM5: -2.8 | VN5: 1.1 | VO5: -2.8 | VP5: 1.2 | VQ5: -2.8 | VR5: 1.2 | VS5: -2.7 | VT5: 1.3 | VU5: -2.7 | VV5: 1.3 | VW5: -2.7 | VX5: 1.4 | VY5: -2.7 | VZ5: 1.4 | WA5: -2.6 | WB5: 1.5 | WC5: -2.6 | WD5: 1.5 | WE5: -2.6 | WF5: 1.5 | WG5: -2.6 | WH5: 1.6 | WI5: -2.5 | WJ5: 1.6 | WK5: -2.5 | WL5: 1.7 | WM5: -2.5 | WN5: 1.7 | WO5: -2.5 | WP5: 1.8 | WQ5: -2.4 | WR5: 1.8 | WS5: -2.4 | WT5: 1.8 | WU5: -2.4 | WV5: 1.9 | WW5: -2.3 | WX5: 1.9 | WY5: -2.3 | WZ5: 2.0 | XA5: -2.3 | XB5: 2.0 | XC5: -2.2 | XD5: 2.0 | XE5: -2.2 | XF5: 2.1 | XG5: -2.2 | XH5: 2.1 | XI5: -2.1 | XJ5: 2.2 | XK5: -2.1 | XL5: 2.2 | XM5: -2.0 | XN5: 2.2 | XO5: -2.0 | XP5: 2.3 | XQ5: -2.0 | XR5: 2.3 | XS5: -1.9 | XT5: 2.3 | XU5: -1.9 | XV5: 2.4 | XW5: -1.8 | XX5: 2.4 | XY5: -1.8 | XZ5: 2.4 | YA5: -1.8 | YB5: 2.5 | YC5: -1.7 | YD5: 2.5 | YE5: -1.7 | YF5: 2.5 | YG5: -1.6 | YH5: 2.5 | YI5: -1.6 | YJ5: 2.6 | YK5: -1.5 | YL5: 2.6 | YM5: -1.5 | YN5: 2.6 | YO5: -1.5 | YP5: 2.6 | YQ5: -1.4 | YR5: 2.7 | YS5: -1.4 | YT5: 2.7 | YU5: -1.3 | YV5: 2.7 | YW5: -1.3 | YX5: 2.7 | YY5: -1.2 | YZ5: 2.8 | ZA5: -1.2 | ZB5: 2.8 | ZC5: -1.1 | ZD5: 2.8 | ZE5: -1.1 | ZF5: 2.8 | ZG5: -1.0 | ZH5: 2.8 | ZI5: -1.0 | ZJ5: 2.9 | ZK5: -0.9 | ZL5: 2.9 | ZM5: -0.9 | ZN5: 2.9 | ZO5: -0.8 | ZP5: 2.9 | ZQ5: -0.8 | ZR5: 2.9 | ZS5: -0.7 | ZT5: 2.9 | ZU5: -0.7 | ZV5: 2.9 | ZW5: -0.6 | ZX5: 2.9 | ZY5: -0.6 | ZZ5: 3.0 | AAA5: -0.5 | AAB5: 3.0 | AAC5: -0.5 | AAD5: 3.0 | AAE5: -0.4 | AAF5: 3.0 | AAG5: -0.4 | AAH5: 3.0 | AAI5: -0.3 | AAJ5: 3.0 | AAK5: -0.3 | AAL5: 3.0 | AAM5: -0.2 | AAN5: 3.0 | AAO5: -0.2 | AAP5: 3.0 | AAQ5: -0.1 | AAR5: 3.0 | AAS5: -0.1 | AAT5: 3.0 | AAU5: -0.0
A6: 4 | B6: 4.0 | C6: 0.0 | D6: 4.0 | E6: 0.1 | F6: 4.0 | G6: 0.1 | H6: 4.0 | I6: 0.2 | J6: 4.0 | K6: 0.3 | L6: 4.0 | M6: 0.3 | N6: 4.0 | O6: 0.4 | P6: 4.0 | Q6: 0.5 | R6: 4.0 | S6: 0.6 | T6: 4.0 | U6: 0.6 | V6: 3.9 | W6: 0.7 | X6: 3.9 | Y6: 0.8 | Z6: 3.9 | AA6: 0.8 | AB6: 3.9 | AC6: 0.9 | AD6: 3.9 | AE6: 1.0 | AF6: 3.9 | AG6: 1.0 | AH6: 3.8 | AI6: 1.1 | AJ6: 3.8 | AK6: 1.2 | AL6: 3.8 | AM6: 1.2 | AN6: 3.8 | AO6: 1.3 | AP6: 3.8 | AQ6: 1.4 | AR6: 3.7 | AS6: 1.4 | AT6: 3.7 | AU6: 1.5 | AV6: 3.7 | AW6: 1.6 | AX6: 3.7 | AY6: 1.6 | AZ6: 3.6 | BA6: 1.7 | BB6: 3.6 | BC6: 1.8 | BD6: 3.6 | BE6: 1.8 | BF6: 3.5 | BG6: 1.9 | BH6: 3.5 | BI6: 1.9 | BJ6: 3.5 | BK6: 2.0 | BL6: 3.4 | BM6: 2.1 | BN6: 3.4 | BO6: 2.1 | BP6: 3.4 | BQ6: 2.2 | BR6: 3.3 | BS6: 2.2 | BT6: 3.3 | BU6: 2.3 | BV6: 3.2 | BW6: 2.4 | BX6: 3.2 | BY6: 2.4 | BZ6: 3.2 | CA6: 2.5 | CB6: 3.1 | CC6: 2.5 | CD6: 3.1 | CE6: 2.6 | CF6: 3.0 | CG6: 2.6 | CH6: 3.0 | CI6: 2.7 | CJ6: 2.9 | CK6: 2.7 | CL6: 2.9 | CM6: 2.8 | CN6: 2.8 | CO6: 2.8 | CP6: 2.8 | CQ6: 2.9 | CR6: 2.7 | CS6: 2.9 | CT6: 2.7 | CU6: 3.0 | CV6: 2.6 | CW6: 3.0 | CX6: 2.6 | CY6: 3.1 | CZ6: 2.5 | DA6: 3.1 | DB6: 2.5 | DC6: 3.2 | DD6: 2.4 | DE6: 3.2 | DF6: 2.4 | DG6: 3.2 | DH6: 2.3 | DI6: 3.3 | DJ6: 2.2 | DK6: 3.3 | DL6: 2.2 | DM6: 3.4 | DN6: 2.1 | DO6: 3.4 | DP6: 2.1 | DQ6: 3.4 | DR6: 2.0 | DS6: 3.5 | DT6: 1.9 | DU6: 3.5 | DV6: 1.9 | DW6: 3.5 | DX6: 1.8 | DY6: 3.6 | DZ6: 1.8 | EA6: 3.6 | EB6: 1.7 | EC6: 3.6 | ED6: 1.6 | EE6: 3.7 | EF6: 1.6 | EG6: 3.7 | EH6: 1.5 | EI6: 3.7 | EJ6: 1.4 | EK6: 3.7 | EL6: 1.4 | EM6: 3.8 | EN6: 1.3 | EO6: 3.8 | EP6: 1.2 | EQ6: 3.8 | ER6: 1.2 | ES6: 3.8 | ET6: 1.1 | EU6: 3.8 | EV6: 1.0 | EW6: 3.9 | EX6: 1.0 | EY6: 3.9 | EZ6: 0.9 | FA6: 3.9 | FB6: 0.8 | FC6: 3.9 | FD6: 0.8 | FE6: 3.9 | FF6: 0.7 | FG6: 3.9 | FH6: 0.6 | FI6: 4.0 | FJ6: 0.6 | FK6: 4.0 | FL6: 0.5 | FM6: 4.0 | FN6: 0.4 | FO6: 4.0 | FP6: 0.3 | FQ6: 4.0 | FR6: 0.3 | FS6: 4.0 | FT6: 0.2 | FU6: 4.0 | FV6: 0.1 | FW6: 4.0 | FX6: 0.1 | FY6: 4.0 | FZ6: 0.0 | GA6: 4.0 | GB6: -0.1 | GC6: 4.0 | GD6: -0.1 | GE6: 4.0 | GF6: -0.2 | GG6: 4.0 | GH6: -0.3 | GI6: 4.0 | GJ6: -0.3 | GK6: 4.0 | GL6: -0.4 | GM6: 4.0 | GN6: -0.5 | GO6: 4.0 | GP6: -0.6 | GQ6: 4.0 | GR6: -0.6 | GS6: 4.0 | GT6: -0.7 | GU6: 3.9 | GV6: -0.8 | GW6: 3.9 | GX6: -0.8 | GY6: 3.9 | GZ6: -0.9 | HA6: 3.9 | HB6: -1.0 | HC6: 3.9 | HD6: -1.0 | HE6: 3.9 | HF6: -1.1 | HG6: 3.8 | HH6: -1.2 | HI6: 3.8 | HJ6: -1.2 | HK6: 3.8 | HL6: -1.3 | HM6: 3.8 | HN6: -1.4 | HO6: 3.8 | HP6: -1.4 | HQ6: 3.7 | HR6: -1.5 | HS6: 3.7 | HT6: -1.6 | HU6: 3.7 | HV6: -1.6 | HW6: 3.7 | HX6: -1.7 | HY6: 3.6 | HZ6: -1.8 | IA6: 3.6 | IB6: -1.8 | IC6: 3.6 | ID6: -1.9 | IE6: 3.5 | IF6: -1.9 | IG6: 3.5 | IH6: -2.0 | II6: 3.5 | IJ6: -2.1 | IK6: 3.4 | IL6: -2.1 | IM6: 3.4 | IN6: -2.2 | IO6: 3.4 | IP6: -2.2 | IQ6: 3.3 | IR6: -2.3 | IS6: 3.3 | IT6: -2.4 | IU6: 3.2 | IV6: -2.4 | IW6: 3.2 | IX6: -2.5 | IY6: 3.2 | IZ6: -2.5 | JA6: 3.1 | JB6: -2.6 | JC6: 3.1 | JD6: -2.6 | JE6: 3.0 | JF6: -2.7 | JG6: 3.0 | JH6: -2.7 | JI6: 2.9 | JJ6: -2.8 | JK6: 2.9 | JL6: -2.8 | JM6: 2.8 | JN6: -2.9 | JO6: 2.8 | JP6: -2.9 | JQ6: 2.7 | JR6: -3.0 | JS6: 2.7 | JT6: -3.0 | JU6: 2.6 | JV6: -3.1 | JW6: 2.6 | JX6: -3.1 | JY6: 2.5 | JZ6: -3.2 | KA6: 2.5 | KB6: -3.2 | KC6: 2.4 | KD6: -3.2 | KE6: 2.4 | KF6: -3.3 | KG6: 2.3 | KH6: -3.3 | KI6: 2.2 | KJ6: -3.4 | KK6: 2.2 | KL6: -3.4 | KM6: 2.1 | KN6: -3.4 | KO6: 2.1 | KP6: -3.5 | KQ6: 2.0 | KR6: -3.5 | KS6: 1.9 | KT6: -3.5 | KU6: 1.9 | KV6: -3.6 | KW6: 1.8 | KX6: -3.6 | KY6: 1.8 | KZ6: -3.6 | LA6: 1.7 | LB6: -3.7 | LC6: 1.6 | LD6: -3.7 | LE6: 1.6 | LF6: -3.7 | LG6: 1.5 | LH6: -3.7 | LI6: 1.4 | LJ6: -3.8 | LK6: 1.4 | LL6: -3.8 | LM6: 1.3 | LN6: -3.8 | LO6: 1.2 | LP6: -3.8 | LQ6: 1.2 | LR6: -3.8 | LS6: 1.1 | LT6: -3.9 | LU6: 1.0 | LV6: -3.9 | LW6: 1.0 | LX6: -3.9 | LY6: 0.9 | LZ6: -3.9 | MA6: 0.8 | MB6: -3.9 | MC6: 0.8 | MD6: -3.9 | ME6: 0.7 | MF6: -4.0 | MG6: 0.6 | MH6: -4.0 | MI6: 0.6 | MJ6: -4.0 | MK6: 0.5 | ML6: -4.0 | MM6: 0.4 | MN6: -4.0 | MO6: 0.3 | MP6: -4.0 | MQ6: 0.3 | MR6: -4.0 | MS6: 0.2 | MT6: -4.0 | MU6: 0.1 | MV6: -4.0 | MW6: 0.1 | MX6: -4.0 | MY6: 0.0 | MZ6: -4.0 | NA6: -0.1 | NB6: -4.0 | NC6: -0.1 | ND6: -4.0 | NE6: -0.2 | NF6: -4.0 | NG6: -0.3 | NH6: -4.0 | NI6: -0.3 | NJ6: -4.0 | NK6: -0.4 | NL6: -4.0 | NM6: -0.5 | NN6: -4.0 | NO6: -0.6 | NP6: -4.0 | NQ6: -0.6 | NR6: -3.9 | NS6: -0.7 | NT6: -3.9 | NU6: -0.8 | NV6: -3.9 | NW6: -0.8 | NX6: -3.9 | NY6: -0.9 | NZ6: -3.9 | OA6: -1.0 | OB6: -3.9 | OC6: -1.0 | OD6: -3.8 | OE6: -1.1 | OF6: -3.8 | OG6: -1.2 | OH6: -3.8 | OI6: -1.2 | OJ6: -3.8 | OK6: -1.3 | OL6: -3.8 | OM6: -1.4 | ON6: -3.7 | OO6: -1.4 | OP6: -3.7 | OQ6: -1.5 | OR6: -3.7 | OS6: -1.6 | OT6: -3.7 | OU6: -1.6 | OV6: -3.6 | OW6: -1.7 | OX6: -3.6 | OY6: -1.8 | OZ6: -3.6 | PA6: -1.8 | PB6: -3.5 | PC6: -1.9 | PD6: -3.5 | PE6: -1.9 | PF6: -3.5 | PG6: -2.0 | PH6: -3.4 | PI6: -2.1 | PJ6: -3.4 | PK6: -2.1 | PL6: -3.4 | PM6: -2.2 | PN6: -3.3 | PO6: -2.2 | PP6: -3.3 | PQ6: -2.3 | PR6: -3.2 | PS6: -2.4 | PT6: -3.2 | PU6: -2.4 | PV6: -3.2 | PW6: -2.5 | PX6: -3.1 | PY6: -2.5 | PZ6: -3.1 | QA6: -2.6 | QB6: -3.0 | QC6: -2.6 | QD6: -3.0 | QE6: -2.7 | QF6: -2.9 | QG6: -2.7 | QH6: -2.9 | QI6: -2.8 | QJ6: -2.8 | QK6: -2.8 | QL6: -2.8 | QM6: -2.9 | QN6: -2.7 | QO6: -2.9 | QP6: -2.7 | QQ6: -3.0 | QR6: -2.6 | QS6: -3.0 | QT6: -2.6 | QU6: -3.1 | QV6: -2.5 | QW6: -3.1 | QX6: -2.5 | QY6: -3.2 | QZ6: -2.4 | RA6: -3.2 | RB6: -2.4 | RC6: -3.2 | RD6: -2.3 | RE6: -3.3 | RF6: -2.2 | RG6: -3.3 | RH6: -2.2 | RI6: -3.4 | RJ6: -2.1 | RK6: -3.4 | RL6: -2.1 | RM6: -3.4 | RN6: -2.0 | RO6: -3.5 | RP6: -1.9 | RQ6: -3.5 | RR6: -1.9 | RS6: -3.5 | RT6: -1.8 | RU6: -3.6 | RV6: -1.8 | RW6: -3.6 | RX6: -1.7 | RY6: -3.6 | RZ6: -1.6 | SA6: -3.7 | SB6: -1.6 | SC6: -3.7 | SD6: -1.5 | SE6: -3.7 | SF6: -1.4 | SG6: -3.7 | SH6: -1.4 | SI6: -3.8 | SJ6: -1.3 | SK6: -3.8 | SL6: -1.2 | SM6: -3.8 | SN6: -1.2 | SO6: -3.8 | SP6: -1.1 | SQ6: -3.8 | SR6: -1.0 | SS6: -3.9 | ST6: -1.0 | SU6: -3.9 | SV6: -0.9 | SW6: -3.9 | SX6: -0.8 | SY6: -3.9 | SZ6: -0.8 | TA6: -3.9 | TB6: -0.7 | TC6: -3.9 | TD6: -0.6 | TE6: -4.0 | TF6: -0.6 | TG6: -4.0 | TH6: -0.5 | TI6: -4.0 | TJ6: -0.4 | TK6: -4.0 | TL6: -0.3 | TM6: -4.0 | TN6: -0.3 | TO6: -4.0 | TP6: -0.2 | TQ6: -4.0 | TR6: -0.1 | TS6: -4.0 | TT6: -0.1 | TU6: -4.0 | TV6: -0.0 | TW6: -4.0 | TX6: 0.1 | TY6: -4.0 | TZ6: 0.1 | UA6: -4.0 | UB6: 0.2 | UC6: -4.0 | UD6: 0.3 | UE6: -4.0 | UF6: 0.3 | UG6: -4.0 | UH6: 0.4 | UI6: -4.0 | UJ6: 0.5 | UK6: -4.0 | UL6: 0.6 | UM6: -4.0 | UN6: 0.6 | UO6: -4.0 | UP6: 0.7 | UQ6: -3.9 | UR6: 0.8 | US6: -3.9 | UT6: 0.8 | UU6: -3.9 | UV6: 0.9 | UW6: -3.9 | UX6: 1.0 | UY6: -3.9 | UZ6: 1.0 | VA6: -3.9 | VB6: 1.1 | VC6: -3.8 | VD6: 1.2 | VE6: -3.8 | VF6: 1.2 | VG6: -3.8 | VH6: 1.3 | VI6: -3.8 | VJ6: 1.4 | VK6: -3.8 | VL6: 1.4 | VM6: -3.7 | VN6: 1.5 | VO6: -3.7 | VP6: 1.6 | VQ6: -3.7 | VR6: 1.6 | VS6: -3.7 | VT6: 1.7 | VU6: -3.6 | VV6: 1.8 | VW6: -3.6 | VX6: 1.8 | VY6: -3.6 | VZ6: 1.9 | WA6: -3.5 | WB6: 1.9 | WC6: -3.5 | WD6: 2.0 | WE6: -3.5 | WF6: 2.1 | WG6: -3.4 | WH6: 2.1 | WI6: -3.4 | WJ6: 2.2 | WK6: -3.4 | WL6: 2.2 | WM6: -3.3 | WN6: 2.3 | WO6: -3.3 | WP6: 2.4 | WQ6: -3.2 | WR6: 2.4 | WS6: -3.2 | WT6: 2.5 | WU6: -3.2 | WV6: 2.5 | WW6: -3.1 | WX6: 2.6 | WY6: -3.1 | WZ6: 2.6 | XA6: -3.0 | XB6: 2.7 | XC6: -3.0 | XD6: 2.7 | XE6: -2.9 | XF6: 2.8 | XG6: -2.9 | XH6: 2.8 | XI6: -2.8 | XJ6: 2.9 | XK6: -2.8 | XL6: 2.9 | XM6: -2.7 | XN6: 3.0 | XO6: -2.7 | XP6: 3.0 | XQ6: -2.6 | XR6: 3.1 | XS6: -2.6 | XT6: 3.1 | XU6: -2.5 | XV6: 3.2 | XW6: -2.5 | XX6: 3.2 | XY6: -2.4 | XZ6: 3.2 | YA6: -2.4 | YB6: 3.3 | YC6: -2.3 | YD6: 3.3 | YE6: -2.2 | YF6: 3.4 | YG6: -2.2 | YH6: 3.4 | YI6: -2.1 | YJ6: 3.4 | YK6: -2.1 | YL6: 3.5 | YM6: -2.0 | YN6: 3.5 | YO6: -1.9 | YP6: 3.5 | YQ6: -1.9 | YR6: 3.6 | YS6: -1.8 | YT6: 3.6 | YU6: -1.8 | YV6: 3.6 | YW6: -1.7 | YX6: 3.7 | YY6: -1.6 | YZ6: 3.7 | ZA6: -1.6 | ZB6: 3.7 | ZC6: -1.5 | ZD6: 3.7 | ZE6: -1.4 | ZF6: 3.8 | ZG6: -1.4 | ZH6: 3.8 | ZI6: -1.3 | ZJ6: 3.8 | ZK6: -1.2 | ZL6: 3.8 | ZM6: -1.2 | ZN6: 3.8 | ZO6: -1.1 | ZP6: 3.9 | ZQ6: -1.0 | ZR6: 3.9 | ZS6: -1.0 | ZT6: 3.9 | ZU6: -0.9 | ZV6: 3.9 | ZW6: -0.8 | ZX6: 3.9 | ZY6: -0.8 | ZZ6: 3.9 | AAA6: -0.7 | AAB6: 4.0 | AAC6: -0.6 | AAD6: 4.0 | AAE6: -0.6 | AAF6: 4.0 | AAG6: -0.5 | AAH6: 4.0 | AAI6: -0.4 | AAJ6: 4.0 | AAK6: -0.3 | AAL6: 4.0 | AAM6: -0.3 | AAN6: 4.0 | AAO6: -0.2 | AAP6: 4.0 | AAQ6: -0.1 | AAR6: 4.0 | AAS6: -0.1 | AAT6: 4.0 | AAU6: -0.0
A7: 5 | B7: 5.0 | C7: 0.0 | D7: 5.0 | E7: 0.1 | F7: 5.0 | G7: 0.2 | H7: 5.0 | I7: 0.3 | J7: 5.0 | K7: 0.3 | L7: 5.0 | M7: 0.4 | N7: 5.0 | O7: 0.5 | P7: 5.0 | Q7: 0.6 | R7: 5.0 | S7: 0.7 | T7: 4.9 | U7: 0.8 | V7: 4.9 | W7: 0.9 | X7: 4.9 | Y7: 1.0 | Z7: 4.9 | AA7: 1.0 | AB7: 4.9 | AC7: 1.1 | AD7: 4.9 | AE7: 1.2 | AF7: 4.8 | AG7: 1.3 | AH7: 4.8 | AI7: 1.4 | AJ7: 4.8 | AK7: 1.5 | AL7: 4.8 | AM7: 1.5 | AN7: 4.7 | AO7: 1.6 | AP7: 4.7 | AQ7: 1.7 | AR7: 4.7 | AS7: 1.8 | AT7: 4.6 | AU7: 1.9 | AV7: 4.6 | AW7: 2.0 | AX7: 4.6 | AY7: 2.0 | AZ7: 4.5 | BA7: 2.1 | BB7: 4.5 | BC7: 2.2 | BD7: 4.5 | BE7: 2.3 | BF7: 4.4 | BG7: 2.3 | BH7: 4.4 | BI7: 2.4 | BJ7: 4.3 | BK7: 2.5 | BL7: 4.3 | BM7: 2.6 | BN7: 4.2 | BO7: 2.6 | BP7: 4.2 | BQ7: 2.7 | BR7: 4.1 | BS7: 2.8 | BT7: 4.1 | BU7: 2.9 | BV7: 4.0 | BW7: 2.9 | BX7: 4.0 | BY7: 3.0 | BZ7: 3.9 | CA7: 3.1 | CB7: 3.9 | CC7: 3.1 | CD7: 3.8 | CE7: 3.2 | CF7: 3.8 | CG7: 3.3 | CH7: 3.7 | CI7: 3.3 | CJ7: 3.7 | CK7: 3.4 | CL7: 3.6 | CM7: 3.5 | CN7: 3.5 | CO7: 3.5 | CP7: 3.5 | CQ7: 3.6 | CR7: 3.4 | CS7: 3.7 | CT7: 3.3 | CU7: 3.7 | CV7: 3.3 | CW7: 3.8 | CX7: 3.2 | CY7: 3.8 | CZ7: 3.1 | DA7: 3.9 | DB7: 3.1 | DC7: 3.9 | DD7: 3.0 | DE7: 4.0 | DF7: 2.9 | DG7: 4.0 | DH7: 2.9 | DI7: 4.1 | DJ7: 2.8 | DK7: 4.1 | DL7: 2.7 | DM7: 4.2 | DN7: 2.6 | DO7: 4.2 | DP7: 2.6 | DQ7: 4.3 | DR7: 2.5 | DS7: 4.3 | DT7: 2.4 | DU7: 4.4 | DV7: 2.3 | DW7: 4.4 | DX7: 2.3 | DY7: 4.5 | DZ7: 2.2 | EA7: 4.5 | EB7: 2.1 | EC7: 4.5 | ED7: 2.0 | EE7: 4.6 | EF7: 2.0 | EG7: 4.6 | EH7: 1.9 | EI7: 4.6 | EJ7: 1.8 | EK7: 4.7 | EL7: 1.7 | EM7: 4.7 | EN7: 1.6 | EO7: 4.7 | EP7: 1.5 | EQ7: 4.8 | ER7: 1.5 | ES7: 4.8 | ET7: 1.4 | EU7: 4.8 | EV7: 1.3 | EW7: 4.8 | EX7: 1.2 | EY7: 4.9 | EZ7: 1.1 | FA7: 4.9 | FB7: 1.0 | FC7: 4.9 | FD7: 1.0 | FE7: 4.9 | FF7: 0.9 | FG7: 4.9 | FH7: 0.8 | FI7: 4.9 | FJ7: 0.7 | FK7: 5.0 | FL7: 0.6 | FM7: 5.0 | FN7: 0.5 | FO7: 5.0 | FP7: 0.4 | FQ7: 5.0 | FR7: 0.3 | FS7: 5.0 | FT7: 0.3 | FU7: 5.0 | FV7: 0.2 | FW7: 5.0 | FX7: 0.1 | FY7: 5.0 | FZ7: 0.0 | GA7: 5.0 | GB7: -0.1 | GC7: 5.0 | GD7: -0.2 | GE7: 5.0 | GF7: -0.3 | GG7: 5.0 | GH7: -0.3 | GI7: 5.0 | GJ7: -0.4 | GK7: 5.0 | GL7: -0.5 | GM7: 5.0 | GN7: -0.6 | GO7: 5.0 | GP7: -0.7 | GQ7: 5.0 | GR7: -0.8 | GS7: 4.9 | GT7: -0.9 | GU7: 4.9 | GV7: -1.0 | GW7: 4.9 | GX7: -1.0 | GY7: 4.9 | GZ7: -1.1 | HA7: 4.9 | HB7: -1.2 | HC7: 4.9 | HD7: -1.3 | HE7: 4.8 | HF7: -1.4 | HG7: 4.8 | HH7: -1.5 | HI7: 4.8 | HJ7: -1.5 | HK7: 4.8 | HL7: -1.6 | HM7: 4.7 | HN7: -1.7 | HO7: 4.7 | HP7: -1.8 | HQ7: 4.7 | HR7: -1.9 | HS7: 4.6 | HT7: -2.0 | HU7: 4.6 | HV7: -2.0 | HW7: 4.6 | HX7: -2.1 | HY7: 4.5 | HZ7: -2.2 | IA7: 4.5 | IB7: -2.3 | IC7: 4.5 | ID7: -2.3 | IE7: 4.4 | IF7: -2.4 | IG7: 4.4 | IH7: -2.5 | II7: 4.3 | IJ7: -2.6 | IK7: 4.3 | IL7: -2.6 | IM7: 4.2 | IN7: -2.7 | IO7: 4.2 | IP7: -2.8 | IQ7: 4.1 | IR7: -2.9 | IS7: 4.1 | IT7: -2.9 | IU7: 4.0 | IV7: -3.0 | IW7: 4.0 | IX7: -3.1 | IY7: 3.9 | IZ7: -3.1 | JA7: 3.9 | JB7: -3.2 | JC7: 3.8 | JD7: -3.3 | JE7: 3.8 | JF7: -3.3 | JG7: 3.7 | JH7: -3.4 | JI7: 3.7 | JJ7: -3.5 | JK7: 3.6 | JL7: -3.5 | JM7: 3.5 | JN7: -3.6 | JO7: 3.5 | JP7: -3.7 | JQ7: 3.4 | JR7: -3.7 | JS7: 3.3 | JT7: -3.8 | JU7: 3.3 | JV7: -3.8 | JW7: 3.2 | JX7: -3.9 | JY7: 3.1 | JZ7: -3.9 | KA7: 3.1 | KB7: -4.0 | KC7: 3.0 | KD7: -4.0 | KE7: 2.9 | KF7: -4.1 | KG7: 2.9 | KH7: -4.1 | KI7: 2.8 | KJ7: -4.2 | KK7: 2.7 | KL7: -4.2 | KM7: 2.6 | KN7: -4.3 | KO7: 2.6 | KP7: -4.3 | KQ7: 2.5 | KR7: -4.4 | KS7: 2.4 | KT7: -4.4 | KU7: 2.3 | KV7: -4.5 | KW7: 2.3 | KX7: -4.5 | KY7: 2.2 | KZ7: -4.5 | LA7: 2.1 | LB7: -4.6 | LC7: 2.0 | LD7: -4.6 | LE7: 2.0 | LF7: -4.6 | LG7: 1.9 | LH7: -4.7 | LI7: 1.8 | LJ7: -4.7 | LK7: 1.7 | LL7: -4.7 | LM7: 1.6 | LN7: -4.8 | LO7: 1.5 | LP7: -4.8 | LQ7: 1.5 | LR7: -4.8 | LS7: 1.4 | LT7: -4.8 | LU7: 1.3 | LV7: -4.9 | LW7: 1.2 | LX7: -4.9 | LY7: 1.1 | LZ7: -4.9 | MA7: 1.0 | MB7: -4.9 | MC7: 1.0 | MD7: -4.9 | ME7: 0.9 | MF7: -4.9 | MG7: 0.8 | MH7: -5.0 | MI7: 0.7 | MJ7: -5.0 | MK7: 0.6 | ML7: -5.0 | MM7: 0.5 | MN7: -5.0 | MO7: 0.4 | MP7: -5.0 | MQ7: 0.3 | MR7: -5.0 | MS7: 0.3 | MT7: -5.0 | MU7: 0.2 | MV7: -5.0 | MW7: 0.1 | MX7: -5.0 | MY7: 0.0 | MZ7: -5.0 | NA7: -0.1 | NB7: -5.0 | NC7: -0.2 | ND7: -5.0 | NE7: -0.3 | NF7: -5.0 | NG7: -0.3 | NH7: -5.0 | NI7: -0.4 | NJ7: -5.0 | NK7: -0.5 | NL7: -5.0 | NM7: -0.6 | NN7: -5.0 | NO7: -0.7 | NP7: -4.9 | NQ7: -0.8 | NR7: -4.9 | NS7: -0.9 | NT7: -4.9 | NU7: -1.0 | NV7: -4.9 | NW7: -1.0 | NX7: -4.9 | NY7: -1.1 | NZ7: -4.9 | OA7: -1.2 | OB7: -4.8 | OC7: -1.3 | OD7: -4.8 | OE7: -1.4 | OF7: -4.8 | OG7: -1.5 | OH7: -4.8 | OI7: -1.5 | OJ7: -4.7 | OK7: -1.6 | OL7: -4.7 | OM7: -1.7 | ON7: -4.7 | OO7: -1.8 | OP7: -4.6 | OQ7: -1.9 | OR7: -4.6 | OS7: -2.0 | OT7: -4.6 | OU7: -2.0 | OV7: -4.5 | OW7: -2.1 | OX7: -4.5 | OY7: -2.2 | OZ7: -4.5 | PA7: -2.3 | PB7: -4.4 | PC7: -2.3 | PD7: -4.4 | PE7: -2.4 | PF7: -4.3 | PG7: -2.5 | PH7: -4.3 | PI7: -2.6 | PJ7: -4.2 | PK7: -2.6 | PL7: -4.2 | PM7: -2.7 | PN7: -4.1 | PO7: -2.8 | PP7: -4.1 | PQ7: -2.9 | PR7: -4.0 | PS7: -2.9 | PT7: -4.0 | PU7: -3.0 | PV7: -3.9 | PW7: -3.1 | PX7: -3.9 | PY7: -3.1 | PZ7: -3.8 | QA7: -3.2 | QB7: -3.8 | QC7: -3.3 | QD7: -3.7 | QE7: -3.3 | QF7: -3.7 | QG7: -3.4 | QH7: -3.6 | QI7: -3.5 | QJ7: -3.5 | QK7: -3.5 | QL7: -3.5 | QM7: -3.6 | QN7: -3.4 | QO7: -3.7 | QP7: -3.3 | QQ7: -3.7 | QR7: -3.3 | QS7: -3.8 | QT7: -3.2 | QU7: -3.8 | QV7: -3.1 | QW7: -3.9 | QX7: -3.1 | QY7: -3.9 | QZ7: -3.0 | RA7: -4.0 | RB7: -2.9 | RC7: -4.0 | RD7: -2.9 | RE7: -4.1 | RF7: -2.8 | RG7: -4.1 | RH7: -2.7 | RI7: -4.2 | RJ7: -2.6 | RK7: -4.2 | RL7: -2.6 | RM7: -4.3 | RN7: -2.5 | RO7: -4.3 | RP7: -2.4 | RQ7: -4.4 | RR7: -2.3 | RS7: -4.4 | RT7: -2.3 | RU7: -4.5 | RV7: -2.2 | RW7: -4.5 | RX7: -2.1 | RY7: -4.5 | RZ7: -2.0 | SA7: -4.6 | SB7: -2.0 | SC7: -4.6 | SD7: -1.9 | SE7: -4.6 | SF7: -1.8 | SG7: -4.7 | SH7: -1.7 | SI7: -4.7 | SJ7: -1.6 | SK7: -4.7 | SL7: -1.5 | SM7: -4.8 | SN7: -1.5 | SO7: -4.8 | SP7: -1.4 | SQ7: -4.8 | SR7: -1.3 | SS7: -4.8 | ST7: -1.2 | SU7: -4.9 | SV7: -1.1 | SW7: -4.9 | SX7: -1.0 | SY7: -4.9 | SZ7: -1.0 | TA7: -4.9 | TB7: -0.9 | TC7: -4.9 | TD7: -0.8 | TE7: -4.9 | TF7: -0.7 | TG7: -5.0 | TH7: -0.6 | TI7: -5.0 | TJ7: -0.5 | TK7: -5.0 | TL7: -0.4 | TM7: -5.0 | TN7: -0.3 | TO7: -5.0 | TP7: -0.3 | TQ7: -5.0 | TR7: -0.2 | TS7: -5.0 | TT7: -0.1 | TU7: -5.0 | TV7: -0.0 | TW7: -5.0 | TX7: 0.1 | TY7: -5.0 | TZ7: 0.2 | UA7: -5.0 | UB7: 0.3 | UC7: -5.0 | UD7: 0.3 | UE7: -5.0 | UF7: 0.4 | UG7: -5.0 | UH7: 0.5 | UI7: -5.0 | UJ7: 0.6 | UK7: -5.0 | UL7: 0.7 | UM7: -5.0 | UN7: 0.8 | UO7: -4.9 | UP7: 0.9 | UQ7: -4.9 | UR7: 1.0 | US7: -4.9 | UT7: 1.0 | UU7: -4.9 | UV7: 1.1 | UW7: -4.9 | UX7: 1.2 | UY7: -4.9 | UZ7: 1.3 | VA7: -4.8 | VB7: 1.4 | VC7: -4.8 | VD7: 1.5 | VE7: -4.8 | VF7: 1.5 | VG7: -4.8 | VH7: 1.6 | VI7: -4.7 | VJ7: 1.7 | VK7: -4.7 | VL7: 1.8 | VM7: -4.7 | VN7: 1.9 | VO7: -4.6 | VP7: 2.0 | VQ7: -4.6 | VR7: 2.0 | VS7: -4.6 | VT7: 2.1 | VU7: -4.5 | VV7: 2.2 | VW7: -4.5 | VX7: 2.3 | VY7: -4.5 | VZ7: 2.3 | WA7: -4.4 | WB7: 2.4 | WC7: -4.4 | WD7: 2.5 | WE7: -4.3 | WF7: 2.6 | WG7: -4.3 | WH7: 2.6 | WI7: -4.2 | WJ7: 2.7 | WK7: -4.2 | WL7: 2.8 | WM7: -4.1 | WN7: 2.9 | WO7: -4.1 | WP7: 2.9 | WQ7: -4.0 | WR7: 3.0 | WS7: -4.0 | WT7: 3.1 | WU7: -3.9 | WV7: 3.1 | WW7: -3.9 | WX7: 3.2 | WY7: -3.8 | WZ7: 3.3 | XA7: -3.8 | XB7: 3.3 | XC7: -3.7 | XD7: 3.4 | XE7: -3.7 | XF7: 3.5 | XG7: -3.6 | XH7: 3.5 | XI7: -3.5 | XJ7: 3.6 | XK7: -3.5 | XL7: 3.7 | XM7: -3.4 | XN7: 3.7 | XO7: -3.3 | XP7: 3.8 | XQ7: -3.3 | XR7: 3.8 | XS7: -3.2 | XT7: 3.9 | XU7: -3.1 | XV7: 3.9 | XW7: -3.1 | XX7: 4.0 | XY7: -3.0 | XZ7: 4.0 | YA7: -2.9 | YB7: 4.1 | YC7: -2.9 | YD7: 4.1 | YE7: -2.8 | YF7: 4.2 | YG7: -2.7 | YH7: 4.2 | YI7: -2.6 | YJ7: 4.3 | YK7: -2.6 | YL7: 4.3 | YM7: -2.5 | YN7: 4.4 | YO7: -2.4 | YP7: 4.4 | YQ7: -2.3 | YR7: 4.5 | YS7: -2.3 | YT7: 4.5 | YU7: -2.2 | YV7: 4.5 | YW7: -2.1 | YX7: 4.6 | YY7: -2.0 | YZ7: 4.6 | ZA7: -2.0 | ZB7: 4.6 | ZC7: -1.9 | ZD7: 4.7 | ZE7: -1.8 | ZF7: 4.7 | ZG7: -1.7 | ZH7: 4.7 | ZI7: -1.6 | ZJ7: 4.8 | ZK7: -1.5 | ZL7: 4.8 | ZM7: -1.5 | ZN7: 4.8 | ZO7: -1.4 | ZP7: 4.8 | ZQ7: -1.3 | ZR7: 4.9 | ZS7: -1.2 | ZT7: 4.9 | ZU7: -1.1 | ZV7: 4.9 | ZW7: -1.0 | ZX7: 4.9 | ZY7: -1.0 | ZZ7: 4.9 | AAA7: -0.9 | AAB7: 4.9 | AAC7: -0.8 | AAD7: 5.0 | AAE7: -0.7 | AAF7: 5.0 | AAG7: -0.6 | AAH7: 5.0 | AAI7: -0.5 | AAJ7: 5.0 | AAK7: -0.4 | AAL7: 5.0 | AAM7: -0.3 | AAN7: 5.0 | AAO7: -0.3 | AAP7: 5.0 | AAQ7: -0.2 | AAR7: 5.0 | AAS7: -0.1 | AAT7: 5.0 | AAU7: -0.0
A8: 6 | B8: 6.0 | C8: 0.0 | D8: 6.0 | E8: 0.1 | F8: 6.0 | G8: 0.2 | H8: 6.0 | I8: 0.3 | J8: 6.0 | K8: 0.4 | L8: 6.0 | M8: 0.5 | N8: 6.0 | O8: 0.6 | P8: 6.0 | Q8: 0.7 | R8: 5.9 | S8: 0.8 | T8: 5.9 | U8: 0.9 | V8: 5.9 | W8: 1.0 | X8: 5.9 | Y8: 1.1 | Z8: 5.9 | AA8: 1.2 | AB8: 5.8 | AC8: 1.3 | AD8: 5.8 | AE8: 1.5 | AF8: 5.8 | AG8: 1.6 | AH8: 5.8 | AI8: 1.7 | AJ8: 5.7 | AK8: 1.8 | AL8: 5.7 | AM8: 1.9 | AN8: 5.7 | AO8: 2.0 | AP8: 5.6 | AQ8: 2.1 | AR8: 5.6 | AS8: 2.2 | AT8: 5.6 | AU8: 2.2 | AV8: 5.5 | AW8: 2.3 | AX8: 5.5 | AY8: 2.4 | AZ8: 5.4 | BA8: 2.5 | BB8: 5.4 | BC8: 2.6 | BD8: 5.3 | BE8: 2.7 | BF8: 5.3 | BG8: 2.8 | BH8: 5.2 | BI8: 2.9 | BJ8: 5.2 | BK8: 3.0 | BL8: 5.1 | BM8: 3.1 | BN8: 5.1 | BO8: 3.2 | BP8: 5.0 | BQ8: 3.3 | BR8: 5.0 | BS8: 3.4 | BT8: 4.9 | BU8: 3.4 | BV8: 4.9 | BW8: 3.5 | BX8: 4.8 | BY8: 3.6 | BZ8: 4.7 | CA8: 3.7 | CB8: 4.7 | CC8: 3.8 | CD8: 4.6 | CE8: 3.9 | CF8: 4.5 | CG8: 3.9 | CH8: 4.5 | CI8: 4.0 | CJ8: 4.4 | CK8: 4.1 | CL8: 4.3 | CM8: 4.2 | CN8: 4.2 | CO8: 4.2 | CP8: 4.2 | CQ8: 4.3 | CR8: 4.1 | CS8: 4.4 | CT8: 4.0 | CU8: 4.5 | CV8: 3.9 | CW8: 4.5 | CX8: 3.9 | CY8: 4.6 | CZ8: 3.8 | DA8: 4.7 | DB8: 3.7 | DC8: 4.7 | DD8: 3.6 | DE8: 4.8 | DF8: 3.5 | DG8: 4.9 | DH8: 3.4 | DI8: 4.9 | DJ8: 3.4 | DK8: 5.0 | DL8: 3.3 | DM8: 5.0 | DN8: 3.2 | DO8: 5.1 | DP8: 3.1 | DQ8: 5.1 | DR8: 3.0 | DS8: 5.2 | DT8: 2.9 | DU8: 5.2 | DV8: 2.8 | DW8: 5.3 | DX8: 2.7 | DY8: 5.3 | DZ8: 2.6 | EA8: 5.4 | EB8: 2.5 | EC8: 5.4 | ED8: 2.4 | EE8: 5.5 | EF8: 2.3 | EG8: 5.5 | EH8: 2.2 | EI8: 5.6 | EJ8: 2.2 | EK8: 5.6 | EL8: 2.1 | EM8: 5.6 | EN8: 2.0 | EO8: 5.7 | EP8: 1.9 | EQ8: 5.7 | ER8: 1.8 | ES8: 5.7 | ET8: 1.7 | EU8: 5.8 | EV8: 1.6 | EW8: 5.8 | EX8: 1.5 | EY8: 5.8 | EZ8: 1.3 | FA8: 5.8 | FB8: 1.2 | FC8: 5.9 | FD8: 1.1 | FE8: 5.9 | FF8: 1.0 | FG8: 5.9 | FH8: 0.9 | FI8: 5.9 | FJ8: 0.8 | FK8: 5.9 | FL8: 0.7 | FM8: 6.0 | FN8: 0.6 | FO8: 6.0 | FP8: 0.5 | FQ8: 6.0 | FR8: 0.4 | FS8: 6.0 | FT8: 0.3 | FU8: 6.0 | FV8: 0.2 | FW8: 6.0 | FX8: 0.1 | FY8: 6.0 | FZ8: 0.0 | GA8: 6.0 | GB8: -0.1 | GC8: 6.0 | GD8: -0.2 | GE8: 6.0 | GF8: -0.3 | GG8: 6.0 | GH8: -0.4 | GI8: 6.0 | GJ8: -0.5 | GK8: 6.0 | GL8: -0.6 | GM8: 6.0 | GN8: -0.7 | GO8: 6.0 | GP8: -0.8 | GQ8: 5.9 | GR8: -0.9 | GS8: 5.9 | GT8: -1.0 | GU8: 5.9 | GV8: -1.1 | GW8: 5.9 | GX8: -1.2 | GY8: 5.9 | GZ8: -1.3 | HA8: 5.8 | HB8: -1.5 | HC8: 5.8 | HD8: -1.6 | HE8: 5.8 | HF8: -1.7 | HG8: 5.8 | HH8: -1.8 | HI8: 5.7 | HJ8: -1.9 | HK8: 5.7 | HL8: -2.0 | HM8: 5.7 | HN8: -2.1 | HO8: 5.6 | HP8: -2.2 | HQ8: 5.6 | HR8: -2.2 | HS8: 5.6 | HT8: -2.3 | HU8: 5.5 | HV8: -2.4 | HW8: 5.5 | HX8: -2.5 | HY8: 5.4 | HZ8: -2.6 | IA8: 5.4 | IB8: -2.7 | IC8: 5.3 | ID8: -2.8 | IE8: 5.3 | IF8: -2.9 | IG8: 5.2 | IH8: -3.0 | II8: 5.2 | IJ8: -3.1 | IK8: 5.1 | IL8: -3.2 | IM8: 5.1 | IN8: -3.3 | IO8: 5.0 | IP8: -3.4 | IQ8: 5.0 | IR8: -3.4 | IS8: 4.9 | IT8: -3.5 | IU8: 4.9 | IV8: -3.6 | IW8: 4.8 | IX8: -3.7 | IY8: 4.7 | IZ8: -3.8 | JA8: 4.7 | JB8: -3.9 | JC8: 4.6 | JD8: -3.9 | JE8: 4.5 | JF8: -4.0 | JG8: 4.5 | JH8: -4.1 | JI8: 4.4 | JJ8: -4.2 | JK8: 4.3 | JL8: -4.2 | JM8: 4.2 | JN8: -4.3 | JO8: 4.2 | JP8: -4.4 | JQ8: 4.1 | JR8: -4.5 | JS8: 4.0 | JT8: -4.5 | JU8: 3.9 | JV8: -4.6 | JW8: 3.9 | JX8: -4.7 | JY8: 3.8 | JZ8: -4.7 | KA8: 3.7 | KB8: -4.8 | KC8: 3.6 | KD8: -4.9 | KE8: 3.5 | KF8: -4.9 | KG8: 3.4 | KH8: -5.0 | KI8: 3.4 | KJ8: -5.0 | KK8: 3.3 | KL8: -5.1 | KM8: 3.2 | KN8: -5.1 | KO8: 3.1 | KP8: -5.2 | KQ8: 3.0 | KR8: -5.2 | KS8: 2.9 | KT8: -5.3 | KU8: 2.8 | KV8: -5.3 | KW8: 2.7 | KX8: -5.4 | KY8: 2.6 | KZ8: -5.4 | LA8: 2.5 | LB8: -5.5 | LC8: 2.4 | LD8: -5.5 | LE8: 2.3 | LF8: -5.6 | LG8: 2.2 | LH8: -5.6 | LI8: 2.2 | LJ8: -5.6 | LK8: 2.1 | LL8: -5.7 | LM8: 2.0 | LN8: -5.7 | LO8: 1.9 | LP8: -5.7 | LQ8: 1.8 | LR8: -5.8 | LS8: 1.7 | LT8: -5.8 | LU8: 1.6 | LV8: -5.8 | LW8: 1.5 | LX8: -5.8 | LY8: 1.3 | LZ8: -5.9 | MA8: 1.2 | MB8: -5.9 | MC8: 1.1 | MD8: -5.9 | ME8: 1.0 | MF8: -5.9 | MG8: 0.9 | MH8: -5.9 | MI8: 0.8 | MJ8: -6.0 | MK8: 0.7 | ML8: -6.0 | MM8: 0.6 | MN8: -6.0 | MO8: 0.5 | MP8: -6.0 | MQ8: 0.4 | MR8: -6.0 | MS8: 0.3 | MT8: -6.0 | MU8: 0.2 | MV8: -6.0 | MW8: 0.1 | MX8: -6.0 | MY8: 0.0 | MZ8: -6.0 | NA8: -0.1 | NB8: -6.0 | NC8: -0.2 | ND8: -6.0 | NE8: -0.3 | NF8: -6.0 | NG8: -0.4 | NH8: -6.0 | NI8: -0.5 | NJ8: -6.0 | NK8: -0.6 | NL8: -6.0 | NM8: -0.7 | NN8: -5.9 | NO8: -0.8 | NP8: -5.9 | NQ8: -0.9 | NR8: -5.9 | NS8: -1.0 | NT8: -5.9 | NU8: -1.1 | NV8: -5.9 | NW8: -1.2 | NX8: -5.8 | NY8: -1.3 | NZ8: -5.8 | OA8: -1.5 | OB8: -5.8 | OC8: -1.6 | OD8: -5.8 | OE8: -1.7 | OF8: -5.7 | OG8: -1.8 | OH8: -5.7 | OI8: -1.9 | OJ8: -5.7 | OK8: -2.0 | OL8: -5.6 | OM8: -2.1 | ON8: -5.6 | OO8: -2.2 | OP8: -5.6 | OQ8: -2.2 | OR8: -5.5 | OS8: -2.3 | OT8: -5.5 | OU8: -2.4 | OV8: -5.4 | OW8: -2.5 | OX8: -5.4 | OY8: -2.6 | OZ8: -5.3 | PA8: -2.7 | PB8: -5.3 | PC8: -2.8 | PD8: -5.2 | PE8: -2.9 | PF8: -5.2 | PG8: -3.0 | PH8: -5.1 | PI8: -3.1 | PJ8: -5.1 | PK8: -3.2 | PL8: -5.0 | PM8: -3.3 | PN8: -5.0 | PO8: -3.4 | PP8: -4.9 | PQ8: -3.4 | PR8: -4.9 | PS8: -3.5 | PT8: -4.8 | PU8: -3.6 | PV8: -4.7 | PW8: -3.7 | PX8: -4.7 | PY8: -3.8 | PZ8: -4.6 | QA8: -3.9 | QB8: -4.5 | QC8: -3.9 | QD8: -4.5 | QE8: -4.0 | QF8: -4.4 | QG8: -4.1 | QH8: -4.3 | QI8: -4.2 | QJ8: -4.2 | QK8: -4.2 | QL8: -4.2 | QM8: -4.3 | QN8: -4.1 | QO8: -4.4 | QP8: -4.0 | QQ8: -4.5 | QR8: -3.9 | QS8: -4.5 | QT8: -3.9 | QU8: -4.6 | QV8: -3.8 | QW8: -4.7 | QX8: -3.7 | QY8: -4.7 | QZ8: -3.6 | RA8: -4.8 | RB8: -3.5 | RC8: -4.9 | RD8: -3.4 | RE8: -4.9 | RF8: -3.4 | RG8: -5.0 | RH8: -3.3 | RI8: -5.0 | RJ8: -3.2 | RK8: -5.1 | RL8: -3.1 | RM8: -5.1 | RN8: -3.0 | RO8: -5.2 | RP8: -2.9 | RQ8: -5.2 | RR8: -2.8 | RS8: -5.3 | RT8: -2.7 | RU8: -5.3 | RV8: -2.6 | RW8: -5.4 | RX8: -2.5 | RY8: -5.4 | RZ8: -2.4 | SA8: -5.5 | SB8: -2.3 | SC8: -5.5 | SD8: -2.2 | SE8: -5.6 | SF8: -2.2 | SG8: -5.6 | SH8: -2.1 | SI8: -5.6 | SJ8: -2.0 | SK8: -5.7 | SL8: -1.9 | SM8: -5.7 | SN8: -1.8 | SO8: -5.7 | SP8: -1.7 | SQ8: -5.8 | SR8: -1.6 | SS8: -5.8 | ST8: -1.5 | SU8: -5.8 | SV8: -1.3 | SW8: -5.8 | SX8: -1.2 | SY8: -5.9 | SZ8: -1.1 | TA8: -5.9 | TB8: -1.0 | TC8: -5.9 | TD8: -0.9 | TE8: -5.9 | TF8: -0.8 | TG8: -5.9 | TH8: -0.7 | TI8: -6.0 | TJ8: -0.6 | TK8: -6.0 | TL8: -0.5 | TM8: -6.0 | TN8: -0.4 | TO8: -6.0 | TP8: -0.3 | TQ8: -6.0 | TR8: -0.2 | TS8: -6.0 | TT8: -0.1 | TU8: -6.0 | TV8: -0.0 | TW8: -6.0 | TX8: 0.1 | TY8: -6.0 | TZ8: 0.2 | UA8: -6.0 | UB8: 0.3 | UC8: -6.0 | UD8: 0.4 | UE8: -6.0 | UF8: 0.5 | UG8: -6.0 | UH8: 0.6 | UI8: -6.0 | UJ8: 0.7 | UK8: -6.0 | UL8: 0.8 | UM8: -5.9 | UN8: 0.9 | UO8: -5.9 | UP8: 1.0 | UQ8: -5.9 | UR8: 1.1 | US8: -5.9 | UT8: 1.2 | UU8: -5.9 | UV8: 1.3 | UW8: -5.8 | UX8: 1.5 | UY8: -5.8 | UZ8: 1.6 | VA8: -5.8 | VB8: 1.7 | VC8: -5.8 | VD8: 1.8 | VE8: -5.7 | VF8: 1.9 | VG8: -5.7 | VH8: 2.0 | VI8: -5.7 | VJ8: 2.1 | VK8: -5.6 | VL8: 2.2 | VM8: -5.6 | VN8: 2.2 | VO8: -5.6 | VP8: 2.3 | VQ8: -5.5 | VR8: 2.4 | VS8: -5.5 | VT8: 2.5 | VU8: -5.4 | VV8: 2.6 | VW8: -5.4 | VX8: 2.7 | VY8: -5.3 | VZ8: 2.8 | WA8: -5.3 | WB8: 2.9 | WC8: -5.2 | WD8: 3.0 | WE8: -5.2 | WF8: 3.1 | WG8: -5.1 | WH8: 3.2 | WI8: -5.1 | WJ8: 3.3 | WK8: -5.0 | WL8: 3.4 | WM8: -5.0 | WN8: 3.4 | WO8: -4.9 | WP8: 3.5 | WQ8: -4.9 | WR8: 3.6 | WS8: -4.8 | WT8: 3.7 | WU8: -4.7 | WV8: 3.8 | WW8: -4.7 | WX8: 3.9 | WY8: -4.6 | WZ8: 3.9 | XA8: -4.5 | XB8: 4.0 | XC8: -4.5 | XD8: 4.1 | XE8: -4.4 | XF8: 4.2 | XG8: -4.3 | XH8: 4.2 | XI8: -4.2 | XJ8: 4.3 | XK8: -4.2 | XL8: 4.4 | XM8: -4.1 | XN8: 4.5 | XO8: -4.0 | XP8: 4.5 | XQ8: -3.9 | XR8: 4.6 | XS8: -3.9 | XT8: 4.7 | XU8: -3.8 | XV8: 4.7 | XW8: -3.7 | XX8: 4.8 | XY8: -3.6 | XZ8: 4.9 | YA8: -3.5 | YB8: 4.9 | YC8: -3.4 | YD8: 5.0 | YE8: -3.4 | YF8: 5.0 | YG8: -3.3 | YH8: 5.1 | YI8: -3.2 | YJ8: 5.1 | YK8: -3.1 | YL8: 5.2 | YM8: -3.0 | YN8: 5.2 | YO8: -2.9 | YP8: 5.3 | YQ8: -2.8 | YR8: 5.3 | YS8: -2.7 | YT8: 5.4 | YU8: -2.6 | YV8: 5.4 | YW8: -2.5 | YX8: 5.5 | YY8: -2.4 | YZ8: 5.5 | ZA8: -2.3 | ZB8: 5.6 | ZC8: -2.2 | ZD8: 5.6 | ZE8: -2.2 | ZF8: 5.6 | ZG8: -2.1 | ZH8: 5.7 | ZI8: -2.0 | ZJ8: 5.7 | ZK8: -1.9 | ZL8: 5.7 | ZM8: -1.8 | ZN8: 5.8 | ZO8: -1.7 | ZP8: 5.8 | ZQ8: -1.6 | ZR8: 5.8 | ZS8: -1.5 | ZT8: 5.8 | ZU8: -1.3 | ZV8: 5.9 | ZW8: -1.2 | ZX8: 5.9 | ZY8: -1.1 | ZZ8: 5.9 | AAA8: -1.0 | AAB8: 5.9 | AAC8: -0.9 | AAD8: 5.9 | AAE8: -0.8 | AAF8: 6.0 | AAG8: -0.7 | AAH8: 6.0 | AAI8: -0.6 | AAJ8: 6.0 | AAK8: -0.5 | AAL8: 6.0 | AAM8: -0.4 | AAN8: 6.0 | AAO8: -0.3 | AAP8: 6.0 | AAQ8: -0.2 | AAR8: 6.0 | AAS8: -0.1 | AAT8: 6.0 | AAU8: -0.0
A9: 7 | B9: 7.0 | C9: 0.0 | D9: 7.0 | E9: 0.1 | F9: 7.0 | G9: 0.2 | H9: 7.0 | I9: 0.4 | J9: 7.0 | K9: 0.5 | L9: 7.0 | M9: 0.6 | N9: 7.0 | O9: 0.7 | P9: 6.9 | Q9: 0.9 | R9: 6.9 | S9: 1.0 | T9: 6.9 | U9: 1.1 | V9: 6.9 | W9: 1.2 | X9: 6.9 | Y9: 1.3 | Z9: 6.8 | AA9: 1.5 | AB9: 6.8 | AC9: 1.6 | AD9: 6.8 | AE9: 1.7 | AF9: 6.8 | AG9: 1.8 | AH9: 6.7 | AI9: 1.9 | AJ9: 6.7 | AK9: 2.0 | AL9: 6.7 | AM9: 2.2 | AN9: 6.6 | AO9: 2.3 | AP9: 6.6 | AQ9: 2.4 | AR9: 6.5 | AS9: 2.5 | AT9: 6.5 | AU9: 2.6 | AV9: 6.4 | AW9: 2.7 | AX9: 6.4 | AY9: 2.8 | AZ9: 6.3 | BA9: 3.0 | BB9: 6.3 | BC9: 3.1 | BD9: 6.2 | BE9: 3.2 | BF9: 6.2 | BG9: 3.3 | BH9: 6.1 | BI9: 3.4 | BJ9: 6.1 | BK9: 3.5 | BL9: 6.0 | BM9: 3.6 | BN9: 5.9 | BO9: 3.7 | BP9: 5.9 | BQ9: 3.8 | BR9: 5.8 | BS9: 3.9 | BT9: 5.7 | BU9: 4.0 | BV9: 5.7 | BW9: 4.1 | BX9: 5.6 | BY9: 4.2 | BZ9: 5.5 | CA9: 4.3 | CB9: 5.4 | CC9: 4.4 | CD9: 5.4 | CE9: 4.5 | CF9: 5.3 | CG9: 4.6 | CH9: 5.2 | CI9: 4.7 | CJ9: 5.1 | CK9: 4.8 | CL9: 5.0 | CM9: 4.9 | CN9: 4.9 | CO9: 4.9 | CP9: 4.9 | CQ9: 5.0 | CR9: 4.8 | CS9: 5.1 | CT9: 4.7 | CU9: 5.2 | CV9: 4.6 | CW9: 5.3 | CX9: 4.5 | CY9: 5.4 | CZ9: 4.4 | DA9: 5.4 | DB9: 4.3 | DC9: 5.5 | DD9: 4.2 | DE9: 5.6 | DF9: 4.1 | DG9: 5.7 | DH9: 4.0 | DI9: 5.7 | DJ9: 3.9 | DK9: 5.8 | DL9: 3.8 | DM9: 5.9 | DN9: 3.7 | DO9: 5.9 | DP9: 3.6 | DQ9: 6.0 | DR9: 3.5 | DS9: 6.1 | DT9: 3.4 | DU9: 6.1 | DV9: 3.3 | DW9: 6.2 | DX9: 3.2 | DY9: 6.2 | DZ9: 3.1 | EA9: 6.3 | EB9: 3.0 | EC9: 6.3 | ED9: 2.8 | EE9: 6.4 | EF9: 2.7 | EG9: 6.4 | EH9: 2.6 | EI9: 6.5 | EJ9: 2.5 | EK9: 6.5 | EL9: 2.4 | EM9: 6.6 | EN9: 2.3 | EO9: 6.6 | EP9: 2.2 | EQ9: 6.7 | ER9: 2.0 | ES9: 6.7 | ET9: 1.9 | EU9: 6.7 | EV9: 1.8 | EW9: 6.8 | EX9: 1.7 | EY9: 6.8 | EZ9: 1.6 | FA9: 6.8 | FB9: 1.5 | FC9: 6.8 | FD9: 1.3 | FE9: 6.9 | FF9: 1.2 | FG9: 6.9 | FH9: 1.1 | FI9: 6.9 | FJ9: 1.0 | FK9: 6.9 | FL9: 0.9 | FM9: 6.9 | FN9: 0.7 | FO9: 7.0 | FP9: 0.6 | FQ9: 7.0 | FR9: 0.5 | FS9: 7.0 | FT9: 0.4 | FU9: 7.0 | FV9: 0.2 | FW9: 7.0 | FX9: 0.1 | FY9: 7.0 | FZ9: 0.0 | GA9: 7.0 | GB9: -0.1 | GC9: 7.0 | GD9: -0.2 | GE9: 7.0 | GF9: -0.4 | GG9: 7.0 | GH9: -0.5 | GI9: 7.0 | GJ9: -0.6 | GK9: 7.0 | GL9: -0.7 | GM9: 7.0 | GN9: -0.9 | GO9: 6.9 | GP9: -1.0 | GQ9: 6.9 | GR9: -1.1 | GS9: 6.9 | GT9: -1.2 | GU9: 6.9 | GV9: -1.3 | GW9: 6.9 | GX9: -1.5 | GY9: 6.8 | GZ9: -1.6 | HA9: 6.8 | HB9: -1.7 | HC9: 6.8 | HD9: -1.8 | HE9: 6.8 | HF9: -1.9 | HG9: 6.7 | HH9: -2.0 | HI9: 6.7 | HJ9: -2.2 | HK9: 6.7 | HL9: -2.3 | HM9: 6.6 | HN9: -2.4 | HO9: 6.6 | HP9: -2.5 | HQ9: 6.5 | HR9: -2.6 | HS9: 6.5 | HT9: -2.7 | HU9: 6.4 | HV9: -2.8 | HW9: 6.4 | HX9: -3.0 | HY9: 6.3 | HZ9: -3.1 | IA9: 6.3 | IB9: -3.2 | IC9: 6.2 | ID9: -3.3 | IE9: 6.2 | IF9: -3.4 | IG9: 6.1 | IH9: -3.5 | II9: 6.1 | IJ9: -3.6 | IK9: 6.0 | IL9: -3.7 | IM9: 5.9 | IN9: -3.8 | IO9: 5.9 | IP9: -3.9 | IQ9: 5.8 | IR9: -4.0 | IS9: 5.7 | IT9: -4.1 | IU9: 5.7 | IV9: -4.2 | IW9: 5.6 | IX9: -4.3 | IY9: 5.5 | IZ9: -4.4 | JA9: 5.4 | JB9: -4.5 | JC9: 5.4 | JD9: -4.6 | JE9: 5.3 | JF9: -4.7 | JG9: 5.2 | JH9: -4.8 | JI9: 5.1 | JJ9: -4.9 | JK9: 5.0 | JL9: -4.9 | JM9: 4.9 | JN9: -5.0 | JO9: 4.9 | JP9: -5.1 | JQ9: 4.8 | JR9: -5.2 | JS9: 4.7 | JT9: -5.3 | JU9: 4.6 | JV9: -5.4 | JW9: 4.5 | JX9: -5.4 | JY9: 4.4 | JZ9: -5.5 | KA9: 4.3 | KB9: -5.6 | KC9: 4.2 | KD9: -5.7 | KE9: 4.1 | KF9: -5.7 | KG9: 4.0 | KH9: -5.8 | KI9: 3.9 | KJ9: -5.9 | KK9: 3.8 | KL9: -5.9 | KM9: 3.7 | KN9: -6.0 | KO9: 3.6 | KP9: -6.1 | KQ9: 3.5 | KR9: -6.1 | KS9: 3.4 | KT9: -6.2 | KU9: 3.3 | KV9: -6.2 | KW9: 3.2 | KX9: -6.3 | KY9: 3.1 | KZ9: -6.3 | LA9: 3.0 | LB9: -6.4 | LC9: 2.8 | LD9: -6.4 | LE9: 2.7 | LF9: -6.5 | LG9: 2.6 | LH9: -6.5 | LI9: 2.5 | LJ9: -6.6 | LK9: 2.4 | LL9: -6.6 | LM9: 2.3 | LN9: -6.7 | LO9: 2.2 | LP9: -6.7 | LQ9: 2.0 | LR9: -6.7 | LS9: 1.9 | LT9: -6.8 | LU9: 1.8 | LV9: -6.8 | LW9: 1.7 | LX9: -6.8 | LY9: 1.6 | LZ9: -6.8 | MA9: 1.5 | MB9: -6.9 | MC9: 1.3 | MD9: -6.9 | ME9: 1.2 | MF9: -6.9 | MG9: 1.1 | MH9: -6.9 | MI9: 1.0 | MJ9: -6.9 | MK9: 0.9 | ML9: -7.0 | MM9: 0.7 | MN9: -7.0 | MO9: 0.6 | MP9: -7.0 | MQ9: 0.5 | MR9: -7.0 | MS9: 0.4 | MT9: -7.0 | MU9: 0.2 | MV9: -7.0 | MW9: 0.1 | MX9: -7.0 | MY9: 0.0 | MZ9: -7.0 | NA9: -0.1 | NB9: -7.0 | NC9: -0.2 | ND9: -7.0 | NE9: -0.4 | NF9: -7.0 | NG9: -0.5 | NH9: -7.0 | NI9: -0.6 | NJ9: -7.0 | NK9: -0.7 | NL9: -6.9 | NM9: -0.9 | NN9: -6.9 | NO9: -1.0 | NP9: -6.9 | NQ9: -1.1 | NR9: -6.9 | NS9: -1.2 | NT9: -6.9 | NU9: -1.3 | NV9: -6.8 | NW9: -1.5 | NX9: -6.8 | NY9: -1.6 | NZ9: -6.8 | OA9: -1.7 | OB9: -6.8 | OC9: -1.8 | OD9: -6.7 | OE9: -1.9 | OF9: -6.7 | OG9: -2.0 | OH9: -6.7 | OI9: -2.2 | OJ9: -6.6 | OK9: -2.3 | OL9: -6.6 | OM9: -2.4 | ON9: -6.5 | OO9: -2.5 | OP9: -6.5 | OQ9: -2.6 | OR9: -6.4 | OS9: -2.7 | OT9: -6.4 | OU9: -2.8 | OV9: -6.3 | OW9: -3.0 | OX9: -6.3 | OY9: -3.1 | OZ9: -6.2 | PA9: -3.2 | PB9: -6.2 | PC9: -3.3 | PD9: -6.1 | PE9: -3.4 | PF9: -6.1 | PG9: -3.5 | PH9: -6.0 | PI9: -3.6 | PJ9: -5.9 | PK9: -3.7 | PL9: -5.9 | PM9: -3.8 | PN9: -5.8 | PO9: -3.9 | PP9: -5.7 | PQ9: -4.0 | PR9: -5.7 | PS9: -4.1 | PT9: -5.6 | PU9: -4.2 | PV9: -5.5 | PW9: -4.3 | PX9: -5.4 | PY9: -4.4 | PZ9: -5.4 | QA9: -4.5 | QB9: -5.3 | QC9: -4.6 | QD9: -5.2 | QE9: -4.7 | QF9: -5.1 | QG9: -4.8 | QH9: -5.0 | QI9: -4.9 | QJ9: -4.9 | QK9: -4.9 | QL9: -4.9 | QM9: -5.0 | QN9: -4.8 | QO9: -5.1 | QP9: -4.7 | QQ9: -5.2 | QR9: -4.6 | QS9: -5.3 | QT9: -4.5 | QU9: -5.4 | QV9: -4.4 | QW9: -5.4 | QX9: -4.3 | QY9: -5.5 | QZ9: -4.2 | RA9: -5.6 | RB9: -4.1 | RC9: -5.7 | RD9: -4.0 | RE9: -5.7 | RF9: -3.9 | RG9: -5.8 | RH9: -3.8 | RI9: -5.9 | RJ9: -3.7 | RK9: -5.9 | RL9: -3.6 | RM9: -6.0 | RN9: -3.5 | RO9: -6.1 | RP9: -3.4 | RQ9: -6.1 | RR9: -3.3 | RS9: -6.2 | RT9: -3.2 | RU9: -6.2 | RV9: -3.1 | RW9: -6.3 | RX9: -3.0 | RY9: -6.3 | RZ9: -2.8 | SA9: -6.4 | SB9: -2.7 | SC9: -6.4 | SD9: -2.6 | SE9: -6.5 | SF9: -2.5 | SG9: -6.5 | SH9: -2.4 | SI9: -6.6 | SJ9: -2.3 | SK9: -6.6 | SL9: -2.2 | SM9: -6.7 | SN9: -2.0 | SO9: -6.7 | SP9: -1.9 | SQ9: -6.7 | SR9: -1.8 | SS9: -6.8 | ST9: -1.7 | SU9: -6.8 | SV9: -1.6 | SW9: -6.8 | SX9: -1.5 | SY9: -6.8 | SZ9: -1.3 | TA9: -6.9 | TB9: -1.2 | TC9: -6.9 | TD9: -1.1 | TE9: -6.9 | TF9: -1.0 | TG9: -6.9 | TH9: -0.9 | TI9: -6.9 | TJ9: -0.7 | TK9: -7.0 | TL9: -0.6 | TM9: -7.0 | TN9: -0.5 | TO9: -7.0 | TP9: -0.4 | TQ9: -7.0 | TR9: -0.2 | TS9: -7.0 | TT9: -0.1 | TU9: -7.0 | TV9: -0.0 | TW9: -7.0 | TX9: 0.1 | TY9: -7.0 | TZ9: 0.2 | UA9: -7.0 | UB9: 0.4 | UC9: -7.0 | UD9: 0.5 | UE9: -7.0 | UF9: 0.6 | UG9: -7.0 | UH9: 0.7 | UI9: -7.0 | UJ9: 0.9 | UK9: -6.9 | UL9: 1.0 | UM9: -6.9 | UN9: 1.1 | UO9: -6.9 | UP9: 1.2 | UQ9: -6.9 | UR9: 1.3 | US9: -6.9 | UT9: 1.5 | UU9: -6.8 | UV9: 1.6 | UW9: -6.8 | UX9: 1.7 | UY9: -6.8 | UZ9: 1.8 | VA9: -6.8 | VB9: 1.9 | VC9: -6.7 | VD9: 2.0 | VE9: -6.7 | VF9: 2.2 | VG9: -6.7 | VH9: 2.3 | VI9: -6.6 | VJ9: 2.4 | VK9: -6.6 | VL9: 2.5 | VM9: -6.5 | VN9: 2.6 | VO9: -6.5 | VP9: 2.7 | VQ9: -6.4 | VR9: 2.8 | VS9: -6.4 | VT9: 3.0 | VU9: -6.3 | VV9: 3.1 | VW9: -6.3 | VX9: 3.2 | VY9: -6.2 | VZ9: 3.3 | WA9: -6.2 | WB9: 3.4 | WC9: -6.1 | WD9: 3.5 | WE9: -6.1 | WF9: 3.6 | WG9: -6.0 | WH9: 3.7 | WI9: -5.9 | WJ9: 3.8 | WK9: -5.9 | WL9: 3.9 | WM9: -5.8 | WN9: 4.0 | WO9: -5.7 | WP9: 4.1 | WQ9: -5.7 | WR9: 4.2 | WS9: -5.6 | WT9: 4.3 | WU9: -5.5 | WV9: 4.4 | WW9: -5.4 | WX9: 4.5 | WY9: -5.4 | WZ9: 4.6 | XA9: -5.3 | XB9: 4.7 | XC9: -5.2 | XD9: 4.8 | XE9: -5.1 | XF9: 4.9 | XG9: -5.0 | XH9: 4.9 | XI9: -4.9 | XJ9: 5.0 | XK9: -4.9 | XL9: 5.1 | XM9: -4.8 | XN9: 5.2 | XO9: -4.7 | XP9: 5.3 | XQ9: -4.6 | XR9: 5.4 | XS9: -4.5 | XT9: 5.4 | XU9: -4.4 | XV9: 5.5 | XW9: -4.3 | XX9: 5.6 | XY9: -4.2 | XZ9: 5.7 | YA9: -4.1 | YB9: 5.7 | YC9: -4.0 | YD9: 5.8 | YE9: -3.9 | YF9: 5.9 | YG9: -3.8 | YH9: 5.9 | YI9: -3.7 | YJ9: 6.0 | YK9: -3.6 | YL9: 6.1 | YM9: -3.5 | YN9: 6.1 | YO9: -3.4 | YP9: 6.2 | YQ9: -3.3 | YR9: 6.2 | YS9: -3.2 | YT9: 6.3 | YU9: -3.1 | YV9: 6.3 | YW9: -3.0 | YX9: 6.4 | YY9: -2.8 | YZ9: 6.4 | ZA9: -2.7 | ZB9: 6.5 | ZC9: -2.6 | ZD9: 6.5 | ZE9: -2.5 | ZF9: 6.6 | ZG9: -2.4 | ZH9: 6.6 | ZI9: -2.3 | ZJ9: 6.7 | ZK9: -2.2 | ZL9: 6.7 | ZM9: -2.0 | ZN9: 6.7 | ZO9: -1.9 | ZP9: 6.8 | ZQ9: -1.8 | ZR9: 6.8 | ZS9: -1.7 | ZT9: 6.8 | ZU9: -1.6 | ZV9: 6.8 | ZW9: -1.5 | ZX9: 6.9 | ZY9: -1.3 | ZZ9: 6.9 | AAA9: -1.2 | AAB9: 6.9 | AAC9: -1.1 | AAD9: 6.9 | AAE9: -1.0 | AAF9: 6.9 | AAG9: -0.9 | AAH9: 7.0 | AAI9: -0.7 | AAJ9: 7.0 | AAK9: -0.6 | AAL9: 7.0 | AAM9: -0.5 | AAN9: 7.0 | AAO9: -0.4 | AAP9: 7.0 | AAQ9: -0.2 | AAR9: 7.0 | AAS9: -0.1 | AAT9: 7.0 | AAU9: -0.0
A10: 8 | B10: 8.0 | C10: 0.0 | D10: 8.0 | E10: 0.1 | F10: 8.0 | G10: 0.3 | H10: 8.0 | I10: 0.4 | J10: 8.0 | K10: 0.6 | L10: 8.0 | M10: 0.7 | N10: 8.0 | O10: 0.8 | P10: 7.9 | Q10: 1.0 | R10: 7.9 | S10: 1.1 | T10: 7.9 | U10: 1.3 | V10: 7.9 | W10: 1.4 | X10: 7.9 | Y10: 1.5 | Z10: 7.8 | AA10: 1.7 | AB10: 7.8 | AC10: 1.8 | AD10: 7.8 | AE10: 1.9 | AF10: 7.7 | AG10: 2.1 | AH10: 7.7 | AI10: 2.2 | AJ10: 7.7 | AK10: 2.3 | AL10: 7.6 | AM10: 2.5 | AN10: 7.6 | AO10: 2.6 | AP10: 7.5 | AQ10: 2.7 | AR10: 7.5 | AS10: 2.9 | AT10: 7.4 | AU10: 3.0 | AV10: 7.4 | AW10: 3.1 | AX10: 7.3 | AY10: 3.3 | AZ10: 7.3 | BA10: 3.4 | BB10: 7.2 | BC10: 3.5 | BD10: 7.1 | BE10: 3.6 | BF10: 7.1 | BG10: 3.8 | BH10: 7.0 | BI10: 3.9 | BJ10: 6.9 | BK10: 4.0 | BL10: 6.9 | BM10: 4.1 | BN10: 6.8 | BO10: 4.2 | BP10: 6.7 | BQ10: 4.4 | BR10: 6.6 | BS10: 4.5 | BT10: 6.6 | BU10: 4.6 | BV10: 6.5 | BW10: 4.7 | BX10: 6.4 | BY10: 4.8 | BZ10: 6.3 | CA10: 4.9 | CB10: 6.2 | CC10: 5.0 | CD10: 6.1 | CE10: 5.1 | CF10: 6.0 | CG10: 5.2 | CH10: 5.9 | CI10: 5.4 | CJ10: 5.9 | CK10: 5.5 | CL10: 5.8 | CM10: 5.6 | CN10: 5.7 | CO10: 5.7 | CP10: 5.6 | CQ10: 5.8 | CR10: 5.5 | CS10: 5.9 | CT10: 5.4 | CU10: 5.9 | CV10: 5.2 | CW10: 6.0 | CX10: 5.1 | CY10: 6.1 | CZ10: 5.0 | DA10: 6.2 | DB10: 4.9 | DC10: 6.3 | DD10: 4.8 | DE10: 6.4 | DF10: 4.7 | DG10: 6.5 | DH10: 4.6 | DI10: 6.6 | DJ10: 4.5 | DK10: 6.6 | DL10: 4.4 | DM10: 6.7 | DN10: 4.2 | DO10: 6.8 | DP10: 4.1 | DQ10: 6.9 | DR10: 4.0 | DS10: 6.9 | DT10: 3.9 | DU10: 7.0 | DV10: 3.8 | DW10: 7.1 | DX10: 3.6 | DY10: 7.1 | DZ10: 3.5 | EA10: 7.2 | EB10: 3.4 | EC10: 7.3 | ED10: 3.3 | EE10: 7.3 | EF10: 3.1 | EG10: 7.4 | EH10: 3.0 | EI10: 7.4 | EJ10: 2.9 | EK10: 7.5 | EL10: 2.7 | EM10: 7.5 | EN10: 2.6 | EO10: 7.6 | EP10: 2.5 | EQ10: 7.6 | ER10: 2.3 | ES10: 7.7 | ET10: 2.2 | EU10: 7.7 | EV10: 2.1 | EW10: 7.7 | EX10: 1.9 | EY10: 7.8 | EZ10: 1.8 | FA10: 7.8 | FB10: 1.7 | FC10: 7.8 | FD10: 1.5 | FE10: 7.9 | FF10: 1.4 | FG10: 7.9 | FH10: 1.3 | FI10: 7.9 | FJ10: 1.1 | FK10: 7.9 | FL10: 1.0 | FM10: 7.9 | FN10: 0.8 | FO10: 8.0 | FP10: 0.7 | FQ10: 8.0 | FR10: 0.6 | FS10: 8.0 | FT10: 0.4 | FU10: 8.0 | FV10: 0.3 | FW10: 8.0 | FX10: 0.1 | FY10: 8.0 | FZ10: 0.0 | GA10: 8.0 | GB10: -0.1 | GC10: 8.0 | GD10: -0.3 | GE10: 8.0 | GF10: -0.4 | GG10: 8.0 | GH10: -0.6 | GI10: 8.0 | GJ10: -0.7 | GK10: 8.0 | GL10: -0.8 | GM10: 8.0 | GN10: -1.0 | GO10: 7.9 | GP10: -1.1 | GQ10: 7.9 | GR10: -1.3 | GS10: 7.9 | GT10: -1.4 | GU10: 7.9 | GV10: -1.5 | GW10: 7.9 | GX10: -1.7 | GY10: 7.8 | GZ10: -1.8 | HA10: 7.8 | HB10: -1.9 | HC10: 7.8 | HD10: -2.1 | HE10: 7.7 | HF10: -2.2 | HG10: 7.7 | HH10: -2.3 | HI10: 7.7 | HJ10: =COS(HJ$1/360*2*PI())*$A10 -> -2.5 | HK10: 7.6 | HL10: -2.6 | HM10: 7.6 | HN10: -2.7 | HO10: 7.5 | HP10: -2.9 | HQ10: 7.5 | HR10: -3.0 | HS10: 7.4 | HT10: -3.1 | HU10: 7.4 | HV10: -3.3 | HW10: 7.3 | HX10: -3.4 | HY10: 7.3 | HZ10: -3.5 | IA10: 7.2 | IB10: -3.6 | IC10: 7.1 | ID10: -3.8 | IE10: 7.1 | IF10: -3.9 | IG10: 7.0 | IH10: -4.0 | II10: 6.9 | IJ10: -4.1 | IK10: 6.9 | IL10: -4.2 | IM10: 6.8 | IN10: -4.4 | IO10: 6.7 | IP10: -4.5 | IQ10: 6.6 | IR10: -4.6 | IS10: 6.6 | IT10: -4.7 | IU10: 6.5 | IV10: -4.8 | IW10: 6.4 | IX10: -4.9 | IY10: 6.3 | IZ10: -5.0 | JA10: 6.2 | JB10: -5.1 | JC10: 6.1 | JD10: -5.2 | JE10: 6.0 | JF10: -5.4 | JG10: 5.9 | JH10: -5.5 | JI10: 5.9 | JJ10: -5.6 | JK10: 5.8 | JL10: -5.7 | JM10: 5.7 | JN10: -5.8 | JO10: 5.6 | JP10: -5.9 | JQ10: 5.5 | JR10: -5.9 | JS10: 5.4 | JT10: -6.0 | JU10: 5.2 | JV10: =COS(JV$1/360*2*PI())*$A10 -> -6.1 | JW10: 5.1 | JX10: -6.2 | JY10: 5.0 | JZ10: -6.3 | KA10: 4.9 | KB10: -6.4 | KC10: 4.8 | KD10: -6.5 | KE10: 4.7 | KF10: -6.6 | KG10: 4.6 | KH10: -6.6 | KI10: 4.5 | KJ10: -6.7 | KK10: 4.4 | KL10: -6.8 | KM10: 4.2 | KN10: -6.9 | KO10: 4.1 | KP10: -6.9 | KQ10: 4.0 | KR10: -7.0 | KS10: 3.9 | KT10: -7.1 | KU10: 3.8 | KV10: -7.1 | KW10: 3.6 | KX10: -7.2 | KY10: 3.5 | KZ10: -7.3 | LA10: 3.4 | LB10: -7.3 | LC10: 3.3 | LD10: -7.4 | LE10: 3.1 | LF10: -7.4 | LG10: 3.0 | LH10: -7.5 | LI10: 2.9 | LJ10: -7.5 | LK10: 2.7 | LL10: -7.6 | LM10: 2.6 | LN10: -7.6 | LO10: 2.5 | LP10: -7.7 | LQ10: 2.3 | LR10: -7.7 | LS10: 2.2 | LT10: -7.7 | LU10: 2.1 | LV10: -7.8 | LW10: 1.9 | LX10: -7.8 | LY10: 1.8 | LZ10: -7.8 | MA10: 1.7 | MB10: -7.9 | MC10: 1.5 | MD10: -7.9 | ME10: 1.4 | MF10: -7.9 | MG10: 1.3 | MH10: -7.9 | MI10: 1.1 | MJ10: -7.9 | MK10: 1.0 | ML10: -8.0 | MM10: 0.8 | MN10: -8.0 | MO10: 0.7 | MP10: -8.0 | MQ10: 0.6 | MR10: -8.0 | MS10: 0.4 | MT10: -8.0 | MU10: 0.3 | MV10: -8.0 | MW10: 0.1 | MX10: -8.0 | MY10: 0.0 | MZ10: -8.0 | NA10: -0.1 | NB10: -8.0 | NC10: -0.3 | ND10: -8.0 | NE10: -0.4 | NF10: -8.0 | NG10: -0.6 | NH10: -8.0 | NI10: -0.7 | NJ10: -8.0 | NK10: -0.8 | NL10: -7.9 | NM10: -1.0 | NN10: -7.9 | NO10: -1.1 | NP10: -7.9 | NQ10: -1.3 | NR10: -7.9 | NS10: -1.4 | NT10: -7.9 | NU10: -1.5 | NV10: -7.8 | NW10: -1.7 | NX10: -7.8 | NY10: -1.8 | NZ10: -7.8 | OA10: -1.9 | OB10: -7.7 | OC10: -2.1 | OD10: -7.7 | OE10: -2.2 | OF10: -7.7 | OG10: -2.3 | OH10: -7.6 | OI10: -2.5 | OJ10: -7.6 | OK10: -2.6 | OL10: -7.5 | OM10: -2.7 | ON10: -7.5 | OO10: -2.9 | OP10: -7.4 | OQ10: -3.0 | OR10: -7.4 | OS10: -3.1 | OT10: =COS(OT$1/360*2*PI())*$A10 -> -7.3 | OU10: -3.3 | OV10: -7.3 | OW10: -3.4 | OX10: -7.2 | OY10: -3.5 | OZ10: -7.1 | PA10: -3.6 | PB10: -7.1 | PC10: -3.8 | PD10: -7.0 | PE10: -3.9 | PF10: -6.9 | PG10: -4.0 | PH10: -6.9 | PI10: -4.1 | PJ10: -6.8 | PK10: -4.2 | PL10: -6.7 | PM10: -4.4 | PN10: -6.6 | PO10: -4.5 | PP10: -6.6 | PQ10: -4.6 | PR10: -6.5 | PS10: -4.7 | PT10: -6.4 | PU10: -4.8 | PV10: -6.3 | PW10: -4.9 | PX10: -6.2 | PY10: -5.0 | PZ10: -6.1 | QA10: -5.1 | QB10: -6.0 | QC10: -5.2 | QD10: -5.9 | QE10: -5.4 | QF10: -5.9 | QG10: -5.5 | QH10: -5.8 | QI10: -5.6 | QJ10: -5.7 | QK10: -5.7 | QL10: -5.6 | QM10: -5.8 | QN10: -5.5 | QO10: -5.9 | QP10: -5.4 | QQ10: -5.9 | QR10: -5.2 | QS10: -6.0 | QT10: -5.1 | QU10: -6.1 | QV10: -5.0 | QW10: -6.2 | QX10: -4.9 | QY10: -6.3 | QZ10: -4.8 | RA10: -6.4 | RB10: -4.7 | RC10: -6.5 | RD10: -4.6 | RE10: -6.6 | RF10: -4.5 | RG10: -6.6 | RH10: -4.4 | RI10: -6.7 | RJ10: -4.2 | RK10: -6.8 | RL10: -4.1 | RM10: -6.9 | RN10: -4.0 | RO10: -6.9 | RP10: -3.9 | RQ10: -7.0 | RR10: -3.8 | RS10: -7.1 | RT10: -3.6 | RU10: -7.1 | RV10: -3.5 | RW10: -7.2 | RX10: -3.4 | RY10: -7.3 | RZ10: -3.3 | SA10: -7.3 | SB10: -3.1 | SC10: -7.4 | SD10: -3.0 | SE10: -7.4 | SF10: -2.9 | SG10: -7.5 | SH10: -2.7 | SI10: -7.5 | SJ10: -2.6 | SK10: -7.6 | SL10: -2.5 | SM10: -7.6 | SN10: -2.3 | SO10: -7.7 | SP10: -2.2 | SQ10: -7.7 | SR10: -2.1 | SS10: -7.7 | ST10: -1.9 | SU10: -7.8 | SV10: -1.8 | SW10: -7.8 | SX10: -1.7 | SY10: -7.8 | SZ10: -1.5 | TA10: -7.9 | TB10: -1.4 | TC10: -7.9 | TD10: -1.3 | TE10: -7.9 | TF10: -1.1 | TG10: -7.9 | TH10: -1.0 | TI10: -7.9 | TJ10: -0.8 | TK10: -8.0 | TL10: -0.7 | TM10: -8.0 | TN10: -0.6 | TO10: -8.0 | TP10: -0.4 | TQ10: -8.0 | TR10: =COS(TR$1/360*2*PI())*$A10 -> -0.3 | TS10: -8.0 | TT10: -0.1 | TU10: -8.0 | TV10: -0.0 | TW10: -8.0 | TX10: 0.1 | TY10: -8.0 | TZ10: 0.3 | UA10: -8.0 | UB10: 0.4 | UC10: -8.0 | UD10: 0.6 | UE10: -8.0 | UF10: 0.7 | UG10: -8.0 | UH10: 0.8 | UI10: -8.0 | UJ10: 1.0 | UK10: -7.9 | UL10: 1.1 | UM10: -7.9 | UN10: 1.3 | UO10: -7.9 | UP10: 1.4 | UQ10: -7.9 | UR10: 1.5 | US10: -7.9 | UT10: 1.7 | UU10: -7.8 | UV10: 1.8 | UW10: -7.8 | UX10: 1.9 | UY10: -7.8 | UZ10: 2.1 | VA10: -7.7 | VB10: 2.2 | VC10: -7.7 | VD10: 2.3 | VE10: -7.7 | VF10: 2.5 | VG10: -7.6 | VH10: 2.6 | VI10: -7.6 | VJ10: 2.7 | VK10: -7.5 | VL10: 2.9 | VM10: -7.5 | VN10: 3.0 | VO10: -7.4 | VP10: 3.1 | VQ10: -7.4 | VR10: 3.3 | VS10: -7.3 | VT10: 3.4 | VU10: -7.3 | VV10: 3.5 | VW10: -7.2 | VX10: 3.6 | VY10: -7.1 | VZ10: 3.8 | WA10: -7.1 | WB10: 3.9 | WC10: -7.0 | WD10: 4.0 | WE10: -6.9 | WF10: 4.1 | WG10: -6.9 | WH10: 4.2 | WI10: -6.8 | WJ10: 4.4 | WK10: -6.7 | WL10: 4.5 | WM10: -6.6 | WN10: 4.6 | WO10: -6.6 | WP10: 4.7 | WQ10: -6.5 | WR10: 4.8 | WS10: -6.4 | WT10: 4.9 | WU10: -6.3 | WV10: 5.0 | WW10: -6.2 | WX10: 5.1 | WY10: -6.1 | WZ10: 5.2 | XA10: -6.0 | XB10: 5.4 | XC10: -5.9 | XD10: 5.5 | XE10: -5.9 | XF10: 5.6 | XG10: -5.8 | XH10: 5.7 | XI10: -5.7 | XJ10: 5.8 | XK10: -5.6 | XL10: 5.9 | XM10: -5.5 | XN10: 5.9 | XO10: -5.4 | XP10: 6.0 | XQ10: -5.2 | XR10: 6.1 | XS10: -5.1 | XT10: 6.2 | XU10: -5.0 | XV10: 6.3 | XW10: -4.9 | XX10: 6.4 | XY10: -4.8 | XZ10: 6.5 | YA10: -4.7 | YB10: 6.6 | YC10: -4.6 | YD10: 6.6 | YE10: -4.5 | YF10: 6.7 | YG10: -4.4 | YH10: 6.8 | YI10: -4.2 | YJ10: 6.9 | YK10: -4.1 | YL10: 6.9 | YM10: -4.0 | YN10: 7.0 | YO10: -3.9 | YP10: =COS(YP$1/360*2*PI())*$A10 -> 7.1 | YQ10: -3.8 | YR10: 7.1 | YS10: -3.6 | YT10: 7.2 | YU10: -3.5 | YV10: 7.3 | YW10: -3.4 | YX10: 7.3 | YY10: -3.3 | YZ10: 7.4 | ZA10: -3.1 | ZB10: 7.4 | ZC10: -3.0 | ZD10: 7.5 | ZE10: -2.9 | ZF10: 7.5 | ZG10: -2.7 | ZH10: 7.6 | ZI10: -2.6 | ZJ10: 7.6 | ZK10: -2.5 | ZL10: 7.7 | ZM10: -2.3 | ZN10: 7.7 | ZO10: -2.2 | ZP10: 7.7 | ZQ10: -2.1 | ZR10: 7.8 | ZS10: -1.9 | ZT10: 7.8 | ZU10: -1.8 | ZV10: 7.8 | ZW10: -1.7 | ZX10: 7.9 | ZY10: -1.5 | ZZ10: 7.9 | AAA10: -1.4 | AAB10: 7.9 | AAC10: -1.3 | AAD10: 7.9 | AAE10: -1.1 | AAF10: 7.9 | AAG10: -1.0 | AAH10: 8.0 | AAI10: -0.8 | AAJ10: 8.0 | AAK10: -0.7 | AAL10: 8.0 | AAM10: -0.6 | AAN10: 8.0 | AAO10: -0.4 | AAP10: 8.0 | AAQ10: -0.3 | AAR10: 8.0 | AAS10: -0.1 | AAT10: 8.0 | AAU10: -0.0
A11: 9 | B11: 9.0 | C11: 0.0 | D11: 9.0 | E11: 0.2 | F11: 9.0 | G11: 0.3 | H11: 9.0 | I11: 0.5 | J11: 9.0 | K11: 0.6 | L11: 9.0 | M11: 0.8 | N11: 9.0 | O11: 0.9 | P11: 8.9 | Q11: 1.1 | R11: 8.9 | S11: 1.3 | T11: 8.9 | U11: 1.4 | V11: 8.9 | W11: 1.6 | X11: 8.8 | Y11: 1.7 | Z11: 8.8 | AA11: 1.9 | AB11: 8.8 | AC11: 2.0 | AD11: 8.7 | AE11: 2.2 | AF11: 8.7 | AG11: 2.3 | AH11: 8.7 | AI11: 2.5 | AJ11: 8.6 | AK11: 2.6 | AL11: 8.6 | AM11: 2.8 | AN11: 8.5 | AO11: 2.9 | AP11: 8.5 | AQ11: 3.1 | AR11: 8.4 | AS11: 3.2 | AT11: 8.3 | AU11: 3.4 | AV11: 8.3 | AW11: 3.5 | AX11: 8.2 | AY11: 3.7 | AZ11: 8.2 | BA11: 3.8 | BB11: 8.1 | BC11: 3.9 | BD11: 8.0 | BE11: 4.1 | BF11: 7.9 | BG11: 4.2 | BH11: 7.9 | BI11: 4.4 | BJ11: 7.8 | BK11: 4.5 | BL11: 7.7 | BM11: 4.6 | BN11: 7.6 | BO11: 4.8 | BP11: 7.5 | BQ11: 4.9 | BR11: 7.5 | BS11: 5.0 | BT11: 7.4 | BU11: 5.2 | BV11: 7.3 | BW11: 5.3 | BX11: 7.2 | BY11: 5.4 | BZ11: 7.1 | CA11: 5.5 | CB11: 7.0 | CC11: 5.7 | CD11: 6.9 | CE11: 5.8 | CF11: 6.8 | CG11: 5.9 | CH11: 6.7 | CI11: 6.0 | CJ11: 6.6 | CK11: 6.1 | CL11: 6.5 | CM11: 6.3 | CN11: 6.4 | CO11: 6.4 | CP11: 6.3 | CQ11: 6.5 | CR11: 6.1 | CS11: 6.6 | CT11: 6.0 | CU11: 6.7 | CV11: 5.9 | CW11: 6.8 | CX11: 5.8 | CY11: 6.9 | CZ11: 5.7 | DA11: 7.0 | DB11: 5.5 | DC11: 7.1 | DD11: 5.4 | DE11: 7.2 | DF11: 5.3 | DG11: 7.3 | DH11: 5.2 | DI11: 7.4 | DJ11: 5.0 | DK11: 7.5 | DL11: 4.9 | DM11: 7.5 | DN11: 4.8 | DO11: 7.6 | DP11: 4.6 | DQ11: 7.7 | DR11: =COS(DR$1/360*2*PI())*$A11 -> 4.5 | DS11: 7.8 | DT11: 4.4 | DU11: 7.9 | DV11: 4.2 | DW11: 7.9 | DX11: 4.1 | DY11: 8.0 | DZ11: 3.9 | EA11: 8.1 | EB11: 3.8 | EC11: 8.2 | ED11: 3.7 | EE11: 8.2 | EF11: 3.5 | EG11: 8.3 | EH11: 3.4 | EI11: 8.3 | EJ11: 3.2 | EK11: 8.4 | EL11: 3.1 | EM11: 8.5 | EN11: 2.9 | EO11: 8.5 | EP11: 2.8 | EQ11: 8.6 | ER11: 2.6 | ES11: 8.6 | ET11: 2.5 | EU11: 8.7 | EV11: 2.3 | EW11: 8.7 | EX11: 2.2 | EY11: 8.7 | EZ11: 2.0 | FA11: 8.8 | FB11: =COS(FB$1/360*2*PI())*$A11 -> 1.9 | FC11: 8.8 | FD11: 1.7 | FE11: 8.8 | FF11: 1.6 | FG11: 8.9 | FH11: 1.4 | FI11: 8.9 | FJ11: 1.3 | FK11: 8.9 | FL11: =COS(FL$1/360*2*PI())*$A11 -> 1.1 | FM11: 8.9 | FN11: 0.9 | FO11: 9.0 | FP11: 0.8 | FQ11: 9.0 | FR11: 0.6 | FS11: 9.0 | FT11: 0.5 | FU11: 9.0 | FV11: 0.3 | FW11: 9.0 | FX11: 0.2 | FY11: 9.0 | FZ11: 0.0 | GA11: 9.0 | GB11: -0.2 | GC11: 9.0 | GD11: -0.3 | GE11: 9.0 | GF11: -0.5 | GG11: 9.0 | GH11: -0.6 | GI11: 9.0 | GJ11: -0.8 | GK11: 9.0 | GL11: -0.9 | GM11: 9.0 | GN11: -1.1 | GO11: 8.9 | GP11: -1.3 | GQ11: 8.9 | GR11: -1.4 | GS11: 8.9 | GT11: -1.6 | GU11: 8.9 | GV11: -1.7 | GW11: 8.8 | GX11: -1.9 | GY11: 8.8 | GZ11: -2.0 | HA11: 8.8 | HB11: -2.2 | HC11: 8.7 | HD11: -2.3 | HE11: 8.7 | HF11: -2.5 | HG11: 8.7 | HH11: -2.6 | HI11: 8.6 | HJ11: -2.8 | HK11: 8.6 | HL11: -2.9 | HM11: 8.5 | HN11: -3.1 | HO11: 8.5 | HP11: -3.2 | HQ11: 8.4 | HR11: -3.4 | HS11: 8.3 | HT11: -3.5 | HU11: 8.3 | HV11: -3.7 | HW11: 8.2 | HX11: =COS(HX$1/360*2*PI())*$A11 -> -3.8 | HY11: 8.2 | HZ11: -3.9 | IA11: 8.1 | IB11: -4.1 | IC11: 8.0 | ID11: -4.2 | IE11: 7.9 | IF11: -4.4 | IG11: 7.9 | IH11: -4.5 | II11: 7.8 | IJ11: -4.6 | IK11: 7.7 | IL11: -4.8 | IM11: 7.6 | IN11: -4.9 | IO11: 7.5 | IP11: -5.0 | IQ11: 7.5 | IR11: -5.2 | IS11: 7.4 | IT11: -5.3 | IU11: 7.3 | IV11: -5.4 | IW11: 7.2 | IX11: -5.5 | IY11: 7.1 | IZ11: -5.7 | JA11: 7.0 | JB11: -5.8 | JC11: 6.9 | JD11: -5.9 | JE11: 6.8 | JF11: -6.0 | JG11: 6.7 | JH11: -6.1 | JI11: 6.6 | JJ11: -6.3 | JK11: 6.5 | JL11: -6.4 | JM11: 6.4 | JN11: -6.5 | JO11: 6.3 | JP11: -6.6 | JQ11: 6.1 | JR11: -6.7 | JS11: 6.0 | JT11: -6.8 | JU11: 5.9 | JV11: -6.9 | JW11: 5.8 | JX11: -7.0 | JY11: 5.7 | JZ11: -7.1 | KA11: 5.5 | KB11: -7.2 | KC11: 5.4 | KD11: -7.3 | KE11: 5.3 | KF11: -7.4 | KG11: 5.2 | KH11: -7.5 | KI11: 5.0 | KJ11: -7.5 | KK11: 4.9 | KL11: -7.6 | KM11: 4.8 | KN11: -7.7 | KO11: 4.6 | KP11: -7.8 | KQ11: 4.5 | KR11: -7.9 | KS11: 4.4 | KT11: -7.9 | KU11: 4.2 | KV11: -8.0 | KW11: 4.1 | KX11: -8.1 | KY11: 3.9 | KZ11: -8.2 | LA11: 3.8 | LB11: -8.2 | LC11: 3.7 | LD11: -8.3 | LE11: 3.5 | LF11: -8.3 | LG11: 3.4 | LH11: -8.4 | LI11: 3.2 | LJ11: -8.5 | LK11: 3.1 | LL11: -8.5 | LM11: 2.9 | LN11: -8.6 | LO11: 2.8 | LP11: -8.6 | LQ11: 2.6 | LR11: -8.7 | LS11: 2.5 | LT11: -8.7 | LU11: 2.3 | LV11: -8.7 | LW11: 2.2 | LX11: -8.8 | LY11: 2.0 | LZ11: -8.8 | MA11: 1.9 | MB11: -8.8 | MC11: 1.7 | MD11: -8.9 | ME11: 1.6 | MF11: -8.9 | MG11: 1.4 | MH11: -8.9 | MI11: 1.3 | MJ11: =COS(MJ$1/360*2*PI())*$A11 -> -8.9 | MK11: 1.1 | ML11: -9.0 | MM11: 0.9 | MN11: -9.0 | MO11: 0.8 | MP11: -9.0 | MQ11: 0.6 | MR11: -9.0 | MS11: 0.5 | MT11: -9.0 | MU11: 0.3 | MV11: -9.0 | MW11: 0.2 | MX11: -9.0 | MY11: 0.0 | MZ11: -9.0 | NA11: -0.2 | NB11: -9.0 | NC11: -0.3 | ND11: -9.0 | NE11: -0.5 | NF11: -9.0 | NG11: -0.6 | NH11: -9.0 | NI11: -0.8 | NJ11: -9.0 | NK11: -0.9 | NL11: -8.9 | NM11: -1.1 | NN11: -8.9 | NO11: -1.3 | NP11: -8.9 | NQ11: -1.4 | NR11: -8.9 | NS11: -1.6 | NT11: -8.8 | NU11: -1.7 | NV11: -8.8 | NW11: -1.9 | NX11: -8.8 | NY11: -2.0 | NZ11: -8.7 | OA11: -2.2 | OB11: -8.7 | OC11: -2.3 | OD11: -8.7 | OE11: -2.5 | OF11: -8.6 | OG11: -2.6 | OH11: -8.6 | OI11: -2.8 | OJ11: -8.5 | OK11: -2.9 | OL11: -8.5 | OM11: -3.1 | ON11: -8.4 | OO11: -3.2 | OP11: -8.3 | OQ11: -3.4 | OR11: -8.3 | OS11: -3.5 | OT11: -8.2 | OU11: -3.7 | OV11: -8.2 | OW11: -3.8 | OX11: -8.1 | OY11: -3.9 | OZ11: -8.0 | PA11: -4.1 | PB11: -7.9 | PC11: -4.2 | PD11: -7.9 | PE11: -4.4 | PF11: -7.8 | PG11: -4.5 | PH11: -7.7 | PI11: -4.6 | PJ11: -7.6 | PK11: -4.8 | PL11: -7.5 | PM11: -4.9 | PN11: -7.5 | PO11: -5.0 | PP11: -7.4 | PQ11: -5.2 | PR11: -7.3 | PS11: -5.3 | PT11: -7.2 | PU11: -5.4 | PV11: -7.1 | PW11: -5.5 | PX11: -7.0 | PY11: -5.7 | PZ11: -6.9 | QA11: -5.8 | QB11: -6.8 | QC11: -5.9 | QD11: -6.7 | QE11: -6.0 | QF11: -6.6 | QG11: -6.1 | QH11: -6.5 | QI11: -6.3 | QJ11: -6.4 | QK11: -6.4 | QL11: -6.3 | QM11: -6.5 | QN11: -6.1 | QO11: -6.6 | QP11: -6.0 | QQ11: -6.7 | QR11: -5.9 | QS11: -6.8 | QT11: -5.8 | QU11: -6.9 | QV11: -5.7 | QW11: -7.0 | QX11: -5.5 | QY11: -7.1 | QZ11: -5.4 | RA11: -7.2 | RB11: -5.3 | RC11: -7.3 | RD11: -5.2 | RE11: -7.4 | RF11: -5.0 | RG11: -7.5 | RH11: =COS(RH$1/360*2*PI())*$A11 -> -4.9 | RI11: -7.5 | RJ11: -4.8 | RK11: -7.6 | RL11: -4.6 | RM11: -7.7 | RN11: -4.5 | RO11: -7.8 | RP11: -4.4 | RQ11: -7.9 | RR11: -4.2 | RS11: -7.9 | RT11: -4.1 | RU11: -8.0 | RV11: -3.9 | RW11: -8.1 | RX11: -3.8 | RY11: -8.2 | RZ11: -3.7 | SA11: -8.2 | SB11: -3.5 | SC11: -8.3 | SD11: -3.4 | SE11: -8.3 | SF11: -3.2 | SG11: -8.4 | SH11: -3.1 | SI11: -8.5 | SJ11: -2.9 | SK11: -8.5 | SL11: -2.8 | SM11: -8.6 | SN11: -2.6 | SO11: -8.6 | SP11: -2.5 | SQ11: -8.7 | SR11: -2.3 | SS11: -8.7 | ST11: -2.2 | SU11: -8.7 | SV11: -2.0 | SW11: -8.8 | SX11: -1.9 | SY11: -8.8 | SZ11: -1.7 | TA11: -8.8 | TB11: -1.6 | TC11: -8.9 | TD11: -1.4 | TE11: -8.9 | TF11: -1.3 | TG11: -8.9 | TH11: -1.1 | TI11: -8.9 | TJ11: -0.9 | TK11: -9.0 | TL11: -0.8 | TM11: -9.0 | TN11: -0.6 | TO11: -9.0 | TP11: -0.5 | TQ11: -9.0 | TR11: -0.3 | TS11: -9.0 | TT11: -0.2 | TU11: -9.0 | TV11: -0.0 | TW11: -9.0 | TX11: 0.2 | TY11: -9.0 | TZ11: 0.3 | UA11: -9.0 | UB11: 0.5 | UC11: -9.0 | UD11: 0.6 | UE11: -9.0 | UF11: 0.8 | UG11: -9.0 | UH11: 0.9 | UI11: -9.0 | UJ11: 1.1 | UK11: -8.9 | UL11: 1.3 | UM11: -8.9 | UN11: 1.4 | UO11: -8.9 | UP11: 1.6 | UQ11: -8.9 | UR11: 1.7 | US11: -8.8 | UT11: 1.9 | UU11: -8.8 | UV11: 2.0 | UW11: -8.8 | UX11: 2.2 | UY11: -8.7 | UZ11: 2.3 | VA11: -8.7 | VB11: 2.5 | VC11: -8.7 | VD11: 2.6 | VE11: -8.6 | VF11: 2.8 | VG11: -8.6 | VH11: 2.9 | VI11: -8.5 | VJ11: 3.1 | VK11: -8.5 | VL11: 3.2 | VM11: -8.4 | VN11: 3.4 | VO11: -8.3 | VP11: 3.5 | VQ11: -8.3 | VR11: 3.7 | VS11: -8.2 | VT11: 3.8 | VU11: -8.2 | VV11: 3.9 | VW11: -8.1 | VX11: 4.1 | VY11: -8.0 | VZ11: 4.2 | WA11: -7.9 | WB11: 4.4 | WC11: -7.9 | WD11: 4.5 | WE11: -7.8 | WF11: =COS(WF$1/360*2*PI())*$A11 -> 4.6 | WG11: -7.7 | WH11: 4.8 | WI11: -7.6 | WJ11: 4.9 | WK11: -7.5 | WL11: 5.0 | WM11: -7.5 | WN11: 5.2 | WO11: -7.4 | WP11: 5.3 | WQ11: -7.3 | WR11: 5.4 | WS11: -7.2 | WT11: 5.5 | WU11: -7.1 | WV11: 5.7 | WW11: -7.0 | WX11: 5.8 | WY11: -6.9 | WZ11: 5.9 | XA11: -6.8 | XB11: 6.0 | XC11: -6.7 | XD11: 6.1 | XE11: -6.6 | XF11: 6.3 | XG11: -6.5 | XH11: 6.4 | XI11: -6.4 | XJ11: 6.5 | XK11: -6.3 | XL11: 6.6 | XM11: -6.1 | XN11: 6.7 | XO11: -6.0 | XP11: 6.8 | XQ11: -5.9 | XR11: 6.9 | XS11: -5.8 | XT11: 7.0 | XU11: -5.7 | XV11: 7.1 | XW11: -5.5 | XX11: 7.2 | XY11: -5.4 | XZ11: 7.3 | YA11: -5.3 | YB11: 7.4 | YC11: -5.2 | YD11: 7.5 | YE11: -5.0 | YF11: 7.5 | YG11: -4.9 | YH11: 7.6 | YI11: -4.8 | YJ11: 7.7 | YK11: -4.6 | YL11: 7.8 | YM11: -4.5 | YN11: 7.9 | YO11: -4.4 | YP11: 7.9 | YQ11: -4.2 | YR11: 8.0 | YS11: -4.1 | YT11: 8.1 | YU11: -3.9 | YV11: 8.2 | YW11: -3.8 | YX11: 8.2 | YY11: -3.7 | YZ11: 8.3 | ZA11: -3.5 | ZB11: 8.3 | ZC11: -3.4 | ZD11: 8.4 | ZE11: -3.2 | ZF11: 8.5 | ZG11: -3.1 | ZH11: 8.5 | ZI11: -2.9 | ZJ11: 8.6 | ZK11: -2.8 | ZL11: 8.6 | ZM11: -2.6 | ZN11: 8.7 | ZO11: -2.5 | ZP11: 8.7 | ZQ11: -2.3 | ZR11: 8.7 | ZS11: -2.2 | ZT11: 8.8 | ZU11: -2.0 | ZV11: 8.8 | ZW11: -1.9 | ZX11: 8.8 | ZY11: -1.7 | ZZ11: 8.9 | AAA11: -1.6 | AAB11: 8.9 | AAC11: -1.4 | AAD11: 8.9 | AAE11: -1.3 | AAF11: 8.9 | AAG11: -1.1 | AAH11: 9.0 | AAI11: -0.9 | AAJ11: 9.0 | AAK11: -0.8 | AAL11: 9.0 | AAM11: -0.6 | AAN11: 9.0 | AAO11: -0.5 | AAP11: 9.0 | AAQ11: -0.3 | AAR11: 9.0 | AAS11: -0.2 | AAT11: 9.0 | AAU11: -0.0
A12: 10 | B12: 10.0 | C12: 0.0 | D12: 10.0 | E12: 0.2 | F12: 10.0 | G12: 0.3 | H12: 10.0 | I12: 0.5 | J12: 10.0 | K12: 0.7 | L12: 10.0 | M12: 0.9 | N12: 9.9 | O12: 1.0 | P12: 9.9 | Q12: 1.2 | R12: 9.9 | S12: 1.4 | T12: 9.9 | U12: 1.6 | V12: 9.8 | W12: 1.7 | X12: 9.8 | Y12: 1.9 | Z12: 9.8 | AA12: 2.1 | AB12: 9.7 | AC12: 2.2 | AD12: 9.7 | AE12: 2.4 | AF12: 9.7 | AG12: 2.6 | AH12: 9.6 | AI12: 2.8 | AJ12: 9.6 | AK12: 2.9 | AL12: 9.5 | AM12: 3.1 | AN12: 9.5 | AO12: 3.3 | AP12: 9.4 | AQ12: 3.4 | AR12: 9.3 | AS12: 3.6 | AT12: 9.3 | AU12: 3.7 | AV12: 9.2 | AW12: 3.9 | AX12: 9.1 | AY12: 4.1 | AZ12: 9.1 | BA12: 4.2 | BB12: 9.0 | BC12: 4.4 | BD12: 8.9 | BE12: 4.5 | BF12: 8.8 | BG12: 4.7 | BH12: 8.7 | BI12: 4.8 | BJ12: 8.7 | BK12: 5.0 | BL12: 8.6 | BM12: 5.2 | BN12: 8.5 | BO12: 5.3 | BP12: 8.4 | BQ12: 5.4 | BR12: 8.3 | BS12: 5.6 | BT12: 8.2 | BU12: 5.7 | BV12: 8.1 | BW12: 5.9 | BX12: 8.0 | BY12: 6.0 | BZ12: 7.9 | CA12: 6.2 | CB12: 7.8 | CC12: 6.3 | CD12: 7.7 | CE12: 6.4 | CF12: 7.5 | CG12: 6.6 | CH12: 7.4 | CI12: 6.7 | CJ12: 7.3 | CK12: 6.8 | CL12: 7.2 | CM12: 6.9 | CN12: 7.1 | CO12: 7.1 | CP12: 6.9 | CQ12: 7.2 | CR12: =COS(CR$1/360*2*PI())*$A12 -> 6.8 | CS12: 7.3 | CT12: 6.7 | CU12: 7.4 | CV12: 6.6 | CW12: 7.5 | CX12: 6.4 | CY12: 7.7 | CZ12: 6.3 | DA12: 7.8 | DB12: 6.2 | DC12: 7.9 | DD12: 6.0 | DE12: 8.0 | DF12: 5.9 | DG12: 8.1 | DH12: 5.7 | DI12: 8.2 | DJ12: 5.6 | DK12: 8.3 | DL12: 5.4 | DM12: 8.4 | DN12: 5.3 | DO12: 8.5 | DP12: 5.2 | DQ12: 8.6 | DR12: 5.0 | DS12: 8.7 | DT12: 4.8 | DU12: 8.7 | DV12: 4.7 | DW12: 8.8 | DX12: 4.5 | DY12: 8.9 | DZ12: 4.4 | EA12: 9.0 | EB12: 4.2 | EC12: 9.1 | ED12: 4.1 | EE12: 9.1 | EF12: 3.9 | EG12: 9.2 | EH12: 3.7 | EI12: 9.3 | EJ12: 3.6 | EK12: 9.3 | EL12: 3.4 | EM12: 9.4 | EN12: 3.3 | EO12: 9.5 | EP12: 3.1 | EQ12: 9.5 | ER12: 2.9 | ES12: 9.6 | ET12: 2.8 | EU12: 9.6 | EV12: 2.6 | EW12: 9.7 | EX12: 2.4 | EY12: 9.7 | EZ12: 2.2 | FA12: 9.7 | FB12: 2.1 | FC12: 9.8 | FD12: 1.9 | FE12: 9.8 | FF12: 1.7 | FG12: 9.8 | FH12: 1.6 | FI12: 9.9 | FJ12: 1.4 | FK12: 9.9 | FL12: 1.2 | FM12: 9.9 | FN12: 1.0 | FO12: 9.9 | FP12: 0.9 | FQ12: 10.0 | FR12: 0.7 | FS12: 10.0 | FT12: 0.5 | FU12: 10.0 | FV12: 0.3 | FW12: 10.0 | FX12: 0.2 | FY12: 10.0 | FZ12: 0.0 | GA12: 10.0 | GB12: -0.2 | GC12: 10.0 | GD12: -0.3 | GE12: 10.0 | GF12: -0.5 | GG12: 10.0 | GH12: -0.7 | GI12: 10.0 | GJ12: -0.9 | GK12: 10.0 | GL12: -1.0 | GM12: 9.9 | GN12: -1.2 | GO12: 9.9 | GP12: -1.4 | GQ12: 9.9 | GR12: -1.6 | GS12: 9.9 | GT12: -1.7 | GU12: 9.8 | GV12: -1.9 | GW12: 9.8 | GX12: -2.1 | GY12: 9.8 | GZ12: -2.2 | HA12: 9.7 | HB12: -2.4 | HC12: 9.7 | HD12: -2.6 | HE12: 9.7 | HF12: -2.8 | HG12: 9.6 | HH12: -2.9 | HI12: 9.6 | HJ12: -3.1 | HK12: 9.5 | HL12: -3.3 | HM12: 9.5 | HN12: -3.4 | HO12: 9.4 | HP12: -3.6 | HQ12: 9.3 | HR12: -3.7 | HS12: 9.3 | HT12: -3.9 | HU12: 9.2 | HV12: -4.1 | HW12: 9.1 | HX12: -4.2 | HY12: 9.1 | HZ12: -4.4 | IA12: 9.0 | IB12: -4.5 | IC12: 8.9 | ID12: -4.7 | IE12: 8.8 | IF12: -4.8 | IG12: 8.7 | IH12: -5.0 | II12: 8.7 | IJ12: -5.2 | IK12: 8.6 | IL12: -5.3 | IM12: 8.5 | IN12: -5.4 | IO12: 8.4 | IP12: -5.6 | IQ12: 8.3 | IR12: -5.7 | IS12: 8.2 | IT12: -5.9 | IU12: 8.1 | IV12: -6.0 | IW12: 8.0 | IX12: -6.2 | IY12: 7.9 | IZ12: -6.3 | JA12: 7.8 | JB12: -6.4 | JC12: 7.7 | JD12: -6.6 | JE12: 7.5 | JF12: -6.7 | JG12: 7.4 | JH12: -6.8 | JI12: 7.3 | JJ12: -6.9 | JK12: 7.2 | JL12: -7.1 | JM12: 7.1 | JN12: -7.2 | JO12: 6.9 | JP12: -7.3 | JQ12: 6.8 | JR12: -7.4 | JS12: 6.7 | JT12: -7.5 | JU12: 6.6 | JV12: -7.7 | JW12: 6.4 | JX12: -7.8 | JY12: 6.3 | JZ12: -7.9 | KA12: 6.2 | KB12: -8.0 | KC12: 6.0 | KD12: -8.1 | KE12: 5.9 | KF12: -8.2 | KG12: 5.7 | KH12: -8.3 | KI12: 5.6 | KJ12: -8.4 | KK12: 5.4 | KL12: -8.5 | KM12: 5.3 | KN12: -8.6 | KO12: 5.2 | KP12: -8.7 | KQ12: 5.0 | KR12: -8.7 | KS12: 4.8 | KT12: -8.8 | KU12: 4.7 | KV12: -8.9 | KW12: 4.5 | KX12: -9.0 | KY12: 4.4 | KZ12: -9.1 | LA12: 4.2 | LB12: -9.1 | LC12: 4.1 | LD12: -9.2 | LE12: 3.9 | LF12: -9.3 | LG12: 3.7 | LH12: -9.3 | LI12: 3.6 | LJ12: -9.4 | LK12: 3.4 | LL12: -9.5 | LM12: 3.3 | LN12: -9.5 | LO12: 3.1 | LP12: -9.6 | LQ12: 2.9 | LR12: -9.6 | LS12: 2.8 | LT12: -9.7 | LU12: 2.6 | LV12: -9.7 | LW12: 2.4 | LX12: -9.7 | LY12: 2.2 | LZ12: -9.8 | MA12: 2.1 | MB12: -9.8 | MC12: 1.9 | MD12: -9.8 | ME12: 1.7 | MF12: -9.9 | MG12: 1.6 | MH12: -9.9 | MI12: 1.4 | MJ12: -9.9 | MK12: 1.2 | ML12: -9.9 | MM12: 1.0 | MN12: -10.0 | MO12: 0.9 | MP12: -10.0 | MQ12: 0.7 | MR12: -10.0 | MS12: 0.5 | MT12: -10.0 | MU12: 0.3 | MV12: -10.0 | MW12: 0.2 | MX12: -10.0 | MY12: 0.0 | MZ12: -10.0 | NA12: -0.2 | NB12: -10.0 | NC12: -0.3 | ND12: -10.0 | NE12: -0.5 | NF12: -10.0 | NG12: -0.7 | NH12: -10.0 | NI12: -0.9 | NJ12: -9.9 | NK12: -1.0 | NL12: -9.9 | NM12: -1.2 | NN12: -9.9 | NO12: -1.4 | NP12: -9.9 | NQ12: -1.6 | NR12: -9.8 | NS12: -1.7 | NT12: -9.8 | NU12: -1.9 | NV12: -9.8 | NW12: -2.1 | NX12: -9.7 | NY12: -2.2 | NZ12: -9.7 | OA12: -2.4 | OB12: -9.7 | OC12: -2.6 | OD12: -9.6 | OE12: -2.8 | OF12: -9.6 | OG12: -2.9 | OH12: -9.5 | OI12: -3.1 | OJ12: -9.5 | OK12: -3.3 | OL12: -9.4 | OM12: -3.4 | ON12: -9.3 | OO12: -3.6 | OP12: -9.3 | OQ12: -3.7 | OR12: -9.2 | OS12: -3.9 | OT12: -9.1 | OU12: -4.1 | OV12: -9.1 | OW12: -4.2 | OX12: -9.0 | OY12: -4.4 | OZ12: -8.9 | PA12: -4.5 | PB12: -8.8 | PC12: -4.7 | PD12: -8.7 | PE12: -4.8 | PF12: -8.7 | PG12: -5.0 | PH12: -8.6 | PI12: -5.2 | PJ12: -8.5 | PK12: -5.3 | PL12: -8.4 | PM12: -5.4 | PN12: -8.3 | PO12: -5.6 | PP12: -8.2 | PQ12: -5.7 | PR12: -8.1 | PS12: -5.9 | PT12: -8.0 | PU12: -6.0 | PV12: -7.9 | PW12: -6.2 | PX12: -7.8 | PY12: -6.3 | PZ12: -7.7 | QA12: -6.4 | QB12: -7.5 | QC12: -6.6 | QD12: -7.4 | QE12: -6.7 | QF12: -7.3 | QG12: -6.8 | QH12: -7.2 | QI12: -6.9 | QJ12: -7.1 | QK12: -7.1 | QL12: -6.9 | QM12: -7.2 | QN12: -6.8 | QO12: -7.3 | QP12: -6.7 | QQ12: -7.4 | QR12: -6.6 | QS12: -7.5 | QT12: -6.4 | QU12: -7.7 | QV12: -6.3 | QW12: -7.8 | QX12: -6.2 | QY12: -7.9 | QZ12: -6.0 | RA12: -8.0 | RB12: -5.9 | RC12: -8.1 | RD12: -5.7 | RE12: -8.2 | RF12: -5.6 | RG12: -8.3 | RH12: -5.4 | RI12: -8.4 | RJ12: -5.3 | RK12: -8.5 | RL12: -5.2 | RM12: -8.6 | RN12: -5.0 | RO12: -8.7 | RP12: -4.8 | RQ12: -8.7 | RR12: -4.7 | RS12: -8.8 | RT12: -4.5 | RU12: -8.9 | RV12: -4.4 | RW12: -9.0 | RX12: -4.2 | RY12: -9.1 | RZ12: -4.1 | SA12: -9.1 | SB12: -3.9 | SC12: -9.2 | SD12: -3.7 | SE12: -9.3 | SF12: -3.6 | SG12: -9.3 | SH12: -3.4 | SI12: -9.4 | SJ12: -3.3 | SK12: -9.5 | SL12: -3.1 | SM12: -9.5 | SN12: -2.9 | SO12: -9.6 | SP12: -2.8 | SQ12: -9.6 | SR12: -2.6 | SS12: -9.7 | ST12: -2.4 | SU12: -9.7 | SV12: -2.2 | SW12: -9.7 | SX12: -2.1 | SY12: -9.8 | SZ12: -1.9 | TA12: -9.8 | TB12: -1.7 | TC12: -9.8 | TD12: -1.6 | TE12: -9.9 | TF12: -1.4 | TG12: -9.9 | TH12: -1.2 | TI12: -9.9 | TJ12: -1.0 | TK12: -9.9 | TL12: -0.9 | TM12: -10.0 | TN12: -0.7 | TO12: -10.0 | TP12: -0.5 | TQ12: -10.0 | TR12: -0.3 | TS12: -10.0 | TT12: -0.2 | TU12: -10.0 | TV12: -0.0 | TW12: -10.0 | TX12: 0.2 | TY12: -10.0 | TZ12: 0.3 | UA12: -10.0 | UB12: 0.5 | UC12: -10.0 | UD12: 0.7 | UE12: -10.0 | UF12: 0.9 | UG12: -10.0 | UH12: 1.0 | UI12: -9.9 | UJ12: 1.2 | UK12: -9.9 | UL12: 1.4 | UM12: -9.9 | UN12: 1.6 | UO12: -9.9 | UP12: 1.7 | UQ12: -9.8 | UR12: 1.9 | US12: -9.8 | UT12: 2.1 | UU12: -9.8 | UV12: 2.2 | UW12: -9.7 | UX12: 2.4 | UY12: -9.7 | UZ12: 2.6 | VA12: -9.7 | VB12: 2.8 | VC12: -9.6 | VD12: 2.9 | VE12: -9.6 | VF12: 3.1 | VG12: -9.5 | VH12: 3.3 | VI12: -9.5 | VJ12: 3.4 | VK12: -9.4 | VL12: 3.6 | VM12: -9.3 | VN12: 3.7 | VO12: -9.3 | VP12: 3.9 | VQ12: -9.2 | VR12: 4.1 | VS12: -9.1 | VT12: 4.2 | VU12: -9.1 | VV12: 4.4 | VW12: -9.0 | VX12: 4.5 | VY12: -8.9 | VZ12: 4.7 | WA12: -8.8 | WB12: 4.8 | WC12: -8.7 | WD12: 5.0 | WE12: -8.7 | WF12: 5.2 | WG12: -8.6 | WH12: 5.3 | WI12: -8.5 | WJ12: 5.4 | WK12: -8.4 | WL12: 5.6 | WM12: -8.3 | WN12: 5.7 | WO12: -8.2 | WP12: 5.9 | WQ12: -8.1 | WR12: 6.0 | WS12: -8.0 | WT12: 6.2 | WU12: -7.9 | WV12: 6.3 | WW12: -7.8 | WX12: 6.4 | WY12: -7.7 | WZ12: 6.6 | XA12: -7.5 | XB12: 6.7 | XC12: -7.4 | XD12: 6.8 | XE12: -7.3 | XF12: 6.9 | XG12: -7.2 | XH12: 7.1 | XI12: -7.1 | XJ12: 7.2 | XK12: -6.9 | XL12: 7.3 | XM12: -6.8 | XN12: 7.4 | XO12: -6.7 | XP12: 7.5 | XQ12: -6.6 | XR12: 7.7 | XS12: -6.4 | XT12: 7.8 | XU12: -6.3 | XV12: 7.9 | XW12: -6.2 | XX12: 8.0 | XY12: -6.0 | XZ12: 8.1 | YA12: -5.9 | YB12: 8.2 | YC12: -5.7 | YD12: 8.3 | YE12: -5.6 | YF12: 8.4 | YG12: -5.4 | YH12: 8.5 | YI12: -5.3 | YJ12: 8.6 | YK12: -5.2 | YL12: 8.7 | YM12: -5.0 | YN12: 8.7 | YO12: -4.8 | YP12: 8.8 | YQ12: -4.7 | YR12: 8.9 | YS12: -4.5 | YT12: 9.0 | YU12: -4.4 | YV12: 9.1 | YW12: -4.2 | YX12: 9.1 | YY12: -4.1 | YZ12: 9.2 | ZA12: -3.9 | ZB12: 9.3 | ZC12: -3.7 | ZD12: 9.3 | ZE12: -3.6 | ZF12: 9.4 | ZG12: -3.4 | ZH12: 9.5 | ZI12: -3.3 | ZJ12: 9.5 | ZK12: -3.1 | ZL12: 9.6 | ZM12: -2.9 | ZN12: 9.6 | ZO12: -2.8 | ZP12: 9.7 | ZQ12: -2.6 | ZR12: 9.7 | ZS12: -2.4 | ZT12: 9.7 | ZU12: -2.2 | ZV12: 9.8 | ZW12: -2.1 | ZX12: 9.8 | ZY12: -1.9 | ZZ12: 9.8 | AAA12: -1.7 | AAB12: 9.9 | AAC12: -1.6 | AAD12: 9.9 | AAE12: -1.4 | AAF12: 9.9 | AAG12: -1.2 | AAH12: 9.9 | AAI12: -1.0 | AAJ12: 10.0 | AAK12: -0.9 | AAL12: 10.0 | AAM12: -0.7 | AAN12: 10.0 | AAO12: -0.5 | AAP12: 10.0 | AAQ12: -0.3 | AAR12: 10.0 | AAS12: -0.2 | AAT12: 10.0 | AAU12: -0.0
A13: 11 | B13: 11.0 | C13: 0.0 | D13: 11.0 | E13: 0.2 | F13: 11.0 | G13: 0.4 | H13: 11.0 | I13: 0.6 | J13: 11.0 | K13: 0.8 | L13: 11.0 | M13: 1.0 | N13: 10.9 | O13: 1.1 | P13: 10.9 | Q13: 1.3 | R13: 10.9 | S13: 1.5 | T13: 10.9 | U13: 1.7 | V13: 10.8 | W13: 1.9 | X13: 10.8 | Y13: 2.1 | Z13: 10.8 | AA13: 2.3 | AB13: 10.7 | AC13: 2.5 | AD13: 10.7 | AE13: 2.7 | AF13: 10.6 | AG13: 2.8 | AH13: 10.6 | AI13: 3.0 | AJ13: 10.5 | AK13: 3.2 | AL13: 10.5 | AM13: 3.4 | AN13: 10.4 | AO13: 3.6 | AP13: 10.3 | AQ13: 3.8 | AR13: 10.3 | AS13: 3.9 | AT13: 10.2 | AU13: 4.1 | AV13: 10.1 | AW13: 4.3 | AX13: 10.0 | AY13: 4.5 | AZ13: 10.0 | BA13: 4.6 | BB13: 9.9 | BC13: 4.8 | BD13: 9.8 | BE13: 5.0 | BF13: 9.7 | BG13: 5.2 | BH13: 9.6 | BI13: 5.3 | BJ13: 9.5 | BK13: 5.5 | BL13: 9.4 | BM13: 5.7 | BN13: 9.3 | BO13: 5.8 | BP13: 9.2 | BQ13: 6.0 | BR13: 9.1 | BS13: 6.2 | BT13: 9.0 | BU13: 6.3 | BV13: 8.9 | BW13: 6.5 | BX13: 8.8 | BY13: 6.6 | BZ13: 8.7 | CA13: 6.8 | CB13: 8.5 | CC13: 6.9 | CD13: 8.4 | CE13: 7.1 | CF13: 8.3 | CG13: 7.2 | CH13: 8.2 | CI13: 7.4 | CJ13: 8.0 | CK13: 7.5 | CL13: 7.9 | CM13: 7.6 | CN13: 7.8 | CO13: 7.8 | CP13: 7.6 | CQ13: 7.9 | CR13: 7.5 | CS13: 8.0 | CT13: 7.4 | CU13: 8.2 | CV13: 7.2 | CW13: 8.3 | CX13: 7.1 | CY13: 8.4 | CZ13: 6.9 | DA13: 8.5 | DB13: 6.8 | DC13: 8.7 | DD13: 6.6 | DE13: 8.8 | DF13: 6.5 | DG13: 8.9 | DH13: 6.3 | DI13: 9.0 | DJ13: 6.2 | DK13: 9.1 | DL13: 6.0 | DM13: 9.2 | DN13: 5.8 | DO13: 9.3 | DP13: 5.7 | DQ13: 9.4 | DR13: 5.5 | DS13: 9.5 | DT13: 5.3 | DU13: 9.6 | DV13: 5.2 | DW13: 9.7 | DX13: 5.0 | DY13: 9.8 | DZ13: 4.8 | EA13: 9.9 | EB13: 4.6 | EC13: 10.0 | ED13: 4.5 | EE13: 10.0 | EF13: 4.3 | EG13: 10.1 | EH13: 4.1 | EI13: 10.2 | EJ13: 3.9 | EK13: 10.3 | EL13: 3.8 | EM13: 10.3 | EN13: 3.6 | EO13: 10.4 | EP13: 3.4 | EQ13: 10.5 | ER13: 3.2 | ES13: 10.5 | ET13: 3.0 | EU13: 10.6 | EV13: 2.8 | EW13: 10.6 | EX13: 2.7 | EY13: 10.7 | EZ13: 2.5 | FA13: 10.7 | FB13: 2.3 | FC13: 10.8 | FD13: 2.1 | FE13: 10.8 | FF13: 1.9 | FG13: 10.8 | FH13: 1.7 | FI13: 10.9 | FJ13: 1.5 | FK13: 10.9 | FL13: 1.3 | FM13: 10.9 | FN13: 1.1 | FO13: 10.9 | FP13: 1.0 | FQ13: 11.0 | FR13: 0.8 | FS13: 11.0 | FT13: 0.6 | FU13: 11.0 | FV13: 0.4 | FW13: 11.0 | FX13: 0.2 | FY13: 11.0 | FZ13: 0.0 | GA13: 11.0 | GB13: -0.2 | GC13: 11.0 | GD13: -0.4 | GE13: 11.0 | GF13: -0.6 | GG13: 11.0 | GH13: -0.8 | GI13: 11.0 | GJ13: -1.0 | GK13: 11.0 | GL13: -1.1 | GM13: 10.9 | GN13: -1.3 | GO13: 10.9 | GP13: -1.5 | GQ13: 10.9 | GR13: -1.7 | GS13: 10.9 | GT13: -1.9 | GU13: 10.8 | GV13: -2.1 | GW13: 10.8 | GX13: -2.3 | GY13: 10.8 | GZ13: -2.5 | HA13: 10.7 | HB13: -2.7 | HC13: 10.7 | HD13: -2.8 | HE13: 10.6 | HF13: -3.0 | HG13: 10.6 | HH13: -3.2 | HI13: 10.5 | HJ13: -3.4 | HK13: 10.5 | HL13: -3.6 | HM13: 10.4 | HN13: -3.8 | HO13: 10.3 | HP13: -3.9 | HQ13: 10.3 | HR13: -4.1 | HS13: 10.2 | HT13: -4.3 | HU13: 10.1 | HV13: -4.5 | HW13: 10.0 | HX13: -4.6 | HY13: 10.0 | HZ13: -4.8 | IA13: 9.9 | IB13: -5.0 | IC13: 9.8 | ID13: -5.2 | IE13: 9.7 | IF13: -5.3 | IG13: 9.6 | IH13: -5.5 | II13: 9.5 | IJ13: -5.7 | IK13: 9.4 | IL13: -5.8 | IM13: 9.3 | IN13: -6.0 | IO13: 9.2 | IP13: -6.2 | IQ13: 9.1 | IR13: -6.3 | IS13: 9.0 | IT13: -6.5 | IU13: 8.9 | IV13: -6.6 | IW13: 8.8 | IX13: -6.8 | IY13: 8.7 | IZ13: -6.9 | JA13: 8.5 | JB13: -7.1 | JC13: 8.4 | JD13: -7.2 | JE13: 8.3 | JF13: -7.4 | JG13: 8.2 | JH13: -7.5 | JI13: 8.0 | JJ13: -7.6 | JK13: 7.9 | JL13: -7.8 | JM13: 7.8 | JN13: -7.9 | JO13: 7.6 | JP13: -8.0 | JQ13: 7.5 | JR13: -8.2 | JS13: 7.4 | JT13: -8.3 | JU13: 7.2 | JV13: -8.4 | JW13: 7.1 | JX13: -8.5 | JY13: 6.9 | JZ13: -8.7 | KA13: 6.8 | KB13: -8.8 | KC13: 6.6 | KD13: -8.9 | KE13: 6.5 | KF13: -9.0 | KG13: 6.3 | KH13: -9.1 | KI13: 6.2 | KJ13: -9.2 | KK13: 6.0 | KL13: -9.3 | KM13: 5.8 | KN13: -9.4 | KO13: 5.7 | KP13: -9.5 | KQ13: 5.5 | KR13: -9.6 | KS13: 5.3 | KT13: -9.7 | KU13: 5.2 | KV13: -9.8 | KW13: 5.0 | KX13: -9.9 | KY13: 4.8 | KZ13: -10.0 | LA13: 4.6 | LB13: -10.0 | LC13: 4.5 | LD13: -10.1 | LE13: 4.3 | LF13: -10.2 | LG13: 4.1 | LH13: -10.3 | LI13: 3.9 | LJ13: -10.3 | LK13: 3.8 | LL13: -10.4 | LM13: 3.6 | LN13: -10.5 | LO13: 3.4 | LP13: -10.5 | LQ13: 3.2 | LR13: -10.6 | LS13: 3.0 | LT13: -10.6 | LU13: 2.8 | LV13: -10.7 | LW13: 2.7 | LX13: -10.7 | LY13: 2.5 | LZ13: -10.8 | MA13: 2.3 | MB13: -10.8 | MC13: 2.1 | MD13: -10.8 | ME13: 1.9 | MF13: -10.9 | MG13: 1.7 | MH13: -10.9 | MI13: 1.5 | MJ13: -10.9 | MK13: 1.3 | ML13: -10.9 | MM13: 1.1 | MN13: -11.0 | MO13: 1.0 | MP13: -11.0 | MQ13: 0.8 | MR13: -11.0 | MS13: 0.6 | MT13: -11.0 | MU13: 0.4 | MV13: -11.0 | MW13: 0.2 | MX13: -11.0 | MY13: 0.0 | MZ13: -11.0 | NA13: -0.2 | NB13: -11.0 | NC13: -0.4 | ND13: -11.0 | NE13: -0.6 | NF13: -11.0 | NG13: -0.8 | NH13: -11.0 | NI13: -1.0 | NJ13: -10.9 | NK13: -1.1 | NL13: -10.9 | NM13: -1.3 | NN13: -10.9 | NO13: -1.5 | NP13: -10.9 | NQ13: -1.7 | NR13: -10.8 | NS13: -1.9 | NT13: -10.8 | NU13: -2.1 | NV13: -10.8 | NW13: -2.3 | NX13: -10.7 | NY13: -2.5 | NZ13: -10.7 | OA13: -2.7 | OB13: -10.6 | OC13: -2.8 | OD13: -10.6 | OE13: -3.0 | OF13: -10.5 | OG13: -3.2 | OH13: -10.5 | OI13: -3.4 | OJ13: -10.4 | OK13: -3.6 | OL13: -10.3 | OM13: -3.8 | ON13: -10.3 | OO13: -3.9 | OP13: -10.2 | OQ13: -4.1 | OR13: -10.1 | OS13: -4.3 | OT13: -10.0 | OU13: -4.5 | OV13: -10.0 | OW13: -4.6 | OX13: -9.9 | OY13: -4.8 | OZ13: -9.8 | PA13: -5.0 | PB13: -9.7 | PC13: -5.2 | PD13: -9.6 | PE13: -5.3 | PF13: -9.5 | PG13: -5.5 | PH13: -9.4 | PI13: -5.7 | PJ13: -9.3 | PK13: -5.8 | PL13: -9.2 | PM13: -6.0 | PN13: -9.1 | PO13: -6.2 | PP13: -9.0 | PQ13: -6.3 | PR13: -8.9 | PS13: -6.5 | PT13: -8.8 | PU13: -6.6 | PV13: -8.7 | PW13: -6.8 | PX13: -8.5 | PY13: -6.9 | PZ13: -8.4 | QA13: -7.1 | QB13: -8.3 | QC13: -7.2 | QD13: -8.2 | QE13: -7.4 | QF13: -8.0 | QG13: -7.5 | QH13: -7.9 | QI13: -7.6 | QJ13: -7.8 | QK13: -7.8 | QL13: -7.6 | QM13: -7.9 | QN13: -7.5 | QO13: -8.0 | QP13: -7.4 | QQ13: -8.2 | QR13: -7.2 | QS13: -8.3 | QT13: -7.1 | QU13: -8.4 | QV13: -6.9 | QW13: -8.5 | QX13: -6.8 | QY13: -8.7 | QZ13: -6.6 | RA13: -8.8 | RB13: -6.5 | RC13: -8.9 | RD13: -6.3 | RE13: -9.0 | RF13: -6.2 | RG13: -9.1 | RH13: -6.0 | RI13: -9.2 | RJ13: -5.8 | RK13: -9.3 | RL13: -5.7 | RM13: -9.4 | RN13: -5.5 | RO13: -9.5 | RP13: -5.3 | RQ13: -9.6 | RR13: -5.2 | RS13: -9.7 | RT13: -5.0 | RU13: -9.8 | RV13: -4.8 | RW13: -9.9 | RX13: -4.6 | RY13: -10.0 | RZ13: -4.5 | SA13: -10.0 | SB13: -4.3 | SC13: -10.1 | SD13: -4.1 | SE13: -10.2 | SF13: -3.9 | SG13: -10.3 | SH13: -3.8 | SI13: -10.3 | SJ13: -3.6 | SK13: -10.4 | SL13: -3.4 | SM13: -10.5 | SN13: -3.2 | SO13: -10.5 | SP13: -3.0 | SQ13: -10.6 | SR13: -2.8 | SS13: -10.6 | ST13: -2.7 | SU13: -10.7 | SV13: -2.5 | SW13: -10.7 | SX13: -2.3 | SY13: -10.8 | SZ13: -2.1 | TA13: -10.8 | TB13: -1.9 | TC13: -10.8 | TD13: -1.7 | TE13: -10.9 | TF13: -1.5 | TG13: -10.9 | TH13: -1.3 | TI13: -10.9 | TJ13: -1.1 | TK13: -10.9 | TL13: -1.0 | TM13: -11.0 | TN13: -0.8 | TO13: -11.0 | TP13: -0.6 | TQ13: -11.0 | TR13: -0.4 | TS13: -11.0 | TT13: -0.2 | TU13: -11.0 | TV13: -0.0 | TW13: -11.0 | TX13: 0.2 | TY13: -11.0 | TZ13: 0.4 | UA13: -11.0 | UB13: 0.6 | UC13: -11.0 | UD13: 0.8 | UE13: -11.0 | UF13: 1.0 | UG13: -11.0 | UH13: 1.1 | UI13: -10.9 | UJ13: 1.3 | UK13: -10.9 | UL13: 1.5 | UM13: -10.9 | UN13: 1.7 | UO13: -10.9 | UP13: 1.9 | UQ13: -10.8 | UR13: 2.1 | US13: -10.8 | UT13: 2.3 | UU13: -10.8 | UV13: 2.5 | UW13: -10.7 | UX13: 2.7 | UY13: -10.7 | UZ13: 2.8 | VA13: -10.6 | VB13: 3.0 | VC13: -10.6 | VD13: 3.2 | VE13: -10.5 | VF13: 3.4 | VG13: -10.5 | VH13: 3.6 | VI13: -10.4 | VJ13: 3.8 | VK13: -10.3 | VL13: 3.9 | VM13: -10.3 | VN13: 4.1 | VO13: -10.2 | VP13: 4.3 | VQ13: -10.1 | VR13: 4.5 | VS13: -10.0 | VT13: 4.6 | VU13: -10.0 | VV13: 4.8 | VW13: -9.9 | VX13: 5.0 | VY13: -9.8 | VZ13: 5.2 | WA13: -9.7 | WB13: 5.3 | WC13: -9.6 | WD13: 5.5 | WE13: -9.5 | WF13: 5.7 | WG13: -9.4 | WH13: 5.8 | WI13: -9.3 | WJ13: 6.0 | WK13: -9.2 | WL13: 6.2 | WM13: -9.1 | WN13: 6.3 | WO13: -9.0 | WP13: 6.5 | WQ13: -8.9 | WR13: 6.6 | WS13: -8.8 | WT13: 6.8 | WU13: -8.7 | WV13: 6.9 | WW13: -8.5 | WX13: 7.1 | WY13: -8.4 | WZ13: 7.2 | XA13: -8.3 | XB13: 7.4 | XC13: -8.2 | XD13: 7.5 | XE13: -8.0 | XF13: 7.6 | XG13: -7.9 | XH13: 7.8 | XI13: -7.8 | XJ13: 7.9 | XK13: -7.6 | XL13: 8.0 | XM13: -7.5 | XN13: 8.2 | XO13: -7.4 | XP13: 8.3 | XQ13: -7.2 | XR13: 8.4 | XS13: -7.1 | XT13: 8.5 | XU13: -6.9 | XV13: 8.7 | XW13: -6.8 | XX13: 8.8 | XY13: -6.6 | XZ13: 8.9 | YA13: -6.5 | YB13: 9.0 | YC13: -6.3 | YD13: 9.1 | YE13: -6.2 | YF13: 9.2 | YG13: -6.0 | YH13: 9.3 | YI13: -5.8 | YJ13: 9.4 | YK13: -5.7 | YL13: 9.5 | YM13: -5.5 | YN13: 9.6 | YO13: -5.3 | YP13: 9.7 | YQ13: -5.2 | YR13: 9.8 | YS13: -5.0 | YT13: 9.9 | YU13: -4.8 | YV13: 10.0 | YW13: -4.6 | YX13: 10.0 | YY13: -4.5 | YZ13: 10.1 | ZA13: -4.3 | ZB13: 10.2 | ZC13: -4.1 | ZD13: 10.3 | ZE13: -3.9 | ZF13: 10.3 | ZG13: -3.8 | ZH13: 10.4 | ZI13: -3.6 | ZJ13: 10.5 | ZK13: -3.4 | ZL13: 10.5 | ZM13: -3.2 | ZN13: 10.6 | ZO13: -3.0 | ZP13: 10.6 | ZQ13: -2.8 | ZR13: 10.7 | ZS13: -2.7 | ZT13: 10.7 | ZU13: -2.5 | ZV13: 10.8 | ZW13: -2.3 | ZX13: 10.8 | ZY13: -2.1 | ZZ13: 10.8 | AAA13: -1.9 | AAB13: 10.9 | AAC13: -1.7 | AAD13: 10.9 | AAE13: -1.5 | AAF13: 10.9 | AAG13: -1.3 | AAH13: 10.9 | AAI13: -1.1 | AAJ13: 11.0 | AAK13: -1.0 | AAL13: 11.0 | AAM13: -0.8 | AAN13: 11.0 | AAO13: -0.6 | AAP13: 11.0 | AAQ13: -0.4 | AAR13: 11.0 | AAS13: -0.2 | AAT13: 11.0 | AAU13: -0.0
A14: 12 | B14: 12.0 | C14: 0.0 | D14: 12.0 | E14: 0.2 | F14: 12.0 | G14: 0.4 | H14: 12.0 | I14: 0.6 | J14: 12.0 | K14: 0.8 | L14: 12.0 | M14: 1.0 | N14: 11.9 | O14: 1.3 | P14: 11.9 | Q14: 1.5 | R14: 11.9 | S14: 1.7 | T14: 11.9 | U14: 1.9 | V14: 11.8 | W14: 2.1 | X14: 11.8 | Y14: 2.3 | Z14: 11.7 | AA14: 2.5 | AB14: 11.7 | AC14: 2.7 | AD14: 11.6 | AE14: 2.9 | AF14: 11.6 | AG14: 3.1 | AH14: 11.5 | AI14: 3.3 | AJ14: 11.5 | AK14: 3.5 | AL14: 11.4 | AM14: 3.7 | AN14: 11.3 | AO14: 3.9 | AP14: 11.3 | AQ14: 4.1 | AR14: 11.2 | AS14: 4.3 | AT14: 11.1 | AU14: 4.5 | AV14: 11.0 | AW14: 4.7 | AX14: 11.0 | AY14: 4.9 | AZ14: 10.9 | BA14: 5.1 | BB14: 10.8 | BC14: 5.3 | BD14: 10.7 | BE14: 5.4 | BF14: 10.6 | BG14: 5.6 | BH14: 10.5 | BI14: 5.8 | BJ14: 10.4 | BK14: 6.0 | BL14: 10.3 | BM14: 6.2 | BN14: 10.2 | BO14: 6.4 | BP14: 10.1 | BQ14: 6.5 | BR14: 9.9 | BS14: 6.7 | BT14: 9.8 | BU14: 6.9 | BV14: 9.7 | BW14: 7.1 | BX14: 9.6 | BY14: 7.2 | BZ14: 9.5 | CA14: 7.4 | CB14: 9.3 | CC14: 7.6 | CD14: 9.2 | CE14: 7.7 | CF14: 9.1 | CG14: 7.9 | CH14: 8.9 | CI14: 8.0 | CJ14: 8.8 | CK14: 8.2 | CL14: 8.6 | CM14: 8.3 | CN14: 8.5 | CO14: 8.5 | CP14: 8.3 | CQ14: 8.6 | CR14: 8.2 | CS14: 8.8 | CT14: 8.0 | CU14: 8.9 | CV14: 7.9 | CW14: 9.1 | CX14: 7.7 | CY14: 9.2 | CZ14: 7.6 | DA14: 9.3 | DB14: 7.4 | DC14: 9.5 | DD14: 7.2 | DE14: 9.6 | DF14: 7.1 | DG14: 9.7 | DH14: 6.9 | DI14: 9.8 | DJ14: 6.7 | DK14: 9.9 | DL14: 6.5 | DM14: 10.1 | DN14: 6.4 | DO14: 10.2 | DP14: 6.2 | DQ14: 10.3 | DR14: 6.0 | DS14: 10.4 | DT14: 5.8 | DU14: 10.5 | DV14: 5.6 | DW14: 10.6 | DX14: 5.4 | DY14: 10.7 | DZ14: 5.3 | EA14: 10.8 | EB14: 5.1 | EC14: 10.9 | ED14: 4.9 | EE14: 11.0 | EF14: 4.7 | EG14: 11.0 | EH14: 4.5 | EI14: 11.1 | EJ14: 4.3 | EK14: 11.2 | EL14: 4.1 | EM14: 11.3 | EN14: 3.9 | EO14: 11.3 | EP14: 3.7 | EQ14: 11.4 | ER14: 3.5 | ES14: 11.5 | ET14: 3.3 | EU14: 11.5 | EV14: 3.1 | EW14: 11.6 | EX14: 2.9 | EY14: 11.6 | EZ14: 2.7 | FA14: 11.7 | FB14: 2.5 | FC14: 11.7 | FD14: 2.3 | FE14: 11.8 | FF14: 2.1 | FG14: 11.8 | FH14: 1.9 | FI14: 11.9 | FJ14: 1.7 | FK14: 11.9 | FL14: 1.5 | FM14: 11.9 | FN14: 1.3 | FO14: 11.9 | FP14: 1.0 | FQ14: 12.0 | FR14: 0.8 | FS14: 12.0 | FT14: 0.6 | FU14: 12.0 | FV14: 0.4 | FW14: 12.0 | FX14: 0.2 | FY14: 12.0 | FZ14: 0.0 | GA14: 12.0 | GB14: -0.2 | GC14: 12.0 | GD14: -0.4 | GE14: 12.0 | GF14: -0.6 | GG14: 12.0 | GH14: -0.8 | GI14: 12.0 | GJ14: -1.0 | GK14: 12.0 | GL14: -1.3 | GM14: 11.9 | GN14: -1.5 | GO14: 11.9 | GP14: -1.7 | GQ14: 11.9 | GR14: -1.9 | GS14: 11.9 | GT14: -2.1 | GU14: 11.8 | GV14: -2.3 | GW14: 11.8 | GX14: -2.5 | GY14: 11.7 | GZ14: -2.7 | HA14: 11.7 | HB14: -2.9 | HC14: 11.6 | HD14: -3.1 | HE14: 11.6 | HF14: -3.3 | HG14: 11.5 | HH14: -3.5 | HI14: 11.5 | HJ14: -3.7 | HK14: 11.4 | HL14: -3.9 | HM14: 11.3 | HN14: -4.1 | HO14: 11.3 | HP14: -4.3 | HQ14: 11.2 | HR14: -4.5 | HS14: 11.1 | HT14: -4.7 | HU14: 11.0 | HV14: -4.9 | HW14: 11.0 | HX14: -5.1 | HY14: 10.9 | HZ14: -5.3 | IA14: 10.8 | IB14: -5.4 | IC14: 10.7 | ID14: -5.6 | IE14: 10.6 | IF14: -5.8 | IG14: 10.5 | IH14: -6.0 | II14: 10.4 | IJ14: -6.2 | IK14: 10.3 | IL14: -6.4 | IM14: 10.2 | IN14: -6.5 | IO14: 10.1 | IP14: -6.7 | IQ14: 9.9 | IR14: -6.9 | IS14: 9.8 | IT14: -7.1 | IU14: 9.7 | IV14: -7.2 | IW14: 9.6 | IX14: -7.4 | IY14: 9.5 | IZ14: -7.6 | JA14: 9.3 | JB14: -7.7 | JC14: 9.2 | JD14: -7.9 | JE14: 9.1 | JF14: -8.0 | JG14: 8.9 | JH14: -8.2 | JI14: 8.8 | JJ14: -8.3 | JK14: 8.6 | JL14: -8.5 | JM14: 8.5 | JN14: -8.6 | JO14: 8.3 | JP14: -8.8 | JQ14: 8.2 | JR14: -8.9 | JS14: 8.0 | JT14: -9.1 | JU14: 7.9 | JV14: -9.2 | JW14: 7.7 | JX14: -9.3 | JY14: 7.6 | JZ14: -9.5 | KA14: 7.4 | KB14: -9.6 | KC14: 7.2 | KD14: -9.7 | KE14: 7.1 | KF14: -9.8 | KG14: 6.9 | KH14: -9.9 | KI14: 6.7 | KJ14: -10.1 | KK14: 6.5 | KL14: -10.2 | KM14: 6.4 | KN14: -10.3 | KO14: 6.2 | KP14: -10.4 | KQ14: 6.0 | KR14: -10.5 | KS14: 5.8 | KT14: -10.6 | KU14: 5.6 | KV14: -10.7 | KW14: 5.4 | KX14: -10.8 | KY14: 5.3 | KZ14: -10.9 | LA14: 5.1 | LB14: -11.0 | LC14: 4.9 | LD14: -11.0 | LE14: 4.7 | LF14: -11.1 | LG14: 4.5 | LH14: -11.2 | LI14: 4.3 | LJ14: -11.3 | LK14: 4.1 | LL14: -11.3 | LM14: 3.9 | LN14: -11.4 | LO14: 3.7 | LP14: -11.5 | LQ14: 3.5 | LR14: -11.5 | LS14: 3.3 | LT14: -11.6 | LU14: 3.1 | LV14: -11.6 | LW14: 2.9 | LX14: -11.7 | LY14: 2.7 | LZ14: -11.7 | MA14: 2.5 | MB14: -11.8 | MC14: 2.3 | MD14: -11.8 | ME14: 2.1 | MF14: -11.9 | MG14: 1.9 | MH14: -11.9 | MI14: 1.7 | MJ14: -11.9 | MK14: 1.5 | ML14: -11.9 | MM14: 1.3 | MN14: -12.0 | MO14: 1.0 | MP14: -12.0 | MQ14: 0.8 | MR14: -12.0 | MS14: 0.6 | MT14: -12.0 | MU14: 0.4 | MV14: -12.0 | MW14: 0.2 | MX14: -12.0 | MY14: 0.0 | MZ14: -12.0 | NA14: -0.2 | NB14: -12.0 | NC14: -0.4 | ND14: -12.0 | NE14: -0.6 | NF14: -12.0 | NG14: -0.8 | NH14: -12.0 | NI14: -1.0 | NJ14: -11.9 | NK14: -1.3 | NL14: -11.9 | NM14: -1.5 | NN14: -11.9 | NO14: -1.7 | NP14: -11.9 | NQ14: -1.9 | NR14: -11.8 | NS14: -2.1 | NT14: -11.8 | NU14: -2.3 | NV14: -11.7 | NW14: -2.5 | NX14: -11.7 | NY14: -2.7 | NZ14: -11.6 | OA14: -2.9 | OB14: -11.6 | OC14: -3.1 | OD14: -11.5 | OE14: -3.3 | OF14: -11.5 | OG14: -3.5 | OH14: -11.4 | OI14: -3.7 | OJ14: -11.3 | OK14: -3.9 | OL14: -11.3 | OM14: -4.1 | ON14: -11.2 | OO14: -4.3 | OP14: -11.1 | OQ14: -4.5 | OR14: -11.0 | OS14: -4.7 | OT14: -11.0 | OU14: -4.9 | OV14: -10.9 | OW14: -5.1 | OX14: -10.8 | OY14: -5.3 | OZ14: -10.7 | PA14: -5.4 | PB14: -10.6 | PC14: -5.6 | PD14: -10.5 | PE14: -5.8 | PF14: -10.4 | PG14: -6.0 | PH14: -10.3 | PI14: -6.2 | PJ14: -10.2 | PK14: -6.4 | PL14: -10.1 | PM14: -6.5 | PN14: -9.9 | PO14: -6.7 | PP14: -9.8 | PQ14: -6.9 | PR14: -9.7 | PS14: -7.1 | PT14: -9.6 | PU14: -7.2 | PV14: -9.5 | PW14: -7.4 | PX14: -9.3 | PY14: -7.6 | PZ14: -9.2 | QA14: -7.7 | QB14: -9.1 | QC14: -7.9 | QD14: -8.9 | QE14: -8.0 | QF14: -8.8 | QG14: -8.2 | QH14: -8.6 | QI14: -8.3 | QJ14: -8.5 | QK14: -8.5 | QL14: -8.3 | QM14: -8.6 | QN14: -8.2 | QO14: -8.8 | QP14: -8.0 | QQ14: -8.9 | QR14: -7.9 | QS14: -9.1 | QT14: -7.7 | QU14: -9.2 | QV14: -7.6 | QW14: -9.3 | QX14: -7.4 | QY14: -9.5 | QZ14: -7.2 | RA14: -9.6 | RB14: -7.1 | RC14: -9.7 | RD14: -6.9 | RE14: -9.8 | RF14: -6.7 | RG14: -9.9 | RH14: -6.5 | RI14: -10.1 | RJ14: -6.4 | RK14: -10.2 | RL14: -6.2 | RM14: -10.3 | RN14: -6.0 | RO14: -10.4 | RP14: -5.8 | RQ14: -10.5 | RR14: -5.6 | RS14: -10.6 | RT14: -5.4 | RU14: -10.7 | RV14: -5.3 | RW14: -10.8 | RX14: -5.1 | RY14: -10.9 | RZ14: -4.9 | SA14: -11.0 | SB14: -4.7 | SC14: -11.0 | SD14: -4.5 | SE14: -11.1 | SF14: -4.3 | SG14: -11.2 | SH14: -4.1 | SI14: -11.3 | SJ14: -3.9 | SK14: -11.3 | SL14: -3.7 | SM14: -11.4 | SN14: -3.5 | SO14: -11.5 | SP14: -3.3 | SQ14: -11.5 | SR14: -3.1 | SS14: -11.6 | ST14: -2.9 | SU14: -11.6 | SV14: -2.7 | SW14: -11.7 | SX14: -2.5 | SY14: -11.7 | SZ14: -2.3 | TA14: -11.8 | TB14: -2.1 | TC14: -11.8 | TD14: -1.9 | TE14: -11.9 | TF14: -1.7 | TG14: -11.9 | TH14: -1.5 | TI14: -11.9 | TJ14: -1.3 | TK14: -11.9 | TL14: -1.0 | TM14: -12.0 | TN14: -0.8 | TO14: -12.0 | TP14: -0.6 | TQ14: -12.0 | TR14: -0.4 | TS14: -12.0 | TT14: -0.2 | TU14: -12.0 | TV14: -0.0 | TW14: -12.0 | TX14: 0.2 | TY14: -12.0 | TZ14: 0.4 | UA14: -12.0 | UB14: 0.6 | UC14: -12.0 | UD14: 0.8 | UE14: -12.0 | UF14: 1.0 | UG14: -12.0 | UH14: 1.3 | UI14: -11.9 | UJ14: 1.5 | UK14: -11.9 | UL14: 1.7 | UM14: -11.9 | UN14: 1.9 | UO14: -11.9 | UP14: 2.1 | UQ14: -11.8 | UR14: 2.3 | US14: -11.8 | UT14: 2.5 | UU14: -11.7 | UV14: 2.7 | UW14: -11.7 | UX14: 2.9 | UY14: -11.6 | UZ14: 3.1 | VA14: -11.6 | VB14: 3.3 | VC14: -11.5 | VD14: 3.5 | VE14: -11.5 | VF14: 3.7 | VG14: -11.4 | VH14: 3.9 | VI14: -11.3 | VJ14: 4.1 | VK14: -11.3 | VL14: 4.3 | VM14: -11.2 | VN14: 4.5 | VO14: -11.1 | VP14: 4.7 | VQ14: -11.0 | VR14: 4.9 | VS14: -11.0 | VT14: 5.1 | VU14: -10.9 | VV14: 5.3 | VW14: -10.8 | VX14: 5.4 | VY14: -10.7 | VZ14: 5.6 | WA14: -10.6 | WB14: 5.8 | WC14: -10.5 | WD14: 6.0 | WE14: -10.4 | WF14: 6.2 | WG14: -10.3 | WH14: 6.4 | WI14: -10.2 | WJ14: 6.5 | WK14: -10.1 | WL14: 6.7 | WM14: -9.9 | WN14: 6.9 | WO14: -9.8 | WP14: 7.1 | WQ14: -9.7 | WR14: 7.2 | WS14: -9.6 | WT14: 7.4 | WU14: -9.5 | WV14: 7.6 | WW14: -9.3 | WX14: 7.7 | WY14: -9.2 | WZ14: 7.9 | XA14: -9.1 | XB14: 8.0 | XC14: -8.9 | XD14: 8.2 | XE14: -8.8 | XF14: 8.3 | XG14: -8.6 | XH14: 8.5 | XI14: -8.5 | XJ14: 8.6 | XK14: -8.3 | XL14: 8.8 | XM14: -8.2 | XN14: 8.9 | XO14: -8.0 | XP14: 9.1 | XQ14: -7.9 | XR14: 9.2 | XS14: -7.7 | XT14: 9.3 | XU14: -7.6 | XV14: 9.5 | XW14: -7.4 | XX14: 9.6 | XY14: -7.2 | XZ14: 9.7 | YA14: -7.1 | YB14: 9.8 | YC14: -6.9 | YD14: 9.9 | YE14: -6.7 | YF14: 10.1 | YG14: -6.5 | YH14: 10.2 | YI14: -6.4 | YJ14: 10.3 | YK14: -6.2 | YL14: 10.4 | YM14: -6.0 | YN14: 10.5 | YO14: -5.8 | YP14: 10.6 | YQ14: -5.6 | YR14: 10.7 | YS14: -5.4 | YT14: 10.8 | YU14: -5.3 | YV14: 10.9 | YW14: -5.1 | YX14: 11.0 | YY14: -4.9 | YZ14: 11.0 | ZA14: -4.7 | ZB14: 11.1 | ZC14: -4.5 | ZD14: 11.2 | ZE14: -4.3 | ZF14: 11.3 | ZG14: -4.1 | ZH14: 11.3 | ZI14: -3.9 | ZJ14: 11.4 | ZK14: -3.7 | ZL14: 11.5 | ZM14: -3.5 | ZN14: 11.5 | ZO14: -3.3 | ZP14: 11.6 | ZQ14: -3.1 | ZR14: 11.6 | ZS14: -2.9 | ZT14: 11.7 | ZU14: -2.7 | ZV14: 11.7 | ZW14: -2.5 | ZX14: 11.8 | ZY14: -2.3 | ZZ14: 11.8 | AAA14: -2.1 | AAB14: 11.9 | AAC14: -1.9 | AAD14: 11.9 | AAE14: -1.7 | AAF14: 11.9 | AAG14: -1.5 | AAH14: 11.9 | AAI14: -1.3 | AAJ14: 12.0 | AAK14: -1.0 | AAL14: 12.0 | AAM14: -0.8 | AAN14: 12.0 | AAO14: -0.6 | AAP14: 12.0 | AAQ14: -0.4 | AAR14: 12.0 | AAS14: -0.2 | AAT14: 12.0 | AAU14: -0.0
A15: 13 | B15: 13.0 | C15: 0.0 | D15: 13.0 | E15: 0.2 | F15: 13.0 | G15: 0.5 | H15: 13.0 | I15: 0.7 | J15: 13.0 | K15: 0.9 | L15: 13.0 | M15: 1.1 | N15: 12.9 | O15: 1.4 | P15: 12.9 | Q15: 1.6 | R15: 12.9 | S15: 1.8 | T15: 12.8 | U15: 2.0 | V15: 12.8 | W15: 2.3 | X15: 12.8 | Y15: 2.5 | Z15: 12.7 | AA15: 2.7 | AB15: 12.7 | AC15: 2.9 | AD15: 12.6 | AE15: 3.1 | AF15: 12.6 | AG15: 3.4 | AH15: 12.5 | AI15: 3.6 | AJ15: 12.4 | AK15: 3.8 | AL15: 12.4 | AM15: 4.0 | AN15: 12.3 | AO15: 4.2 | AP15: 12.2 | AQ15: 4.4 | AR15: 12.1 | AS15: 4.7 | AT15: 12.1 | AU15: 4.9 | AV15: 12.0 | AW15: 5.1 | AX15: 11.9 | AY15: 5.3 | AZ15: 11.8 | BA15: 5.5 | BB15: 11.7 | BC15: 5.7 | BD15: 11.6 | BE15: 5.9 | BF15: 11.5 | BG15: 6.1 | BH15: 11.4 | BI15: 6.3 | BJ15: 11.3 | BK15: 6.5 | BL15: 11.1 | BM15: 6.7 | BN15: 11.0 | BO15: 6.9 | BP15: 10.9 | BQ15: 7.1 | BR15: 10.8 | BS15: 7.3 | BT15: 10.6 | BU15: 7.5 | BV15: 10.5 | BW15: 7.6 | BX15: =COS(BX$1/360*2*PI())*$A15 -> 10.4 | BY15: 7.8 | BZ15: 10.2 | CA15: 8.0 | CB15: 10.1 | CC15: 8.2 | CD15: 10.0 | CE15: 8.4 | CF15: 9.8 | CG15: 8.5 | CH15: 9.7 | CI15: 8.7 | CJ15: 9.5 | CK15: 8.9 | CL15: 9.4 | CM15: 9.0 | CN15: 9.2 | CO15: 9.2 | CP15: =COS(CP$1/360*2*PI())*$A15 -> 9.0 | CQ15: 9.4 | CR15: 8.9 | CS15: 9.5 | CT15: 8.7 | CU15: 9.7 | CV15: 8.5 | CW15: 9.8 | CX15: 8.4 | CY15: 10.0 | CZ15: 8.2 | DA15: 10.1 | DB15: 8.0 | DC15: 10.2 | DD15: 7.8 | DE15: 10.4 | DF15: 7.6 | DG15: 10.5 | DH15: 7.5 | DI15: 10.6 | DJ15: 7.3 | DK15: 10.8 | DL15: 7.1 | DM15: 10.9 | DN15: 6.9 | DO15: 11.0 | DP15: 6.7 | DQ15: 11.1 | DR15: 6.5 | DS15: 11.3 | DT15: 6.3 | DU15: 11.4 | DV15: 6.1 | DW15: 11.5 | DX15: 5.9 | DY15: 11.6 | DZ15: 5.7 | EA15: 11.7 | EB15: 5.5 | EC15: 11.8 | ED15: 5.3 | EE15: 11.9 | EF15: 5.1 | EG15: 12.0 | EH15: 4.9 | EI15: 12.1 | EJ15: 4.7 | EK15: 12.1 | EL15: 4.4 | EM15: 12.2 | EN15: 4.2 | EO15: 12.3 | EP15: 4.0 | EQ15: 12.4 | ER15: 3.8 | ES15: 12.4 | ET15: 3.6 | EU15: 12.5 | EV15: 3.4 | EW15: 12.6 | EX15: 3.1 | EY15: 12.6 | EZ15: 2.9 | FA15: 12.7 | FB15: 2.7 | FC15: 12.7 | FD15: 2.5 | FE15: 12.8 | FF15: 2.3 | FG15: 12.8 | FH15: 2.0 | FI15: 12.8 | FJ15: 1.8 | FK15: 12.9 | FL15: 1.6 | FM15: 12.9 | FN15: 1.4 | FO15: 12.9 | FP15: 1.1 | FQ15: 13.0 | FR15: 0.9 | FS15: 13.0 | FT15: 0.7 | FU15: 13.0 | FV15: 0.5 | FW15: 13.0 | FX15: 0.2 | FY15: 13.0 | FZ15: 0.0 | GA15: 13.0 | GB15: -0.2 | GC15: 13.0 | GD15: -0.5 | GE15: 13.0 | GF15: -0.7 | GG15: 13.0 | GH15: -0.9 | GI15: 13.0 | GJ15: -1.1 | GK15: 13.0 | GL15: -1.4 | GM15: 12.9 | GN15: -1.6 | GO15: 12.9 | GP15: -1.8 | GQ15: 12.9 | GR15: -2.0 | GS15: 12.8 | GT15: -2.3 | GU15: 12.8 | GV15: -2.5 | GW15: 12.8 | GX15: -2.7 | GY15: 12.7 | GZ15: -2.9 | HA15: 12.7 | HB15: -3.1 | HC15: 12.6 | HD15: -3.4 | HE15: 12.6 | HF15: -3.6 | HG15: 12.5 | HH15: -3.8 | HI15: 12.4 | HJ15: -4.0 | HK15: 12.4 | HL15: -4.2 | HM15: 12.3 | HN15: -4.4 | HO15: 12.2 | HP15: -4.7 | HQ15: 12.1 | HR15: -4.9 | HS15: 12.1 | HT15: -5.1 | HU15: 12.0 | HV15: -5.3 | HW15: 11.9 | HX15: -5.5 | HY15: 11.8 | HZ15: -5.7 | IA15: 11.7 | IB15: -5.9 | IC15: 11.6 | ID15: -6.1 | IE15: 11.5 | IF15: -6.3 | IG15: 11.4 | IH15: -6.5 | II15: 11.3 | IJ15: -6.7 | IK15: 11.1 | IL15: -6.9 | IM15: 11.0 | IN15: -7.1 | IO15: 10.9 | IP15: -7.3 | IQ15: 10.8 | IR15: -7.5 | IS15: 10.6 | IT15: -7.6 | IU15: 10.5 | IV15: -7.8 | IW15: 10.4 | IX15: -8.0 | IY15: 10.2 | IZ15: -8.2 | JA15: 10.1 | JB15: -8.4 | JC15: 10.0 | JD15: -8.5 | JE15: 9.8 | JF15: -8.7 | JG15: 9.7 | JH15: -8.9 | JI15: 9.5 | JJ15: -9.0 | JK15: 9.4 | JL15: -9.2 | JM15: 9.2 | JN15: -9.4 | JO15: 9.0 | JP15: -9.5 | JQ15: 8.9 | JR15: -9.7 | JS15: 8.7 | JT15: -9.8 | JU15: 8.5 | JV15: -10.0 | JW15: 8.4 | JX15: -10.1 | JY15: 8.2 | JZ15: -10.2 | KA15: 8.0 | KB15: -10.4 | KC15: 7.8 | KD15: -10.5 | KE15: 7.6 | KF15: -10.6 | KG15: 7.5 | KH15: -10.8 | KI15: 7.3 | KJ15: -10.9 | KK15: 7.1 | KL15: -11.0 | KM15: 6.9 | KN15: -11.1 | KO15: 6.7 | KP15: -11.3 | KQ15: 6.5 | KR15: -11.4 | KS15: 6.3 | KT15: -11.5 | KU15: 6.1 | KV15: -11.6 | KW15: 5.9 | KX15: -11.7 | KY15: 5.7 | KZ15: -11.8 | LA15: 5.5 | LB15: -11.9 | LC15: 5.3 | LD15: -12.0 | LE15: 5.1 | LF15: -12.1 | LG15: 4.9 | LH15: -12.1 | LI15: 4.7 | LJ15: -12.2 | LK15: 4.4 | LL15: -12.3 | LM15: 4.2 | LN15: -12.4 | LO15: 4.0 | LP15: -12.4 | LQ15: 3.8 | LR15: -12.5 | LS15: 3.6 | LT15: -12.6 | LU15: 3.4 | LV15: -12.6 | LW15: 3.1 | LX15: -12.7 | LY15: 2.9 | LZ15: -12.7 | MA15: 2.7 | MB15: -12.8 | MC15: 2.5 | MD15: -12.8 | ME15: 2.3 | MF15: -12.8 | MG15: 2.0 | MH15: -12.9 | MI15: 1.8 | MJ15: -12.9 | MK15: 1.6 | ML15: -12.9 | MM15: 1.4 | MN15: -13.0 | MO15: 1.1 | MP15: -13.0 | MQ15: 0.9 | MR15: -13.0 | MS15: 0.7 | MT15: -13.0 | MU15: 0.5 | MV15: -13.0 | MW15: 0.2 | MX15: -13.0 | MY15: 0.0 | MZ15: -13.0 | NA15: -0.2 | NB15: -13.0 | NC15: -0.5 | ND15: -13.0 | NE15: -0.7 | NF15: -13.0 | NG15: -0.9 | NH15: -13.0 | NI15: -1.1 | NJ15: -12.9 | NK15: -1.4 | NL15: -12.9 | NM15: -1.6 | NN15: -12.9 | NO15: -1.8 | NP15: -12.8 | NQ15: -2.0 | NR15: -12.8 | NS15: -2.3 | NT15: -12.8 | NU15: -2.5 | NV15: -12.7 | NW15: -2.7 | NX15: -12.7 | NY15: -2.9 | NZ15: -12.6 | OA15: -3.1 | OB15: -12.6 | OC15: -3.4 | OD15: -12.5 | OE15: -3.6 | OF15: -12.4 | OG15: -3.8 | OH15: -12.4 | OI15: -4.0 | OJ15: -12.3 | OK15: -4.2 | OL15: -12.2 | OM15: -4.4 | ON15: -12.1 | OO15: -4.7 | OP15: -12.1 | OQ15: -4.9 | OR15: -12.0 | OS15: -5.1 | OT15: -11.9 | OU15: -5.3 | OV15: -11.8 | OW15: -5.5 | OX15: -11.7 | OY15: -5.7 | OZ15: -11.6 | PA15: -5.9 | PB15: -11.5 | PC15: -6.1 | PD15: -11.4 | PE15: -6.3 | PF15: -11.3 | PG15: -6.5 | PH15: -11.1 | PI15: -6.7 | PJ15: -11.0 | PK15: -6.9 | PL15: -10.9 | PM15: -7.1 | PN15: -10.8 | PO15: -7.3 | PP15: -10.6 | PQ15: -7.5 | PR15: -10.5 | PS15: -7.6 | PT15: -10.4 | PU15: -7.8 | PV15: -10.2 | PW15: -8.0 | PX15: -10.1 | PY15: -8.2 | PZ15: -10.0 | QA15: -8.4 | QB15: -9.8 | QC15: -8.5 | QD15: -9.7 | QE15: -8.7 | QF15: -9.5 | QG15: -8.9 | QH15: -9.4 | QI15: -9.0 | QJ15: -9.2 | QK15: -9.2 | QL15: -9.0 | QM15: -9.4 | QN15: -8.9 | QO15: -9.5 | QP15: -8.7 | QQ15: -9.7 | QR15: -8.5 | QS15: -9.8 | QT15: -8.4 | QU15: -10.0 | QV15: -8.2 | QW15: -10.1 | QX15: -8.0 | QY15: -10.2 | QZ15: -7.8 | RA15: -10.4 | RB15: -7.6 | RC15: -10.5 | RD15: -7.5 | RE15: -10.6 | RF15: -7.3 | RG15: -10.8 | RH15: -7.1 | RI15: -10.9 | RJ15: -6.9 | RK15: -11.0 | RL15: -6.7 | RM15: -11.1 | RN15: -6.5 | RO15: -11.3 | RP15: -6.3 | RQ15: -11.4 | RR15: -6.1 | RS15: -11.5 | RT15: -5.9 | RU15: -11.6 | RV15: -5.7 | RW15: -11.7 | RX15: -5.5 | RY15: -11.8 | RZ15: -5.3 | SA15: -11.9 | SB15: -5.1 | SC15: -12.0 | SD15: -4.9 | SE15: -12.1 | SF15: -4.7 | SG15: -12.1 | SH15: -4.4 | SI15: -12.2 | SJ15: -4.2 | SK15: -12.3 | SL15: -4.0 | SM15: -12.4 | SN15: -3.8 | SO15: -12.4 | SP15: -3.6 | SQ15: -12.5 | SR15: -3.4 | SS15: -12.6 | ST15: -3.1 | SU15: -12.6 | SV15: -2.9 | SW15: -12.7 | SX15: -2.7 | SY15: -12.7 | SZ15: -2.5 | TA15: -12.8 | TB15: -2.3 | TC15: -12.8 | TD15: -2.0 | TE15: -12.8 | TF15: -1.8 | TG15: -12.9 | TH15: -1.6 | TI15: -12.9 | TJ15: -1.4 | TK15: -12.9 | TL15: -1.1 | TM15: -13.0 | TN15: -0.9 | TO15: -13.0 | TP15: -0.7 | TQ15: -13.0 | TR15: -0.5 | TS15: -13.0 | TT15: -0.2 | TU15: -13.0 | TV15: -0.0 | TW15: -13.0 | TX15: 0.2 | TY15: -13.0 | TZ15: 0.5 | UA15: -13.0 | UB15: 0.7 | UC15: -13.0 | UD15: 0.9 | UE15: -13.0 | UF15: 1.1 | UG15: -13.0 | UH15: 1.4 | UI15: -12.9 | UJ15: 1.6 | UK15: -12.9 | UL15: 1.8 | UM15: -12.9 | UN15: 2.0 | UO15: -12.8 | UP15: 2.3 | UQ15: -12.8 | UR15: 2.5 | US15: -12.8 | UT15: 2.7 | UU15: -12.7 | UV15: 2.9 | UW15: -12.7 | UX15: 3.1 | UY15: -12.6 | UZ15: 3.4 | VA15: -12.6 | VB15: 3.6 | VC15: -12.5 | VD15: 3.8 | VE15: -12.4 | VF15: 4.0 | VG15: -12.4 | VH15: 4.2 | VI15: -12.3 | VJ15: 4.4 | VK15: -12.2 | VL15: 4.7 | VM15: -12.1 | VN15: 4.9 | VO15: -12.1 | VP15: 5.1 | VQ15: -12.0 | VR15: 5.3 | VS15: -11.9 | VT15: 5.5 | VU15: -11.8 | VV15: 5.7 | VW15: -11.7 | VX15: 5.9 | VY15: -11.6 | VZ15: 6.1 | WA15: -11.5 | WB15: 6.3 | WC15: -11.4 | WD15: 6.5 | WE15: -11.3 | WF15: 6.7 | WG15: -11.1 | WH15: 6.9 | WI15: -11.0 | WJ15: 7.1 | WK15: -10.9 | WL15: 7.3 | WM15: -10.8 | WN15: 7.5 | WO15: -10.6 | WP15: 7.6 | WQ15: -10.5 | WR15: 7.8 | WS15: -10.4 | WT15: 8.0 | WU15: -10.2 | WV15: 8.2 | WW15: -10.1 | WX15: 8.4 | WY15: -10.0 | WZ15: 8.5 | XA15: -9.8 | XB15: 8.7 | XC15: -9.7 | XD15: 8.9 | XE15: -9.5 | XF15: 9.0 | XG15: -9.4 | XH15: 9.2 | XI15: -9.2 | XJ15: 9.4 | XK15: -9.0 | XL15: 9.5 | XM15: -8.9 | XN15: 9.7 | XO15: -8.7 | XP15: 9.8 | XQ15: -8.5 | XR15: 10.0 | XS15: -8.4 | XT15: 10.1 | XU15: -8.2 | XV15: 10.2 | XW15: -8.0 | XX15: 10.4 | XY15: -7.8 | XZ15: 10.5 | YA15: -7.6 | YB15: 10.6 | YC15: -7.5 | YD15: 10.8 | YE15: -7.3 | YF15: 10.9 | YG15: -7.1 | YH15: 11.0 | YI15: -6.9 | YJ15: 11.1 | YK15: -6.7 | YL15: 11.3 | YM15: -6.5 | YN15: 11.4 | YO15: -6.3 | YP15: 11.5 | YQ15: -6.1 | YR15: 11.6 | YS15: -5.9 | YT15: 11.7 | YU15: -5.7 | YV15: 11.8 | YW15: -5.5 | YX15: 11.9 | YY15: -5.3 | YZ15: 12.0 | ZA15: -5.1 | ZB15: 12.1 | ZC15: -4.9 | ZD15: 12.1 | ZE15: -4.7 | ZF15: 12.2 | ZG15: -4.4 | ZH15: 12.3 | ZI15: -4.2 | ZJ15: 12.4 | ZK15: -4.0 | ZL15: 12.4 | ZM15: -3.8 | ZN15: 12.5 | ZO15: -3.6 | ZP15: 12.6 | ZQ15: -3.4 | ZR15: 12.6 | ZS15: -3.1 | ZT15: 12.7 | ZU15: -2.9 | ZV15: 12.7 | ZW15: -2.7 | ZX15: 12.8 | ZY15: -2.5 | ZZ15: 12.8 | AAA15: -2.3 | AAB15: 12.8 | AAC15: -2.0 | AAD15: 12.9 | AAE15: -1.8 | AAF15: 12.9 | AAG15: -1.6 | AAH15: 12.9 | AAI15: -1.4 | AAJ15: 13.0 | AAK15: -1.1 | AAL15: 13.0 | AAM15: -0.9 | AAN15: 13.0 | AAO15: -0.7 | AAP15: 13.0 | AAQ15: -0.5 | AAR15: 13.0 | AAS15: -0.2 | AAT15: 13.0 | AAU15: -0.0
A16: 14 | B16: 14.0 | C16: 0.0 | D16: 14.0 | E16: 0.2 | F16: 14.0 | G16: 0.5 | H16: 14.0 | I16: 0.7 | J16: 14.0 | K16: 1.0 | L16: 13.9 | M16: 1.2 | N16: 13.9 | O16: 1.5 | P16: 13.9 | Q16: 1.7 | R16: 13.9 | S16: 1.9 | T16: 13.8 | U16: 2.2 | V16: 13.8 | W16: 2.4 | X16: 13.7 | Y16: 2.7 | Z16: 13.7 | AA16: 2.9 | AB16: 13.6 | AC16: 3.1 | AD16: 13.6 | AE16: 3.4 | AF16: 13.5 | AG16: 3.6 | AH16: 13.5 | AI16: 3.9 | AJ16: 13.4 | AK16: 4.1 | AL16: 13.3 | AM16: 4.3 | AN16: 13.2 | AO16: 4.6 | AP16: 13.2 | AQ16: 4.8 | AR16: 13.1 | AS16: 5.0 | AT16: 13.0 | AU16: 5.2 | AV16: 12.9 | AW16: 5.5 | AX16: 12.8 | AY16: 5.7 | AZ16: =COS(AZ$1/360*2*PI())*$A16 -> 12.7 | BA16: 5.9 | BB16: 12.6 | BC16: 6.1 | BD16: 12.5 | BE16: 6.4 | BF16: 12.4 | BG16: 6.6 | BH16: 12.2 | BI16: 6.8 | BJ16: 12.1 | BK16: 7.0 | BL16: 12.0 | BM16: 7.2 | BN16: 11.9 | BO16: 7.4 | BP16: 11.7 | BQ16: 7.6 | BR16: =COS(BR$1/360*2*PI())*$A16 -> 11.6 | BS16: 7.8 | BT16: 11.5 | BU16: 8.0 | BV16: 11.3 | BW16: 8.2 | BX16: 11.2 | BY16: 8.4 | BZ16: 11.0 | CA16: 8.6 | CB16: 10.9 | CC16: 8.8 | CD16: 10.7 | CE16: 9.0 | CF16: 10.6 | CG16: 9.2 | CH16: 10.4 | CI16: 9.4 | CJ16: 10.2 | CK16: 9.5 | CL16: 10.1 | CM16: 9.7 | CN16: 9.9 | CO16: 9.9 | CP16: 9.7 | CQ16: 10.1 | CR16: 9.5 | CS16: 10.2 | CT16: 9.4 | CU16: 10.4 | CV16: 9.2 | CW16: 10.6 | CX16: 9.0 | CY16: 10.7 | CZ16: 8.8 | DA16: 10.9 | DB16: 8.6 | DC16: 11.0 | DD16: 8.4 | DE16: 11.2 | DF16: 8.2 | DG16: 11.3 | DH16: 8.0 | DI16: 11.5 | DJ16: 7.8 | DK16: 11.6 | DL16: 7.6 | DM16: 11.7 | DN16: 7.4 | DO16: 11.9 | DP16: 7.2 | DQ16: 12.0 | DR16: 7.0 | DS16: 12.1 | DT16: 6.8 | DU16: 12.2 | DV16: 6.6 | DW16: 12.4 | DX16: 6.4 | DY16: 12.5 | DZ16: 6.1 | EA16: 12.6 | EB16: 5.9 | EC16: 12.7 | ED16: 5.7 | EE16: 12.8 | EF16: 5.5 | EG16: 12.9 | EH16: 5.2 | EI16: 13.0 | EJ16: 5.0 | EK16: 13.1 | EL16: 4.8 | EM16: 13.2 | EN16: 4.6 | EO16: 13.2 | EP16: 4.3 | EQ16: 13.3 | ER16: 4.1 | ES16: 13.4 | ET16: 3.9 | EU16: 13.5 | EV16: 3.6 | EW16: 13.5 | EX16: 3.4 | EY16: 13.6 | EZ16: 3.1 | FA16: 13.6 | FB16: 2.9 | FC16: 13.7 | FD16: 2.7 | FE16: 13.7 | FF16: 2.4 | FG16: 13.8 | FH16: 2.2 | FI16: 13.8 | FJ16: 1.9 | FK16: 13.9 | FL16: 1.7 | FM16: 13.9 | FN16: 1.5 | FO16: 13.9 | FP16: 1.2 | FQ16: 13.9 | FR16: 1.0 | FS16: 14.0 | FT16: 0.7 | FU16: 14.0 | FV16: 0.5 | FW16: 14.0 | FX16: 0.2 | FY16: 14.0 | FZ16: 0.0 | GA16: 14.0 | GB16: -0.2 | GC16: 14.0 | GD16: -0.5 | GE16: 14.0 | GF16: -0.7 | GG16: 14.0 | GH16: -1.0 | GI16: 14.0 | GJ16: -1.2 | GK16: 13.9 | GL16: -1.5 | GM16: 13.9 | GN16: -1.7 | GO16: 13.9 | GP16: -1.9 | GQ16: 13.9 | GR16: -2.2 | GS16: 13.8 | GT16: -2.4 | GU16: 13.8 | GV16: -2.7 | GW16: 13.7 | GX16: -2.9 | GY16: 13.7 | GZ16: -3.1 | HA16: 13.6 | HB16: -3.4 | HC16: 13.6 | HD16: -3.6 | HE16: 13.5 | HF16: -3.9 | HG16: 13.5 | HH16: -4.1 | HI16: 13.4 | HJ16: -4.3 | HK16: 13.3 | HL16: -4.6 | HM16: 13.2 | HN16: -4.8 | HO16: 13.2 | HP16: -5.0 | HQ16: 13.1 | HR16: -5.2 | HS16: 13.0 | HT16: -5.5 | HU16: 12.9 | HV16: -5.7 | HW16: 12.8 | HX16: -5.9 | HY16: 12.7 | HZ16: -6.1 | IA16: 12.6 | IB16: -6.4 | IC16: 12.5 | ID16: -6.6 | IE16: 12.4 | IF16: -6.8 | IG16: 12.2 | IH16: -7.0 | II16: 12.1 | IJ16: -7.2 | IK16: 12.0 | IL16: -7.4 | IM16: 11.9 | IN16: -7.6 | IO16: 11.7 | IP16: -7.8 | IQ16: 11.6 | IR16: -8.0 | IS16: 11.5 | IT16: -8.2 | IU16: 11.3 | IV16: -8.4 | IW16: 11.2 | IX16: -8.6 | IY16: 11.0 | IZ16: -8.8 | JA16: 10.9 | JB16: -9.0 | JC16: 10.7 | JD16: -9.2 | JE16: 10.6 | JF16: -9.4 | JG16: 10.4 | JH16: -9.5 | JI16: 10.2 | JJ16: -9.7 | JK16: 10.1 | JL16: -9.9 | JM16: 9.9 | JN16: -10.1 | JO16: 9.7 | JP16: -10.2 | JQ16: 9.5 | JR16: -10.4 | JS16: 9.4 | JT16: -10.6 | JU16: 9.2 | JV16: -10.7 | JW16: 9.0 | JX16: -10.9 | JY16: 8.8 | JZ16: -11.0 | KA16: 8.6 | KB16: -11.2 | KC16: 8.4 | KD16: -11.3 | KE16: 8.2 | KF16: -11.5 | KG16: 8.0 | KH16: -11.6 | KI16: 7.8 | KJ16: -11.7 | KK16: 7.6 | KL16: -11.9 | KM16: 7.4 | KN16: -12.0 | KO16: 7.2 | KP16: -12.1 | KQ16: 7.0 | KR16: -12.2 | KS16: 6.8 | KT16: -12.4 | KU16: 6.6 | KV16: -12.5 | KW16: 6.4 | KX16: -12.6 | KY16: 6.1 | KZ16: -12.7 | LA16: 5.9 | LB16: -12.8 | LC16: 5.7 | LD16: -12.9 | LE16: 5.5 | LF16: -13.0 | LG16: 5.2 | LH16: -13.1 | LI16: 5.0 | LJ16: -13.2 | LK16: 4.8 | LL16: -13.2 | LM16: 4.6 | LN16: -13.3 | LO16: 4.3 | LP16: -13.4 | LQ16: 4.1 | LR16: -13.5 | LS16: 3.9 | LT16: -13.5 | LU16: 3.6 | LV16: -13.6 | LW16: 3.4 | LX16: -13.6 | LY16: 3.1 | LZ16: -13.7 | MA16: 2.9 | MB16: -13.7 | MC16: 2.7 | MD16: -13.8 | ME16: 2.4 | MF16: -13.8 | MG16: 2.2 | MH16: -13.9 | MI16: 1.9 | MJ16: -13.9 | MK16: 1.7 | ML16: -13.9 | MM16: 1.5 | MN16: -13.9 | MO16: 1.2 | MP16: -14.0 | MQ16: 1.0 | MR16: -14.0 | MS16: 0.7 | MT16: -14.0 | MU16: 0.5 | MV16: -14.0 | MW16: 0.2 | MX16: -14.0 | MY16: 0.0 | MZ16: -14.0 | NA16: -0.2 | NB16: -14.0 | NC16: -0.5 | ND16: -14.0 | NE16: -0.7 | NF16: -14.0 | NG16: -1.0 | NH16: -13.9 | NI16: -1.2 | NJ16: -13.9 | NK16: -1.5 | NL16: -13.9 | NM16: -1.7 | NN16: -13.9 | NO16: -1.9 | NP16: -13.8 | NQ16: -2.2 | NR16: -13.8 | NS16: -2.4 | NT16: -13.7 | NU16: -2.7 | NV16: -13.7 | NW16: -2.9 | NX16: -13.6 | NY16: -3.1 | NZ16: -13.6 | OA16: -3.4 | OB16: -13.5 | OC16: -3.6 | OD16: -13.5 | OE16: -3.9 | OF16: -13.4 | OG16: -4.1 | OH16: -13.3 | OI16: -4.3 | OJ16: -13.2 | OK16: -4.6 | OL16: -13.2 | OM16: -4.8 | ON16: -13.1 | OO16: -5.0 | OP16: -13.0 | OQ16: -5.2 | OR16: -12.9 | OS16: -5.5 | OT16: -12.8 | OU16: -5.7 | OV16: -12.7 | OW16: -5.9 | OX16: -12.6 | OY16: -6.1 | OZ16: -12.5 | PA16: -6.4 | PB16: -12.4 | PC16: -6.6 | PD16: -12.2 | PE16: -6.8 | PF16: -12.1 | PG16: -7.0 | PH16: -12.0 | PI16: -7.2 | PJ16: -11.9 | PK16: -7.4 | PL16: -11.7 | PM16: -7.6 | PN16: -11.6 | PO16: -7.8 | PP16: -11.5 | PQ16: -8.0 | PR16: -11.3 | PS16: -8.2 | PT16: -11.2 | PU16: -8.4 | PV16: -11.0 | PW16: -8.6 | PX16: -10.9 | PY16: -8.8 | PZ16: -10.7 | QA16: -9.0 | QB16: -10.6 | QC16: -9.2 | QD16: -10.4 | QE16: -9.4 | QF16: -10.2 | QG16: -9.5 | QH16: -10.1 | QI16: -9.7 | QJ16: -9.9 | QK16: -9.9 | QL16: -9.7 | QM16: -10.1 | QN16: -9.5 | QO16: -10.2 | QP16: -9.4 | QQ16: -10.4 | QR16: -9.2 | QS16: -10.6 | QT16: -9.0 | QU16: -10.7 | QV16: -8.8 | QW16: -10.9 | QX16: -8.6 | QY16: -11.0 | QZ16: -8.4 | RA16: -11.2 | RB16: -8.2 | RC16: -11.3 | RD16: -8.0 | RE16: -11.5 | RF16: -7.8 | RG16: -11.6 | RH16: -7.6 | RI16: -11.7 | RJ16: -7.4 | RK16: -11.9 | RL16: -7.2 | RM16: -12.0 | RN16: -7.0 | RO16: -12.1 | RP16: -6.8 | RQ16: -12.2 | RR16: -6.6 | RS16: -12.4 | RT16: -6.4 | RU16: -12.5 | RV16: -6.1 | RW16: -12.6 | RX16: -5.9 | RY16: -12.7 | RZ16: -5.7 | SA16: -12.8 | SB16: -5.5 | SC16: -12.9 | SD16: -5.2 | SE16: -13.0 | SF16: -5.0 | SG16: -13.1 | SH16: -4.8 | SI16: -13.2 | SJ16: -4.6 | SK16: -13.2 | SL16: -4.3 | SM16: -13.3 | SN16: -4.1 | SO16: -13.4 | SP16: -3.9 | SQ16: -13.5 | SR16: -3.6 | SS16: -13.5 | ST16: -3.4 | SU16: -13.6 | SV16: -3.1 | SW16: -13.6 | SX16: -2.9 | SY16: -13.7 | SZ16: -2.7 | TA16: -13.7 | TB16: -2.4 | TC16: -13.8 | TD16: -2.2 | TE16: -13.8 | TF16: -1.9 | TG16: -13.9 | TH16: -1.7 | TI16: -13.9 | TJ16: -1.5 | TK16: -13.9 | TL16: -1.2 | TM16: -13.9 | TN16: -1.0 | TO16: -14.0 | TP16: -0.7 | TQ16: -14.0 | TR16: -0.5 | TS16: -14.0 | TT16: -0.2 | TU16: -14.0 | TV16: -0.0 | TW16: -14.0 | TX16: 0.2 | TY16: -14.0 | TZ16: 0.5 | UA16: -14.0 | UB16: 0.7 | UC16: -14.0 | UD16: 1.0 | UE16: -14.0 | UF16: 1.2 | UG16: -13.9 | UH16: 1.5 | UI16: -13.9 | UJ16: 1.7 | UK16: -13.9 | UL16: 1.9 | UM16: -13.9 | UN16: 2.2 | UO16: -13.8 | UP16: 2.4 | UQ16: -13.8 | UR16: 2.7 | US16: -13.7 | UT16: 2.9 | UU16: -13.7 | UV16: 3.1 | UW16: -13.6 | UX16: 3.4 | UY16: -13.6 | UZ16: 3.6 | VA16: -13.5 | VB16: 3.9 | VC16: -13.5 | VD16: 4.1 | VE16: -13.4 | VF16: 4.3 | VG16: -13.3 | VH16: 4.6 | VI16: -13.2 | VJ16: 4.8 | VK16: -13.2 | VL16: 5.0 | VM16: -13.1 | VN16: 5.2 | VO16: -13.0 | VP16: 5.5 | VQ16: -12.9 | VR16: 5.7 | VS16: -12.8 | VT16: 5.9 | VU16: -12.7 | VV16: 6.1 | VW16: -12.6 | VX16: 6.4 | VY16: -12.5 | VZ16: 6.6 | WA16: -12.4 | WB16: 6.8 | WC16: -12.2 | WD16: 7.0 | WE16: -12.1 | WF16: 7.2 | WG16: -12.0 | WH16: 7.4 | WI16: -11.9 | WJ16: 7.6 | WK16: -11.7 | WL16: 7.8 | WM16: -11.6 | WN16: 8.0 | WO16: -11.5 | WP16: 8.2 | WQ16: -11.3 | WR16: 8.4 | WS16: -11.2 | WT16: 8.6 | WU16: -11.0 | WV16: 8.8 | WW16: -10.9 | WX16: 9.0 | WY16: -10.7 | WZ16: 9.2 | XA16: -10.6 | XB16: 9.4 | XC16: -10.4 | XD16: 9.5 | XE16: -10.2 | XF16: 9.7 | XG16: -10.1 | XH16: 9.9 | XI16: -9.9 | XJ16: 10.1 | XK16: -9.7 | XL16: 10.2 | XM16: -9.5 | XN16: 10.4 | XO16: -9.4 | XP16: 10.6 | XQ16: -9.2 | XR16: 10.7 | XS16: -9.0 | XT16: 10.9 | XU16: -8.8 | XV16: 11.0 | XW16: -8.6 | XX16: 11.2 | XY16: -8.4 | XZ16: 11.3 | YA16: -8.2 | YB16: 11.5 | YC16: -8.0 | YD16: 11.6 | YE16: -7.8 | YF16: 11.7 | YG16: -7.6 | YH16: 11.9 | YI16: -7.4 | YJ16: 12.0 | YK16: -7.2 | YL16: 12.1 | YM16: -7.0 | YN16: 12.2 | YO16: -6.8 | YP16: 12.4 | YQ16: -6.6 | YR16: 12.5 | YS16: -6.4 | YT16: 12.6 | YU16: -6.1 | YV16: 12.7 | YW16: -5.9 | YX16: 12.8 | YY16: -5.7 | YZ16: 12.9 | ZA16: -5.5 | ZB16: 13.0 | ZC16: -5.2 | ZD16: 13.1 | ZE16: -5.0 | ZF16: 13.2 | ZG16: -4.8 | ZH16: 13.2 | ZI16: -4.6 | ZJ16: 13.3 | ZK16: -4.3 | ZL16: 13.4 | ZM16: -4.1 | ZN16: 13.5 | ZO16: -3.9 | ZP16: 13.5 | ZQ16: -3.6 | ZR16: 13.6 | ZS16: -3.4 | ZT16: 13.6 | ZU16: -3.1 | ZV16: 13.7 | ZW16: -2.9 | ZX16: 13.7 | ZY16: -2.7 | ZZ16: 13.8 | AAA16: -2.4 | AAB16: 13.8 | AAC16: -2.2 | AAD16: 13.9 | AAE16: -1.9 | AAF16: 13.9 | AAG16: -1.7 | AAH16: 13.9 | AAI16: -1.5 | AAJ16: 13.9 | AAK16: -1.2 | AAL16: 14.0 | AAM16: -1.0 | AAN16: 14.0 | AAO16: -0.7 | AAP16: 14.0 | AAQ16: -0.5 | AAR16: 14.0 | AAS16: -0.2 | AAT16: 14.0 | AAU16: -0.0
A17: 15 | B17: 15.0 | C17: 0.0 | D17: 15.0 | E17: 0.3 | F17: 15.0 | G17: 0.5 | H17: 15.0 | I17: 0.8 | J17: 15.0 | K17: 1.0 | L17: 14.9 | M17: 1.3 | N17: 14.9 | O17: 1.6 | P17: 14.9 | Q17: 1.8 | R17: 14.9 | S17: 2.1 | T17: 14.8 | U17: 2.3 | V17: 14.8 | W17: 2.6 | X17: 14.7 | Y17: 2.9 | Z17: 14.7 | AA17: 3.1 | AB17: 14.6 | AC17: 3.4 | AD17: 14.6 | AE17: 3.6 | AF17: 14.5 | AG17: 3.9 | AH17: 14.4 | AI17: 4.1 | AJ17: 14.3 | AK17: 4.4 | AL17: 14.3 | AM17: 4.6 | AN17: 14.2 | AO17: 4.9 | AP17: 14.1 | AQ17: 5.1 | AR17: 14.0 | AS17: 5.4 | AT17: 13.9 | AU17: 5.6 | AV17: 13.8 | AW17: 5.9 | AX17: 13.7 | AY17: 6.1 | AZ17: 13.6 | BA17: 6.3 | BB17: 13.5 | BC17: 6.6 | BD17: 13.4 | BE17: 6.8 | BF17: 13.2 | BG17: 7.0 | BH17: 13.1 | BI17: 7.3 | BJ17: 13.0 | BK17: 7.5 | BL17: 12.9 | BM17: 7.7 | BN17: 12.7 | BO17: 7.9 | BP17: 12.6 | BQ17: 8.2 | BR17: 12.4 | BS17: 8.4 | BT17: 12.3 | BU17: 8.6 | BV17: 12.1 | BW17: 8.8 | BX17: 12.0 | BY17: 9.0 | BZ17: 11.8 | CA17: 9.2 | CB17: 11.7 | CC17: 9.4 | CD17: 11.5 | CE17: 9.6 | CF17: 11.3 | CG17: 9.8 | CH17: 11.1 | CI17: 10.0 | CJ17: 11.0 | CK17: 10.2 | CL17: 10.8 | CM17: 10.4 | CN17: 10.6 | CO17: 10.6 | CP17: 10.4 | CQ17: 10.8 | CR17: 10.2 | CS17: 11.0 | CT17: 10.0 | CU17: 11.1 | CV17: 9.8 | CW17: 11.3 | CX17: 9.6 | CY17: 11.5 | CZ17: 9.4 | DA17: 11.7 | DB17: 9.2 | DC17: 11.8 | DD17: 9.0 | DE17: 12.0 | DF17: 8.8 | DG17: 12.1 | DH17: 8.6 | DI17: 12.3 | DJ17: 8.4 | DK17: 12.4 | DL17: 8.2 | DM17: 12.6 | DN17: 7.9 | DO17: 12.7 | DP17: 7.7 | DQ17: 12.9 | DR17: 7.5 | DS17: 13.0 | DT17: 7.3 | DU17: 13.1 | DV17: 7.0 | DW17: 13.2 | DX17: 6.8 | DY17: 13.4 | DZ17: 6.6 | EA17: 13.5 | EB17: 6.3 | EC17: 13.6 | ED17: 6.1 | EE17: 13.7 | EF17: 5.9 | EG17: 13.8 | EH17: 5.6 | EI17: 13.9 | EJ17: 5.4 | EK17: 14.0 | EL17: 5.1 | EM17: 14.1 | EN17: 4.9 | EO17: 14.2 | EP17: 4.6 | EQ17: 14.3 | ER17: 4.4 | ES17: 14.3 | ET17: 4.1 | EU17: 14.4 | EV17: 3.9 | EW17: 14.5 | EX17: 3.6 | EY17: 14.6 | EZ17: 3.4 | FA17: 14.6 | FB17: 3.1 | FC17: 14.7 | FD17: 2.9 | FE17: 14.7 | FF17: 2.6 | FG17: 14.8 | FH17: 2.3 | FI17: 14.8 | FJ17: 2.1 | FK17: 14.9 | FL17: 1.8 | FM17: 14.9 | FN17: 1.6 | FO17: 14.9 | FP17: 1.3 | FQ17: 14.9 | FR17: 1.0 | FS17: 15.0 | FT17: 0.8 | FU17: 15.0 | FV17: 0.5 | FW17: 15.0 | FX17: 0.3 | FY17: 15.0 | FZ17: 0.0 | GA17: 15.0 | GB17: -0.3 | GC17: 15.0 | GD17: -0.5 | GE17: 15.0 | GF17: -0.8 | GG17: 15.0 | GH17: -1.0 | GI17: 15.0 | GJ17: -1.3 | GK17: 14.9 | GL17: -1.6 | GM17: 14.9 | GN17: -1.8 | GO17: 14.9 | GP17: -2.1 | GQ17: 14.9 | GR17: -2.3 | GS17: 14.8 | GT17: -2.6 | GU17: 14.8 | GV17: -2.9 | GW17: 14.7 | GX17: -3.1 | GY17: 14.7 | GZ17: -3.4 | HA17: 14.6 | HB17: -3.6 | HC17: 14.6 | HD17: -3.9 | HE17: 14.5 | HF17: -4.1 | HG17: 14.4 | HH17: -4.4 | HI17: 14.3 | HJ17: -4.6 | HK17: 14.3 | HL17: -4.9 | HM17: 14.2 | HN17: -5.1 | HO17: 14.1 | HP17: -5.4 | HQ17: 14.0 | HR17: -5.6 | HS17: 13.9 | HT17: -5.9 | HU17: 13.8 | HV17: -6.1 | HW17: 13.7 | HX17: -6.3 | HY17: 13.6 | HZ17: -6.6 | IA17: 13.5 | IB17: -6.8 | IC17: 13.4 | ID17: -7.0 | IE17: 13.2 | IF17: -7.3 | IG17: 13.1 | IH17: -7.5 | II17: 13.0 | IJ17: -7.7 | IK17: 12.9 | IL17: -7.9 | IM17: 12.7 | IN17: -8.2 | IO17: 12.6 | IP17: -8.4 | IQ17: 12.4 | IR17: -8.6 | IS17: 12.3 | IT17: -8.8 | IU17: 12.1 | IV17: -9.0 | IW17: 12.0 | IX17: -9.2 | IY17: 11.8 | IZ17: -9.4 | JA17: 11.7 | JB17: -9.6 | JC17: 11.5 | JD17: -9.8 | JE17: 11.3 | JF17: -10.0 | JG17: 11.1 | JH17: -10.2 | JI17: 11.0 | JJ17: -10.4 | JK17: 10.8 | JL17: -10.6 | JM17: 10.6 | JN17: -10.8 | JO17: 10.4 | JP17: -11.0 | JQ17: 10.2 | JR17: -11.1 | JS17: 10.0 | JT17: -11.3 | JU17: 9.8 | JV17: -11.5 | JW17: 9.6 | JX17: -11.7 | JY17: 9.4 | JZ17: -11.8 | KA17: 9.2 | KB17: -12.0 | KC17: 9.0 | KD17: -12.1 | KE17: 8.8 | KF17: -12.3 | KG17: 8.6 | KH17: -12.4 | KI17: 8.4 | KJ17: -12.6 | KK17: 8.2 | KL17: -12.7 | KM17: 7.9 | KN17: -12.9 | KO17: 7.7 | KP17: -13.0 | KQ17: 7.5 | KR17: -13.1 | KS17: 7.3 | KT17: -13.2 | KU17: 7.0 | KV17: -13.4 | KW17: 6.8 | KX17: -13.5 | KY17: 6.6 | KZ17: -13.6 | LA17: 6.3 | LB17: -13.7 | LC17: 6.1 | LD17: -13.8 | LE17: 5.9 | LF17: -13.9 | LG17: 5.6 | LH17: -14.0 | LI17: 5.4 | LJ17: -14.1 | LK17: 5.1 | LL17: -14.2 | LM17: 4.9 | LN17: -14.3 | LO17: 4.6 | LP17: -14.3 | LQ17: 4.4 | LR17: -14.4 | LS17: 4.1 | LT17: -14.5 | LU17: 3.9 | LV17: -14.6 | LW17: 3.6 | LX17: -14.6 | LY17: 3.4 | LZ17: -14.7 | MA17: 3.1 | MB17: -14.7 | MC17: 2.9 | MD17: -14.8 | ME17: 2.6 | MF17: -14.8 | MG17: 2.3 | MH17: -14.9 | MI17: 2.1 | MJ17: -14.9 | MK17: 1.8 | ML17: -14.9 | MM17: 1.6 | MN17: -14.9 | MO17: 1.3 | MP17: -15.0 | MQ17: 1.0 | MR17: -15.0 | MS17: 0.8 | MT17: -15.0 | MU17: 0.5 | MV17: -15.0 | MW17: 0.3 | MX17: -15.0 | MY17: 0.0 | MZ17: -15.0 | NA17: -0.3 | NB17: -15.0 | NC17: -0.5 | ND17: -15.0 | NE17: -0.8 | NF17: -15.0 | NG17: -1.0 | NH17: -14.9 | NI17: -1.3 | NJ17: -14.9 | NK17: -1.6 | NL17: -14.9 | NM17: -1.8 | NN17: -14.9 | NO17: -2.1 | NP17: -14.8 | NQ17: -2.3 | NR17: -14.8 | NS17: -2.6 | NT17: -14.7 | NU17: -2.9 | NV17: -14.7 | NW17: -3.1 | NX17: -14.6 | NY17: -3.4 | NZ17: -14.6 | OA17: -3.6 | OB17: -14.5 | OC17: -3.9 | OD17: -14.4 | OE17: -4.1 | OF17: -14.3 | OG17: -4.4 | OH17: -14.3 | OI17: -4.6 | OJ17: -14.2 | OK17: -4.9 | OL17: -14.1 | OM17: -5.1 | ON17: -14.0 | OO17: -5.4 | OP17: -13.9 | OQ17: -5.6 | OR17: -13.8 | OS17: -5.9 | OT17: -13.7 | OU17: -6.1 | OV17: -13.6 | OW17: -6.3 | OX17: -13.5 | OY17: -6.6 | OZ17: -13.4 | PA17: -6.8 | PB17: -13.2 | PC17: -7.0 | PD17: -13.1 | PE17: -7.3 | PF17: -13.0 | PG17: -7.5 | PH17: -12.9 | PI17: -7.7 | PJ17: -12.7 | PK17: -7.9 | PL17: -12.6 | PM17: -8.2 | PN17: -12.4 | PO17: -8.4 | PP17: -12.3 | PQ17: -8.6 | PR17: -12.1 | PS17: -8.8 | PT17: -12.0 | PU17: -9.0 | PV17: -11.8 | PW17: -9.2 | PX17: -11.7 | PY17: -9.4 | PZ17: -11.5 | QA17: -9.6 | QB17: -11.3 | QC17: -9.8 | QD17: -11.1 | QE17: -10.0 | QF17: -11.0 | QG17: -10.2 | QH17: -10.8 | QI17: -10.4 | QJ17: -10.6 | QK17: -10.6 | QL17: -10.4 | QM17: -10.8 | QN17: -10.2 | QO17: -11.0 | QP17: -10.0 | QQ17: -11.1 | QR17: -9.8 | QS17: -11.3 | QT17: -9.6 | QU17: -11.5 | QV17: -9.4 | QW17: -11.7 | QX17: -9.2 | QY17: -11.8 | QZ17: -9.0 | RA17: -12.0 | RB17: -8.8 | RC17: -12.1 | RD17: -8.6 | RE17: -12.3 | RF17: -8.4 | RG17: -12.4 | RH17: -8.2 | RI17: -12.6 | RJ17: -7.9 | RK17: -12.7 | RL17: -7.7 | RM17: -12.9 | RN17: -7.5 | RO17: -13.0 | RP17: -7.3 | RQ17: -13.1 | RR17: -7.0 | RS17: -13.2 | RT17: -6.8 | RU17: -13.4 | RV17: -6.6 | RW17: -13.5 | RX17: -6.3 | RY17: -13.6 | RZ17: -6.1 | SA17: -13.7 | SB17: -5.9 | SC17: -13.8 | SD17: -5.6 | SE17: -13.9 | SF17: -5.4 | SG17: -14.0 | SH17: -5.1 | SI17: -14.1 | SJ17: -4.9 | SK17: -14.2 | SL17: -4.6 | SM17: -14.3 | SN17: -4.4 | SO17: -14.3 | SP17: -4.1 | SQ17: -14.4 | SR17: -3.9 | SS17: -14.5 | ST17: -3.6 | SU17: -14.6 | SV17: -3.4 | SW17: -14.6 | SX17: -3.1 | SY17: -14.7 | SZ17: -2.9 | TA17: -14.7 | TB17: -2.6 | TC17: -14.8 | TD17: -2.3 | TE17: -14.8 | TF17: -2.1 | TG17: -14.9 | TH17: -1.8 | TI17: -14.9 | TJ17: -1.6 | TK17: -14.9 | TL17: -1.3 | TM17: -14.9 | TN17: -1.0 | TO17: -15.0 | TP17: -0.8 | TQ17: -15.0 | TR17: -0.5 | TS17: -15.0 | TT17: -0.3 | TU17: -15.0 | TV17: -0.0 | TW17: -15.0 | TX17: 0.3 | TY17: -15.0 | TZ17: 0.5 | UA17: -15.0 | UB17: 0.8 | UC17: -15.0 | UD17: 1.0 | UE17: -15.0 | UF17: 1.3 | UG17: -14.9 | UH17: 1.6 | UI17: -14.9 | UJ17: 1.8 | UK17: -14.9 | UL17: 2.1 | UM17: -14.9 | UN17: 2.3 | UO17: -14.8 | UP17: 2.6 | UQ17: -14.8 | UR17: 2.9 | US17: -14.7 | UT17: 3.1 | UU17: -14.7 | UV17: 3.4 | UW17: -14.6 | UX17: 3.6 | UY17: -14.6 | UZ17: 3.9 | VA17: -14.5 | VB17: 4.1 | VC17: -14.4 | VD17: 4.4 | VE17: -14.3 | VF17: 4.6 | VG17: -14.3 | VH17: 4.9 | VI17: -14.2 | VJ17: 5.1 | VK17: -14.1 | VL17: 5.4 | VM17: -14.0 | VN17: 5.6 | VO17: -13.9 | VP17: 5.9 | VQ17: -13.8 | VR17: 6.1 | VS17: -13.7 | VT17: 6.3 | VU17: -13.6 | VV17: 6.6 | VW17: -13.5 | VX17: 6.8 | VY17: -13.4 | VZ17: 7.0 | WA17: -13.2 | WB17: 7.3 | WC17: -13.1 | WD17: 7.5 | WE17: -13.0 | WF17: 7.7 | WG17: -12.9 | WH17: 7.9 | WI17: -12.7 | WJ17: 8.2 | WK17: -12.6 | WL17: 8.4 | WM17: -12.4 | WN17: 8.6 | WO17: -12.3 | WP17: 8.8 | WQ17: -12.1 | WR17: 9.0 | WS17: -12.0 | WT17: 9.2 | WU17: -11.8 | WV17: 9.4 | WW17: -11.7 | WX17: 9.6 | WY17: -11.5 | WZ17: 9.8 | XA17: -11.3 | XB17: 10.0 | XC17: -11.1 | XD17: 10.2 | XE17: -11.0 | XF17: 10.4 | XG17: -10.8 | XH17: 10.6 | XI17: -10.6 | XJ17: 10.8 | XK17: -10.4 | XL17: 11.0 | XM17: -10.2 | XN17: 11.1 | XO17: -10.0 | XP17: 11.3 | XQ17: -9.8 | XR17: 11.5 | XS17: -9.6 | XT17: 11.7 | XU17: -9.4 | XV17: 11.8 | XW17: -9.2 | XX17: 12.0 | XY17: -9.0 | XZ17: 12.1 | YA17: -8.8 | YB17: 12.3 | YC17: -8.6 | YD17: 12.4 | YE17: -8.4 | YF17: 12.6 | YG17: -8.2 | YH17: 12.7 | YI17: -7.9 | YJ17: 12.9 | YK17: -7.7 | YL17: 13.0 | YM17: -7.5 | YN17: 13.1 | YO17: -7.3 | YP17: 13.2 | YQ17: -7.0 | YR17: 13.4 | YS17: -6.8 | YT17: 13.5 | YU17: -6.6 | YV17: 13.6 | YW17: -6.3 | YX17: 13.7 | YY17: -6.1 | YZ17: 13.8 | ZA17: -5.9 | ZB17: 13.9 | ZC17: -5.6 | ZD17: 14.0 | ZE17: -5.4 | ZF17: 14.1 | ZG17: -5.1 | ZH17: 14.2 | ZI17: -4.9 | ZJ17: 14.3 | ZK17: -4.6 | ZL17: 14.3 | ZM17: -4.4 | ZN17: 14.4 | ZO17: -4.1 | ZP17: 14.5 | ZQ17: -3.9 | ZR17: 14.6 | ZS17: -3.6 | ZT17: 14.6 | ZU17: -3.4 | ZV17: 14.7 | ZW17: -3.1 | ZX17: 14.7 | ZY17: -2.9 | ZZ17: 14.8 | AAA17: -2.6 | AAB17: 14.8 | AAC17: -2.3 | AAD17: 14.9 | AAE17: -2.1 | AAF17: 14.9 | AAG17: -1.8 | AAH17: 14.9 | AAI17: -1.6 | AAJ17: 14.9 | AAK17: -1.3 | AAL17: 15.0 | AAM17: -1.0 | AAN17: 15.0 | AAO17: -0.8 | AAP17: 15.0 | AAQ17: -0.5 | AAR17: 15.0 | AAS17: -0.3 | AAT17: 15.0 | AAU17: -0.0
A18: 16 | B18: 16.0 | C18: 0.0 | D18: 16.0 | E18: 0.3 | F18: 16.0 | G18: 0.6 | H18: 16.0 | I18: 0.8 | J18: 16.0 | K18: 1.1 | L18: 15.9 | M18: 1.4 | N18: 15.9 | O18: 1.7 | P18: 15.9 | Q18: 1.9 | R18: 15.8 | S18: 2.2 | T18: 15.8 | U18: 2.5 | V18: 15.8 | W18: 2.8 | X18: 15.7 | Y18: 3.1 | Z18: 15.7 | AA18: 3.3 | AB18: 15.6 | AC18: 3.6 | AD18: 15.5 | AE18: 3.9 | AF18: 15.5 | AG18: 4.1 | AH18: 15.4 | AI18: 4.4 | AJ18: 15.3 | AK18: 4.7 | AL18: 15.2 | AM18: 4.9 | AN18: 15.1 | AO18: 5.2 | AP18: 15.0 | AQ18: 5.5 | AR18: 14.9 | AS18: 5.7 | AT18: 14.8 | AU18: 6.0 | AV18: 14.7 | AW18: 6.3 | AX18: 14.6 | AY18: 6.5 | AZ18: 14.5 | BA18: 6.8 | BB18: 14.4 | BC18: 7.0 | BD18: 14.3 | BE18: 7.3 | BF18: 14.1 | BG18: 7.5 | BH18: 14.0 | BI18: 7.8 | BJ18: 13.9 | BK18: 8.0 | BL18: 13.7 | BM18: 8.2 | BN18: 13.6 | BO18: 8.5 | BP18: 13.4 | BQ18: 8.7 | BR18: 13.3 | BS18: 8.9 | BT18: 13.1 | BU18: 9.2 | BV18: 12.9 | BW18: 9.4 | BX18: 12.8 | BY18: 9.6 | BZ18: 12.6 | CA18: 9.9 | CB18: 12.4 | CC18: 10.1 | CD18: 12.3 | CE18: 10.3 | CF18: 12.1 | CG18: 10.5 | CH18: 11.9 | CI18: 10.7 | CJ18: 11.7 | CK18: 10.9 | CL18: 11.5 | CM18: 11.1 | CN18: 11.3 | CO18: 11.3 | CP18: 11.1 | CQ18: 11.5 | CR18: 10.9 | CS18: 11.7 | CT18: 10.7 | CU18: 11.9 | CV18: 10.5 | CW18: 12.1 | CX18: 10.3 | CY18: 12.3 | CZ18: 10.1 | DA18: 12.4 | DB18: 9.9 | DC18: 12.6 | DD18: 9.6 | DE18: 12.8 | DF18: 9.4 | DG18: 12.9 | DH18: 9.2 | DI18: 13.1 | DJ18: 8.9 | DK18: 13.3 | DL18: 8.7 | DM18: 13.4 | DN18: 8.5 | DO18: 13.6 | DP18: 8.2 | DQ18: 13.7 | DR18: 8.0 | DS18: 13.9 | DT18: 7.8 | DU18: 14.0 | DV18: 7.5 | DW18: 14.1 | DX18: 7.3 | DY18: 14.3 | DZ18: 7.0 | EA18: 14.4 | EB18: 6.8 | EC18: 14.5 | ED18: 6.5 | EE18: 14.6 | EF18: 6.3 | EG18: 14.7 | EH18: 6.0 | EI18: 14.8 | EJ18: 5.7 | EK18: 14.9 | EL18: 5.5 | EM18: 15.0 | EN18: 5.2 | EO18: 15.1 | EP18: 4.9 | EQ18: 15.2 | ER18: 4.7 | ES18: 15.3 | ET18: 4.4 | EU18: 15.4 | EV18: 4.1 | EW18: 15.5 | EX18: 3.9 | EY18: 15.5 | EZ18: 3.6 | FA18: 15.6 | FB18: 3.3 | FC18: 15.7 | FD18: 3.1 | FE18: 15.7 | FF18: 2.8 | FG18: 15.8 | FH18: 2.5 | FI18: 15.8 | FJ18: 2.2 | FK18: 15.8 | FL18: 1.9 | FM18: 15.9 | FN18: 1.7 | FO18: 15.9 | FP18: 1.4 | FQ18: 15.9 | FR18: 1.1 | FS18: 16.0 | FT18: 0.8 | FU18: 16.0 | FV18: 0.6 | FW18: 16.0 | FX18: 0.3 | FY18: 16.0 | FZ18: 0.0 | GA18: 16.0 | GB18: -0.3 | GC18: 16.0 | GD18: -0.6 | GE18: 16.0 | GF18: -0.8 | GG18: 16.0 | GH18: -1.1 | GI18: 16.0 | GJ18: -1.4 | GK18: 15.9 | GL18: -1.7 | GM18: 15.9 | GN18: -1.9 | GO18: 15.9 | GP18: -2.2 | GQ18: 15.8 | GR18: -2.5 | GS18: 15.8 | GT18: -2.8 | GU18: 15.8 | GV18: -3.1 | GW18: 15.7 | GX18: -3.3 | GY18: 15.7 | GZ18: -3.6 | HA18: 15.6 | HB18: -3.9 | HC18: 15.5 | HD18: -4.1 | HE18: 15.5 | HF18: -4.4 | HG18: 15.4 | HH18: -4.7 | HI18: 15.3 | HJ18: -4.9 | HK18: 15.2 | HL18: -5.2 | HM18: 15.1 | HN18: -5.5 | HO18: 15.0 | HP18: -5.7 | HQ18: 14.9 | HR18: -6.0 | HS18: 14.8 | HT18: -6.3 | HU18: 14.7 | HV18: -6.5 | HW18: 14.6 | HX18: -6.8 | HY18: 14.5 | HZ18: -7.0 | IA18: 14.4 | IB18: -7.3 | IC18: 14.3 | ID18: -7.5 | IE18: 14.1 | IF18: -7.8 | IG18: 14.0 | IH18: -8.0 | II18: 13.9 | IJ18: -8.2 | IK18: 13.7 | IL18: -8.5 | IM18: 13.6 | IN18: -8.7 | IO18: 13.4 | IP18: -8.9 | IQ18: 13.3 | IR18: -9.2 | IS18: 13.1 | IT18: -9.4 | IU18: 12.9 | IV18: -9.6 | IW18: 12.8 | IX18: -9.9 | IY18: 12.6 | IZ18: -10.1 | JA18: 12.4 | JB18: -10.3 | JC18: 12.3 | JD18: -10.5 | JE18: 12.1 | JF18: -10.7 | JG18: 11.9 | JH18: -10.9 | JI18: 11.7 | JJ18: -11.1 | JK18: 11.5 | JL18: -11.3 | JM18: 11.3 | JN18: -11.5 | JO18: 11.1 | JP18: -11.7 | JQ18: 10.9 | JR18: -11.9 | JS18: 10.7 | JT18: -12.1 | JU18: 10.5 | JV18: -12.3 | JW18: 10.3 | JX18: -12.4 | JY18: 10.1 | JZ18: -12.6 | KA18: 9.9 | KB18: -12.8 | KC18: 9.6 | KD18: -12.9 | KE18: 9.4 | KF18: -13.1 | KG18: 9.2 | KH18: =COS(KH$1/360*2*PI())*$A18 -> -13.3 | KI18: 8.9 | KJ18: -13.4 | KK18: 8.7 | KL18: -13.6 | KM18: 8.5 | KN18: -13.7 | KO18: 8.2 | KP18: -13.9 | KQ18: 8.0 | KR18: -14.0 | KS18: 7.8 | KT18: -14.1 | KU18: 7.5 | KV18: -14.3 | KW18: 7.3 | KX18: -14.4 | KY18: 7.0 | KZ18: -14.5 | LA18: 6.8 | LB18: -14.6 | LC18: 6.5 | LD18: -14.7 | LE18: 6.3 | LF18: -14.8 | LG18: 6.0 | LH18: -14.9 | LI18: 5.7 | LJ18: -15.0 | LK18: 5.5 | LL18: -15.1 | LM18: 5.2 | LN18: -15.2 | LO18: 4.9 | LP18: -15.3 | LQ18: 4.7 | LR18: -15.4 | LS18: 4.4 | LT18: -15.5 | LU18: 4.1 | LV18: -15.5 | LW18: 3.9 | LX18: -15.6 | LY18: 3.6 | LZ18: -15.7 | MA18: 3.3 | MB18: -15.7 | MC18: 3.1 | MD18: -15.8 | ME18: 2.8 | MF18: -15.8 | MG18: 2.5 | MH18: -15.8 | MI18: 2.2 | MJ18: -15.9 | MK18: 1.9 | ML18: -15.9 | MM18: 1.7 | MN18: -15.9 | MO18: 1.4 | MP18: -16.0 | MQ18: 1.1 | MR18: -16.0 | MS18: 0.8 | MT18: -16.0 | MU18: 0.6 | MV18: -16.0 | MW18: 0.3 | MX18: -16.0 | MY18: 0.0 | MZ18: -16.0 | NA18: -0.3 | NB18: -16.0 | NC18: -0.6 | ND18: -16.0 | NE18: -0.8 | NF18: -16.0 | NG18: -1.1 | NH18: -15.9 | NI18: -1.4 | NJ18: -15.9 | NK18: -1.7 | NL18: -15.9 | NM18: -1.9 | NN18: -15.8 | NO18: -2.2 | NP18: -15.8 | NQ18: -2.5 | NR18: -15.8 | NS18: -2.8 | NT18: -15.7 | NU18: -3.1 | NV18: -15.7 | NW18: -3.3 | NX18: -15.6 | NY18: -3.6 | NZ18: -15.5 | OA18: -3.9 | OB18: -15.5 | OC18: -4.1 | OD18: -15.4 | OE18: -4.4 | OF18: -15.3 | OG18: -4.7 | OH18: -15.2 | OI18: -4.9 | OJ18: -15.1 | OK18: -5.2 | OL18: -15.0 | OM18: -5.5 | ON18: -14.9 | OO18: -5.7 | OP18: -14.8 | OQ18: -6.0 | OR18: -14.7 | OS18: -6.3 | OT18: -14.6 | OU18: -6.5 | OV18: -14.5 | OW18: -6.8 | OX18: -14.4 | OY18: -7.0 | OZ18: -14.3 | PA18: -7.3 | PB18: -14.1 | PC18: -7.5 | PD18: -14.0 | PE18: -7.8 | PF18: -13.9 | PG18: -8.0 | PH18: =COS(PH$1/360*2*PI())*$A18 -> -13.7 | PI18: -8.2 | PJ18: -13.6 | PK18: -8.5 | PL18: -13.4 | PM18: -8.7 | PN18: -13.3 | PO18: -8.9 | PP18: -13.1 | PQ18: -9.2 | PR18: -12.9 | PS18: -9.4 | PT18: -12.8 | PU18: -9.6 | PV18: -12.6 | PW18: -9.9 | PX18: -12.4 | PY18: -10.1 | PZ18: -12.3 | QA18: -10.3 | QB18: -12.1 | QC18: -10.5 | QD18: -11.9 | QE18: -10.7 | QF18: -11.7 | QG18: -10.9 | QH18: -11.5 | QI18: -11.1 | QJ18: -11.3 | QK18: -11.3 | QL18: -11.1 | QM18: -11.5 | QN18: -10.9 | QO18: -11.7 | QP18: -10.7 | QQ18: -11.9 | QR18: -10.5 | QS18: -12.1 | QT18: -10.3 | QU18: -12.3 | QV18: -10.1 | QW18: -12.4 | QX18: -9.9 | QY18: -12.6 | QZ18: -9.6 | RA18: -12.8 | RB18: -9.4 | RC18: -12.9 | RD18: -9.2 | RE18: -13.1 | RF18: -8.9 | RG18: -13.3 | RH18: -8.7 | RI18: -13.4 | RJ18: -8.5 | RK18: -13.6 | RL18: -8.2 | RM18: -13.7 | RN18: -8.0 | RO18: -13.9 | RP18: -7.8 | RQ18: -14.0 | RR18: -7.5 | RS18: -14.1 | RT18: -7.3 | RU18: -14.3 | RV18: -7.0 | RW18: -14.4 | RX18: -6.8 | RY18: -14.5 | RZ18: -6.5 | SA18: -14.6 | SB18: -6.3 | SC18: -14.7 | SD18: -6.0 | SE18: -14.8 | SF18: -5.7 | SG18: -14.9 | SH18: -5.5 | SI18: -15.0 | SJ18: -5.2 | SK18: -15.1 | SL18: -4.9 | SM18: -15.2 | SN18: -4.7 | SO18: -15.3 | SP18: -4.4 | SQ18: -15.4 | SR18: -4.1 | SS18: -15.5 | ST18: -3.9 | SU18: -15.5 | SV18: -3.6 | SW18: -15.6 | SX18: -3.3 | SY18: -15.7 | SZ18: -3.1 | TA18: -15.7 | TB18: -2.8 | TC18: -15.8 | TD18: -2.5 | TE18: -15.8 | TF18: -2.2 | TG18: -15.8 | TH18: -1.9 | TI18: -15.9 | TJ18: -1.7 | TK18: -15.9 | TL18: -1.4 | TM18: -15.9 | TN18: -1.1 | TO18: -16.0 | TP18: -0.8 | TQ18: -16.0 | TR18: -0.6 | TS18: -16.0 | TT18: -0.3 | TU18: -16.0 | TV18: -0.0 | TW18: -16.0 | TX18: 0.3 | TY18: -16.0 | TZ18: 0.6 | UA18: -16.0 | UB18: 0.8 | UC18: -16.0 | UD18: 1.1 | UE18: -16.0 | UF18: =COS(UF$1/360*2*PI())*$A18 -> 1.4 | UG18: -15.9 | UH18: 1.7 | UI18: -15.9 | UJ18: 1.9 | UK18: -15.9 | UL18: 2.2 | UM18: -15.8 | UN18: 2.5 | UO18: -15.8 | UP18: 2.8 | UQ18: -15.8 | UR18: 3.1 | US18: -15.7 | UT18: 3.3 | UU18: -15.7 | UV18: 3.6 | UW18: -15.6 | UX18: 3.9 | UY18: -15.5 | UZ18: 4.1 | VA18: -15.5 | VB18: 4.4 | VC18: -15.4 | VD18: 4.7 | VE18: -15.3 | VF18: 4.9 | VG18: -15.2 | VH18: 5.2 | VI18: -15.1 | VJ18: 5.5 | VK18: -15.0 | VL18: 5.7 | VM18: -14.9 | VN18: 6.0 | VO18: -14.8 | VP18: 6.3 | VQ18: -14.7 | VR18: 6.5 | VS18: -14.6 | VT18: 6.8 | VU18: -14.5 | VV18: 7.0 | VW18: -14.4 | VX18: 7.3 | VY18: -14.3 | VZ18: 7.5 | WA18: -14.1 | WB18: 7.8 | WC18: -14.0 | WD18: 8.0 | WE18: -13.9 | WF18: 8.2 | WG18: -13.7 | WH18: 8.5 | WI18: -13.6 | WJ18: 8.7 | WK18: -13.4 | WL18: 8.9 | WM18: -13.3 | WN18: 9.2 | WO18: -13.1 | WP18: 9.4 | WQ18: -12.9 | WR18: 9.6 | WS18: -12.8 | WT18: 9.9 | WU18: -12.6 | WV18: 10.1 | WW18: -12.4 | WX18: 10.3 | WY18: -12.3 | WZ18: 10.5 | XA18: -12.1 | XB18: 10.7 | XC18: -11.9 | XD18: 10.9 | XE18: -11.7 | XF18: 11.1 | XG18: -11.5 | XH18: 11.3 | XI18: -11.3 | XJ18: 11.5 | XK18: -11.1 | XL18: 11.7 | XM18: -10.9 | XN18: 11.9 | XO18: -10.7 | XP18: 12.1 | XQ18: -10.5 | XR18: 12.3 | XS18: -10.3 | XT18: 12.4 | XU18: -10.1 | XV18: 12.6 | XW18: -9.9 | XX18: 12.8 | XY18: -9.6 | XZ18: 12.9 | YA18: -9.4 | YB18: 13.1 | YC18: -9.2 | YD18: 13.3 | YE18: -8.9 | YF18: 13.4 | YG18: -8.7 | YH18: 13.6 | YI18: -8.5 | YJ18: 13.7 | YK18: -8.2 | YL18: 13.9 | YM18: -8.0 | YN18: 14.0 | YO18: -7.8 | YP18: 14.1 | YQ18: -7.5 | YR18: 14.3 | YS18: -7.3 | YT18: 14.4 | YU18: -7.0 | YV18: 14.5 | YW18: -6.8 | YX18: 14.6 | YY18: -6.5 | YZ18: 14.7 | ZA18: -6.3 | ZB18: 14.8 | ZC18: -6.0 | ZD18: 14.9 | ZE18: -5.7 | ZF18: 15.0 | ZG18: -5.5 | ZH18: 15.1 | ZI18: -5.2 | ZJ18: 15.2 | ZK18: -4.9 | ZL18: 15.3 | ZM18: -4.7 | ZN18: 15.4 | ZO18: -4.4 | ZP18: 15.5 | ZQ18: -4.1 | ZR18: 15.5 | ZS18: -3.9 | ZT18: 15.6 | ZU18: -3.6 | ZV18: 15.7 | ZW18: -3.3 | ZX18: 15.7 | ZY18: -3.1 | ZZ18: 15.8 | AAA18: -2.8 | AAB18: 15.8 | AAC18: -2.5 | AAD18: 15.8 | AAE18: -2.2 | AAF18: 15.9 | AAG18: -1.9 | AAH18: 15.9 | AAI18: -1.7 | AAJ18: 15.9 | AAK18: -1.4 | AAL18: 16.0 | AAM18: -1.1 | AAN18: 16.0 | AAO18: -0.8 | AAP18: 16.0 | AAQ18: -0.6 | AAR18: 16.0 | AAS18: -0.3 | AAT18: 16.0 | AAU18: -0.0
A19: 17 | B19: 17.0 | C19: 0.0 | D19: 17.0 | E19: 0.3 | F19: 17.0 | G19: 0.6 | H19: 17.0 | I19: 0.9 | J19: 17.0 | K19: 1.2 | L19: 16.9 | M19: 1.5 | N19: 16.9 | O19: 1.8 | P19: 16.9 | Q19: 2.1 | R19: 16.8 | S19: 2.4 | T19: =COS(T$1/360*2*PI())*$A19 -> 16.8 | U19: =SIN(T$1/360*2*PI())*$A19 -> 2.7 | V19: 16.7 | W19: 3.0 | X19: 16.7 | Y19: 3.2 | Z19: 16.6 | AA19: 3.5 | AB19: 16.6 | AC19: 3.8 | AD19: 16.5 | AE19: 4.1 | AF19: 16.4 | AG19: 4.4 | AH19: 16.3 | AI19: 4.7 | AJ19: 16.3 | AK19: =SIN(AJ$1/360*2*PI())*$A19 -> 5.0 | AL19: 16.2 | AM19: 5.3 | AN19: 16.1 | AO19: 5.5 | AP19: 16.0 | AQ19: 5.8 | AR19: 15.9 | AS19: 6.1 | AT19: 15.8 | AU19: 6.4 | AV19: 15.6 | AW19: 6.6 | AX19: 15.5 | AY19: 6.9 | AZ19: 15.4 | BA19: =SIN(AZ$1/360*2*PI())*$A19 -> 7.2 | BB19: 15.3 | BC19: 7.5 | BD19: 15.1 | BE19: 7.7 | BF19: 15.0 | BG19: 8.0 | BH19: 14.9 | BI19: 8.2 | BJ19: 14.7 | BK19: 8.5 | BL19: 14.6 | BM19: 8.8 | BN19: 14.4 | BO19: 9.0 | BP19: 14.3 | BQ19: =SIN(BP$1/360*2*PI())*$A19 -> 9.3 | BR19: 14.1 | BS19: =SIN(BR$1/360*2*PI())*$A19 -> 9.5 | BT19: 13.9 | BU19: 9.8 | BV19: 13.8 | BW19: 10.0 | BX19: 13.6 | BY19: 10.2 | BZ19: 13.4 | CA19: 10.5 | CB19: 13.2 | CC19: 10.7 | CD19: 13.0 | CE19: 10.9 | CF19: 12.8 | CG19: 11.2 | CH19: 12.6 | CI19: =SIN(CH$1/360*2*PI())*$A19 -> 11.4 | CJ19: 12.4 | CK19: 11.6 | CL19: 12.2 | CM19: 11.8 | CN19: 12.0 | CO19: 12.0 | CP19: 11.8 | CQ19: =SIN(CP$1/360*2*PI())*$A19 -> 12.2 | CR19: 11.6 | CS19: =SIN(CR$1/360*2*PI())*$A19 -> 12.4 | CT19: 11.4 | CU19: =SIN(CT$1/360*2*PI())*$A19 -> 12.6 | CV19: 11.2 | CW19: =SIN(CV$1/360*2*PI())*$A19 -> 12.8 | CX19: 10.9 | CY19: =SIN(CX$1/360*2*PI())*$A19 -> 13.0 | CZ19: 10.7 | DA19: =SIN(CZ$1/360*2*PI())*$A19 -> 13.2 | DB19: 10.5 | DC19: =SIN(DB$1/360*2*PI())*$A19 -> 13.4 | DD19: 10.2 | DE19: =SIN(DD$1/360*2*PI())*$A19 -> 13.6 | DF19: 10.0 | DG19: =SIN(DF$1/360*2*PI())*$A19 -> 13.8 | DH19: 9.8 | DI19: =SIN(DH$1/360*2*PI())*$A19 -> 13.9 | DJ19: 9.5 | DK19: =SIN(DJ$1/360*2*PI())*$A19 -> 14.1 | DL19: 9.3 | DM19: =SIN(DL$1/360*2*PI())*$A19 -> 14.3 | DN19: 9.0 | DO19: =SIN(DN$1/360*2*PI())*$A19 -> 14.4 | DP19: 8.8 | DQ19: =SIN(DP$1/360*2*PI())*$A19 -> 14.6 | DR19: 8.5 | DS19: =SIN(DR$1/360*2*PI())*$A19 -> 14.7 | DT19: 8.2 | DU19: =SIN(DT$1/360*2*PI())*$A19 -> 14.9 | DV19: 8.0 | DW19: =SIN(DV$1/360*2*PI())*$A19 -> 15.0 | DX19: 7.7 | DY19: =SIN(DX$1/360*2*PI())*$A19 -> 15.1 | DZ19: 7.5 | EA19: =SIN(DZ$1/360*2*PI())*$A19 -> 15.3 | EB19: 7.2 | EC19: =SIN(EB$1/360*2*PI())*$A19 -> 15.4 | ED19: 6.9 | EE19: =SIN(ED$1/360*2*PI())*$A19 -> 15.5 | EF19: 6.6 | EG19: =SIN(EF$1/360*2*PI())*$A19 -> 15.6 | EH19: 6.4 | EI19: =SIN(EH$1/360*2*PI())*$A19 -> 15.8 | EJ19: 6.1 | EK19: =SIN(EJ$1/360*2*PI())*$A19 -> 15.9 | EL19: 5.8 | EM19: =SIN(EL$1/360*2*PI())*$A19 -> 16.0 | EN19: 5.5 | EO19: =SIN(EN$1/360*2*PI())*$A19 -> 16.1 | EP19: 5.3 | EQ19: =SIN(EP$1/360*2*PI())*$A19 -> 16.2 | ER19: 5.0 | ES19: =SIN(ER$1/360*2*PI())*$A19 -> 16.3 | ET19: 4.7 | EU19: =SIN(ET$1/360*2*PI())*$A19 -> 16.3 | EV19: 4.4 | EW19: =SIN(EV$1/360*2*PI())*$A19 -> 16.4 | EX19: 4.1 | EY19: =SIN(EX$1/360*2*PI())*$A19 -> 16.5 | EZ19: 3.8 | FA19: =SIN(EZ$1/360*2*PI())*$A19 -> 16.6 | FB19: 3.5 | FC19: =SIN(FB$1/360*2*PI())*$A19 -> 16.6 | FD19: 3.2 | FE19: =SIN(FD$1/360*2*PI())*$A19 -> 16.7 | FF19: 3.0 | FG19: =SIN(FF$1/360*2*PI())*$A19 -> 16.7 | FH19: 2.7 | FI19: =SIN(FH$1/360*2*PI())*$A19 -> 16.8 | FJ19: 2.4 | FK19: =SIN(FJ$1/360*2*PI())*$A19 -> 16.8 | FL19: 2.1 | FM19: =SIN(FL$1/360*2*PI())*$A19 -> 16.9 | FN19: 1.8 | FO19: =SIN(FN$1/360*2*PI())*$A19 -> 16.9 | FP19: 1.5 | FQ19: =SIN(FP$1/360*2*PI())*$A19 -> 16.9 | FR19: 1.2 | FS19: =SIN(FR$1/360*2*PI())*$A19 -> 17.0 | FT19: 0.9 | FU19: =SIN(FT$1/360*2*PI())*$A19 -> 17.0 | FV19: 0.6 | FW19: =SIN(FV$1/360*2*PI())*$A19 -> 17.0 | FX19: 0.3 | FY19: =SIN(FX$1/360*2*PI())*$A19 -> 17.0 | FZ19: 0.0 | GA19: =SIN(FZ$1/360*2*PI())*$A19 -> 17.0 | GB19: -0.3 | GC19: =SIN(GB$1/360*2*PI())*$A19 -> 17.0 | GD19: -0.6 | GE19: =SIN(GD$1/360*2*PI())*$A19 -> 17.0 | GF19: -0.9 | GG19: =SIN(GF$1/360*2*PI())*$A19 -> 17.0 | GH19: -1.2 | GI19: =SIN(GH$1/360*2*PI())*$A19 -> 17.0 | GJ19: -1.5 | GK19: =SIN(GJ$1/360*2*PI())*$A19 -> 16.9 | GL19: -1.8 | GM19: =SIN(GL$1/360*2*PI())*$A19 -> 16.9 | GN19: -2.1 | GO19: =SIN(GN$1/360*2*PI())*$A19 -> 16.9 | GP19: -2.4 | GQ19: =SIN(GP$1/360*2*PI())*$A19 -> 16.8 | GR19: -2.7 | GS19: =SIN(GR$1/360*2*PI())*$A19 -> 16.8 | GT19: -3.0 | GU19: =SIN(GT$1/360*2*PI())*$A19 -> 16.7 | GV19: -3.2 | GW19: =SIN(GV$1/360*2*PI())*$A19 -> 16.7 | GX19: -3.5 | GY19: =SIN(GX$1/360*2*PI())*$A19 -> 16.6 | GZ19: -3.8 | HA19: =SIN(GZ$1/360*2*PI())*$A19 -> 16.6 | HB19: =COS(HB$1/360*2*PI())*$A19 -> -4.1 | HC19: =SIN(HB$1/360*2*PI())*$A19 -> 16.5 | HD19: -4.4 | HE19: =SIN(HD$1/360*2*PI())*$A19 -> 16.4 | HF19: -4.7 | HG19: =SIN(HF$1/360*2*PI())*$A19 -> 16.3 | HH19: -5.0 | HI19: =SIN(HH$1/360*2*PI())*$A19 -> 16.3 | HJ19: -5.3 | HK19: =SIN(HJ$1/360*2*PI())*$A19 -> 16.2 | HL19: =COS(HL$1/360*2*PI())*$A19 -> -5.5 | HM19: =SIN(HL$1/360*2*PI())*$A19 -> 16.1 | HN19: -5.8 | HO19: =SIN(HN$1/360*2*PI())*$A19 -> 16.0 | HP19: -6.1 | HQ19: =SIN(HP$1/360*2*PI())*$A19 -> 15.9 | HR19: -6.4 | HS19: =SIN(HR$1/360*2*PI())*$A19 -> 15.8 | HT19: -6.6 | HU19: =SIN(HT$1/360*2*PI())*$A19 -> 15.6 | HV19: -6.9 | HW19: =SIN(HV$1/360*2*PI())*$A19 -> 15.5 | HX19: -7.2 | HY19: =SIN(HX$1/360*2*PI())*$A19 -> 15.4 | HZ19: -7.5 | IA19: =SIN(HZ$1/360*2*PI())*$A19 -> 15.3 | IB19: -7.7 | IC19: =SIN(IB$1/360*2*PI())*$A19 -> 15.1 | ID19: -8.0 | IE19: =SIN(ID$1/360*2*PI())*$A19 -> 15.0 | IF19: -8.2 | IG19: =SIN(IF$1/360*2*PI())*$A19 -> 14.9 | IH19: -8.5 | II19: =SIN(IH$1/360*2*PI())*$A19 -> 14.7 | IJ19: -8.8 | IK19: =SIN(IJ$1/360*2*PI())*$A19 -> 14.6 | IL19: -9.0 | IM19: =SIN(IL$1/360*2*PI())*$A19 -> 14.4 | IN19: -9.3 | IO19: =SIN(IN$1/360*2*PI())*$A19 -> 14.3 | IP19: -9.5 | IQ19: =SIN(IP$1/360*2*PI())*$A19 -> 14.1 | IR19: -9.8 | IS19: =SIN(IR$1/360*2*PI())*$A19 -> 13.9 | IT19: -10.0 | IU19: =SIN(IT$1/360*2*PI())*$A19 -> 13.8 | IV19: -10.2 | IW19: =SIN(IV$1/360*2*PI())*$A19 -> 13.6 | IX19: -10.5 | IY19: =SIN(IX$1/360*2*PI())*$A19 -> 13.4 | IZ19: -10.7 | JA19: =SIN(IZ$1/360*2*PI())*$A19 -> 13.2 | JB19: -10.9 | JC19: =SIN(JB$1/360*2*PI())*$A19 -> 13.0 | JD19: -11.2 | JE19: =SIN(JD$1/360*2*PI())*$A19 -> 12.8 | JF19: -11.4 | JG19: =SIN(JF$1/360*2*PI())*$A19 -> 12.6 | JH19: -11.6 | JI19: =SIN(JH$1/360*2*PI())*$A19 -> 12.4 | JJ19: -11.8 | JK19: =SIN(JJ$1/360*2*PI())*$A19 -> 12.2 | JL19: -12.0 | JM19: =SIN(JL$1/360*2*PI())*$A19 -> 12.0 | JN19: -12.2 | JO19: =SIN(JN$1/360*2*PI())*$A19 -> 11.8 | JP19: -12.4 | JQ19: =SIN(JP$1/360*2*PI())*$A19 -> 11.6 | JR19: -12.6 | JS19: =SIN(JR$1/360*2*PI())*$A19 -> 11.4 | JT19: -12.8 | JU19: =SIN(JT$1/360*2*PI())*$A19 -> 11.2 | JV19: -13.0 | JW19: =SIN(JV$1/360*2*PI())*$A19 -> 10.9 | JX19: =COS(JX$1/360*2*PI())*$A19 -> -13.2 | JY19: =SIN(JX$1/360*2*PI())*$A19 -> 10.7 | JZ19: -13.4 | KA19: =SIN(JZ$1/360*2*PI())*$A19 -> 10.5 | KB19: -13.6 | KC19: =SIN(KB$1/360*2*PI())*$A19 -> 10.2 | KD19: -13.8 | KE19: =SIN(KD$1/360*2*PI())*$A19 -> 10.0 | KF19: -13.9 | KG19: =SIN(KF$1/360*2*PI())*$A19 -> 9.8 | KH19: -14.1 | KI19: =SIN(KH$1/360*2*PI())*$A19 -> 9.5 | KJ19: -14.3 | KK19: =SIN(KJ$1/360*2*PI())*$A19 -> 9.3 | KL19: -14.4 | KM19: =SIN(KL$1/360*2*PI())*$A19 -> 9.0 | KN19: -14.6 | KO19: =SIN(KN$1/360*2*PI())*$A19 -> 8.8 | KP19: -14.7 | KQ19: =SIN(KP$1/360*2*PI())*$A19 -> 8.5 | KR19: -14.9 | KS19: =SIN(KR$1/360*2*PI())*$A19 -> 8.2 | KT19: -15.0 | KU19: =SIN(KT$1/360*2*PI())*$A19 -> 8.0 | KV19: -15.1 | KW19: =SIN(KV$1/360*2*PI())*$A19 -> 7.7 | KX19: -15.3 | KY19: =SIN(KX$1/360*2*PI())*$A19 -> 7.5 | KZ19: -15.4 | LA19: =SIN(KZ$1/360*2*PI())*$A19 -> 7.2 | LB19: -15.5 | LC19: =SIN(LB$1/360*2*PI())*$A19 -> 6.9 | LD19: -15.6 | LE19: =SIN(LD$1/360*2*PI())*$A19 -> 6.6 | LF19: -15.8 | LG19: =SIN(LF$1/360*2*PI())*$A19 -> 6.4 | LH19: -15.9 | LI19: =SIN(LH$1/360*2*PI())*$A19 -> 6.1 | LJ19: -16.0 | LK19: =SIN(LJ$1/360*2*PI())*$A19 -> 5.8 | LL19: -16.1 | LM19: =SIN(LL$1/360*2*PI())*$A19 -> 5.5 | LN19: -16.2 | LO19: =SIN(LN$1/360*2*PI())*$A19 -> 5.3 | LP19: -16.3 | LQ19: =SIN(LP$1/360*2*PI())*$A19 -> 5.0 | LR19: -16.3 | LS19: =SIN(LR$1/360*2*PI())*$A19 -> 4.7 | LT19: -16.4 | LU19: =SIN(LT$1/360*2*PI())*$A19 -> 4.4 | LV19: -16.5 | LW19: =SIN(LV$1/360*2*PI())*$A19 -> 4.1 | LX19: -16.6 | LY19: =SIN(LX$1/360*2*PI())*$A19 -> 3.8 | LZ19: -16.6 | MA19: =SIN(LZ$1/360*2*PI())*$A19 -> 3.5 | MB19: -16.7 | MC19: =SIN(MB$1/360*2*PI())*$A19 -> 3.2 | MD19: -16.7 | ME19: =SIN(MD$1/360*2*PI())*$A19 -> 3.0 | MF19: -16.8 | MG19: =SIN(MF$1/360*2*PI())*$A19 -> 2.7 | MH19: -16.8 | MI19: =SIN(MH$1/360*2*PI())*$A19 -> 2.4 | MJ19: -16.9 | MK19: =SIN(MJ$1/360*2*PI())*$A19 -> 2.1 | ML19: -16.9 | MM19: =SIN(ML$1/360*2*PI())*$A19 -> 1.8 | MN19: -16.9 | MO19: =SIN(MN$1/360*2*PI())*$A19 -> 1.5 | MP19: -17.0 | MQ19: =SIN(MP$1/360*2*PI())*$A19 -> 1.2 | MR19: -17.0 | MS19: =SIN(MR$1/360*2*PI())*$A19 -> 0.9 | MT19: -17.0 | MU19: =SIN(MT$1/360*2*PI())*$A19 -> 0.6 | MV19: -17.0 | MW19: =SIN(MV$1/360*2*PI())*$A19 -> 0.3 | MX19: -17.0 | MY19: =SIN(MX$1/360*2*PI())*$A19 -> 0.0 | MZ19: -17.0 | NA19: =SIN(MZ$1/360*2*PI())*$A19 -> -0.3 | NB19: =COS(NB$1/360*2*PI())*$A19 -> -17.0 | NC19: =SIN(NB$1/360*2*PI())*$A19 -> -0.6 | ND19: -17.0 | NE19: =SIN(ND$1/360*2*PI())*$A19 -> -0.9 | NF19: -17.0 | NG19: =SIN(NF$1/360*2*PI())*$A19 -> -1.2 | NH19: -16.9 | NI19: =SIN(NH$1/360*2*PI())*$A19 -> -1.5 | NJ19: -16.9 | NK19: =SIN(NJ$1/360*2*PI())*$A19 -> -1.8 | NL19: -16.9 | NM19: =SIN(NL$1/360*2*PI())*$A19 -> -2.1 | NN19: -16.8 | NO19: =SIN(NN$1/360*2*PI())*$A19 -> -2.4 | NP19: -16.8 | NQ19: =SIN(NP$1/360*2*PI())*$A19 -> -2.7 | NR19: -16.7 | NS19: =SIN(NR$1/360*2*PI())*$A19 -> -3.0 | NT19: -16.7 | NU19: =SIN(NT$1/360*2*PI())*$A19 -> -3.2 | NV19: -16.6 | NW19: =SIN(NV$1/360*2*PI())*$A19 -> -3.5 | NX19: -16.6 | NY19: =SIN(NX$1/360*2*PI())*$A19 -> -3.8 | NZ19: -16.5 | OA19: =SIN(NZ$1/360*2*PI())*$A19 -> -4.1 | OB19: -16.4 | OC19: =SIN(OB$1/360*2*PI())*$A19 -> -4.4 | OD19: -16.3 | OE19: =SIN(OD$1/360*2*PI())*$A19 -> -4.7 | OF19: -16.3 | OG19: =SIN(OF$1/360*2*PI())*$A19 -> -5.0 | OH19: -16.2 | OI19: =SIN(OH$1/360*2*PI())*$A19 -> -5.3 | OJ19: -16.1 | OK19: =SIN(OJ$1/360*2*PI())*$A19 -> -5.5 | OL19: -16.0 | OM19: =SIN(OL$1/360*2*PI())*$A19 -> -5.8 | ON19: -15.9 | OO19: =SIN(ON$1/360*2*PI())*$A19 -> -6.1 | OP19: -15.8 | OQ19: =SIN(OP$1/360*2*PI())*$A19 -> -6.4 | OR19: -15.6 | OS19: =SIN(OR$1/360*2*PI())*$A19 -> -6.6 | OT19: -15.5 | OU19: =SIN(OT$1/360*2*PI())*$A19 -> -6.9 | OV19: -15.4 | OW19: =SIN(OV$1/360*2*PI())*$A19 -> -7.2 | OX19: -15.3 | OY19: =SIN(OX$1/360*2*PI())*$A19 -> -7.5 | OZ19: -15.1 | PA19: =SIN(OZ$1/360*2*PI())*$A19 -> -7.7 | PB19: -15.0 | PC19: =SIN(PB$1/360*2*PI())*$A19 -> -8.0 | PD19: -14.9 | PE19: =SIN(PD$1/360*2*PI())*$A19 -> -8.2 | PF19: -14.7 | PG19: =SIN(PF$1/360*2*PI())*$A19 -> -8.5 | PH19: -14.6 | PI19: =SIN(PH$1/360*2*PI())*$A19 -> -8.8 | PJ19: -14.4 | PK19: =SIN(PJ$1/360*2*PI())*$A19 -> -9.0 | PL19: -14.3 | PM19: =SIN(PL$1/360*2*PI())*$A19 -> -9.3 | PN19: -14.1 | PO19: =SIN(PN$1/360*2*PI())*$A19 -> -9.5 | PP19: -13.9 | PQ19: =SIN(PP$1/360*2*PI())*$A19 -> -9.8 | PR19: -13.8 | PS19: =SIN(PR$1/360*2*PI())*$A19 -> -10.0 | PT19: -13.6 | PU19: =SIN(PT$1/360*2*PI())*$A19 -> -10.2 | PV19: -13.4 | PW19: =SIN(PV$1/360*2*PI())*$A19 -> -10.5 | PX19: -13.2 | PY19: =SIN(PX$1/360*2*PI())*$A19 -> -10.7 | PZ19: -13.0 | QA19: =SIN(PZ$1/360*2*PI())*$A19 -> -10.9 | QB19: -12.8 | QC19: =SIN(QB$1/360*2*PI())*$A19 -> -11.2 | QD19: -12.6 | QE19: =SIN(QD$1/360*2*PI())*$A19 -> -11.4 | QF19: -12.4 | QG19: =SIN(QF$1/360*2*PI())*$A19 -> -11.6 | QH19: -12.2 | QI19: =SIN(QH$1/360*2*PI())*$A19 -> -11.8 | QJ19: -12.0 | QK19: =SIN(QJ$1/360*2*PI())*$A19 -> -12.0 | QL19: -11.8 | QM19: =SIN(QL$1/360*2*PI())*$A19 -> -12.2 | QN19: -11.6 | QO19: =SIN(QN$1/360*2*PI())*$A19 -> -12.4 | QP19: -11.4 | QQ19: =SIN(QP$1/360*2*PI())*$A19 -> -12.6 | QR19: -11.2 | QS19: =SIN(QR$1/360*2*PI())*$A19 -> -12.8 | QT19: -10.9 | QU19: =SIN(QT$1/360*2*PI())*$A19 -> -13.0 | QV19: -10.7 | QW19: =SIN(QV$1/360*2*PI())*$A19 -> -13.2 | QX19: -10.5 | QY19: =SIN(QX$1/360*2*PI())*$A19 -> -13.4 | QZ19: -10.2 | RA19: =SIN(QZ$1/360*2*PI())*$A19 -> -13.6 | RB19: -10.0 | RC19: =SIN(RB$1/360*2*PI())*$A19 -> -13.8 | RD19: -9.8 | RE19: =SIN(RD$1/360*2*PI())*$A19 -> -13.9 | RF19: -9.5 | RG19: =SIN(RF$1/360*2*PI())*$A19 -> -14.1 | RH19: -9.3 | RI19: =SIN(RH$1/360*2*PI())*$A19 -> -14.3 | RJ19: -9.0 | RK19: =SIN(RJ$1/360*2*PI())*$A19 -> -14.4 | RL19: -8.8 | RM19: =SIN(RL$1/360*2*PI())*$A19 -> -14.6 | RN19: -8.5 | RO19: =SIN(RN$1/360*2*PI())*$A19 -> -14.7 | RP19: -8.2 | RQ19: =SIN(RP$1/360*2*PI())*$A19 -> -14.9 | RR19: -8.0 | RS19: =SIN(RR$1/360*2*PI())*$A19 -> -15.0 | RT19: -7.7 | RU19: =SIN(RT$1/360*2*PI())*$A19 -> -15.1 | RV19: -7.5 | RW19: =SIN(RV$1/360*2*PI())*$A19 -> -15.3 | RX19: -7.2 | RY19: =SIN(RX$1/360*2*PI())*$A19 -> -15.4 | RZ19: -6.9 | SA19: =SIN(RZ$1/360*2*PI())*$A19 -> -15.5 | SB19: -6.6 | SC19: =SIN(SB$1/360*2*PI())*$A19 -> -15.6 | SD19: =COS(SD$1/360*2*PI())*$A19 -> -6.4 | SE19: =SIN(SD$1/360*2*PI())*$A19 -> -15.8 | SF19: -6.1 | SG19: =SIN(SF$1/360*2*PI())*$A19 -> -15.9 | SH19: -5.8 | SI19: =SIN(SH$1/360*2*PI())*$A19 -> -16.0 | SJ19: -5.5 | SK19: =SIN(SJ$1/360*2*PI())*$A19 -> -16.1 | SL19: -5.3 | SM19: =SIN(SL$1/360*2*PI())*$A19 -> -16.2 | SN19: -5.0 | SO19: =SIN(SN$1/360*2*PI())*$A19 -> -16.3 | SP19: -4.7 | SQ19: =SIN(SP$1/360*2*PI())*$A19 -> -16.3 | SR19: -4.4 | SS19: =SIN(SR$1/360*2*PI())*$A19 -> -16.4 | ST19: -4.1 | SU19: =SIN(ST$1/360*2*PI())*$A19 -> -16.5 | SV19: -3.8 | SW19: =SIN(SV$1/360*2*PI())*$A19 -> -16.6 | SX19: -3.5 | SY19: =SIN(SX$1/360*2*PI())*$A19 -> -16.6 | SZ19: -3.2 | TA19: =SIN(SZ$1/360*2*PI())*$A19 -> -16.7 | TB19: -3.0 | TC19: =SIN(TB$1/360*2*PI())*$A19 -> -16.7 | TD19: -2.7 | TE19: =SIN(TD$1/360*2*PI())*$A19 -> -16.8 | TF19: -2.4 | TG19: =SIN(TF$1/360*2*PI())*$A19 -> -16.8 | TH19: -2.1 | TI19: =SIN(TH$1/360*2*PI())*$A19 -> -16.9 | TJ19: -1.8 | TK19: =SIN(TJ$1/360*2*PI())*$A19 -> -16.9 | TL19: -1.5 | TM19: =SIN(TL$1/360*2*PI())*$A19 -> -16.9 | TN19: -1.2 | TO19: =SIN(TN$1/360*2*PI())*$A19 -> -17.0 | TP19: -0.9 | TQ19: =SIN(TP$1/360*2*PI())*$A19 -> -17.0 | TR19: -0.6 | TS19: =SIN(TR$1/360*2*PI())*$A19 -> -17.0 | TT19: -0.3 | TU19: =SIN(TT$1/360*2*PI())*$A19 -> -17.0 | TV19: -0.0 | TW19: =SIN(TV$1/360*2*PI())*$A19 -> -17.0 | TX19: 0.3 | TY19: =SIN(TX$1/360*2*PI())*$A19 -> -17.0 | TZ19: 0.6 | UA19: =SIN(TZ$1/360*2*PI())*$A19 -> -17.0 | UB19: 0.9 | UC19: =SIN(UB$1/360*2*PI())*$A19 -> -17.0 | UD19: 1.2 | UE19: =SIN(UD$1/360*2*PI())*$A19 -> -17.0 | UF19: 1.5 | UG19: =SIN(UF$1/360*2*PI())*$A19 -> -16.9 | UH19: 1.8 | UI19: =SIN(UH$1/360*2*PI())*$A19 -> -16.9 | UJ19: 2.1 | UK19: =SIN(UJ$1/360*2*PI())*$A19 -> -16.9 | UL19: 2.4 | UM19: =SIN(UL$1/360*2*PI())*$A19 -> -16.8 | UN19: 2.7 | UO19: =SIN(UN$1/360*2*PI())*$A19 -> -16.8 | UP19: 3.0 | UQ19: =SIN(UP$1/360*2*PI())*$A19 -> -16.7 | UR19: 3.2 | US19: =SIN(UR$1/360*2*PI())*$A19 -> -16.7 | UT19: 3.5 | UU19: =SIN(UT$1/360*2*PI())*$A19 -> -16.6 | UV19: 3.8 | UW19: =SIN(UV$1/360*2*PI())*$A19 -> -16.6 | UX19: 4.1 | UY19: =SIN(UX$1/360*2*PI())*$A19 -> -16.5 | UZ19: 4.4 | VA19: =SIN(UZ$1/360*2*PI())*$A19 -> -16.4 | VB19: 4.7 | VC19: =SIN(VB$1/360*2*PI())*$A19 -> -16.3 | VD19: 5.0 | VE19: =SIN(VD$1/360*2*PI())*$A19 -> -16.3 | VF19: 5.3 | VG19: =SIN(VF$1/360*2*PI())*$A19 -> -16.2 | VH19: 5.5 | VI19: =SIN(VH$1/360*2*PI())*$A19 -> -16.1 | VJ19: 5.8 | VK19: =SIN(VJ$1/360*2*PI())*$A19 -> -16.0 | VL19: 6.1 | VM19: =SIN(VL$1/360*2*PI())*$A19 -> -15.9 | VN19: 6.4 | VO19: =SIN(VN$1/360*2*PI())*$A19 -> -15.8 | VP19: 6.6 | VQ19: =SIN(VP$1/360*2*PI())*$A19 -> -15.6 | VR19: 6.9 | VS19: =SIN(VR$1/360*2*PI())*$A19 -> -15.5 | VT19: 7.2 | VU19: =SIN(VT$1/360*2*PI())*$A19 -> -15.4 | VV19: 7.5 | VW19: =SIN(VV$1/360*2*PI())*$A19 -> -15.3 | VX19: 7.7 | VY19: =SIN(VX$1/360*2*PI())*$A19 -> -15.1 | VZ19: 8.0 | WA19: =SIN(VZ$1/360*2*PI())*$A19 -> -15.0 | WB19: 8.2 | WC19: =SIN(WB$1/360*2*PI())*$A19 -> -14.9 | WD19: 8.5 | WE19: =SIN(WD$1/360*2*PI())*$A19 -> -14.7 | WF19: 8.8 | WG19: =SIN(WF$1/360*2*PI())*$A19 -> -14.6 | WH19: 9.0 | WI19: =SIN(WH$1/360*2*PI())*$A19 -> -14.4 | WJ19: 9.3 | WK19: =SIN(WJ$1/360*2*PI())*$A19 -> -14.3 | WL19: 9.5 | WM19: =SIN(WL$1/360*2*PI())*$A19 -> -14.1 | WN19: 9.8 | WO19: =SIN(WN$1/360*2*PI())*$A19 -> -13.9 | WP19: 10.0 | WQ19: =SIN(WP$1/360*2*PI())*$A19 -> -13.8 | WR19: 10.2 | WS19: =SIN(WR$1/360*2*PI())*$A19 -> -13.6 | WT19: 10.5 | WU19: =SIN(WT$1/360*2*PI())*$A19 -> -13.4 | WV19: 10.7 | WW19: =SIN(WV$1/360*2*PI())*$A19 -> -13.2 | WX19: 10.9 | WY19: =SIN(WX$1/360*2*PI())*$A19 -> -13.0 | WZ19: 11.2 | XA19: =SIN(WZ$1/360*2*PI())*$A19 -> -12.8 | XB19: =COS(XB$1/360*2*PI())*$A19 -> 11.4 | XC19: =SIN(XB$1/360*2*PI())*$A19 -> -12.6 | XD19: 11.6 | XE19: =SIN(XD$1/360*2*PI())*$A19 -> -12.4 | XF19: 11.8 | XG19: =SIN(XF$1/360*2*PI())*$A19 -> -12.2 | XH19: 12.0 | XI19: =SIN(XH$1/360*2*PI())*$A19 -> -12.0 | XJ19: 12.2 | XK19: =SIN(XJ$1/360*2*PI())*$A19 -> -11.8 | XL19: 12.4 | XM19: =SIN(XL$1/360*2*PI())*$A19 -> -11.6 | XN19: 12.6 | XO19: =SIN(XN$1/360*2*PI())*$A19 -> -11.4 | XP19: 12.8 | XQ19: =SIN(XP$1/360*2*PI())*$A19 -> -11.2 | XR19: 13.0 | XS19: =SIN(XR$1/360*2*PI())*$A19 -> -10.9 | XT19: 13.2 | XU19: =SIN(XT$1/360*2*PI())*$A19 -> -10.7 | XV19: 13.4 | XW19: =SIN(XV$1/360*2*PI())*$A19 -> -10.5 | XX19: 13.6 | XY19: =SIN(XX$1/360*2*PI())*$A19 -> -10.2 | XZ19: 13.8 | YA19: =SIN(XZ$1/360*2*PI())*$A19 -> -10.0 | YB19: 13.9 | YC19: =SIN(YB$1/360*2*PI())*$A19 -> -9.8 | YD19: 14.1 | YE19: =SIN(YD$1/360*2*PI())*$A19 -> -9.5 | YF19: 14.3 | YG19: =SIN(YF$1/360*2*PI())*$A19 -> -9.3 | YH19: 14.4 | YI19: =SIN(YH$1/360*2*PI())*$A19 -> -9.0 | YJ19: 14.6 | YK19: =SIN(YJ$1/360*2*PI())*$A19 -> -8.8 | YL19: 14.7 | YM19: =SIN(YL$1/360*2*PI())*$A19 -> -8.5 | YN19: 14.9 | YO19: =SIN(YN$1/360*2*PI())*$A19 -> -8.2 | YP19: 15.0 | YQ19: =SIN(YP$1/360*2*PI())*$A19 -> -8.0 | YR19: 15.1 | YS19: =SIN(YR$1/360*2*PI())*$A19 -> -7.7 | YT19: 15.3 | YU19: =SIN(YT$1/360*2*PI())*$A19 -> -7.5 | YV19: 15.4 | YW19: =SIN(YV$1/360*2*PI())*$A19 -> -7.2 | YX19: 15.5 | YY19: =SIN(YX$1/360*2*PI())*$A19 -> -6.9 | YZ19: 15.6 | ZA19: =SIN(YZ$1/360*2*PI())*$A19 -> -6.6 | ZB19: 15.8 | ZC19: =SIN(ZB$1/360*2*PI())*$A19 -> -6.4 | ZD19: 15.9 | ZE19: =SIN(ZD$1/360*2*PI())*$A19 -> -6.1 | ZF19: 16.0 | ZG19: =SIN(ZF$1/360*2*PI())*$A19 -> -5.8 | ZH19: 16.1 | ZI19: =SIN(ZH$1/360*2*PI())*$A19 -> -5.5 | ZJ19: 16.2 | ZK19: =SIN(ZJ$1/360*2*PI())*$A19 -> -5.3 | ZL19: 16.3 | ZM19: =SIN(ZL$1/360*2*PI())*$A19 -> -5.0 | ZN19: 16.3 | ZO19: =SIN(ZN$1/360*2*PI())*$A19 -> -4.7 | ZP19: 16.4 | ZQ19: =SIN(ZP$1/360*2*PI())*$A19 -> -4.4 | ZR19: =COS(ZR$1/360*2*PI())*$A19 -> 16.5 | ZS19: =SIN(ZR$1/360*2*PI())*$A19 -> -4.1 | ZT19: 16.6 | ZU19: =SIN(ZT$1/360*2*PI())*$A19 -> -3.8 | ZV19: 16.6 | ZW19: =SIN(ZV$1/360*2*PI())*$A19 -> -3.5 | ZX19: 16.7 | ZY19: =SIN(ZX$1/360*2*PI())*$A19 -> -3.2 | ZZ19: 16.7 | AAA19: =SIN(ZZ$1/360*2*PI())*$A19 -> -3.0 | AAB19: 16.8 | AAC19: =SIN(AAB$1/360*2*PI())*$A19 -> -2.7 | AAD19: 16.8 | AAE19: =SIN(AAD$1/360*2*PI())*$A19 -> -2.4 | AAF19: 16.9 | AAG19: =SIN(AAF$1/360*2*PI())*$A19 -> -2.1 | AAH19: 16.9 | AAI19: =SIN(AAH$1/360*2*PI())*$A19 -> -1.8 | AAJ19: 16.9 | AAK19: =SIN(AAJ$1/360*2*PI())*$A19 -> -1.5 | AAL19: 17.0 | AAM19: =SIN(AAL$1/360*2*PI())*$A19 -> -1.2 | AAN19: 17.0 | AAO19: =SIN(AAN$1/360*2*PI())*$A19 -> -0.9 | AAP19: 17.0 | AAQ19: =SIN(AAP$1/360*2*PI())*$A19 -> -0.6 | AAR19: 17.0 | AAS19: =SIN(AAR$1/360*2*PI())*$A19 -> -0.3 | AAT19: 17.0 | AAU19: =SIN(AAT$1/360*2*PI())*$A19 -> -0.0
A20: 18 | B20: 18.0 | C20: 0.0 | D20: 18.0 | E20: =SIN(D$1/360*2*PI())*$A20 -> 0.3 | F20: 18.0 | G20: =SIN(F$1/360*2*PI())*$A20 -> 0.6 | H20: 18.0 | I20: 0.9 | J20: 18.0 | K20: 1.3 | L20: 17.9 | M20: 1.6 | N20: 17.9 | O20: 1.9 | P20: 17.9 | Q20: 2.2 | R20: 17.8 | S20: 2.5 | T20: 17.8 | U20: 2.8 | V20: 17.7 | W20: 3.1 | X20: 17.7 | Y20: 3.4 | Z20: 17.6 | AA20: 3.7 | AB20: 17.5 | AC20: 4.0 | AD20: 17.5 | AE20: 4.4 | AF20: 17.4 | AG20: 4.7 | AH20: 17.3 | AI20: 5.0 | AJ20: 17.2 | AK20: 5.3 | AL20: 17.1 | AM20: 5.6 | AN20: 17.0 | AO20: 5.9 | AP20: 16.9 | AQ20: 6.2 | AR20: 16.8 | AS20: 6.5 | AT20: 16.7 | AU20: 6.7 | AV20: 16.6 | AW20: 7.0 | AX20: 16.4 | AY20: 7.3 | AZ20: 16.3 | BA20: 7.6 | BB20: 16.2 | BC20: 7.9 | BD20: 16.0 | BE20: 8.2 | BF20: 15.9 | BG20: 8.5 | BH20: 15.7 | BI20: 8.7 | BJ20: 15.6 | BK20: 9.0 | BL20: 15.4 | BM20: 9.3 | BN20: 15.3 | BO20: 9.5 | BP20: 15.1 | BQ20: 9.8 | BR20: 14.9 | BS20: 10.1 | BT20: 14.7 | BU20: 10.3 | BV20: 14.6 | BW20: 10.6 | BX20: 14.4 | BY20: 10.8 | BZ20: 14.2 | CA20: 11.1 | CB20: 14.0 | CC20: 11.3 | CD20: 13.8 | CE20: 11.6 | CF20: 13.6 | CG20: 11.8 | CH20: 13.4 | CI20: 12.0 | CJ20: 13.2 | CK20: 12.3 | CL20: 12.9 | CM20: 12.5 | CN20: 12.7 | CO20: 12.7 | CP20: 12.5 | CQ20: 12.9 | CR20: 12.3 | CS20: 13.2 | CT20: 12.0 | CU20: 13.4 | CV20: 11.8 | CW20: 13.6 | CX20: 11.6 | CY20: 13.8 | CZ20: 11.3 | DA20: 14.0 | DB20: 11.1 | DC20: 14.2 | DD20: 10.8 | DE20: 14.4 | DF20: 10.6 | DG20: 14.6 | DH20: 10.3 | DI20: 14.7 | DJ20: 10.1 | DK20: 14.9 | DL20: 9.8 | DM20: 15.1 | DN20: 9.5 | DO20: 15.3 | DP20: 9.3 | DQ20: 15.4 | DR20: 9.0 | DS20: 15.6 | DT20: 8.7 | DU20: 15.7 | DV20: 8.5 | DW20: 15.9 | DX20: 8.2 | DY20: 16.0 | DZ20: 7.9 | EA20: 16.2 | EB20: 7.6 | EC20: 16.3 | ED20: 7.3 | EE20: 16.4 | EF20: 7.0 | EG20: 16.6 | EH20: 6.7 | EI20: 16.7 | EJ20: 6.5 | EK20: 16.8 | EL20: 6.2 | EM20: 16.9 | EN20: 5.9 | EO20: 17.0 | EP20: 5.6 | EQ20: 17.1 | ER20: 5.3 | ES20: 17.2 | ET20: 5.0 | EU20: 17.3 | EV20: 4.7 | EW20: 17.4 | EX20: 4.4 | EY20: 17.5 | EZ20: 4.0 | FA20: 17.5 | FB20: =COS(FB$1/360*2*PI())*$A20 -> 3.7 | FC20: 17.6 | FD20: 3.4 | FE20: 17.7 | FF20: 3.1 | FG20: 17.7 | FH20: 2.8 | FI20: 17.8 | FJ20: 2.5 | FK20: 17.8 | FL20: 2.2 | FM20: 17.9 | FN20: 1.9 | FO20: 17.9 | FP20: 1.6 | FQ20: 17.9 | FR20: 1.3 | FS20: 18.0 | FT20: 0.9 | FU20: 18.0 | FV20: 0.6 | FW20: 18.0 | FX20: 0.3 | FY20: 18.0 | FZ20: 0.0 | GA20: 18.0 | GB20: -0.3 | GC20: 18.0 | GD20: -0.6 | GE20: 18.0 | GF20: -0.9 | GG20: 18.0 | GH20: -1.3 | GI20: 18.0 | GJ20: -1.6 | GK20: 17.9 | GL20: -1.9 | GM20: 17.9 | GN20: -2.2 | GO20: 17.9 | GP20: -2.5 | GQ20: 17.8 | GR20: -2.8 | GS20: 17.8 | GT20: -3.1 | GU20: 17.7 | GV20: -3.4 | GW20: 17.7 | GX20: -3.7 | GY20: 17.6 | GZ20: -4.0 | HA20: 17.5 | HB20: -4.4 | HC20: 17.5 | HD20: -4.7 | HE20: 17.4 | HF20: -5.0 | HG20: 17.3 | HH20: -5.3 | HI20: 17.2 | HJ20: -5.6 | HK20: 17.1 | HL20: -5.9 | HM20: 17.0 | HN20: -6.2 | HO20: 16.9 | HP20: -6.5 | HQ20: 16.8 | HR20: -6.7 | HS20: 16.7 | HT20: -7.0 | HU20: 16.6 | HV20: -7.3 | HW20: 16.4 | HX20: -7.6 | HY20: 16.3 | HZ20: -7.9 | IA20: 16.2 | IB20: -8.2 | IC20: 16.0 | ID20: -8.5 | IE20: 15.9 | IF20: -8.7 | IG20: 15.7 | IH20: -9.0 | II20: 15.6 | IJ20: -9.3 | IK20: 15.4 | IL20: -9.5 | IM20: 15.3 | IN20: -9.8 | IO20: 15.1 | IP20: -10.1 | IQ20: 14.9 | IR20: -10.3 | IS20: 14.7 | IT20: -10.6 | IU20: 14.6 | IV20: -10.8 | IW20: 14.4 | IX20: -11.1 | IY20: 14.2 | IZ20: -11.3 | JA20: 14.0 | JB20: -11.6 | JC20: 13.8 | JD20: -11.8 | JE20: 13.6 | JF20: -12.0 | JG20: 13.4 | JH20: -12.3 | JI20: 13.2 | JJ20: -12.5 | JK20: 12.9 | JL20: -12.7 | JM20: 12.7 | JN20: -12.9 | JO20: 12.5 | JP20: -13.2 | JQ20: 12.3 | JR20: -13.4 | JS20: 12.0 | JT20: -13.6 | JU20: 11.8 | JV20: -13.8 | JW20: 11.6 | JX20: -14.0 | JY20: 11.3 | JZ20: -14.2 | KA20: 11.1 | KB20: -14.4 | KC20: 10.8 | KD20: -14.6 | KE20: 10.6 | KF20: -14.7 | KG20: 10.3 | KH20: -14.9 | KI20: 10.1 | KJ20: -15.1 | KK20: 9.8 | KL20: -15.3 | KM20: 9.5 | KN20: -15.4 | KO20: 9.3 | KP20: -15.6 | KQ20: 9.0 | KR20: -15.7 | KS20: 8.7 | KT20: -15.9 | KU20: 8.5 | KV20: -16.0 | KW20: 8.2 | KX20: -16.2 | KY20: 7.9 | KZ20: -16.3 | LA20: 7.6 | LB20: -16.4 | LC20: 7.3 | LD20: -16.6 | LE20: 7.0 | LF20: -16.7 | LG20: 6.7 | LH20: -16.8 | LI20: 6.5 | LJ20: -16.9 | LK20: 6.2 | LL20: -17.0 | LM20: 5.9 | LN20: -17.1 | LO20: 5.6 | LP20: -17.2 | LQ20: 5.3 | LR20: -17.3 | LS20: 5.0 | LT20: -17.4 | LU20: 4.7 | LV20: -17.5 | LW20: 4.4 | LX20: -17.5 | LY20: 4.0 | LZ20: -17.6 | MA20: 3.7 | MB20: -17.7 | MC20: 3.4 | MD20: -17.7 | ME20: 3.1 | MF20: -17.8 | MG20: 2.8 | MH20: -17.8 | MI20: 2.5 | MJ20: -17.9 | MK20: 2.2 | ML20: -17.9 | MM20: 1.9 | MN20: -17.9 | MO20: 1.6 | MP20: -18.0 | MQ20: 1.3 | MR20: -18.0 | MS20: 0.9 | MT20: =COS(MT$1/360*2*PI())*$A20 -> -18.0 | MU20: 0.6 | MV20: -18.0 | MW20: 0.3 | MX20: -18.0 | MY20: 0.0 | MZ20: -18.0 | NA20: -0.3 | NB20: -18.0 | NC20: -0.6 | ND20: -18.0 | NE20: -0.9 | NF20: -18.0 | NG20: -1.3 | NH20: -17.9 | NI20: -1.6 | NJ20: -17.9 | NK20: -1.9 | NL20: -17.9 | NM20: -2.2 | NN20: -17.8 | NO20: -2.5 | NP20: -17.8 | NQ20: -2.8 | NR20: -17.7 | NS20: -3.1 | NT20: -17.7 | NU20: -3.4 | NV20: -17.6 | NW20: -3.7 | NX20: -17.5 | NY20: -4.0 | NZ20: -17.5 | OA20: -4.4 | OB20: -17.4 | OC20: -4.7 | OD20: -17.3 | OE20: -5.0 | OF20: -17.2 | OG20: -5.3 | OH20: -17.1 | OI20: -5.6 | OJ20: -17.0 | OK20: -5.9 | OL20: -16.9 | OM20: -6.2 | ON20: -16.8 | OO20: -6.5 | OP20: -16.7 | OQ20: -6.7 | OR20: -16.6 | OS20: -7.0 | OT20: -16.4 | OU20: -7.3 | OV20: -16.3 | OW20: -7.6 | OX20: -16.2 | OY20: -7.9 | OZ20: -16.0 | PA20: -8.2 | PB20: -15.9 | PC20: -8.5 | PD20: -15.7 | PE20: -8.7 | PF20: -15.6 | PG20: -9.0 | PH20: -15.4 | PI20: -9.3 | PJ20: -15.3 | PK20: -9.5 | PL20: -15.1 | PM20: -9.8 | PN20: -14.9 | PO20: -10.1 | PP20: -14.7 | PQ20: -10.3 | PR20: -14.6 | PS20: -10.6 | PT20: -14.4 | PU20: -10.8 | PV20: -14.2 | PW20: -11.1 | PX20: -14.0 | PY20: -11.3 | PZ20: -13.8 | QA20: -11.6 | QB20: -13.6 | QC20: -11.8 | QD20: -13.4 | QE20: -12.0 | QF20: -13.2 | QG20: -12.3 | QH20: -12.9 | QI20: -12.5 | QJ20: -12.7 | QK20: -12.7 | QL20: -12.5 | QM20: -12.9 | QN20: -12.3 | QO20: -13.2 | QP20: -12.0 | QQ20: -13.4 | QR20: -11.8 | QS20: -13.6 | QT20: -11.6 | QU20: -13.8 | QV20: -11.3 | QW20: -14.0 | QX20: -11.1 | QY20: -14.2 | QZ20: -10.8 | RA20: -14.4 | RB20: -10.6 | RC20: -14.6 | RD20: -10.3 | RE20: -14.7 | RF20: -10.1 | RG20: -14.9 | RH20: -9.8 | RI20: -15.1 | RJ20: -9.5 | RK20: -15.3 | RL20: -9.3 | RM20: -15.4 | RN20: -9.0 | RO20: -15.6 | RP20: -8.7 | RQ20: -15.7 | RR20: -8.5 | RS20: -15.9 | RT20: =COS(RT$1/360*2*PI())*$A20 -> -8.2 | RU20: -16.0 | RV20: -7.9 | RW20: -16.2 | RX20: -7.6 | RY20: -16.3 | RZ20: -7.3 | SA20: -16.4 | SB20: -7.0 | SC20: -16.6 | SD20: -6.7 | SE20: -16.7 | SF20: -6.5 | SG20: -16.8 | SH20: -6.2 | SI20: -16.9 | SJ20: -5.9 | SK20: -17.0 | SL20: -5.6 | SM20: -17.1 | SN20: -5.3 | SO20: -17.2 | SP20: -5.0 | SQ20: -17.3 | SR20: -4.7 | SS20: -17.4 | ST20: -4.4 | SU20: -17.5 | SV20: -4.0 | SW20: -17.5 | SX20: -3.7 | SY20: -17.6 | SZ20: -3.4 | TA20: -17.7 | TB20: -3.1 | TC20: -17.7 | TD20: -2.8 | TE20: -17.8 | TF20: -2.5 | TG20: -17.8 | TH20: -2.2 | TI20: -17.9 | TJ20: -1.9 | TK20: -17.9 | TL20: -1.6 | TM20: -17.9 | TN20: -1.3 | TO20: -18.0 | TP20: -0.9 | TQ20: -18.0 | TR20: -0.6 | TS20: -18.0 | TT20: -0.3 | TU20: -18.0 | TV20: -0.0 | TW20: -18.0 | TX20: 0.3 | TY20: -18.0 | TZ20: 0.6 | UA20: -18.0 | UB20: 0.9 | UC20: -18.0 | UD20: 1.3 | UE20: -18.0 | UF20: 1.6 | UG20: -17.9 | UH20: 1.9 | UI20: -17.9 | UJ20: 2.2 | UK20: -17.9 | UL20: 2.5 | UM20: -17.8 | UN20: 2.8 | UO20: -17.8 | UP20: 3.1 | UQ20: -17.7 | UR20: 3.4 | US20: -17.7 | UT20: 3.7 | UU20: -17.6 | UV20: 4.0 | UW20: -17.5 | UX20: 4.4 | UY20: -17.5 | UZ20: 4.7 | VA20: -17.4 | VB20: 5.0 | VC20: -17.3 | VD20: 5.3 | VE20: -17.2 | VF20: 5.6 | VG20: -17.1 | VH20: 5.9 | VI20: -17.0 | VJ20: 6.2 | VK20: -16.9 | VL20: 6.5 | VM20: -16.8 | VN20: 6.7 | VO20: -16.7 | VP20: 7.0 | VQ20: -16.6 | VR20: 7.3 | VS20: -16.4 | VT20: 7.6 | VU20: -16.3 | VV20: 7.9 | VW20: -16.2 | VX20: 8.2 | VY20: -16.0 | VZ20: 8.5 | WA20: -15.9 | WB20: 8.7 | WC20: -15.7 | WD20: 9.0 | WE20: -15.6 | WF20: 9.3 | WG20: -15.4 | WH20: 9.5 | WI20: -15.3 | WJ20: 9.8 | WK20: -15.1 | WL20: 10.1 | WM20: -14.9 | WN20: 10.3 | WO20: -14.7 | WP20: 10.6 | WQ20: -14.6 | WR20: =COS(WR$1/360*2*PI())*$A20 -> 10.8 | WS20: -14.4 | WT20: 11.1 | WU20: -14.2 | WV20: 11.3 | WW20: -14.0 | WX20: 11.6 | WY20: -13.8 | WZ20: 11.8 | XA20: -13.6 | XB20: 12.0 | XC20: -13.4 | XD20: 12.3 | XE20: -13.2 | XF20: 12.5 | XG20: -12.9 | XH20: 12.7 | XI20: -12.7 | XJ20: 12.9 | XK20: -12.5 | XL20: 13.2 | XM20: -12.3 | XN20: 13.4 | XO20: -12.0 | XP20: 13.6 | XQ20: -11.8 | XR20: 13.8 | XS20: -11.6 | XT20: 14.0 | XU20: -11.3 | XV20: 14.2 | XW20: -11.1 | XX20: 14.4 | XY20: -10.8 | XZ20: 14.6 | YA20: -10.6 | YB20: 14.7 | YC20: -10.3 | YD20: 14.9 | YE20: -10.1 | YF20: 15.1 | YG20: -9.8 | YH20: 15.3 | YI20: -9.5 | YJ20: 15.4 | YK20: -9.3 | YL20: 15.6 | YM20: -9.0 | YN20: 15.7 | YO20: -8.7 | YP20: 15.9 | YQ20: -8.5 | YR20: 16.0 | YS20: -8.2 | YT20: 16.2 | YU20: -7.9 | YV20: 16.3 | YW20: -7.6 | YX20: 16.4 | YY20: -7.3 | YZ20: 16.6 | ZA20: -7.0 | ZB20: 16.7 | ZC20: -6.7 | ZD20: 16.8 | ZE20: -6.5 | ZF20: 16.9 | ZG20: -6.2 | ZH20: 17.0 | ZI20: -5.9 | ZJ20: 17.1 | ZK20: -5.6 | ZL20: 17.2 | ZM20: -5.3 | ZN20: =COS(ZN$1/360*2*PI())*$A20 -> 17.3 | ZO20: -5.0 | ZP20: 17.4 | ZQ20: -4.7 | ZR20: 17.5 | ZS20: -4.4 | ZT20: 17.5 | ZU20: -4.0 | ZV20: 17.6 | ZW20: -3.7 | ZX20: 17.7 | ZY20: -3.4 | ZZ20: 17.7 | AAA20: -3.1 | AAB20: 17.8 | AAC20: -2.8 | AAD20: 17.8 | AAE20: -2.5 | AAF20: 17.9 | AAG20: -2.2 | AAH20: 17.9 | AAI20: -1.9 | AAJ20: 17.9 | AAK20: -1.6 | AAL20: 18.0 | AAM20: -1.3 | AAN20: 18.0 | AAO20: -0.9 | AAP20: 18.0 | AAQ20: -0.6 | AAR20: 18.0 | AAS20: -0.3 | AAT20: 18.0 | AAU20: -0.0
A21: 19 | B21: 19.0 | C21: 0.0 | D21: 19.0 | E21: 0.3 | F21: 19.0 | G21: 0.7 | H21: 19.0 | I21: 1.0 | J21: 19.0 | K21: 1.3 | L21: 18.9 | M21: 1.7 | N21: 18.9 | O21: 2.0 | P21: 18.9 | Q21: 2.3 | R21: 18.8 | S21: 2.6 | T21: 18.8 | U21: 3.0 | V21: 18.7 | W21: 3.3 | X21: 18.7 | Y21: 3.6 | Z21: 18.6 | AA21: 4.0 | AB21: 18.5 | AC21: 4.3 | AD21: 18.4 | AE21: 4.6 | AF21: 18.4 | AG21: 4.9 | AH21: 18.3 | AI21: 5.2 | AJ21: 18.2 | AK21: 5.6 | AL21: 18.1 | AM21: 5.9 | AN21: 18.0 | AO21: 6.2 | AP21: 17.9 | AQ21: 6.5 | AR21: 17.7 | AS21: 6.8 | AT21: 17.6 | AU21: 7.1 | AV21: 17.5 | AW21: 7.4 | AX21: 17.4 | AY21: 7.7 | AZ21: 17.2 | BA21: 8.0 | BB21: 17.1 | BC21: 8.3 | BD21: 16.9 | BE21: 8.6 | BF21: 16.8 | BG21: 8.9 | BH21: 16.6 | BI21: 9.2 | BJ21: 16.5 | BK21: 9.5 | BL21: 16.3 | BM21: 9.8 | BN21: 16.1 | BO21: 10.1 | BP21: 15.9 | BQ21: 10.3 | BR21: 15.8 | BS21: 10.6 | BT21: 15.6 | BU21: 10.9 | BV21: 15.4 | BW21: 11.2 | BX21: 15.2 | BY21: 11.4 | BZ21: 15.0 | CA21: 11.7 | CB21: 14.8 | CC21: 12.0 | CD21: 14.6 | CE21: 12.2 | CF21: 14.3 | CG21: 12.5 | CH21: 14.1 | CI21: 12.7 | CJ21: 13.9 | CK21: 13.0 | CL21: 13.7 | CM21: 13.2 | CN21: 13.4 | CO21: 13.4 | CP21: 13.2 | CQ21: 13.7 | CR21: 13.0 | CS21: 13.9 | CT21: 12.7 | CU21: 14.1 | CV21: 12.5 | CW21: 14.3 | CX21: 12.2 | CY21: 14.6 | CZ21: 12.0 | DA21: 14.8 | DB21: 11.7 | DC21: 15.0 | DD21: 11.4 | DE21: 15.2 | DF21: 11.2 | DG21: 15.4 | DH21: 10.9 | DI21: 15.6 | DJ21: 10.6 | DK21: 15.8 | DL21: 10.3 | DM21: 15.9 | DN21: 10.1 | DO21: 16.1 | DP21: 9.8 | DQ21: 16.3 | DR21: 9.5 | DS21: 16.5 | DT21: 9.2 | DU21: 16.6 | DV21: 8.9 | DW21: 16.8 | DX21: 8.6 | DY21: 16.9 | DZ21: 8.3 | EA21: 17.1 | EB21: 8.0 | EC21: 17.2 | ED21: 7.7 | EE21: 17.4 | EF21: 7.4 | EG21: 17.5 | EH21: 7.1 | EI21: 17.6 | EJ21: 6.8 | EK21: 17.7 | EL21: 6.5 | EM21: 17.9 | EN21: 6.2 | EO21: 18.0 | EP21: 5.9 | EQ21: 18.1 | ER21: 5.6 | ES21: 18.2 | ET21: 5.2 | EU21: 18.3 | EV21: 4.9 | EW21: 18.4 | EX21: 4.6 | EY21: 18.4 | EZ21: 4.3 | FA21: 18.5 | FB21: 4.0 | FC21: 18.6 | FD21: 3.6 | FE21: 18.7 | FF21: 3.3 | FG21: 18.7 | FH21: 3.0 | FI21: 18.8 | FJ21: 2.6 | FK21: 18.8 | FL21: 2.3 | FM21: 18.9 | FN21: 2.0 | FO21: 18.9 | FP21: 1.7 | FQ21: 18.9 | FR21: 1.3 | FS21: 19.0 | FT21: 1.0 | FU21: 19.0 | FV21: 0.7 | FW21: 19.0 | FX21: 0.3 | FY21: 19.0 | FZ21: 0.0 | GA21: 19.0 | GB21: -0.3 | GC21: 19.0 | GD21: -0.7 | GE21: 19.0 | GF21: -1.0 | GG21: 19.0 | GH21: -1.3 | GI21: 19.0 | GJ21: -1.7 | GK21: 18.9 | GL21: -2.0 | GM21: 18.9 | GN21: -2.3 | GO21: 18.9 | GP21: -2.6 | GQ21: 18.8 | GR21: -3.0 | GS21: 18.8 | GT21: -3.3 | GU21: 18.7 | GV21: -3.6 | GW21: 18.7 | GX21: -4.0 | GY21: 18.6 | GZ21: -4.3 | HA21: 18.5 | HB21: -4.6 | HC21: 18.4 | HD21: -4.9 | HE21: 18.4 | HF21: -5.2 | HG21: 18.3 | HH21: -5.6 | HI21: 18.2 | HJ21: -5.9 | HK21: 18.1 | HL21: -6.2 | HM21: 18.0 | HN21: -6.5 | HO21: 17.9 | HP21: -6.8 | HQ21: 17.7 | HR21: -7.1 | HS21: 17.6 | HT21: -7.4 | HU21: 17.5 | HV21: -7.7 | HW21: 17.4 | HX21: -8.0 | HY21: 17.2 | HZ21: -8.3 | IA21: 17.1 | IB21: -8.6 | IC21: 16.9 | ID21: -8.9 | IE21: 16.8 | IF21: -9.2 | IG21: 16.6 | IH21: -9.5 | II21: 16.5 | IJ21: -9.8 | IK21: 16.3 | IL21: -10.1 | IM21: 16.1 | IN21: -10.3 | IO21: 15.9 | IP21: -10.6 | IQ21: 15.8 | IR21: -10.9 | IS21: 15.6 | IT21: -11.2 | IU21: 15.4 | IV21: -11.4 | IW21: 15.2 | IX21: -11.7 | IY21: 15.0 | IZ21: -12.0 | JA21: 14.8 | JB21: -12.2 | JC21: 14.6 | JD21: -12.5 | JE21: 14.3 | JF21: -12.7 | JG21: 14.1 | JH21: -13.0 | JI21: 13.9 | JJ21: -13.2 | JK21: 13.7 | JL21: -13.4 | JM21: 13.4 | JN21: -13.7 | JO21: 13.2 | JP21: -13.9 | JQ21: 13.0 | JR21: -14.1 | JS21: 12.7 | JT21: -14.3 | JU21: 12.5 | JV21: -14.6 | JW21: 12.2 | JX21: -14.8 | JY21: 12.0 | JZ21: -15.0 | KA21: 11.7 | KB21: -15.2 | KC21: 11.4 | KD21: -15.4 | KE21: 11.2 | KF21: -15.6 | KG21: 10.9 | KH21: -15.8 | KI21: 10.6 | KJ21: -15.9 | KK21: 10.3 | KL21: -16.1 | KM21: 10.1 | KN21: -16.3 | KO21: 9.8 | KP21: -16.5 | KQ21: 9.5 | KR21: -16.6 | KS21: 9.2 | KT21: -16.8 | KU21: 8.9 | KV21: -16.9 | KW21: 8.6 | KX21: -17.1 | KY21: 8.3 | KZ21: -17.2 | LA21: 8.0 | LB21: -17.4 | LC21: 7.7 | LD21: -17.5 | LE21: 7.4 | LF21: -17.6 | LG21: 7.1 | LH21: -17.7 | LI21: 6.8 | LJ21: -17.9 | LK21: 6.5 | LL21: -18.0 | LM21: 6.2 | LN21: -18.1 | LO21: 5.9 | LP21: -18.2 | LQ21: 5.6 | LR21: -18.3 | LS21: 5.2 | LT21: -18.4 | LU21: 4.9 | LV21: -18.4 | LW21: 4.6 | LX21: -18.5 | LY21: 4.3 | LZ21: -18.6 | MA21: 4.0 | MB21: -18.7 | MC21: 3.6 | MD21: -18.7 | ME21: 3.3 | MF21: -18.8 | MG21: 3.0 | MH21: -18.8 | MI21: 2.6 | MJ21: -18.9 | MK21: 2.3 | ML21: -18.9 | MM21: 2.0 | MN21: -18.9 | MO21: 1.7 | MP21: -19.0 | MQ21: 1.3 | MR21: -19.0 | MS21: 1.0 | MT21: -19.0 | MU21: 0.7 | MV21: -19.0 | MW21: 0.3 | MX21: -19.0 | MY21: 0.0 | MZ21: -19.0 | NA21: -0.3 | NB21: -19.0 | NC21: -0.7 | ND21: -19.0 | NE21: -1.0 | NF21: -19.0 | NG21: -1.3 | NH21: -18.9 | NI21: -1.7 | NJ21: -18.9 | NK21: -2.0 | NL21: -18.9 | NM21: -2.3 | NN21: -18.8 | NO21: -2.6 | NP21: -18.8 | NQ21: -3.0 | NR21: -18.7 | NS21: -3.3 | NT21: -18.7 | NU21: -3.6 | NV21: -18.6 | NW21: -4.0 | NX21: -18.5 | NY21: -4.3 | NZ21: -18.4 | OA21: -4.6 | OB21: -18.4 | OC21: -4.9 | OD21: -18.3 | OE21: -5.2 | OF21: -18.2 | OG21: -5.6 | OH21: -18.1 | OI21: -5.9 | OJ21: -18.0 | OK21: -6.2 | OL21: -17.9 | OM21: -6.5 | ON21: -17.7 | OO21: -6.8 | OP21: -17.6 | OQ21: -7.1 | OR21: -17.5 | OS21: -7.4 | OT21: -17.4 | OU21: -7.7 | OV21: -17.2 | OW21: -8.0 | OX21: -17.1 | OY21: -8.3 | OZ21: -16.9 | PA21: -8.6 | PB21: -16.8 | PC21: -8.9 | PD21: -16.6 | PE21: -9.2 | PF21: -16.5 | PG21: -9.5 | PH21: -16.3 | PI21: -9.8 | PJ21: -16.1 | PK21: -10.1 | PL21: -15.9 | PM21: -10.3 | PN21: -15.8 | PO21: -10.6 | PP21: -15.6 | PQ21: -10.9 | PR21: -15.4 | PS21: -11.2 | PT21: -15.2 | PU21: -11.4 | PV21: -15.0 | PW21: -11.7 | PX21: -14.8 | PY21: -12.0 | PZ21: -14.6 | QA21: -12.2 | QB21: -14.3 | QC21: -12.5 | QD21: -14.1 | QE21: -12.7 | QF21: -13.9 | QG21: -13.0 | QH21: -13.7 | QI21: -13.2 | QJ21: -13.4 | QK21: -13.4 | QL21: -13.2 | QM21: -13.7 | QN21: -13.0 | QO21: -13.9 | QP21: -12.7 | QQ21: -14.1 | QR21: -12.5 | QS21: -14.3 | QT21: -12.2 | QU21: -14.6 | QV21: -12.0 | QW21: -14.8 | QX21: -11.7 | QY21: -15.0 | QZ21: -11.4 | RA21: -15.2 | RB21: -11.2 | RC21: -15.4 | RD21: -10.9 | RE21: -15.6 | RF21: -10.6 | RG21: -15.8 | RH21: -10.3 | RI21: -15.9 | RJ21: -10.1 | RK21: -16.1 | RL21: -9.8 | RM21: -16.3 | RN21: -9.5 | RO21: -16.5 | RP21: -9.2 | RQ21: -16.6 | RR21: -8.9 | RS21: -16.8 | RT21: -8.6 | RU21: -16.9 | RV21: -8.3 | RW21: -17.1 | RX21: -8.0 | RY21: -17.2 | RZ21: -7.7 | SA21: -17.4 | SB21: -7.4 | SC21: -17.5 | SD21: -7.1 | SE21: -17.6 | SF21: -6.8 | SG21: -17.7 | SH21: -6.5 | SI21: -17.9 | SJ21: -6.2 | SK21: -18.0 | SL21: -5.9 | SM21: -18.1 | SN21: -5.6 | SO21: -18.2 | SP21: -5.2 | SQ21: -18.3 | SR21: -4.9 | SS21: -18.4 | ST21: -4.6 | SU21: -18.4 | SV21: -4.3 | SW21: -18.5 | SX21: -4.0 | SY21: -18.6 | SZ21: -3.6 | TA21: -18.7 | TB21: -3.3 | TC21: -18.7 | TD21: -3.0 | TE21: -18.8 | TF21: -2.6 | TG21: -18.8 | TH21: -2.3 | TI21: -18.9 | TJ21: -2.0 | TK21: -18.9 | TL21: -1.7 | TM21: -18.9 | TN21: -1.3 | TO21: -19.0 | TP21: -1.0 | TQ21: -19.0 | TR21: -0.7 | TS21: -19.0 | TT21: -0.3 | TU21: -19.0 | TV21: -0.0 | TW21: -19.0 | TX21: 0.3 | TY21: -19.0 | TZ21: 0.7 | UA21: -19.0 | UB21: 1.0 | UC21: -19.0 | UD21: 1.3 | UE21: -19.0 | UF21: 1.7 | UG21: -18.9 | UH21: 2.0 | UI21: -18.9 | UJ21: 2.3 | UK21: -18.9 | UL21: 2.6 | UM21: -18.8 | UN21: 3.0 | UO21: -18.8 | UP21: 3.3 | UQ21: -18.7 | UR21: 3.6 | US21: -18.7 | UT21: 4.0 | UU21: -18.6 | UV21: 4.3 | UW21: -18.5 | UX21: 4.6 | UY21: -18.4 | UZ21: 4.9 | VA21: -18.4 | VB21: 5.2 | VC21: -18.3 | VD21: 5.6 | VE21: -18.2 | VF21: 5.9 | VG21: -18.1 | VH21: 6.2 | VI21: -18.0 | VJ21: 6.5 | VK21: -17.9 | VL21: 6.8 | VM21: -17.7 | VN21: 7.1 | VO21: -17.6 | VP21: 7.4 | VQ21: -17.5 | VR21: 7.7 | VS21: -17.4 | VT21: 8.0 | VU21: -17.2 | VV21: 8.3 | VW21: -17.1 | VX21: 8.6 | VY21: -16.9 | VZ21: 8.9 | WA21: -16.8 | WB21: 9.2 | WC21: -16.6 | WD21: 9.5 | WE21: -16.5 | WF21: 9.8 | WG21: -16.3 | WH21: 10.1 | WI21: -16.1 | WJ21: 10.3 | WK21: -15.9 | WL21: 10.6 | WM21: -15.8 | WN21: 10.9 | WO21: -15.6 | WP21: 11.2 | WQ21: -15.4 | WR21: 11.4 | WS21: -15.2 | WT21: 11.7 | WU21: -15.0 | WV21: 12.0 | WW21: -14.8 | WX21: 12.2 | WY21: -14.6 | WZ21: 12.5 | XA21: -14.3 | XB21: 12.7 | XC21: -14.1 | XD21: 13.0 | XE21: -13.9 | XF21: 13.2 | XG21: -13.7 | XH21: 13.4 | XI21: -13.4 | XJ21: 13.7 | XK21: -13.2 | XL21: 13.9 | XM21: -13.0 | XN21: 14.1 | XO21: -12.7 | XP21: 14.3 | XQ21: -12.5 | XR21: 14.6 | XS21: -12.2 | XT21: 14.8 | XU21: -12.0 | XV21: 15.0 | XW21: -11.7 | XX21: 15.2 | XY21: -11.4 | XZ21: 15.4 | YA21: -11.2 | YB21: 15.6 | YC21: -10.9 | YD21: 15.8 | YE21: -10.6 | YF21: 15.9 | YG21: -10.3 | YH21: 16.1 | YI21: -10.1 | YJ21: 16.3 | YK21: -9.8 | YL21: 16.5 | YM21: -9.5 | YN21: 16.6 | YO21: -9.2 | YP21: 16.8 | YQ21: -8.9 | YR21: 16.9 | YS21: -8.6 | YT21: 17.1 | YU21: -8.3 | YV21: 17.2 | YW21: -8.0 | YX21: 17.4 | YY21: -7.7 | YZ21: 17.5 | ZA21: -7.4 | ZB21: 17.6 | ZC21: -7.1 | ZD21: 17.7 | ZE21: -6.8 | ZF21: 17.9 | ZG21: -6.5 | ZH21: 18.0 | ZI21: -6.2 | ZJ21: 18.1 | ZK21: -5.9 | ZL21: 18.2 | ZM21: -5.6 | ZN21: 18.3 | ZO21: -5.2 | ZP21: 18.4 | ZQ21: -4.9 | ZR21: 18.4 | ZS21: -4.6 | ZT21: 18.5 | ZU21: -4.3 | ZV21: 18.6 | ZW21: -4.0 | ZX21: 18.7 | ZY21: -3.6 | ZZ21: 18.7 | AAA21: -3.3 | AAB21: 18.8 | AAC21: -3.0 | AAD21: 18.8 | AAE21: -2.6 | AAF21: 18.9 | AAG21: -2.3 | AAH21: 18.9 | AAI21: -2.0 | AAJ21: 18.9 | AAK21: -1.7 | AAL21: 19.0 | AAM21: -1.3 | AAN21: 19.0 | AAO21: -1.0 | AAP21: 19.0 | AAQ21: -0.7 | AAR21: 19.0 | AAS21: -0.3 | AAT21: 19.0 | AAU21: -0.0
A22: 20 | B22: 20.0 | C22: 0.0 | D22: 20.0 | E22: 0.3 | F22: 20.0 | G22: 0.7 | H22: 20.0 | I22: 1.0 | J22: 20.0 | K22: 1.4 | L22: 19.9 | M22: 1.7 | N22: 19.9 | O22: 2.1 | P22: 19.9 | Q22: 2.4 | R22: 19.8 | S22: 2.8 | T22: 19.8 | U22: 3.1 | V22: 19.7 | W22: 3.5 | X22: 19.6 | Y22: 3.8 | Z22: 19.6 | AA22: 4.2 | AB22: 19.5 | AC22: 4.5 | AD22: 19.4 | AE22: 4.8 | AF22: 19.3 | AG22: 5.2 | AH22: 19.2 | AI22: 5.5 | AJ22: 19.1 | AK22: 5.8 | AL22: 19.0 | AM22: 6.2 | AN22: 18.9 | AO22: 6.5 | AP22: 18.8 | AQ22: 6.8 | AR22: 18.7 | AS22: 7.2 | AT22: 18.5 | AU22: 7.5 | AV22: 18.4 | AW22: 7.8 | AX22: 18.3 | AY22: 8.1 | AZ22: 18.1 | BA22: 8.5 | BB22: 18.0 | BC22: 8.8 | BD22: 17.8 | BE22: 9.1 | BF22: 17.7 | BG22: 9.4 | BH22: 17.5 | BI22: 9.7 | BJ22: 17.3 | BK22: 10.0 | BL22: 17.1 | BM22: 10.3 | BN22: 17.0 | BO22: 10.6 | BP22: 16.8 | BQ22: 10.9 | BR22: 16.6 | BS22: 11.2 | BT22: 16.4 | BU22: 11.5 | BV22: 16.2 | BW22: 11.8 | BX22: 16.0 | BY22: 12.0 | BZ22: 15.8 | CA22: 12.3 | CB22: 15.5 | CC22: 12.6 | CD22: 15.3 | CE22: 12.9 | CF22: 15.1 | CG22: 13.1 | CH22: 14.9 | CI22: 13.4 | CJ22: 14.6 | CK22: 13.6 | CL22: 14.4 | CM22: 13.9 | CN22: 14.1 | CO22: 14.1 | CP22: 13.9 | CQ22: 14.4 | CR22: 13.6 | CS22: 14.6 | CT22: 13.4 | CU22: 14.9 | CV22: 13.1 | CW22: 15.1 | CX22: 12.9 | CY22: 15.3 | CZ22: 12.6 | DA22: 15.5 | DB22: 12.3 | DC22: 15.8 | DD22: 12.0 | DE22: 16.0 | DF22: 11.8 | DG22: 16.2 | DH22: 11.5 | DI22: 16.4 | DJ22: 11.2 | DK22: 16.6 | DL22: 10.9 | DM22: 16.8 | DN22: 10.6 | DO22: 17.0 | DP22: 10.3 | DQ22: 17.1 | DR22: 10.0 | DS22: 17.3 | DT22: 9.7 | DU22: 17.5 | DV22: 9.4 | DW22: 17.7 | DX22: 9.1 | DY22: 17.8 | DZ22: 8.8 | EA22: 18.0 | EB22: 8.5 | EC22: 18.1 | ED22: 8.1 | EE22: 18.3 | EF22: 7.8 | EG22: 18.4 | EH22: 7.5 | EI22: 18.5 | EJ22: 7.2 | EK22: 18.7 | EL22: 6.8 | EM22: 18.8 | EN22: 6.5 | EO22: 18.9 | EP22: 6.2 | EQ22: 19.0 | ER22: 5.8 | ES22: 19.1 | ET22: 5.5 | EU22: 19.2 | EV22: 5.2 | EW22: 19.3 | EX22: 4.8 | EY22: 19.4 | EZ22: 4.5 | FA22: 19.5 | FB22: 4.2 | FC22: 19.6 | FD22: 3.8 | FE22: 19.6 | FF22: 3.5 | FG22: 19.7 | FH22: 3.1 | FI22: 19.8 | FJ22: 2.8 | FK22: 19.8 | FL22: 2.4 | FM22: 19.9 | FN22: 2.1 | FO22: 19.9 | FP22: 1.7 | FQ22: 19.9 | FR22: 1.4 | FS22: 20.0 | FT22: 1.0 | FU22: 20.0 | FV22: 0.7 | FW22: 20.0 | FX22: 0.3 | FY22: 20.0 | FZ22: 0.0 | GA22: 20.0 | GB22: -0.3 | GC22: 20.0 | GD22: -0.7 | GE22: 20.0 | GF22: -1.0 | GG22: 20.0 | GH22: -1.4 | GI22: 20.0 | GJ22: -1.7 | GK22: 19.9 | GL22: -2.1 | GM22: 19.9 | GN22: -2.4 | GO22: 19.9 | GP22: -2.8 | GQ22: 19.8 | GR22: -3.1 | GS22: 19.8 | GT22: -3.5 | GU22: 19.7 | GV22: -3.8 | GW22: 19.6 | GX22: -4.2 | GY22: 19.6 | GZ22: -4.5 | HA22: 19.5 | HB22: -4.8 | HC22: 19.4 | HD22: -5.2 | HE22: 19.3 | HF22: -5.5 | HG22: 19.2 | HH22: -5.8 | HI22: 19.1 | HJ22: -6.2 | HK22: 19.0 | HL22: -6.5 | HM22: 18.9 | HN22: -6.8 | HO22: 18.8 | HP22: -7.2 | HQ22: 18.7 | HR22: -7.5 | HS22: 18.5 | HT22: -7.8 | HU22: 18.4 | HV22: -8.1 | HW22: 18.3 | HX22: -8.5 | HY22: 18.1 | HZ22: -8.8 | IA22: 18.0 | IB22: -9.1 | IC22: 17.8 | ID22: -9.4 | IE22: 17.7 | IF22: -9.7 | IG22: 17.5 | IH22: -10.0 | II22: 17.3 | IJ22: -10.3 | IK22: 17.1 | IL22: -10.6 | IM22: 17.0 | IN22: -10.9 | IO22: 16.8 | IP22: -11.2 | IQ22: 16.6 | IR22: -11.5 | IS22: 16.4 | IT22: -11.8 | IU22: 16.2 | IV22: -12.0 | IW22: 16.0 | IX22: -12.3 | IY22: 15.8 | IZ22: -12.6 | JA22: 15.5 | JB22: -12.9 | JC22: 15.3 | JD22: -13.1 | JE22: 15.1 | JF22: -13.4 | JG22: 14.9 | JH22: -13.6 | JI22: 14.6 | JJ22: -13.9 | JK22: 14.4 | JL22: -14.1 | JM22: 14.1 | JN22: -14.4 | JO22: 13.9 | JP22: -14.6 | JQ22: 13.6 | JR22: -14.9 | JS22: 13.4 | JT22: -15.1 | JU22: 13.1 | JV22: -15.3 | JW22: 12.9 | JX22: -15.5 | JY22: 12.6 | JZ22: -15.8 | KA22: 12.3 | KB22: -16.0 | KC22: 12.0 | KD22: -16.2 | KE22: 11.8 | KF22: -16.4 | KG22: 11.5 | KH22: -16.6 | KI22: 11.2 | KJ22: -16.8 | KK22: 10.9 | KL22: -17.0 | KM22: 10.6 | KN22: -17.1 | KO22: 10.3 | KP22: -17.3 | KQ22: 10.0 | KR22: -17.5 | KS22: 9.7 | KT22: -17.7 | KU22: 9.4 | KV22: -17.8 | KW22: 9.1 | KX22: -18.0 | KY22: 8.8 | KZ22: -18.1 | LA22: 8.5 | LB22: -18.3 | LC22: 8.1 | LD22: -18.4 | LE22: 7.8 | LF22: -18.5 | LG22: 7.5 | LH22: -18.7 | LI22: 7.2 | LJ22: -18.8 | LK22: 6.8 | LL22: -18.9 | LM22: 6.5 | LN22: -19.0 | LO22: 6.2 | LP22: -19.1 | LQ22: 5.8 | LR22: -19.2 | LS22: 5.5 | LT22: -19.3 | LU22: 5.2 | LV22: -19.4 | LW22: 4.8 | LX22: -19.5 | LY22: 4.5 | LZ22: -19.6 | MA22: 4.2 | MB22: -19.6 | MC22: 3.8 | MD22: -19.7 | ME22: 3.5 | MF22: -19.8 | MG22: 3.1 | MH22: -19.8 | MI22: 2.8 | MJ22: -19.9 | MK22: 2.4 | ML22: -19.9 | MM22: 2.1 | MN22: -19.9 | MO22: 1.7 | MP22: -20.0 | MQ22: 1.4 | MR22: -20.0 | MS22: 1.0 | MT22: -20.0 | MU22: 0.7 | MV22: -20.0 | MW22: 0.3 | MX22: -20.0 | MY22: 0.0 | MZ22: -20.0 | NA22: -0.3 | NB22: -20.0 | NC22: -0.7 | ND22: -20.0 | NE22: -1.0 | NF22: -20.0 | NG22: -1.4 | NH22: -19.9 | NI22: -1.7 | NJ22: -19.9 | NK22: -2.1 | NL22: -19.9 | NM22: -2.4 | NN22: -19.8 | NO22: -2.8 | NP22: -19.8 | NQ22: -3.1 | NR22: -19.7 | NS22: -3.5 | NT22: -19.6 | NU22: -3.8 | NV22: -19.6 | NW22: -4.2 | NX22: -19.5 | NY22: -4.5 | NZ22: -19.4 | OA22: -4.8 | OB22: -19.3 | OC22: -5.2 | OD22: -19.2 | OE22: -5.5 | OF22: -19.1 | OG22: -5.8 | OH22: -19.0 | OI22: -6.2 | OJ22: -18.9 | OK22: -6.5 | OL22: -18.8 | OM22: -6.8 | ON22: -18.7 | OO22: -7.2 | OP22: -18.5 | OQ22: -7.5 | OR22: -18.4 | OS22: -7.8 | OT22: -18.3 | OU22: -8.1 | OV22: -18.1 | OW22: -8.5 | OX22: -18.0 | OY22: -8.8 | OZ22: -17.8 | PA22: -9.1 | PB22: -17.7 | PC22: -9.4 | PD22: -17.5 | PE22: -9.7 | PF22: -17.3 | PG22: -10.0 | PH22: -17.1 | PI22: -10.3 | PJ22: -17.0 | PK22: -10.6 | PL22: -16.8 | PM22: -10.9 | PN22: -16.6 | PO22: -11.2 | PP22: -16.4 | PQ22: -11.5 | PR22: -16.2 | PS22: -11.8 | PT22: -16.0 | PU22: -12.0 | PV22: -15.8 | PW22: -12.3 | PX22: -15.5 | PY22: -12.6 | PZ22: -15.3 | QA22: -12.9 | QB22: -15.1 | QC22: -13.1 | QD22: -14.9 | QE22: -13.4 | QF22: -14.6 | QG22: -13.6 | QH22: -14.4 | QI22: -13.9 | QJ22: -14.1 | QK22: -14.1 | QL22: -13.9 | QM22: -14.4 | QN22: -13.6 | QO22: -14.6 | QP22: -13.4 | QQ22: -14.9 | QR22: -13.1 | QS22: -15.1 | QT22: -12.9 | QU22: -15.3 | QV22: -12.6 | QW22: -15.5 | QX22: -12.3 | QY22: -15.8 | QZ22: -12.0 | RA22: -16.0 | RB22: -11.8 | RC22: -16.2 | RD22: -11.5 | RE22: -16.4 | RF22: -11.2 | RG22: -16.6 | RH22: -10.9 | RI22: -16.8 | RJ22: -10.6 | RK22: -17.0 | RL22: -10.3 | RM22: -17.1 | RN22: -10.0 | RO22: -17.3 | RP22: -9.7 | RQ22: -17.5 | RR22: -9.4 | RS22: -17.7 | RT22: -9.1 | RU22: -17.8 | RV22: -8.8 | RW22: -18.0 | RX22: -8.5 | RY22: -18.1 | RZ22: -8.1 | SA22: -18.3 | SB22: -7.8 | SC22: -18.4 | SD22: -7.5 | SE22: -18.5 | SF22: -7.2 | SG22: -18.7 | SH22: -6.8 | SI22: -18.8 | SJ22: -6.5 | SK22: -18.9 | SL22: -6.2 | SM22: -19.0 | SN22: -5.8 | SO22: -19.1 | SP22: -5.5 | SQ22: -19.2 | SR22: -5.2 | SS22: -19.3 | ST22: -4.8 | SU22: -19.4 | SV22: -4.5 | SW22: -19.5 | SX22: -4.2 | SY22: -19.6 | SZ22: -3.8 | TA22: -19.6 | TB22: -3.5 | TC22: -19.7 | TD22: -3.1 | TE22: -19.8 | TF22: -2.8 | TG22: -19.8 | TH22: -2.4 | TI22: -19.9 | TJ22: -2.1 | TK22: -19.9 | TL22: -1.7 | TM22: -19.9 | TN22: -1.4 | TO22: -20.0 | TP22: -1.0 | TQ22: -20.0 | TR22: -0.7 | TS22: -20.0 | TT22: -0.3 | TU22: -20.0 | TV22: -0.0 | TW22: -20.0 | TX22: 0.3 | TY22: -20.0 | TZ22: 0.7 | UA22: -20.0 | UB22: 1.0 | UC22: -20.0 | UD22: 1.4 | UE22: -20.0 | UF22: 1.7 | UG22: -19.9 | UH22: 2.1 | UI22: -19.9 | UJ22: 2.4 | UK22: -19.9 | UL22: 2.8 | UM22: -19.8 | UN22: 3.1 | UO22: -19.8 | UP22: 3.5 | UQ22: -19.7 | UR22: 3.8 | US22: -19.6 | UT22: 4.2 | UU22: -19.6 | UV22: 4.5 | UW22: -19.5 | UX22: 4.8 | UY22: -19.4 | UZ22: 5.2 | VA22: -19.3 | VB22: 5.5 | VC22: -19.2 | VD22: 5.8 | VE22: -19.1 | VF22: 6.2 | VG22: -19.0 | VH22: 6.5 | VI22: -18.9 | VJ22: 6.8 | VK22: -18.8 | VL22: 7.2 | VM22: -18.7 | VN22: 7.5 | VO22: -18.5 | VP22: 7.8 | VQ22: -18.4 | VR22: 8.1 | VS22: -18.3 | VT22: 8.5 | VU22: -18.1 | VV22: 8.8 | VW22: -18.0 | VX22: 9.1 | VY22: -17.8 | VZ22: 9.4 | WA22: -17.7 | WB22: 9.7 | WC22: -17.5 | WD22: 10.0 | WE22: -17.3 | WF22: 10.3 | WG22: -17.1 | WH22: 10.6 | WI22: -17.0 | WJ22: 10.9 | WK22: -16.8 | WL22: 11.2 | WM22: -16.6 | WN22: 11.5 | WO22: -16.4 | WP22: 11.8 | WQ22: -16.2 | WR22: 12.0 | WS22: -16.0 | WT22: 12.3 | WU22: -15.8 | WV22: 12.6 | WW22: -15.5 | WX22: 12.9 | WY22: -15.3 | WZ22: 13.1 | XA22: -15.1 | XB22: 13.4 | XC22: -14.9 | XD22: 13.6 | XE22: -14.6 | XF22: 13.9 | XG22: -14.4 | XH22: 14.1 | XI22: -14.1 | XJ22: 14.4 | XK22: -13.9 | XL22: 14.6 | XM22: -13.6 | XN22: 14.9 | XO22: -13.4 | XP22: 15.1 | XQ22: -13.1 | XR22: 15.3 | XS22: -12.9 | XT22: 15.5 | XU22: -12.6 | XV22: 15.8 | XW22: -12.3 | XX22: 16.0 | XY22: -12.0 | XZ22: 16.2 | YA22: -11.8 | YB22: 16.4 | YC22: -11.5 | YD22: 16.6 | YE22: -11.2 | YF22: 16.8 | YG22: -10.9 | YH22: 17.0 | YI22: -10.6 | YJ22: 17.1 | YK22: -10.3 | YL22: 17.3 | YM22: -10.0 | YN22: 17.5 | YO22: -9.7 | YP22: 17.7 | YQ22: -9.4 | YR22: 17.8 | YS22: -9.1 | YT22: 18.0 | YU22: -8.8 | YV22: 18.1 | YW22: -8.5 | YX22: 18.3 | YY22: -8.1 | YZ22: 18.4 | ZA22: -7.8 | ZB22: 18.5 | ZC22: -7.5 | ZD22: 18.7 | ZE22: -7.2 | ZF22: 18.8 | ZG22: -6.8 | ZH22: 18.9 | ZI22: -6.5 | ZJ22: 19.0 | ZK22: -6.2 | ZL22: 19.1 | ZM22: -5.8 | ZN22: 19.2 | ZO22: -5.5 | ZP22: 19.3 | ZQ22: -5.2 | ZR22: 19.4 | ZS22: -4.8 | ZT22: 19.5 | ZU22: -4.5 | ZV22: 19.6 | ZW22: -4.2 | ZX22: 19.6 | ZY22: -3.8 | ZZ22: 19.7 | AAA22: -3.5 | AAB22: 19.8 | AAC22: -3.1 | AAD22: 19.8 | AAE22: -2.8 | AAF22: 19.9 | AAG22: -2.4 | AAH22: 19.9 | AAI22: -2.1 | AAJ22: 19.9 | AAK22: -1.7 | AAL22: 20.0 | AAM22: -1.4 | AAN22: 20.0 | AAO22: -1.0 | AAP22: 20.0 | AAQ22: -0.7 | AAR22: 20.0 | AAS22: -0.3 | AAT22: 20.0 | AAU22: -0.0
A23: 21 | B23: 21.0 | C23: 0.0 | D23: 21.0 | E23: 0.4 | F23: 21.0 | G23: 0.7 | H23: 21.0 | I23: 1.1 | J23: 20.9 | K23: 1.5 | L23: 20.9 | M23: 1.8 | N23: 20.9 | O23: 2.2 | P23: 20.8 | Q23: 2.6 | R23: 20.8 | S23: 2.9 | T23: 20.7 | U23: 3.3 | V23: 20.7 | W23: 3.6 | X23: 20.6 | Y23: 4.0 | Z23: 20.5 | AA23: 4.4 | AB23: 20.5 | AC23: 4.7 | AD23: 20.4 | AE23: 5.1 | AF23: 20.3 | AG23: 5.4 | AH23: 20.2 | AI23: 5.8 | AJ23: 20.1 | AK23: 6.1 | AL23: 20.0 | AM23: 6.5 | AN23: 19.9 | AO23: 6.8 | AP23: 19.7 | AQ23: 7.2 | AR23: 19.6 | AS23: 7.5 | AT23: 19.5 | AU23: 7.9 | AV23: 19.3 | AW23: 8.2 | AX23: 19.2 | AY23: 8.5 | AZ23: 19.0 | BA23: 8.9 | BB23: 18.9 | BC23: 9.2 | BD23: 18.7 | BE23: 9.5 | BF23: 18.5 | BG23: 9.9 | BH23: 18.4 | BI23: 10.2 | BJ23: 18.2 | BK23: 10.5 | BL23: 18.0 | BM23: 10.8 | BN23: 17.8 | BO23: 11.1 | BP23: 17.6 | BQ23: 11.4 | BR23: 17.4 | BS23: 11.7 | BT23: 17.2 | BU23: 12.0 | BV23: 17.0 | BW23: 12.3 | BX23: 16.8 | BY23: 12.6 | BZ23: 16.5 | CA23: 12.9 | CB23: 16.3 | CC23: 13.2 | CD23: 16.1 | CE23: 13.5 | CF23: 15.8 | CG23: 13.8 | CH23: 15.6 | CI23: 14.1 | CJ23: 15.4 | CK23: 14.3 | CL23: 15.1 | CM23: 14.6 | CN23: 14.8 | CO23: 14.8 | CP23: 14.6 | CQ23: 15.1 | CR23: 14.3 | CS23: 15.4 | CT23: =COS(CT$1/360*2*PI())*$A23 -> 14.1 | CU23: 15.6 | CV23: 13.8 | CW23: 15.8 | CX23: 13.5 | CY23: 16.1 | CZ23: 13.2 | DA23: 16.3 | DB23: 12.9 | DC23: 16.5 | DD23: 12.6 | DE23: 16.8 | DF23: 12.3 | DG23: 17.0 | DH23: 12.0 | DI23: 17.2 | DJ23: 11.7 | DK23: 17.4 | DL23: 11.4 | DM23: 17.6 | DN23: 11.1 | DO23: 17.8 | DP23: 10.8 | DQ23: 18.0 | DR23: 10.5 | DS23: 18.2 | DT23: 10.2 | DU23: 18.4 | DV23: 9.9 | DW23: 18.5 | DX23: 9.5 | DY23: 18.7 | DZ23: 9.2 | EA23: 18.9 | EB23: 8.9 | EC23: 19.0 | ED23: 8.5 | EE23: 19.2 | EF23: 8.2 | EG23: 19.3 | EH23: 7.9 | EI23: 19.5 | EJ23: 7.5 | EK23: 19.6 | EL23: 7.2 | EM23: 19.7 | EN23: 6.8 | EO23: 19.9 | EP23: 6.5 | EQ23: 20.0 | ER23: 6.1 | ES23: 20.1 | ET23: 5.8 | EU23: 20.2 | EV23: 5.4 | EW23: 20.3 | EX23: 5.1 | EY23: 20.4 | EZ23: 4.7 | FA23: 20.5 | FB23: 4.4 | FC23: 20.5 | FD23: 4.0 | FE23: 20.6 | FF23: 3.6 | FG23: 20.7 | FH23: 3.3 | FI23: 20.7 | FJ23: 2.9 | FK23: 20.8 | FL23: 2.6 | FM23: 20.8 | FN23: 2.2 | FO23: 20.9 | FP23: 1.8 | FQ23: 20.9 | FR23: 1.5 | FS23: 20.9 | FT23: 1.1 | FU23: 21.0 | FV23: 0.7 | FW23: 21.0 | FX23: 0.4 | FY23: 21.0 | FZ23: 0.0 | GA23: 21.0 | GB23: -0.4 | GC23: 21.0 | GD23: -0.7 | GE23: 21.0 | GF23: -1.1 | GG23: 21.0 | GH23: -1.5 | GI23: 20.9 | GJ23: -1.8 | GK23: 20.9 | GL23: -2.2 | GM23: 20.9 | GN23: -2.6 | GO23: 20.8 | GP23: -2.9 | GQ23: 20.8 | GR23: -3.3 | GS23: 20.7 | GT23: -3.6 | GU23: 20.7 | GV23: -4.0 | GW23: 20.6 | GX23: -4.4 | GY23: 20.5 | GZ23: -4.7 | HA23: 20.5 | HB23: -5.1 | HC23: 20.4 | HD23: -5.4 | HE23: 20.3 | HF23: -5.8 | HG23: 20.2 | HH23: -6.1 | HI23: 20.1 | HJ23: -6.5 | HK23: 20.0 | HL23: -6.8 | HM23: 19.9 | HN23: -7.2 | HO23: 19.7 | HP23: -7.5 | HQ23: 19.6 | HR23: -7.9 | HS23: 19.5 | HT23: -8.2 | HU23: 19.3 | HV23: -8.5 | HW23: 19.2 | HX23: -8.9 | HY23: 19.0 | HZ23: -9.2 | IA23: 18.9 | IB23: -9.5 | IC23: 18.7 | ID23: -9.9 | IE23: 18.5 | IF23: -10.2 | IG23: 18.4 | IH23: -10.5 | II23: 18.2 | IJ23: -10.8 | IK23: 18.0 | IL23: -11.1 | IM23: 17.8 | IN23: -11.4 | IO23: 17.6 | IP23: -11.7 | IQ23: 17.4 | IR23: -12.0 | IS23: 17.2 | IT23: -12.3 | IU23: 17.0 | IV23: -12.6 | IW23: 16.8 | IX23: -12.9 | IY23: 16.5 | IZ23: -13.2 | JA23: 16.3 | JB23: -13.5 | JC23: 16.1 | JD23: -13.8 | JE23: 15.8 | JF23: -14.1 | JG23: 15.6 | JH23: -14.3 | JI23: 15.4 | JJ23: -14.6 | JK23: 15.1 | JL23: -14.8 | JM23: 14.8 | JN23: -15.1 | JO23: 14.6 | JP23: -15.4 | JQ23: 14.3 | JR23: -15.6 | JS23: 14.1 | JT23: -15.8 | JU23: 13.8 | JV23: -16.1 | JW23: 13.5 | JX23: -16.3 | JY23: 13.2 | JZ23: -16.5 | KA23: 12.9 | KB23: -16.8 | KC23: 12.6 | KD23: -17.0 | KE23: 12.3 | KF23: -17.2 | KG23: 12.0 | KH23: -17.4 | KI23: 11.7 | KJ23: -17.6 | KK23: 11.4 | KL23: -17.8 | KM23: 11.1 | KN23: -18.0 | KO23: 10.8 | KP23: -18.2 | KQ23: 10.5 | KR23: -18.4 | KS23: 10.2 | KT23: -18.5 | KU23: 9.9 | KV23: -18.7 | KW23: 9.5 | KX23: -18.9 | KY23: 9.2 | KZ23: -19.0 | LA23: 8.9 | LB23: -19.2 | LC23: 8.5 | LD23: -19.3 | LE23: 8.2 | LF23: -19.5 | LG23: 7.9 | LH23: -19.6 | LI23: 7.5 | LJ23: -19.7 | LK23: 7.2 | LL23: -19.9 | LM23: 6.8 | LN23: -20.0 | LO23: 6.5 | LP23: -20.1 | LQ23: 6.1 | LR23: -20.2 | LS23: 5.8 | LT23: -20.3 | LU23: 5.4 | LV23: -20.4 | LW23: 5.1 | LX23: -20.5 | LY23: 4.7 | LZ23: -20.5 | MA23: 4.4 | MB23: -20.6 | MC23: 4.0 | MD23: -20.7 | ME23: 3.6 | MF23: -20.7 | MG23: 3.3 | MH23: -20.8 | MI23: 2.9 | MJ23: -20.8 | MK23: 2.6 | ML23: -20.9 | MM23: 2.2 | MN23: -20.9 | MO23: 1.8 | MP23: -20.9 | MQ23: 1.5 | MR23: -21.0 | MS23: 1.1 | MT23: -21.0 | MU23: 0.7 | MV23: -21.0 | MW23: 0.4 | MX23: -21.0 | MY23: 0.0 | MZ23: -21.0 | NA23: -0.4 | NB23: -21.0 | NC23: -0.7 | ND23: -21.0 | NE23: -1.1 | NF23: -20.9 | NG23: -1.5 | NH23: -20.9 | NI23: -1.8 | NJ23: -20.9 | NK23: -2.2 | NL23: -20.8 | NM23: -2.6 | NN23: -20.8 | NO23: -2.9 | NP23: -20.7 | NQ23: -3.3 | NR23: -20.7 | NS23: -3.6 | NT23: -20.6 | NU23: -4.0 | NV23: -20.5 | NW23: -4.4 | NX23: -20.5 | NY23: -4.7 | NZ23: -20.4 | OA23: -5.1 | OB23: -20.3 | OC23: -5.4 | OD23: -20.2 | OE23: -5.8 | OF23: -20.1 | OG23: -6.1 | OH23: -20.0 | OI23: -6.5 | OJ23: -19.9 | OK23: -6.8 | OL23: -19.7 | OM23: -7.2 | ON23: -19.6 | OO23: -7.5 | OP23: -19.5 | OQ23: -7.9 | OR23: -19.3 | OS23: -8.2 | OT23: -19.2 | OU23: -8.5 | OV23: -19.0 | OW23: -8.9 | OX23: -18.9 | OY23: -9.2 | OZ23: -18.7 | PA23: -9.5 | PB23: -18.5 | PC23: -9.9 | PD23: -18.4 | PE23: -10.2 | PF23: -18.2 | PG23: -10.5 | PH23: -18.0 | PI23: -10.8 | PJ23: -17.8 | PK23: -11.1 | PL23: -17.6 | PM23: -11.4 | PN23: -17.4 | PO23: -11.7 | PP23: -17.2 | PQ23: -12.0 | PR23: -17.0 | PS23: -12.3 | PT23: -16.8 | PU23: -12.6 | PV23: -16.5 | PW23: -12.9 | PX23: -16.3 | PY23: -13.2 | PZ23: -16.1 | QA23: -13.5 | QB23: -15.8 | QC23: -13.8 | QD23: -15.6 | QE23: -14.1 | QF23: -15.4 | QG23: -14.3 | QH23: -15.1 | QI23: -14.6 | QJ23: -14.8 | QK23: -14.8 | QL23: -14.6 | QM23: -15.1 | QN23: -14.3 | QO23: -15.4 | QP23: -14.1 | QQ23: -15.6 | QR23: -13.8 | QS23: -15.8 | QT23: -13.5 | QU23: -16.1 | QV23: -13.2 | QW23: -16.3 | QX23: -12.9 | QY23: -16.5 | QZ23: -12.6 | RA23: -16.8 | RB23: -12.3 | RC23: -17.0 | RD23: -12.0 | RE23: -17.2 | RF23: -11.7 | RG23: -17.4 | RH23: -11.4 | RI23: -17.6 | RJ23: -11.1 | RK23: -17.8 | RL23: -10.8 | RM23: -18.0 | RN23: -10.5 | RO23: -18.2 | RP23: -10.2 | RQ23: -18.4 | RR23: -9.9 | RS23: -18.5 | RT23: -9.5 | RU23: -18.7 | RV23: -9.2 | RW23: -18.9 | RX23: -8.9 | RY23: -19.0 | RZ23: -8.5 | SA23: -19.2 | SB23: -8.2 | SC23: -19.3 | SD23: -7.9 | SE23: -19.5 | SF23: -7.5 | SG23: -19.6 | SH23: -7.2 | SI23: -19.7 | SJ23: -6.8 | SK23: -19.9 | SL23: -6.5 | SM23: -20.0 | SN23: -6.1 | SO23: -20.1 | SP23: -5.8 | SQ23: -20.2 | SR23: -5.4 | SS23: -20.3 | ST23: -5.1 | SU23: -20.4 | SV23: -4.7 | SW23: -20.5 | SX23: -4.4 | SY23: -20.5 | SZ23: -4.0 | TA23: -20.6 | TB23: -3.6 | TC23: -20.7 | TD23: -3.3 | TE23: -20.7 | TF23: -2.9 | TG23: -20.8 | TH23: -2.6 | TI23: -20.8 | TJ23: -2.2 | TK23: -20.9 | TL23: -1.8 | TM23: -20.9 | TN23: -1.5 | TO23: -20.9 | TP23: -1.1 | TQ23: -21.0 | TR23: -0.7 | TS23: -21.0 | TT23: -0.4 | TU23: -21.0 | TV23: -0.0 | TW23: -21.0 | TX23: 0.4 | TY23: -21.0 | TZ23: 0.7 | UA23: -21.0 | UB23: 1.1 | UC23: -21.0 | UD23: 1.5 | UE23: -20.9 | UF23: 1.8 | UG23: -20.9 | UH23: 2.2 | UI23: -20.9 | UJ23: 2.6 | UK23: -20.8 | UL23: 2.9 | UM23: -20.8 | UN23: 3.3 | UO23: -20.7 | UP23: 3.6 | UQ23: -20.7 | UR23: 4.0 | US23: -20.6 | UT23: 4.4 | UU23: -20.5 | UV23: 4.7 | UW23: -20.5 | UX23: 5.1 | UY23: -20.4 | UZ23: 5.4 | VA23: -20.3 | VB23: 5.8 | VC23: -20.2 | VD23: 6.1 | VE23: -20.1 | VF23: 6.5 | VG23: -20.0 | VH23: 6.8 | VI23: -19.9 | VJ23: 7.2 | VK23: -19.7 | VL23: 7.5 | VM23: -19.6 | VN23: 7.9 | VO23: -19.5 | VP23: 8.2 | VQ23: -19.3 | VR23: 8.5 | VS23: -19.2 | VT23: 8.9 | VU23: -19.0 | VV23: 9.2 | VW23: -18.9 | VX23: 9.5 | VY23: -18.7 | VZ23: 9.9 | WA23: -18.5 | WB23: 10.2 | WC23: -18.4 | WD23: 10.5 | WE23: -18.2 | WF23: 10.8 | WG23: -18.0 | WH23: 11.1 | WI23: -17.8 | WJ23: 11.4 | WK23: -17.6 | WL23: 11.7 | WM23: -17.4 | WN23: 12.0 | WO23: -17.2 | WP23: 12.3 | WQ23: -17.0 | WR23: 12.6 | WS23: -16.8 | WT23: 12.9 | WU23: -16.5 | WV23: 13.2 | WW23: -16.3 | WX23: 13.5 | WY23: -16.1 | WZ23: 13.8 | XA23: -15.8 | XB23: 14.1 | XC23: -15.6 | XD23: 14.3 | XE23: -15.4 | XF23: 14.6 | XG23: -15.1 | XH23: 14.8 | XI23: -14.8 | XJ23: 15.1 | XK23: -14.6 | XL23: 15.4 | XM23: -14.3 | XN23: 15.6 | XO23: -14.1 | XP23: 15.8 | XQ23: -13.8 | XR23: 16.1 | XS23: -13.5 | XT23: 16.3 | XU23: -13.2 | XV23: 16.5 | XW23: -12.9 | XX23: 16.8 | XY23: -12.6 | XZ23: 17.0 | YA23: -12.3 | YB23: 17.2 | YC23: -12.0 | YD23: 17.4 | YE23: -11.7 | YF23: 17.6 | YG23: -11.4 | YH23: 17.8 | YI23: -11.1 | YJ23: 18.0 | YK23: -10.8 | YL23: 18.2 | YM23: -10.5 | YN23: 18.4 | YO23: -10.2 | YP23: 18.5 | YQ23: -9.9 | YR23: 18.7 | YS23: -9.5 | YT23: 18.9 | YU23: -9.2 | YV23: 19.0 | YW23: -8.9 | YX23: 19.2 | YY23: -8.5 | YZ23: 19.3 | ZA23: -8.2 | ZB23: 19.5 | ZC23: -7.9 | ZD23: 19.6 | ZE23: -7.5 | ZF23: 19.7 | ZG23: -7.2 | ZH23: 19.9 | ZI23: -6.8 | ZJ23: 20.0 | ZK23: -6.5 | ZL23: 20.1 | ZM23: -6.1 | ZN23: 20.2 | ZO23: -5.8 | ZP23: 20.3 | ZQ23: -5.4 | ZR23: 20.4 | ZS23: -5.1 | ZT23: 20.5 | ZU23: -4.7 | ZV23: 20.5 | ZW23: -4.4 | ZX23: 20.6 | ZY23: -4.0 | ZZ23: 20.7 | AAA23: -3.6 | AAB23: 20.7 | AAC23: -3.3 | AAD23: 20.8 | AAE23: -2.9 | AAF23: 20.8 | AAG23: -2.6 | AAH23: 20.9 | AAI23: -2.2 | AAJ23: 20.9 | AAK23: -1.8 | AAL23: 20.9 | AAM23: -1.5 | AAN23: 21.0 | AAO23: -1.1 | AAP23: 21.0 | AAQ23: -0.7 | AAR23: 21.0 | AAS23: -0.4 | AAT23: 21.0 | AAU23: -0.0
A24: 22 | B24: 22.0 | C24: 0.0 | D24: 22.0 | E24: 0.4 | F24: 22.0 | G24: 0.8 | H24: 22.0 | I24: 1.2 | J24: 21.9 | K24: 1.5 | L24: 21.9 | M24: 1.9 | N24: 21.9 | O24: 2.3 | P24: 21.8 | Q24: 2.7 | R24: 21.8 | S24: 3.1 | T24: 21.7 | U24: 3.4 | V24: 21.7 | W24: 3.8 | X24: 21.6 | Y24: 4.2 | Z24: 21.5 | AA24: 4.6 | AB24: 21.4 | AC24: 4.9 | AD24: 21.3 | AE24: 5.3 | AF24: 21.3 | AG24: 5.7 | AH24: 21.1 | AI24: 6.1 | AJ24: 21.0 | AK24: 6.4 | AL24: 20.9 | AM24: 6.8 | AN24: 20.8 | AO24: 7.2 | AP24: 20.7 | AQ24: 7.5 | AR24: 20.5 | AS24: 7.9 | AT24: 20.4 | AU24: 8.2 | AV24: 20.3 | AW24: 8.6 | AX24: 20.1 | AY24: 8.9 | AZ24: 19.9 | BA24: 9.3 | BB24: 19.8 | BC24: 9.6 | BD24: 19.6 | BE24: 10.0 | BF24: 19.4 | BG24: 10.3 | BH24: 19.2 | BI24: 10.7 | BJ24: 19.1 | BK24: 11.0 | BL24: 18.9 | BM24: 11.3 | BN24: 18.7 | BO24: 11.7 | BP24: 18.5 | BQ24: 12.0 | BR24: 18.2 | BS24: 12.3 | BT24: 18.0 | BU24: 12.6 | BV24: 17.8 | BW24: 12.9 | BX24: 17.6 | BY24: 13.2 | BZ24: 17.3 | CA24: 13.5 | CB24: 17.1 | CC24: 13.8 | CD24: 16.9 | CE24: 14.1 | CF24: 16.6 | CG24: 14.4 | CH24: 16.3 | CI24: 14.7 | CJ24: 16.1 | CK24: 15.0 | CL24: 15.8 | CM24: 15.3 | CN24: 15.6 | CO24: 15.6 | CP24: =COS(CP$1/360*2*PI())*$A24 -> 15.3 | CQ24: 15.8 | CR24: 15.0 | CS24: 16.1 | CT24: 14.7 | CU24: 16.3 | CV24: 14.4 | CW24: 16.6 | CX24: 14.1 | CY24: 16.9 | CZ24: 13.8 | DA24: 17.1 | DB24: 13.5 | DC24: 17.3 | DD24: 13.2 | DE24: 17.6 | DF24: 12.9 | DG24: 17.8 | DH24: 12.6 | DI24: 18.0 | DJ24: 12.3 | DK24: 18.2 | DL24: 12.0 | DM24: 18.5 | DN24: 11.7 | DO24: 18.7 | DP24: 11.3 | DQ24: 18.9 | DR24: 11.0 | DS24: 19.1 | DT24: 10.7 | DU24: 19.2 | DV24: 10.3 | DW24: 19.4 | DX24: 10.0 | DY24: 19.6 | DZ24: 9.6 | EA24: 19.8 | EB24: 9.3 | EC24: 19.9 | ED24: 8.9 | EE24: 20.1 | EF24: 8.6 | EG24: 20.3 | EH24: 8.2 | EI24: 20.4 | EJ24: 7.9 | EK24: 20.5 | EL24: 7.5 | EM24: 20.7 | EN24: 7.2 | EO24: 20.8 | EP24: 6.8 | EQ24: 20.9 | ER24: 6.4 | ES24: 21.0 | ET24: 6.1 | EU24: 21.1 | EV24: 5.7 | EW24: 21.3 | EX24: 5.3 | EY24: 21.3 | EZ24: 4.9 | FA24: 21.4 | FB24: 4.6 | FC24: 21.5 | FD24: 4.2 | FE24: 21.6 | FF24: 3.8 | FG24: 21.7 | FH24: 3.4 | FI24: 21.7 | FJ24: 3.1 | FK24: 21.8 | FL24: 2.7 | FM24: 21.8 | FN24: 2.3 | FO24: 21.9 | FP24: 1.9 | FQ24: 21.9 | FR24: 1.5 | FS24: 21.9 | FT24: 1.2 | FU24: 22.0 | FV24: 0.8 | FW24: 22.0 | FX24: 0.4 | FY24: 22.0 | FZ24: 0.0 | GA24: 22.0 | GB24: -0.4 | GC24: 22.0 | GD24: -0.8 | GE24: 22.0 | GF24: -1.2 | GG24: 22.0 | GH24: -1.5 | GI24: 21.9 | GJ24: -1.9 | GK24: 21.9 | GL24: -2.3 | GM24: 21.9 | GN24: -2.7 | GO24: 21.8 | GP24: -3.1 | GQ24: 21.8 | GR24: -3.4 | GS24: 21.7 | GT24: -3.8 | GU24: 21.7 | GV24: -4.2 | GW24: 21.6 | GX24: -4.6 | GY24: 21.5 | GZ24: -4.9 | HA24: 21.4 | HB24: -5.3 | HC24: 21.3 | HD24: -5.7 | HE24: 21.3 | HF24: -6.1 | HG24: 21.1 | HH24: -6.4 | HI24: 21.0 | HJ24: -6.8 | HK24: 20.9 | HL24: -7.2 | HM24: 20.8 | HN24: -7.5 | HO24: 20.7 | HP24: -7.9 | HQ24: 20.5 | HR24: -8.2 | HS24: 20.4 | HT24: -8.6 | HU24: 20.3 | HV24: -8.9 | HW24: 20.1 | HX24: -9.3 | HY24: 19.9 | HZ24: -9.6 | IA24: 19.8 | IB24: -10.0 | IC24: 19.6 | ID24: -10.3 | IE24: 19.4 | IF24: -10.7 | IG24: 19.2 | IH24: -11.0 | II24: 19.1 | IJ24: -11.3 | IK24: 18.9 | IL24: -11.7 | IM24: 18.7 | IN24: -12.0 | IO24: 18.5 | IP24: -12.3 | IQ24: 18.2 | IR24: -12.6 | IS24: 18.0 | IT24: -12.9 | IU24: 17.8 | IV24: -13.2 | IW24: 17.6 | IX24: -13.5 | IY24: 17.3 | IZ24: -13.8 | JA24: 17.1 | JB24: -14.1 | JC24: 16.9 | JD24: -14.4 | JE24: 16.6 | JF24: -14.7 | JG24: 16.3 | JH24: -15.0 | JI24: 16.1 | JJ24: -15.3 | JK24: 15.8 | JL24: -15.6 | JM24: 15.6 | JN24: -15.8 | JO24: 15.3 | JP24: -16.1 | JQ24: 15.0 | JR24: -16.3 | JS24: 14.7 | JT24: -16.6 | JU24: 14.4 | JV24: -16.9 | JW24: 14.1 | JX24: -17.1 | JY24: 13.8 | JZ24: -17.3 | KA24: 13.5 | KB24: -17.6 | KC24: 13.2 | KD24: -17.8 | KE24: 12.9 | KF24: -18.0 | KG24: 12.6 | KH24: -18.2 | KI24: 12.3 | KJ24: -18.5 | KK24: 12.0 | KL24: -18.7 | KM24: 11.7 | KN24: -18.9 | KO24: 11.3 | KP24: -19.1 | KQ24: 11.0 | KR24: -19.2 | KS24: 10.7 | KT24: -19.4 | KU24: 10.3 | KV24: -19.6 | KW24: 10.0 | KX24: -19.8 | KY24: 9.6 | KZ24: -19.9 | LA24: 9.3 | LB24: -20.1 | LC24: 8.9 | LD24: -20.3 | LE24: 8.6 | LF24: -20.4 | LG24: 8.2 | LH24: -20.5 | LI24: 7.9 | LJ24: -20.7 | LK24: 7.5 | LL24: -20.8 | LM24: 7.2 | LN24: -20.9 | LO24: 6.8 | LP24: -21.0 | LQ24: 6.4 | LR24: -21.1 | LS24: 6.1 | LT24: -21.3 | LU24: 5.7 | LV24: -21.3 | LW24: 5.3 | LX24: -21.4 | LY24: 4.9 | LZ24: -21.5 | MA24: 4.6 | MB24: -21.6 | MC24: 4.2 | MD24: -21.7 | ME24: 3.8 | MF24: -21.7 | MG24: 3.4 | MH24: -21.8 | MI24: 3.1 | MJ24: -21.8 | MK24: 2.7 | ML24: -21.9 | MM24: 2.3 | MN24: -21.9 | MO24: 1.9 | MP24: -21.9 | MQ24: 1.5 | MR24: -22.0 | MS24: 1.2 | MT24: -22.0 | MU24: 0.8 | MV24: -22.0 | MW24: 0.4 | MX24: -22.0 | MY24: 0.0 | MZ24: -22.0 | NA24: -0.4 | NB24: -22.0 | NC24: -0.8 | ND24: -22.0 | NE24: -1.2 | NF24: -21.9 | NG24: -1.5 | NH24: -21.9 | NI24: -1.9 | NJ24: -21.9 | NK24: -2.3 | NL24: -21.8 | NM24: -2.7 | NN24: -21.8 | NO24: -3.1 | NP24: -21.7 | NQ24: -3.4 | NR24: -21.7 | NS24: -3.8 | NT24: -21.6 | NU24: -4.2 | NV24: -21.5 | NW24: -4.6 | NX24: -21.4 | NY24: -4.9 | NZ24: -21.3 | OA24: -5.3 | OB24: -21.3 | OC24: -5.7 | OD24: -21.1 | OE24: -6.1 | OF24: -21.0 | OG24: -6.4 | OH24: -20.9 | OI24: -6.8 | OJ24: -20.8 | OK24: -7.2 | OL24: -20.7 | OM24: -7.5 | ON24: -20.5 | OO24: -7.9 | OP24: -20.4 | OQ24: -8.2 | OR24: -20.3 | OS24: -8.6 | OT24: -20.1 | OU24: -8.9 | OV24: -19.9 | OW24: -9.3 | OX24: -19.8 | OY24: -9.6 | OZ24: -19.6 | PA24: -10.0 | PB24: -19.4 | PC24: -10.3 | PD24: -19.2 | PE24: -10.7 | PF24: -19.1 | PG24: -11.0 | PH24: -18.9 | PI24: -11.3 | PJ24: -18.7 | PK24: -11.7 | PL24: -18.5 | PM24: -12.0 | PN24: -18.2 | PO24: -12.3 | PP24: -18.0 | PQ24: -12.6 | PR24: -17.8 | PS24: -12.9 | PT24: -17.6 | PU24: -13.2 | PV24: -17.3 | PW24: -13.5 | PX24: -17.1 | PY24: -13.8 | PZ24: -16.9 | QA24: -14.1 | QB24: -16.6 | QC24: -14.4 | QD24: -16.3 | QE24: -14.7 | QF24: -16.1 | QG24: -15.0 | QH24: -15.8 | QI24: -15.3 | QJ24: -15.6 | QK24: -15.6 | QL24: -15.3 | QM24: -15.8 | QN24: -15.0 | QO24: -16.1 | QP24: -14.7 | QQ24: -16.3 | QR24: -14.4 | QS24: -16.6 | QT24: -14.1 | QU24: -16.9 | QV24: -13.8 | QW24: -17.1 | QX24: -13.5 | QY24: -17.3 | QZ24: -13.2 | RA24: -17.6 | RB24: -12.9 | RC24: -17.8 | RD24: -12.6 | RE24: -18.0 | RF24: -12.3 | RG24: -18.2 | RH24: -12.0 | RI24: -18.5 | RJ24: -11.7 | RK24: -18.7 | RL24: -11.3 | RM24: -18.9 | RN24: -11.0 | RO24: -19.1 | RP24: -10.7 | RQ24: -19.2 | RR24: -10.3 | RS24: -19.4 | RT24: -10.0 | RU24: -19.6 | RV24: -9.6 | RW24: -19.8 | RX24: -9.3 | RY24: -19.9 | RZ24: -8.9 | SA24: -20.1 | SB24: -8.6 | SC24: -20.3 | SD24: -8.2 | SE24: -20.4 | SF24: -7.9 | SG24: -20.5 | SH24: -7.5 | SI24: -20.7 | SJ24: -7.2 | SK24: -20.8 | SL24: -6.8 | SM24: -20.9 | SN24: -6.4 | SO24: -21.0 | SP24: -6.1 | SQ24: -21.1 | SR24: -5.7 | SS24: -21.3 | ST24: -5.3 | SU24: -21.3 | SV24: -4.9 | SW24: -21.4 | SX24: -4.6 | SY24: -21.5 | SZ24: -4.2 | TA24: -21.6 | TB24: -3.8 | TC24: -21.7 | TD24: -3.4 | TE24: -21.7 | TF24: -3.1 | TG24: -21.8 | TH24: -2.7 | TI24: -21.8 | TJ24: -2.3 | TK24: -21.9 | TL24: -1.9 | TM24: -21.9 | TN24: -1.5 | TO24: -21.9 | TP24: -1.2 | TQ24: -22.0 | TR24: -0.8 | TS24: -22.0 | TT24: -0.4 | TU24: -22.0 | TV24: -0.0 | TW24: -22.0 | TX24: 0.4 | TY24: -22.0 | TZ24: 0.8 | UA24: -22.0 | UB24: 1.2 | UC24: -22.0 | UD24: 1.5 | UE24: -21.9 | UF24: 1.9 | UG24: -21.9 | UH24: 2.3 | UI24: -21.9 | UJ24: 2.7 | UK24: -21.8 | UL24: 3.1 | UM24: -21.8 | UN24: 3.4 | UO24: -21.7 | UP24: 3.8 | UQ24: -21.7 | UR24: 4.2 | US24: -21.6 | UT24: 4.6 | UU24: -21.5 | UV24: 4.9 | UW24: -21.4 | UX24: 5.3 | UY24: -21.3 | UZ24: 5.7 | VA24: -21.3 | VB24: 6.1 | VC24: -21.1 | VD24: 6.4 | VE24: -21.0 | VF24: 6.8 | VG24: -20.9 | VH24: 7.2 | VI24: -20.8 | VJ24: 7.5 | VK24: -20.7 | VL24: 7.9 | VM24: -20.5 | VN24: 8.2 | VO24: -20.4 | VP24: 8.6 | VQ24: -20.3 | VR24: 8.9 | VS24: -20.1 | VT24: 9.3 | VU24: -19.9 | VV24: 9.6 | VW24: -19.8 | VX24: 10.0 | VY24: -19.6 | VZ24: 10.3 | WA24: -19.4 | WB24: 10.7 | WC24: -19.2 | WD24: 11.0 | WE24: -19.1 | WF24: 11.3 | WG24: -18.9 | WH24: 11.7 | WI24: -18.7 | WJ24: 12.0 | WK24: -18.5 | WL24: 12.3 | WM24: -18.2 | WN24: 12.6 | WO24: -18.0 | WP24: 12.9 | WQ24: -17.8 | WR24: 13.2 | WS24: -17.6 | WT24: 13.5 | WU24: -17.3 | WV24: 13.8 | WW24: -17.1 | WX24: 14.1 | WY24: -16.9 | WZ24: 14.4 | XA24: -16.6 | XB24: 14.7 | XC24: -16.3 | XD24: 15.0 | XE24: -16.1 | XF24: 15.3 | XG24: -15.8 | XH24: 15.6 | XI24: -15.6 | XJ24: 15.8 | XK24: -15.3 | XL24: 16.1 | XM24: -15.0 | XN24: 16.3 | XO24: -14.7 | XP24: 16.6 | XQ24: -14.4 | XR24: 16.9 | XS24: -14.1 | XT24: 17.1 | XU24: -13.8 | XV24: 17.3 | XW24: -13.5 | XX24: 17.6 | XY24: -13.2 | XZ24: 17.8 | YA24: -12.9 | YB24: 18.0 | YC24: -12.6 | YD24: 18.2 | YE24: -12.3 | YF24: 18.5 | YG24: -12.0 | YH24: 18.7 | YI24: -11.7 | YJ24: 18.9 | YK24: -11.3 | YL24: 19.1 | YM24: -11.0 | YN24: 19.2 | YO24: -10.7 | YP24: 19.4 | YQ24: -10.3 | YR24: 19.6 | YS24: -10.0 | YT24: 19.8 | YU24: -9.6 | YV24: 19.9 | YW24: -9.3 | YX24: 20.1 | YY24: -8.9 | YZ24: 20.3 | ZA24: -8.6 | ZB24: 20.4 | ZC24: -8.2 | ZD24: 20.5 | ZE24: -7.9 | ZF24: 20.7 | ZG24: -7.5 | ZH24: 20.8 | ZI24: -7.2 | ZJ24: 20.9 | ZK24: -6.8 | ZL24: 21.0 | ZM24: -6.4 | ZN24: 21.1 | ZO24: -6.1 | ZP24: 21.3 | ZQ24: -5.7 | ZR24: 21.3 | ZS24: -5.3 | ZT24: 21.4 | ZU24: -4.9 | ZV24: 21.5 | ZW24: -4.6 | ZX24: 21.6 | ZY24: -4.2 | ZZ24: 21.7 | AAA24: -3.8 | AAB24: 21.7 | AAC24: -3.4 | AAD24: 21.8 | AAE24: -3.1 | AAF24: 21.8 | AAG24: -2.7 | AAH24: 21.9 | AAI24: -2.3 | AAJ24: 21.9 | AAK24: -1.9 | AAL24: 21.9 | AAM24: -1.5 | AAN24: 22.0 | AAO24: -1.2 | AAP24: 22.0 | AAQ24: -0.8 | AAR24: 22.0 | AAS24: -0.4 | AAT24: 22.0 | AAU24: -0.0
A25: 23 | B25: 23.0 | C25: 0.0 | D25: 23.0 | E25: 0.4 | F25: 23.0 | G25: 0.8 | H25: 23.0 | I25: 1.2 | J25: 22.9 | K25: 1.6 | L25: 22.9 | M25: 2.0 | N25: 22.9 | O25: 2.4 | P25: 22.8 | Q25: 2.8 | R25: 22.8 | S25: 3.2 | T25: 22.7 | U25: 3.6 | V25: 22.7 | W25: 4.0 | X25: 22.6 | Y25: 4.4 | Z25: 22.5 | AA25: 4.8 | AB25: 22.4 | AC25: 5.2 | AD25: 22.3 | AE25: 5.6 | AF25: 22.2 | AG25: 6.0 | AH25: 22.1 | AI25: 6.3 | AJ25: 22.0 | AK25: 6.7 | AL25: 21.9 | AM25: 7.1 | AN25: 21.7 | AO25: 7.5 | AP25: 21.6 | AQ25: 7.9 | AR25: 21.5 | AS25: 8.2 | AT25: 21.3 | AU25: 8.6 | AV25: 21.2 | AW25: 9.0 | AX25: 21.0 | AY25: 9.4 | AZ25: 20.8 | BA25: 9.7 | BB25: 20.7 | BC25: 10.1 | BD25: 20.5 | BE25: 10.4 | BF25: 20.3 | BG25: 10.8 | BH25: 20.1 | BI25: 11.2 | BJ25: 19.9 | BK25: 11.5 | BL25: 19.7 | BM25: 11.8 | BN25: 19.5 | BO25: 12.2 | BP25: 19.3 | BQ25: 12.5 | BR25: 19.1 | BS25: 12.9 | BT25: 18.8 | BU25: 13.2 | BV25: 18.6 | BW25: 13.5 | BX25: 18.4 | BY25: 13.8 | BZ25: 18.1 | CA25: 14.2 | CB25: 17.9 | CC25: 14.5 | CD25: 17.6 | CE25: 14.8 | CF25: 17.4 | CG25: 15.1 | CH25: 17.1 | CI25: 15.4 | CJ25: 16.8 | CK25: 15.7 | CL25: 16.5 | CM25: 16.0 | CN25: 16.3 | CO25: 16.3 | CP25: 16.0 | CQ25: 16.5 | CR25: 15.7 | CS25: 16.8 | CT25: 15.4 | CU25: 17.1 | CV25: 15.1 | CW25: 17.4 | CX25: 14.8 | CY25: 17.6 | CZ25: 14.5 | DA25: 17.9 | DB25: 14.2 | DC25: 18.1 | DD25: 13.8 | DE25: 18.4 | DF25: 13.5 | DG25: 18.6 | DH25: 13.2 | DI25: 18.8 | DJ25: 12.9 | DK25: 19.1 | DL25: 12.5 | DM25: 19.3 | DN25: 12.2 | DO25: 19.5 | DP25: 11.8 | DQ25: 19.7 | DR25: 11.5 | DS25: 19.9 | DT25: 11.2 | DU25: 20.1 | DV25: 10.8 | DW25: 20.3 | DX25: 10.4 | DY25: 20.5 | DZ25: 10.1 | EA25: 20.7 | EB25: 9.7 | EC25: 20.8 | ED25: 9.4 | EE25: 21.0 | EF25: 9.0 | EG25: 21.2 | EH25: 8.6 | EI25: 21.3 | EJ25: 8.2 | EK25: 21.5 | EL25: 7.9 | EM25: 21.6 | EN25: 7.5 | EO25: 21.7 | EP25: 7.1 | EQ25: 21.9 | ER25: 6.7 | ES25: 22.0 | ET25: 6.3 | EU25: 22.1 | EV25: 6.0 | EW25: 22.2 | EX25: 5.6 | EY25: 22.3 | EZ25: 5.2 | FA25: 22.4 | FB25: 4.8 | FC25: 22.5 | FD25: 4.4 | FE25: 22.6 | FF25: 4.0 | FG25: 22.7 | FH25: 3.6 | FI25: 22.7 | FJ25: 3.2 | FK25: 22.8 | FL25: 2.8 | FM25: 22.8 | FN25: 2.4 | FO25: 22.9 | FP25: 2.0 | FQ25: 22.9 | FR25: 1.6 | FS25: 22.9 | FT25: 1.2 | FU25: 23.0 | FV25: 0.8 | FW25: 23.0 | FX25: 0.4 | FY25: 23.0 | FZ25: 0.0 | GA25: 23.0 | GB25: -0.4 | GC25: 23.0 | GD25: -0.8 | GE25: 23.0 | GF25: -1.2 | GG25: 23.0 | GH25: -1.6 | GI25: 22.9 | GJ25: -2.0 | GK25: 22.9 | GL25: -2.4 | GM25: 22.9 | GN25: -2.8 | GO25: 22.8 | GP25: -3.2 | GQ25: 22.8 | GR25: -3.6 | GS25: 22.7 | GT25: -4.0 | GU25: 22.7 | GV25: -4.4 | GW25: 22.6 | GX25: -4.8 | GY25: 22.5 | GZ25: -5.2 | HA25: 22.4 | HB25: -5.6 | HC25: 22.3 | HD25: -6.0 | HE25: 22.2 | HF25: -6.3 | HG25: 22.1 | HH25: -6.7 | HI25: 22.0 | HJ25: -7.1 | HK25: 21.9 | HL25: -7.5 | HM25: 21.7 | HN25: -7.9 | HO25: 21.6 | HP25: -8.2 | HQ25: 21.5 | HR25: -8.6 | HS25: 21.3 | HT25: -9.0 | HU25: 21.2 | HV25: -9.4 | HW25: 21.0 | HX25: -9.7 | HY25: 20.8 | HZ25: -10.1 | IA25: 20.7 | IB25: -10.4 | IC25: 20.5 | ID25: -10.8 | IE25: 20.3 | IF25: -11.2 | IG25: 20.1 | IH25: -11.5 | II25: 19.9 | IJ25: -11.8 | IK25: 19.7 | IL25: -12.2 | IM25: 19.5 | IN25: -12.5 | IO25: 19.3 | IP25: -12.9 | IQ25: 19.1 | IR25: -13.2 | IS25: 18.8 | IT25: -13.5 | IU25: 18.6 | IV25: -13.8 | IW25: 18.4 | IX25: -14.2 | IY25: 18.1 | IZ25: -14.5 | JA25: 17.9 | JB25: -14.8 | JC25: 17.6 | JD25: -15.1 | JE25: 17.4 | JF25: -15.4 | JG25: 17.1 | JH25: -15.7 | JI25: 16.8 | JJ25: -16.0 | JK25: 16.5 | JL25: -16.3 | JM25: 16.3 | JN25: -16.5 | JO25: 16.0 | JP25: -16.8 | JQ25: 15.7 | JR25: -17.1 | JS25: 15.4 | JT25: -17.4 | JU25: 15.1 | JV25: -17.6 | JW25: 14.8 | JX25: -17.9 | JY25: 14.5 | JZ25: -18.1 | KA25: 14.2 | KB25: -18.4 | KC25: 13.8 | KD25: -18.6 | KE25: 13.5 | KF25: -18.8 | KG25: 13.2 | KH25: -19.1 | KI25: 12.9 | KJ25: -19.3 | KK25: 12.5 | KL25: -19.5 | KM25: 12.2 | KN25: -19.7 | KO25: 11.8 | KP25: -19.9 | KQ25: 11.5 | KR25: -20.1 | KS25: 11.2 | KT25: -20.3 | KU25: 10.8 | KV25: -20.5 | KW25: 10.4 | KX25: -20.7 | KY25: 10.1 | KZ25: -20.8 | LA25: 9.7 | LB25: -21.0 | LC25: 9.4 | LD25: -21.2 | LE25: 9.0 | LF25: -21.3 | LG25: 8.6 | LH25: -21.5 | LI25: 8.2 | LJ25: -21.6 | LK25: 7.9 | LL25: -21.7 | LM25: 7.5 | LN25: -21.9 | LO25: 7.1 | LP25: -22.0 | LQ25: 6.7 | LR25: -22.1 | LS25: 6.3 | LT25: -22.2 | LU25: 6.0 | LV25: -22.3 | LW25: 5.6 | LX25: -22.4 | LY25: 5.2 | LZ25: -22.5 | MA25: 4.8 | MB25: -22.6 | MC25: 4.4 | MD25: -22.7 | ME25: 4.0 | MF25: -22.7 | MG25: 3.6 | MH25: -22.8 | MI25: 3.2 | MJ25: -22.8 | MK25: 2.8 | ML25: -22.9 | MM25: 2.4 | MN25: -22.9 | MO25: 2.0 | MP25: -22.9 | MQ25: 1.6 | MR25: -23.0 | MS25: 1.2 | MT25: -23.0 | MU25: 0.8 | MV25: -23.0 | MW25: 0.4 | MX25: -23.0 | MY25: 0.0 | MZ25: -23.0 | NA25: -0.4 | NB25: -23.0 | NC25: -0.8 | ND25: -23.0 | NE25: -1.2 | NF25: -22.9 | NG25: -1.6 | NH25: -22.9 | NI25: -2.0 | NJ25: -22.9 | NK25: -2.4 | NL25: -22.8 | NM25: -2.8 | NN25: -22.8 | NO25: -3.2 | NP25: -22.7 | NQ25: -3.6 | NR25: -22.7 | NS25: -4.0 | NT25: -22.6 | NU25: -4.4 | NV25: -22.5 | NW25: -4.8 | NX25: -22.4 | NY25: -5.2 | NZ25: -22.3 | OA25: -5.6 | OB25: -22.2 | OC25: -6.0 | OD25: -22.1 | OE25: -6.3 | OF25: -22.0 | OG25: -6.7 | OH25: -21.9 | OI25: -7.1 | OJ25: -21.7 | OK25: -7.5 | OL25: -21.6 | OM25: -7.9 | ON25: -21.5 | OO25: -8.2 | OP25: -21.3 | OQ25: -8.6 | OR25: -21.2 | OS25: -9.0 | OT25: -21.0 | OU25: -9.4 | OV25: -20.8 | OW25: -9.7 | OX25: -20.7 | OY25: -10.1 | OZ25: -20.5 | PA25: -10.4 | PB25: -20.3 | PC25: -10.8 | PD25: -20.1 | PE25: -11.2 | PF25: -19.9 | PG25: -11.5 | PH25: -19.7 | PI25: -11.8 | PJ25: -19.5 | PK25: -12.2 | PL25: -19.3 | PM25: -12.5 | PN25: -19.1 | PO25: -12.9 | PP25: -18.8 | PQ25: -13.2 | PR25: -18.6 | PS25: -13.5 | PT25: -18.4 | PU25: -13.8 | PV25: -18.1 | PW25: -14.2 | PX25: -17.9 | PY25: -14.5 | PZ25: -17.6 | QA25: -14.8 | QB25: -17.4 | QC25: -15.1 | QD25: -17.1 | QE25: -15.4 | QF25: -16.8 | QG25: -15.7 | QH25: -16.5 | QI25: -16.0 | QJ25: -16.3 | QK25: -16.3 | QL25: -16.0 | QM25: -16.5 | QN25: -15.7 | QO25: -16.8 | QP25: -15.4 | QQ25: -17.1 | QR25: -15.1 | QS25: -17.4 | QT25: -14.8 | QU25: -17.6 | QV25: -14.5 | QW25: -17.9 | QX25: -14.2 | QY25: -18.1 | QZ25: -13.8 | RA25: -18.4 | RB25: -13.5 | RC25: -18.6 | RD25: -13.2 | RE25: -18.8 | RF25: -12.9 | RG25: -19.1 | RH25: -12.5 | RI25: -19.3 | RJ25: -12.2 | RK25: -19.5 | RL25: -11.8 | RM25: -19.7 | RN25: -11.5 | RO25: -19.9 | RP25: -11.2 | RQ25: -20.1 | RR25: -10.8 | RS25: -20.3 | RT25: -10.4 | RU25: -20.5 | RV25: -10.1 | RW25: -20.7 | RX25: -9.7 | RY25: -20.8 | RZ25: -9.4 | SA25: -21.0 | SB25: -9.0 | SC25: -21.2 | SD25: -8.6 | SE25: -21.3 | SF25: -8.2 | SG25: -21.5 | SH25: -7.9 | SI25: -21.6 | SJ25: -7.5 | SK25: -21.7 | SL25: -7.1 | SM25: -21.9 | SN25: -6.7 | SO25: -22.0 | SP25: -6.3 | SQ25: -22.1 | SR25: -6.0 | SS25: -22.2 | ST25: -5.6 | SU25: -22.3 | SV25: -5.2 | SW25: -22.4 | SX25: -4.8 | SY25: -22.5 | SZ25: -4.4 | TA25: -22.6 | TB25: -4.0 | TC25: -22.7 | TD25: -3.6 | TE25: -22.7 | TF25: -3.2 | TG25: -22.8 | TH25: -2.8 | TI25: -22.8 | TJ25: -2.4 | TK25: -22.9 | TL25: -2.0 | TM25: -22.9 | TN25: -1.6 | TO25: -22.9 | TP25: -1.2 | TQ25: -23.0 | TR25: -0.8 | TS25: -23.0 | TT25: -0.4 | TU25: -23.0 | TV25: -0.0 | TW25: -23.0 | TX25: 0.4 | TY25: -23.0 | TZ25: 0.8 | UA25: -23.0 | UB25: 1.2 | UC25: -23.0 | UD25: 1.6 | UE25: -22.9 | UF25: 2.0 | UG25: -22.9 | UH25: 2.4 | UI25: -22.9 | UJ25: 2.8 | UK25: -22.8 | UL25: 3.2 | UM25: -22.8 | UN25: 3.6 | UO25: -22.7 | UP25: 4.0 | UQ25: -22.7 | UR25: 4.4 | US25: -22.6 | UT25: 4.8 | UU25: -22.5 | UV25: 5.2 | UW25: -22.4 | UX25: 5.6 | UY25: -22.3 | UZ25: 6.0 | VA25: -22.2 | VB25: 6.3 | VC25: -22.1 | VD25: 6.7 | VE25: -22.0 | VF25: 7.1 | VG25: -21.9 | VH25: 7.5 | VI25: -21.7 | VJ25: 7.9 | VK25: -21.6 | VL25: 8.2 | VM25: -21.5 | VN25: 8.6 | VO25: -21.3 | VP25: 9.0 | VQ25: -21.2 | VR25: 9.4 | VS25: -21.0 | VT25: 9.7 | VU25: -20.8 | VV25: 10.1 | VW25: -20.7 | VX25: 10.4 | VY25: -20.5 | VZ25: 10.8 | WA25: -20.3 | WB25: 11.2 | WC25: -20.1 | WD25: 11.5 | WE25: -19.9 | WF25: 11.8 | WG25: -19.7 | WH25: 12.2 | WI25: -19.5 | WJ25: 12.5 | WK25: -19.3 | WL25: 12.9 | WM25: -19.1 | WN25: 13.2 | WO25: -18.8 | WP25: 13.5 | WQ25: -18.6 | WR25: 13.8 | WS25: -18.4 | WT25: 14.2 | WU25: -18.1 | WV25: 14.5 | WW25: -17.9 | WX25: 14.8 | WY25: -17.6 | WZ25: 15.1 | XA25: -17.4 | XB25: 15.4 | XC25: -17.1 | XD25: 15.7 | XE25: -16.8 | XF25: 16.0 | XG25: -16.5 | XH25: 16.3 | XI25: -16.3 | XJ25: 16.5 | XK25: -16.0 | XL25: 16.8 | XM25: -15.7 | XN25: 17.1 | XO25: -15.4 | XP25: 17.4 | XQ25: -15.1 | XR25: 17.6 | XS25: -14.8 | XT25: 17.9 | XU25: -14.5 | XV25: 18.1 | XW25: -14.2 | XX25: 18.4 | XY25: -13.8 | XZ25: 18.6 | YA25: -13.5 | YB25: 18.8 | YC25: -13.2 | YD25: 19.1 | YE25: -12.9 | YF25: 19.3 | YG25: -12.5 | YH25: 19.5 | YI25: -12.2 | YJ25: 19.7 | YK25: -11.8 | YL25: 19.9 | YM25: -11.5 | YN25: 20.1 | YO25: -11.2 | YP25: 20.3 | YQ25: -10.8 | YR25: 20.5 | YS25: -10.4 | YT25: 20.7 | YU25: -10.1 | YV25: 20.8 | YW25: -9.7 | YX25: 21.0 | YY25: -9.4 | YZ25: 21.2 | ZA25: -9.0 | ZB25: 21.3 | ZC25: -8.6 | ZD25: 21.5 | ZE25: -8.2 | ZF25: 21.6 | ZG25: -7.9 | ZH25: 21.7 | ZI25: -7.5 | ZJ25: 21.9 | ZK25: -7.1 | ZL25: 22.0 | ZM25: -6.7 | ZN25: 22.1 | ZO25: -6.3 | ZP25: 22.2 | ZQ25: -6.0 | ZR25: 22.3 | ZS25: -5.6 | ZT25: 22.4 | ZU25: -5.2 | ZV25: 22.5 | ZW25: -4.8 | ZX25: 22.6 | ZY25: -4.4 | ZZ25: 22.7 | AAA25: -4.0 | AAB25: 22.7 | AAC25: -3.6 | AAD25: 22.8 | AAE25: -3.2 | AAF25: 22.8 | AAG25: -2.8 | AAH25: 22.9 | AAI25: -2.4 | AAJ25: 22.9 | AAK25: -2.0 | AAL25: 22.9 | AAM25: -1.6 | AAN25: 23.0 | AAO25: -1.2 | AAP25: 23.0 | AAQ25: -0.8 | AAR25: 23.0 | AAS25: -0.4 | AAT25: 23.0 | AAU25: -0.0
A26: 24 | B26: 24.0 | C26: 0.0 | D26: 24.0 | E26: 0.4 | F26: 24.0 | G26: 0.8 | H26: 24.0 | I26: 1.3 | J26: 23.9 | K26: 1.7 | L26: 23.9 | M26: 2.1 | N26: 23.9 | O26: 2.5 | P26: 23.8 | Q26: 2.9 | R26: 23.8 | S26: 3.3 | T26: 23.7 | U26: 3.8 | V26: 23.6 | W26: 4.2 | X26: 23.6 | Y26: 4.6 | Z26: 23.5 | AA26: 5.0 | AB26: 23.4 | AC26: 5.4 | AD26: 23.3 | AE26: 5.8 | AF26: 23.2 | AG26: 6.2 | AH26: 23.1 | AI26: 6.6 | AJ26: 23.0 | AK26: 7.0 | AL26: 22.8 | AM26: 7.4 | AN26: 22.7 | AO26: 7.8 | AP26: 22.6 | AQ26: 8.2 | AR26: 22.4 | AS26: 8.6 | AT26: 22.3 | AU26: 9.0 | AV26: 22.1 | AW26: 9.4 | AX26: 21.9 | AY26: 9.8 | AZ26: 21.8 | BA26: 10.1 | BB26: 21.6 | BC26: 10.5 | BD26: 21.4 | BE26: 10.9 | BF26: 21.2 | BG26: 11.3 | BH26: 21.0 | BI26: 11.6 | BJ26: 20.8 | BK26: 12.0 | BL26: 20.6 | BM26: 12.4 | BN26: 20.4 | BO26: 12.7 | BP26: 20.1 | BQ26: 13.1 | BR26: 19.9 | BS26: 13.4 | BT26: 19.7 | BU26: 13.8 | BV26: 19.4 | BW26: 14.1 | BX26: 19.2 | BY26: 14.4 | BZ26: 18.9 | CA26: 14.8 | CB26: 18.7 | CC26: 15.1 | CD26: 18.4 | CE26: 15.4 | CF26: 18.1 | CG26: 15.7 | CH26: 17.8 | CI26: 16.1 | CJ26: 17.6 | CK26: 16.4 | CL26: 17.3 | CM26: 16.7 | CN26: 17.0 | CO26: 17.0 | CP26: 16.7 | CQ26: 17.3 | CR26: 16.4 | CS26: 17.6 | CT26: 16.1 | CU26: 17.8 | CV26: 15.7 | CW26: 18.1 | CX26: 15.4 | CY26: 18.4 | CZ26: 15.1 | DA26: 18.7 | DB26: 14.8 | DC26: 18.9 | DD26: 14.4 | DE26: 19.2 | DF26: 14.1 | DG26: 19.4 | DH26: 13.8 | DI26: 19.7 | DJ26: 13.4 | DK26: 19.9 | DL26: 13.1 | DM26: 20.1 | DN26: 12.7 | DO26: 20.4 | DP26: 12.4 | DQ26: 20.6 | DR26: 12.0 | DS26: 20.8 | DT26: 11.6 | DU26: 21.0 | DV26: 11.3 | DW26: 21.2 | DX26: 10.9 | DY26: 21.4 | DZ26: 10.5 | EA26: 21.6 | EB26: 10.1 | EC26: 21.8 | ED26: 9.8 | EE26: 21.9 | EF26: 9.4 | EG26: 22.1 | EH26: 9.0 | EI26: 22.3 | EJ26: 8.6 | EK26: 22.4 | EL26: 8.2 | EM26: 22.6 | EN26: 7.8 | EO26: 22.7 | EP26: 7.4 | EQ26: 22.8 | ER26: 7.0 | ES26: 23.0 | ET26: 6.6 | EU26: 23.1 | EV26: 6.2 | EW26: 23.2 | EX26: 5.8 | EY26: 23.3 | EZ26: 5.4 | FA26: 23.4 | FB26: 5.0 | FC26: 23.5 | FD26: 4.6 | FE26: 23.6 | FF26: 4.2 | FG26: 23.6 | FH26: 3.8 | FI26: 23.7 | FJ26: 3.3 | FK26: 23.8 | FL26: 2.9 | FM26: 23.8 | FN26: 2.5 | FO26: 23.9 | FP26: 2.1 | FQ26: 23.9 | FR26: 1.7 | FS26: 23.9 | FT26: 1.3 | FU26: 24.0 | FV26: 0.8 | FW26: 24.0 | FX26: 0.4 | FY26: 24.0 | FZ26: 0.0 | GA26: 24.0 | GB26: -0.4 | GC26: 24.0 | GD26: -0.8 | GE26: 24.0 | GF26: -1.3 | GG26: 24.0 | GH26: -1.7 | GI26: 23.9 | GJ26: -2.1 | GK26: 23.9 | GL26: -2.5 | GM26: 23.9 | GN26: -2.9 | GO26: 23.8 | GP26: -3.3 | GQ26: 23.8 | GR26: -3.8 | GS26: 23.7 | GT26: -4.2 | GU26: 23.6 | GV26: -4.6 | GW26: 23.6 | GX26: -5.0 | GY26: 23.5 | GZ26: -5.4 | HA26: 23.4 | HB26: -5.8 | HC26: 23.3 | HD26: -6.2 | HE26: 23.2 | HF26: -6.6 | HG26: 23.1 | HH26: -7.0 | HI26: 23.0 | HJ26: -7.4 | HK26: 22.8 | HL26: -7.8 | HM26: 22.7 | HN26: -8.2 | HO26: 22.6 | HP26: -8.6 | HQ26: 22.4 | HR26: -9.0 | HS26: 22.3 | HT26: -9.4 | HU26: 22.1 | HV26: -9.8 | HW26: 21.9 | HX26: -10.1 | HY26: 21.8 | HZ26: -10.5 | IA26: 21.6 | IB26: -10.9 | IC26: 21.4 | ID26: -11.3 | IE26: 21.2 | IF26: -11.6 | IG26: 21.0 | IH26: -12.0 | II26: 20.8 | IJ26: -12.4 | IK26: 20.6 | IL26: -12.7 | IM26: 20.4 | IN26: -13.1 | IO26: 20.1 | IP26: -13.4 | IQ26: 19.9 | IR26: -13.8 | IS26: 19.7 | IT26: -14.1 | IU26: 19.4 | IV26: -14.4 | IW26: 19.2 | IX26: -14.8 | IY26: 18.9 | IZ26: -15.1 | JA26: 18.7 | JB26: -15.4 | JC26: 18.4 | JD26: -15.7 | JE26: 18.1 | JF26: -16.1 | JG26: 17.8 | JH26: -16.4 | JI26: 17.6 | JJ26: -16.7 | JK26: 17.3 | JL26: -17.0 | JM26: 17.0 | JN26: -17.3 | JO26: 16.7 | JP26: -17.6 | JQ26: 16.4 | JR26: -17.8 | JS26: 16.1 | JT26: -18.1 | JU26: 15.7 | JV26: -18.4 | JW26: 15.4 | JX26: -18.7 | JY26: 15.1 | JZ26: -18.9 | KA26: 14.8 | KB26: -19.2 | KC26: 14.4 | KD26: -19.4 | KE26: 14.1 | KF26: -19.7 | KG26: 13.8 | KH26: -19.9 | KI26: 13.4 | KJ26: -20.1 | KK26: 13.1 | KL26: -20.4 | KM26: 12.7 | KN26: -20.6 | KO26: 12.4 | KP26: -20.8 | KQ26: 12.0 | KR26: -21.0 | KS26: 11.6 | KT26: -21.2 | KU26: 11.3 | KV26: -21.4 | KW26: 10.9 | KX26: -21.6 | KY26: 10.5 | KZ26: -21.8 | LA26: 10.1 | LB26: -21.9 | LC26: 9.8 | LD26: -22.1 | LE26: 9.4 | LF26: -22.3 | LG26: 9.0 | LH26: -22.4 | LI26: 8.6 | LJ26: -22.6 | LK26: 8.2 | LL26: -22.7 | LM26: 7.8 | LN26: -22.8 | LO26: 7.4 | LP26: -23.0 | LQ26: 7.0 | LR26: -23.1 | LS26: 6.6 | LT26: -23.2 | LU26: 6.2 | LV26: -23.3 | LW26: 5.8 | LX26: -23.4 | LY26: 5.4 | LZ26: -23.5 | MA26: 5.0 | MB26: -23.6 | MC26: 4.6 | MD26: -23.6 | ME26: 4.2 | MF26: -23.7 | MG26: 3.8 | MH26: =COS(MH$1/360*2*PI())*$A26 -> -23.8 | MI26: 3.3 | MJ26: -23.8 | MK26: 2.9 | ML26: -23.9 | MM26: 2.5 | MN26: -23.9 | MO26: 2.1 | MP26: -23.9 | MQ26: 1.7 | MR26: -24.0 | MS26: 1.3 | MT26: -24.0 | MU26: 0.8 | MV26: -24.0 | MW26: 0.4 | MX26: -24.0 | MY26: 0.0 | MZ26: -24.0 | NA26: -0.4 | NB26: -24.0 | NC26: -0.8 | ND26: -24.0 | NE26: -1.3 | NF26: -23.9 | NG26: -1.7 | NH26: -23.9 | NI26: -2.1 | NJ26: -23.9 | NK26: -2.5 | NL26: -23.8 | NM26: -2.9 | NN26: -23.8 | NO26: -3.3 | NP26: -23.7 | NQ26: -3.8 | NR26: -23.6 | NS26: -4.2 | NT26: -23.6 | NU26: -4.6 | NV26: -23.5 | NW26: -5.0 | NX26: -23.4 | NY26: -5.4 | NZ26: -23.3 | OA26: -5.8 | OB26: -23.2 | OC26: -6.2 | OD26: -23.1 | OE26: -6.6 | OF26: -23.0 | OG26: -7.0 | OH26: -22.8 | OI26: -7.4 | OJ26: -22.7 | OK26: -7.8 | OL26: -22.6 | OM26: -8.2 | ON26: -22.4 | OO26: -8.6 | OP26: -22.3 | OQ26: -9.0 | OR26: -22.1 | OS26: -9.4 | OT26: -21.9 | OU26: -9.8 | OV26: -21.8 | OW26: -10.1 | OX26: -21.6 | OY26: -10.5 | OZ26: -21.4 | PA26: -10.9 | PB26: -21.2 | PC26: -11.3 | PD26: -21.0 | PE26: -11.6 | PF26: -20.8 | PG26: -12.0 | PH26: -20.6 | PI26: -12.4 | PJ26: -20.4 | PK26: -12.7 | PL26: -20.1 | PM26: -13.1 | PN26: -19.9 | PO26: -13.4 | PP26: -19.7 | PQ26: -13.8 | PR26: -19.4 | PS26: -14.1 | PT26: -19.2 | PU26: -14.4 | PV26: -18.9 | PW26: -14.8 | PX26: -18.7 | PY26: -15.1 | PZ26: -18.4 | QA26: -15.4 | QB26: -18.1 | QC26: -15.7 | QD26: -17.8 | QE26: -16.1 | QF26: -17.6 | QG26: -16.4 | QH26: -17.3 | QI26: -16.7 | QJ26: -17.0 | QK26: -17.0 | QL26: -16.7 | QM26: -17.3 | QN26: -16.4 | QO26: -17.6 | QP26: -16.1 | QQ26: -17.8 | QR26: -15.7 | QS26: -18.1 | QT26: -15.4 | QU26: -18.4 | QV26: -15.1 | QW26: -18.7 | QX26: -14.8 | QY26: -18.9 | QZ26: -14.4 | RA26: -19.2 | RB26: =COS(RB$1/360*2*PI())*$A26 -> -14.1 | RC26: -19.4 | RD26: -13.8 | RE26: -19.7 | RF26: -13.4 | RG26: -19.9 | RH26: -13.1 | RI26: -20.1 | RJ26: -12.7 | RK26: -20.4 | RL26: -12.4 | RM26: -20.6 | RN26: -12.0 | RO26: -20.8 | RP26: -11.6 | RQ26: -21.0 | RR26: -11.3 | RS26: -21.2 | RT26: -10.9 | RU26: -21.4 | RV26: -10.5 | RW26: -21.6 | RX26: -10.1 | RY26: -21.8 | RZ26: -9.8 | SA26: -21.9 | SB26: -9.4 | SC26: -22.1 | SD26: -9.0 | SE26: -22.3 | SF26: -8.6 | SG26: -22.4 | SH26: -8.2 | SI26: -22.6 | SJ26: -7.8 | SK26: -22.7 | SL26: -7.4 | SM26: -22.8 | SN26: -7.0 | SO26: -23.0 | SP26: -6.6 | SQ26: -23.1 | SR26: -6.2 | SS26: -23.2 | ST26: -5.8 | SU26: -23.3 | SV26: -5.4 | SW26: -23.4 | SX26: -5.0 | SY26: -23.5 | SZ26: -4.6 | TA26: -23.6 | TB26: -4.2 | TC26: -23.6 | TD26: -3.8 | TE26: -23.7 | TF26: -3.3 | TG26: -23.8 | TH26: -2.9 | TI26: -23.8 | TJ26: -2.5 | TK26: -23.9 | TL26: -2.1 | TM26: -23.9 | TN26: -1.7 | TO26: -23.9 | TP26: -1.3 | TQ26: -24.0 | TR26: -0.8 | TS26: -24.0 | TT26: -0.4 | TU26: -24.0 | TV26: -0.0 | TW26: -24.0 | TX26: 0.4 | TY26: -24.0 | TZ26: 0.8 | UA26: -24.0 | UB26: 1.3 | UC26: -24.0 | UD26: 1.7 | UE26: -23.9 | UF26: 2.1 | UG26: -23.9 | UH26: 2.5 | UI26: -23.9 | UJ26: 2.9 | UK26: -23.8 | UL26: 3.3 | UM26: -23.8 | UN26: 3.8 | UO26: -23.7 | UP26: 4.2 | UQ26: -23.6 | UR26: 4.6 | US26: -23.6 | UT26: 5.0 | UU26: -23.5 | UV26: 5.4 | UW26: -23.4 | UX26: 5.8 | UY26: -23.3 | UZ26: 6.2 | VA26: -23.2 | VB26: 6.6 | VC26: -23.1 | VD26: 7.0 | VE26: -23.0 | VF26: 7.4 | VG26: -22.8 | VH26: 7.8 | VI26: -22.7 | VJ26: 8.2 | VK26: -22.6 | VL26: 8.6 | VM26: -22.4 | VN26: 9.0 | VO26: -22.3 | VP26: 9.4 | VQ26: -22.1 | VR26: 9.8 | VS26: -21.9 | VT26: 10.1 | VU26: -21.8 | VV26: 10.5 | VW26: -21.6 | VX26: 10.9 | VY26: -21.4 | VZ26: 11.3 | WA26: -21.2 | WB26: 11.6 | WC26: -21.0 | WD26: 12.0 | WE26: -20.8 | WF26: 12.4 | WG26: -20.6 | WH26: 12.7 | WI26: -20.4 | WJ26: 13.1 | WK26: -20.1 | WL26: 13.4 | WM26: -19.9 | WN26: 13.8 | WO26: -19.7 | WP26: 14.1 | WQ26: -19.4 | WR26: 14.4 | WS26: -19.2 | WT26: 14.8 | WU26: -18.9 | WV26: 15.1 | WW26: -18.7 | WX26: 15.4 | WY26: -18.4 | WZ26: 15.7 | XA26: -18.1 | XB26: 16.1 | XC26: -17.8 | XD26: 16.4 | XE26: -17.6 | XF26: 16.7 | XG26: -17.3 | XH26: 17.0 | XI26: -17.0 | XJ26: 17.3 | XK26: -16.7 | XL26: 17.6 | XM26: -16.4 | XN26: 17.8 | XO26: -16.1 | XP26: 18.1 | XQ26: -15.7 | XR26: 18.4 | XS26: -15.4 | XT26: 18.7 | XU26: -15.1 | XV26: 18.9 | XW26: -14.8 | XX26: 19.2 | XY26: -14.4 | XZ26: 19.4 | YA26: -14.1 | YB26: 19.7 | YC26: -13.8 | YD26: 19.9 | YE26: -13.4 | YF26: 20.1 | YG26: -13.1 | YH26: 20.4 | YI26: -12.7 | YJ26: 20.6 | YK26: -12.4 | YL26: 20.8 | YM26: -12.0 | YN26: 21.0 | YO26: -11.6 | YP26: 21.2 | YQ26: -11.3 | YR26: 21.4 | YS26: -10.9 | YT26: 21.6 | YU26: -10.5 | YV26: 21.8 | YW26: -10.1 | YX26: 21.9 | YY26: -9.8 | YZ26: 22.1 | ZA26: -9.4 | ZB26: 22.3 | ZC26: -9.0 | ZD26: 22.4 | ZE26: -8.6 | ZF26: 22.6 | ZG26: -8.2 | ZH26: 22.7 | ZI26: -7.8 | ZJ26: 22.8 | ZK26: -7.4 | ZL26: 23.0 | ZM26: -7.0 | ZN26: 23.1 | ZO26: -6.6 | ZP26: 23.2 | ZQ26: -6.2 | ZR26: 23.3 | ZS26: -5.8 | ZT26: 23.4 | ZU26: -5.4 | ZV26: 23.5 | ZW26: -5.0 | ZX26: 23.6 | ZY26: -4.6 | ZZ26: 23.6 | AAA26: -4.2 | AAB26: 23.7 | AAC26: -3.8 | AAD26: 23.8 | AAE26: -3.3 | AAF26: 23.8 | AAG26: -2.9 | AAH26: 23.9 | AAI26: -2.5 | AAJ26: 23.9 | AAK26: -2.1 | AAL26: 23.9 | AAM26: -1.7 | AAN26: 24.0 | AAO26: -1.3 | AAP26: 24.0 | AAQ26: -0.8 | AAR26: 24.0 | AAS26: -0.4 | AAT26: 24.0 | AAU26: -0.0
A27: 25 | B27: 25.0 | C27: 0.0 | D27: 25.0 | E27: 0.4 | F27: 25.0 | G27: 0.9 | H27: 25.0 | I27: 1.3 | J27: 24.9 | K27: 1.7 | L27: 24.9 | M27: 2.2 | N27: 24.9 | O27: 2.6 | P27: 24.8 | Q27: 3.0 | R27: 24.8 | S27: 3.5 | T27: 24.7 | U27: 3.9 | V27: 24.6 | W27: 4.3 | X27: 24.5 | Y27: 4.8 | Z27: 24.5 | AA27: 5.2 | AB27: 24.4 | AC27: 5.6 | AD27: 24.3 | AE27: 6.0 | AF27: 24.1 | AG27: 6.5 | AH27: 24.0 | AI27: 6.9 | AJ27: 23.9 | AK27: 7.3 | AL27: 23.8 | AM27: 7.7 | AN27: 23.6 | AO27: 8.1 | AP27: 23.5 | AQ27: 8.6 | AR27: 23.3 | AS27: 9.0 | AT27: 23.2 | AU27: 9.4 | AV27: 23.0 | AW27: 9.8 | AX27: 22.8 | AY27: 10.2 | AZ27: 22.7 | BA27: 10.6 | BB27: 22.5 | BC27: 11.0 | BD27: 22.3 | BE27: 11.3 | BF27: 22.1 | BG27: 11.7 | BH27: 21.9 | BI27: 12.1 | BJ27: 21.7 | BK27: 12.5 | BL27: 21.4 | BM27: 12.9 | BN27: 21.2 | BO27: 13.2 | BP27: 21.0 | BQ27: 13.6 | BR27: 20.7 | BS27: 14.0 | BT27: 20.5 | BU27: 14.3 | BV27: 20.2 | BW27: 14.7 | BX27: 20.0 | BY27: 15.0 | BZ27: 19.7 | CA27: 15.4 | CB27: 19.4 | CC27: 15.7 | CD27: 19.2 | CE27: 16.1 | CF27: 18.9 | CG27: 16.4 | CH27: 18.6 | CI27: 16.7 | CJ27: 18.3 | CK27: 17.0 | CL27: 18.0 | CM27: 17.4 | CN27: 17.7 | CO27: 17.7 | CP27: 17.4 | CQ27: 18.0 | CR27: 17.0 | CS27: 18.3 | CT27: 16.7 | CU27: 18.6 | CV27: 16.4 | CW27: 18.9 | CX27: 16.1 | CY27: 19.2 | CZ27: 15.7 | DA27: 19.4 | DB27: 15.4 | DC27: 19.7 | DD27: 15.0 | DE27: 20.0 | DF27: 14.7 | DG27: 20.2 | DH27: 14.3 | DI27: 20.5 | DJ27: 14.0 | DK27: 20.7 | DL27: 13.6 | DM27: 21.0 | DN27: 13.2 | DO27: 21.2 | DP27: 12.9 | DQ27: 21.4 | DR27: 12.5 | DS27: 21.7 | DT27: 12.1 | DU27: 21.9 | DV27: 11.7 | DW27: 22.1 | DX27: 11.3 | DY27: 22.3 | DZ27: 11.0 | EA27: 22.5 | EB27: 10.6 | EC27: 22.7 | ED27: 10.2 | EE27: 22.8 | EF27: 9.8 | EG27: 23.0 | EH27: 9.4 | EI27: 23.2 | EJ27: 9.0 | EK27: 23.3 | EL27: 8.6 | EM27: 23.5 | EN27: 8.1 | EO27: 23.6 | EP27: 7.7 | EQ27: 23.8 | ER27: 7.3 | ES27: 23.9 | ET27: 6.9 | EU27: 24.0 | EV27: 6.5 | EW27: 24.1 | EX27: 6.0 | EY27: 24.3 | EZ27: 5.6 | FA27: 24.4 | FB27: 5.2 | FC27: 24.5 | FD27: 4.8 | FE27: 24.5 | FF27: 4.3 | FG27: 24.6 | FH27: 3.9 | FI27: 24.7 | FJ27: 3.5 | FK27: 24.8 | FL27: 3.0 | FM27: 24.8 | FN27: 2.6 | FO27: 24.9 | FP27: 2.2 | FQ27: 24.9 | FR27: 1.7 | FS27: 24.9 | FT27: 1.3 | FU27: 25.0 | FV27: 0.9 | FW27: 25.0 | FX27: 0.4 | FY27: 25.0 | FZ27: 0.0 | GA27: 25.0 | GB27: -0.4 | GC27: 25.0 | GD27: -0.9 | GE27: 25.0 | GF27: -1.3 | GG27: 25.0 | GH27: -1.7 | GI27: 24.9 | GJ27: -2.2 | GK27: 24.9 | GL27: -2.6 | GM27: 24.9 | GN27: -3.0 | GO27: 24.8 | GP27: -3.5 | GQ27: 24.8 | GR27: -3.9 | GS27: 24.7 | GT27: -4.3 | GU27: 24.6 | GV27: -4.8 | GW27: 24.5 | GX27: -5.2 | GY27: 24.5 | GZ27: -5.6 | HA27: 24.4 | HB27: -6.0 | HC27: 24.3 | HD27: -6.5 | HE27: 24.1 | HF27: -6.9 | HG27: 24.0 | HH27: -7.3 | HI27: 23.9 | HJ27: -7.7 | HK27: 23.8 | HL27: =COS(HL$1/360*2*PI())*$A27 -> -8.1 | HM27: 23.6 | HN27: -8.6 | HO27: 23.5 | HP27: -9.0 | HQ27: 23.3 | HR27: -9.4 | HS27: 23.2 | HT27: -9.8 | HU27: 23.0 | HV27: -10.2 | HW27: 22.8 | HX27: -10.6 | HY27: 22.7 | HZ27: -11.0 | IA27: 22.5 | IB27: -11.3 | IC27: 22.3 | ID27: -11.7 | IE27: 22.1 | IF27: -12.1 | IG27: 21.9 | IH27: -12.5 | II27: 21.7 | IJ27: -12.9 | IK27: 21.4 | IL27: -13.2 | IM27: 21.2 | IN27: -13.6 | IO27: 21.0 | IP27: -14.0 | IQ27: 20.7 | IR27: -14.3 | IS27: 20.5 | IT27: -14.7 | IU27: 20.2 | IV27: -15.0 | IW27: 20.0 | IX27: -15.4 | IY27: 19.7 | IZ27: -15.7 | JA27: 19.4 | JB27: -16.1 | JC27: 19.2 | JD27: -16.4 | JE27: 18.9 | JF27: -16.7 | JG27: 18.6 | JH27: -17.0 | JI27: 18.3 | JJ27: -17.4 | JK27: 18.0 | JL27: -17.7 | JM27: 17.7 | JN27: -18.0 | JO27: 17.4 | JP27: -18.3 | JQ27: 17.0 | JR27: -18.6 | JS27: 16.7 | JT27: -18.9 | JU27: 16.4 | JV27: -19.2 | JW27: 16.1 | JX27: =COS(JX$1/360*2*PI())*$A27 -> -19.4 | JY27: 15.7 | JZ27: -19.7 | KA27: 15.4 | KB27: -20.0 | KC27: 15.0 | KD27: -20.2 | KE27: 14.7 | KF27: -20.5 | KG27: 14.3 | KH27: -20.7 | KI27: 14.0 | KJ27: -21.0 | KK27: 13.6 | KL27: -21.2 | KM27: 13.2 | KN27: -21.4 | KO27: 12.9 | KP27: -21.7 | KQ27: 12.5 | KR27: -21.9 | KS27: 12.1 | KT27: -22.1 | KU27: 11.7 | KV27: -22.3 | KW27: 11.3 | KX27: -22.5 | KY27: 11.0 | KZ27: -22.7 | LA27: 10.6 | LB27: -22.8 | LC27: 10.2 | LD27: -23.0 | LE27: 9.8 | LF27: -23.2 | LG27: 9.4 | LH27: -23.3 | LI27: 9.0 | LJ27: -23.5 | LK27: 8.6 | LL27: -23.6 | LM27: 8.1 | LN27: -23.8 | LO27: 7.7 | LP27: -23.9 | LQ27: 7.3 | LR27: -24.0 | LS27: 6.9 | LT27: -24.1 | LU27: 6.5 | LV27: -24.3 | LW27: 6.0 | LX27: -24.4 | LY27: 5.6 | LZ27: -24.5 | MA27: 5.2 | MB27: -24.5 | MC27: 4.8 | MD27: -24.6 | ME27: 4.3 | MF27: -24.7 | MG27: 3.9 | MH27: -24.8 | MI27: 3.5 | MJ27: -24.8 | MK27: 3.0 | ML27: -24.9 | MM27: 2.6 | MN27: -24.9 | MO27: 2.2 | MP27: -24.9 | MQ27: 1.7 | MR27: -25.0 | MS27: 1.3 | MT27: -25.0 | MU27: 0.9 | MV27: -25.0 | MW27: 0.4 | MX27: -25.0 | MY27: 0.0 | MZ27: -25.0 | NA27: -0.4 | NB27: -25.0 | NC27: -0.9 | ND27: -25.0 | NE27: -1.3 | NF27: -24.9 | NG27: -1.7 | NH27: -24.9 | NI27: -2.2 | NJ27: -24.9 | NK27: -2.6 | NL27: -24.8 | NM27: -3.0 | NN27: -24.8 | NO27: -3.5 | NP27: -24.7 | NQ27: -3.9 | NR27: -24.6 | NS27: -4.3 | NT27: -24.5 | NU27: -4.8 | NV27: -24.5 | NW27: -5.2 | NX27: -24.4 | NY27: -5.6 | NZ27: -24.3 | OA27: -6.0 | OB27: -24.1 | OC27: -6.5 | OD27: -24.0 | OE27: -6.9 | OF27: -23.9 | OG27: -7.3 | OH27: -23.8 | OI27: -7.7 | OJ27: -23.6 | OK27: -8.1 | OL27: -23.5 | OM27: -8.6 | ON27: -23.3 | OO27: -9.0 | OP27: -23.2 | OQ27: -9.4 | OR27: -23.0 | OS27: -9.8 | OT27: -22.8 | OU27: -10.2 | OV27: -22.7 | OW27: -10.6 | OX27: -22.5 | OY27: -11.0 | OZ27: -22.3 | PA27: -11.3 | PB27: -22.1 | PC27: -11.7 | PD27: -21.9 | PE27: -12.1 | PF27: -21.7 | PG27: -12.5 | PH27: -21.4 | PI27: -12.9 | PJ27: -21.2 | PK27: -13.2 | PL27: -21.0 | PM27: -13.6 | PN27: =COS(PN$1/360*2*PI())*$A27 -> -20.7 | PO27: -14.0 | PP27: -20.5 | PQ27: -14.3 | PR27: -20.2 | PS27: -14.7 | PT27: -20.0 | PU27: -15.0 | PV27: -19.7 | PW27: -15.4 | PX27: -19.4 | PY27: -15.7 | PZ27: -19.2 | QA27: -16.1 | QB27: -18.9 | QC27: -16.4 | QD27: -18.6 | QE27: -16.7 | QF27: -18.3 | QG27: -17.0 | QH27: -18.0 | QI27: -17.4 | QJ27: -17.7 | QK27: -17.7 | QL27: -17.4 | QM27: -18.0 | QN27: -17.0 | QO27: -18.3 | QP27: -16.7 | QQ27: -18.6 | QR27: -16.4 | QS27: -18.9 | QT27: -16.1 | QU27: -19.2 | QV27: -15.7 | QW27: -19.4 | QX27: -15.4 | QY27: -19.7 | QZ27: -15.0 | RA27: -20.0 | RB27: -14.7 | RC27: -20.2 | RD27: -14.3 | RE27: -20.5 | RF27: -14.0 | RG27: -20.7 | RH27: -13.6 | RI27: -21.0 | RJ27: -13.2 | RK27: -21.2 | RL27: -12.9 | RM27: -21.4 | RN27: -12.5 | RO27: -21.7 | RP27: -12.1 | RQ27: -21.9 | RR27: -11.7 | RS27: -22.1 | RT27: -11.3 | RU27: -22.3 | RV27: -11.0 | RW27: -22.5 | RX27: -10.6 | RY27: -22.7 | RZ27: -10.2 | SA27: -22.8 | SB27: -9.8 | SC27: -23.0 | SD27: -9.4 | SE27: -23.2 | SF27: -9.0 | SG27: -23.3 | SH27: -8.6 | SI27: -23.5 | SJ27: -8.1 | SK27: -23.6 | SL27: -7.7 | SM27: -23.8 | SN27: -7.3 | SO27: -23.9 | SP27: -6.9 | SQ27: -24.0 | SR27: -6.5 | SS27: -24.1 | ST27: -6.0 | SU27: -24.3 | SV27: -5.6 | SW27: -24.4 | SX27: -5.2 | SY27: -24.5 | SZ27: -4.8 | TA27: -24.5 | TB27: -4.3 | TC27: -24.6 | TD27: -3.9 | TE27: -24.7 | TF27: -3.5 | TG27: -24.8 | TH27: -3.0 | TI27: -24.8 | TJ27: -2.6 | TK27: -24.9 | TL27: -2.2 | TM27: -24.9 | TN27: -1.7 | TO27: -24.9 | TP27: -1.3 | TQ27: -25.0 | TR27: -0.9 | TS27: -25.0 | TT27: -0.4 | TU27: -25.0 | TV27: -0.0 | TW27: -25.0 | TX27: 0.4 | TY27: -25.0 | TZ27: 0.9 | UA27: -25.0 | UB27: 1.3 | UC27: -25.0 | UD27: 1.7 | UE27: -24.9 | UF27: 2.2 | UG27: -24.9 | UH27: 2.6 | UI27: -24.9 | UJ27: 3.0 | UK27: -24.8 | UL27: 3.5 | UM27: -24.8 | UN27: 3.9 | UO27: -24.7 | UP27: 4.3 | UQ27: -24.6 | UR27: 4.8 | US27: -24.5 | UT27: 5.2 | UU27: -24.5 | UV27: 5.6 | UW27: -24.4 | UX27: 6.0 | UY27: -24.3 | UZ27: 6.5 | VA27: -24.1 | VB27: 6.9 | VC27: -24.0 | VD27: =COS(VD$1/360*2*PI())*$A27 -> 7.3 | VE27: -23.9 | VF27: 7.7 | VG27: -23.8 | VH27: 8.1 | VI27: -23.6 | VJ27: 8.6 | VK27: -23.5 | VL27: 9.0 | VM27: -23.3 | VN27: 9.4 | VO27: -23.2 | VP27: 9.8 | VQ27: -23.0 | VR27: 10.2 | VS27: -22.8 | VT27: 10.6 | VU27: -22.7 | VV27: 11.0 | VW27: -22.5 | VX27: 11.3 | VY27: -22.3 | VZ27: 11.7 | WA27: -22.1 | WB27: 12.1 | WC27: -21.9 | WD27: 12.5 | WE27: -21.7 | WF27: 12.9 | WG27: -21.4 | WH27: 13.2 | WI27: -21.2 | WJ27: 13.6 | WK27: -21.0 | WL27: 14.0 | WM27: -20.7 | WN27: 14.3 | WO27: -20.5 | WP27: 14.7 | WQ27: -20.2 | WR27: 15.0 | WS27: -20.0 | WT27: 15.4 | WU27: -19.7 | WV27: 15.7 | WW27: -19.4 | WX27: 16.1 | WY27: -19.2 | WZ27: 16.4 | XA27: -18.9 | XB27: 16.7 | XC27: -18.6 | XD27: 17.0 | XE27: -18.3 | XF27: 17.4 | XG27: -18.0 | XH27: 17.7 | XI27: -17.7 | XJ27: 18.0 | XK27: -17.4 | XL27: 18.3 | XM27: -17.0 | XN27: 18.6 | XO27: -16.7 | XP27: 18.9 | XQ27: -16.4 | XR27: 19.2 | XS27: -16.1 | XT27: 19.4 | XU27: -15.7 | XV27: 19.7 | XW27: -15.4 | XX27: 20.0 | XY27: -15.0 | XZ27: 20.2 | YA27: -14.7 | YB27: 20.5 | YC27: -14.3 | YD27: 20.7 | YE27: -14.0 | YF27: 21.0 | YG27: -13.6 | YH27: 21.2 | YI27: -13.2 | YJ27: 21.4 | YK27: -12.9 | YL27: 21.7 | YM27: -12.5 | YN27: 21.9 | YO27: -12.1 | YP27: 22.1 | YQ27: -11.7 | YR27: 22.3 | YS27: -11.3 | YT27: 22.5 | YU27: -11.0 | YV27: 22.7 | YW27: -10.6 | YX27: 22.8 | YY27: -10.2 | YZ27: 23.0 | ZA27: -9.8 | ZB27: 23.2 | ZC27: -9.4 | ZD27: 23.3 | ZE27: -9.0 | ZF27: 23.5 | ZG27: -8.6 | ZH27: 23.6 | ZI27: -8.1 | ZJ27: 23.8 | ZK27: -7.7 | ZL27: 23.9 | ZM27: -7.3 | ZN27: 24.0 | ZO27: -6.9 | ZP27: 24.1 | ZQ27: -6.5 | ZR27: 24.3 | ZS27: -6.0 | ZT27: 24.4 | ZU27: -5.6 | ZV27: 24.5 | ZW27: -5.2 | ZX27: 24.5 | ZY27: -4.8 | ZZ27: 24.6 | AAA27: -4.3 | AAB27: 24.7 | AAC27: -3.9 | AAD27: 24.8 | AAE27: -3.5 | AAF27: 24.8 | AAG27: -3.0 | AAH27: 24.9 | AAI27: -2.6 | AAJ27: 24.9 | AAK27: -2.2 | AAL27: 24.9 | AAM27: -1.7 | AAN27: 25.0 | AAO27: -1.3 | AAP27: 25.0 | AAQ27: -0.9 | AAR27: 25.0 | AAS27: -0.4 | AAT27: 25.0 | AAU27: -0.0
A28: 26 | B28: 26.0 | C28: 0.0 | D28: 26.0 | E28: 0.5 | F28: 26.0 | G28: 0.9 | H28: 26.0 | I28: 1.4 | J28: 25.9 | K28: 1.8 | L28: 25.9 | M28: 2.3 | N28: 25.9 | O28: 2.7 | P28: 25.8 | Q28: 3.2 | R28: 25.7 | S28: 3.6 | T28: 25.7 | U28: 4.1 | V28: 25.6 | W28: 4.5 | X28: 25.5 | Y28: 5.0 | Z28: 25.4 | AA28: 5.4 | AB28: 25.3 | AC28: 5.8 | AD28: 25.2 | AE28: 6.3 | AF28: 25.1 | AG28: 6.7 | AH28: 25.0 | AI28: 7.2 | AJ28: 24.9 | AK28: 7.6 | AL28: 24.7 | AM28: 8.0 | AN28: 24.6 | AO28: 8.5 | AP28: 24.4 | AQ28: 8.9 | AR28: 24.3 | AS28: 9.3 | AT28: 24.1 | AU28: 9.7 | AV28: 23.9 | AW28: 10.2 | AX28: 23.8 | AY28: 10.6 | AZ28: 23.6 | BA28: 11.0 | BB28: 23.4 | BC28: 11.4 | BD28: 23.2 | BE28: 11.8 | BF28: 23.0 | BG28: 12.2 | BH28: 22.7 | BI28: 12.6 | BJ28: 22.5 | BK28: 13.0 | BL28: 22.3 | BM28: 13.4 | BN28: =COS(BN$1/360*2*PI())*$A28 -> 22.0 | BO28: 13.8 | BP28: =COS(BP$1/360*2*PI())*$A28 -> 21.8 | BQ28: 14.2 | BR28: 21.6 | BS28: 14.5 | BT28: 21.3 | BU28: 14.9 | BV28: 21.0 | BW28: 15.3 | BX28: 20.8 | BY28: 15.6 | BZ28: 20.5 | CA28: 16.0 | CB28: 20.2 | CC28: 16.4 | CD28: 19.9 | CE28: 16.7 | CF28: 19.6 | CG28: 17.1 | CH28: 19.3 | CI28: 17.4 | CJ28: 19.0 | CK28: 17.7 | CL28: 18.7 | CM28: 18.1 | CN28: 18.4 | CO28: 18.4 | CP28: 18.1 | CQ28: 18.7 | CR28: 17.7 | CS28: 19.0 | CT28: 17.4 | CU28: 19.3 | CV28: 17.1 | CW28: 19.6 | CX28: 16.7 | CY28: 19.9 | CZ28: 16.4 | DA28: 20.2 | DB28: 16.0 | DC28: 20.5 | DD28: 15.6 | DE28: 20.8 | DF28: 15.3 | DG28: 21.0 | DH28: 14.9 | DI28: 21.3 | DJ28: 14.5 | DK28: 21.6 | DL28: 14.2 | DM28: 21.8 | DN28: 13.8 | DO28: 22.0 | DP28: 13.4 | DQ28: 22.3 | DR28: 13.0 | DS28: 22.5 | DT28: 12.6 | DU28: 22.7 | DV28: 12.2 | DW28: 23.0 | DX28: 11.8 | DY28: 23.2 | DZ28: 11.4 | EA28: 23.4 | EB28: 11.0 | EC28: 23.6 | ED28: 10.6 | EE28: 23.8 | EF28: 10.2 | EG28: 23.9 | EH28: 9.7 | EI28: 24.1 | EJ28: 9.3 | EK28: 24.3 | EL28: 8.9 | EM28: 24.4 | EN28: 8.5 | EO28: 24.6 | EP28: 8.0 | EQ28: 24.7 | ER28: 7.6 | ES28: 24.9 | ET28: 7.2 | EU28: 25.0 | EV28: 6.7 | EW28: 25.1 | EX28: 6.3 | EY28: 25.2 | EZ28: 5.8 | FA28: 25.3 | FB28: =COS(FB$1/360*2*PI())*$A28 -> 5.4 | FC28: 25.4 | FD28: 5.0 | FE28: 25.5 | FF28: 4.5 | FG28: 25.6 | FH28: 4.1 | FI28: 25.7 | FJ28: 3.6 | FK28: 25.7 | FL28: 3.2 | FM28: 25.8 | FN28: 2.7 | FO28: 25.9 | FP28: 2.3 | FQ28: 25.9 | FR28: 1.8 | FS28: 25.9 | FT28: 1.4 | FU28: 26.0 | FV28: 0.9 | FW28: 26.0 | FX28: 0.5 | FY28: 26.0 | FZ28: 0.0 | GA28: 26.0 | GB28: -0.5 | GC28: 26.0 | GD28: -0.9 | GE28: 26.0 | GF28: -1.4 | GG28: 26.0 | GH28: -1.8 | GI28: 25.9 | GJ28: -2.3 | GK28: 25.9 | GL28: -2.7 | GM28: 25.9 | GN28: -3.2 | GO28: 25.8 | GP28: -3.6 | GQ28: 25.7 | GR28: -4.1 | GS28: 25.7 | GT28: -4.5 | GU28: 25.6 | GV28: -5.0 | GW28: 25.5 | GX28: -5.4 | GY28: 25.4 | GZ28: -5.8 | HA28: 25.3 | HB28: -6.3 | HC28: 25.2 | HD28: -6.7 | HE28: 25.1 | HF28: -7.2 | HG28: 25.0 | HH28: -7.6 | HI28: 24.9 | HJ28: -8.0 | HK28: 24.7 | HL28: -8.5 | HM28: 24.6 | HN28: -8.9 | HO28: 24.4 | HP28: -9.3 | HQ28: 24.3 | HR28: -9.7 | HS28: 24.1 | HT28: -10.2 | HU28: 23.9 | HV28: -10.6 | HW28: 23.8 | HX28: -11.0 | HY28: 23.6 | HZ28: -11.4 | IA28: 23.4 | IB28: -11.8 | IC28: 23.2 | ID28: -12.2 | IE28: 23.0 | IF28: -12.6 | IG28: 22.7 | IH28: -13.0 | II28: 22.5 | IJ28: -13.4 | IK28: 22.3 | IL28: -13.8 | IM28: 22.0 | IN28: -14.2 | IO28: 21.8 | IP28: -14.5 | IQ28: 21.6 | IR28: -14.9 | IS28: 21.3 | IT28: -15.3 | IU28: 21.0 | IV28: -15.6 | IW28: 20.8 | IX28: -16.0 | IY28: 20.5 | IZ28: -16.4 | JA28: 20.2 | JB28: -16.7 | JC28: 19.9 | JD28: -17.1 | JE28: 19.6 | JF28: -17.4 | JG28: 19.3 | JH28: -17.7 | JI28: 19.0 | JJ28: -18.1 | JK28: 18.7 | JL28: -18.4 | JM28: 18.4 | JN28: -18.7 | JO28: 18.1 | JP28: -19.0 | JQ28: 17.7 | JR28: -19.3 | JS28: 17.4 | JT28: -19.6 | JU28: 17.1 | JV28: -19.9 | JW28: 16.7 | JX28: -20.2 | JY28: 16.4 | JZ28: -20.5 | KA28: 16.0 | KB28: -20.8 | KC28: 15.6 | KD28: -21.0 | KE28: 15.3 | KF28: -21.3 | KG28: 14.9 | KH28: -21.6 | KI28: 14.5 | KJ28: -21.8 | KK28: 14.2 | KL28: -22.0 | KM28: 13.8 | KN28: -22.3 | KO28: 13.4 | KP28: -22.5 | KQ28: 13.0 | KR28: -22.7 | KS28: 12.6 | KT28: -23.0 | KU28: 12.2 | KV28: -23.2 | KW28: 11.8 | KX28: -23.4 | KY28: 11.4 | KZ28: -23.6 | LA28: 11.0 | LB28: -23.8 | LC28: 10.6 | LD28: -23.9 | LE28: 10.2 | LF28: -24.1 | LG28: 9.7 | LH28: -24.3 | LI28: 9.3 | LJ28: -24.4 | LK28: 8.9 | LL28: -24.6 | LM28: 8.5 | LN28: -24.7 | LO28: 8.0 | LP28: -24.9 | LQ28: 7.6 | LR28: -25.0 | LS28: 7.2 | LT28: -25.1 | LU28: 6.7 | LV28: -25.2 | LW28: 6.3 | LX28: -25.3 | LY28: 5.8 | LZ28: -25.4 | MA28: 5.4 | MB28: -25.5 | MC28: 5.0 | MD28: -25.6 | ME28: 4.5 | MF28: -25.7 | MG28: 4.1 | MH28: -25.7 | MI28: 3.6 | MJ28: -25.8 | MK28: 3.2 | ML28: -25.9 | MM28: 2.7 | MN28: -25.9 | MO28: 2.3 | MP28: -25.9 | MQ28: 1.8 | MR28: -26.0 | MS28: 1.4 | MT28: -26.0 | MU28: 0.9 | MV28: -26.0 | MW28: 0.5 | MX28: -26.0 | MY28: 0.0 | MZ28: -26.0 | NA28: -0.5 | NB28: -26.0 | NC28: -0.9 | ND28: -26.0 | NE28: -1.4 | NF28: -25.9 | NG28: -1.8 | NH28: -25.9 | NI28: -2.3 | NJ28: -25.9 | NK28: -2.7 | NL28: -25.8 | NM28: -3.2 | NN28: -25.7 | NO28: -3.6 | NP28: -25.7 | NQ28: -4.1 | NR28: -25.6 | NS28: -4.5 | NT28: -25.5 | NU28: -5.0 | NV28: -25.4 | NW28: -5.4 | NX28: -25.3 | NY28: -5.8 | NZ28: -25.2 | OA28: -6.3 | OB28: -25.1 | OC28: -6.7 | OD28: -25.0 | OE28: -7.2 | OF28: -24.9 | OG28: -7.6 | OH28: -24.7 | OI28: -8.0 | OJ28: -24.6 | OK28: -8.5 | OL28: -24.4 | OM28: -8.9 | ON28: -24.3 | OO28: -9.3 | OP28: -24.1 | OQ28: -9.7 | OR28: -23.9 | OS28: -10.2 | OT28: -23.8 | OU28: -10.6 | OV28: -23.6 | OW28: -11.0 | OX28: -23.4 | OY28: -11.4 | OZ28: -23.2 | PA28: -11.8 | PB28: -23.0 | PC28: -12.2 | PD28: -22.7 | PE28: -12.6 | PF28: -22.5 | PG28: -13.0 | PH28: -22.3 | PI28: -13.4 | PJ28: -22.0 | PK28: -13.8 | PL28: -21.8 | PM28: -14.2 | PN28: -21.6 | PO28: -14.5 | PP28: -21.3 | PQ28: -14.9 | PR28: -21.0 | PS28: -15.3 | PT28: -20.8 | PU28: -15.6 | PV28: -20.5 | PW28: -16.0 | PX28: -20.2 | PY28: -16.4 | PZ28: -19.9 | QA28: -16.7 | QB28: -19.6 | QC28: -17.1 | QD28: -19.3 | QE28: -17.4 | QF28: -19.0 | QG28: -17.7 | QH28: -18.7 | QI28: -18.1 | QJ28: -18.4 | QK28: -18.4 | QL28: -18.1 | QM28: -18.7 | QN28: -17.7 | QO28: -19.0 | QP28: -17.4 | QQ28: -19.3 | QR28: -17.1 | QS28: -19.6 | QT28: -16.7 | QU28: -19.9 | QV28: -16.4 | QW28: -20.2 | QX28: -16.0 | QY28: -20.5 | QZ28: -15.6 | RA28: -20.8 | RB28: -15.3 | RC28: -21.0 | RD28: -14.9 | RE28: -21.3 | RF28: -14.5 | RG28: -21.6 | RH28: -14.2 | RI28: -21.8 | RJ28: -13.8 | RK28: -22.0 | RL28: -13.4 | RM28: -22.3 | RN28: -13.0 | RO28: -22.5 | RP28: -12.6 | RQ28: -22.7 | RR28: -12.2 | RS28: -23.0 | RT28: -11.8 | RU28: -23.2 | RV28: -11.4 | RW28: -23.4 | RX28: -11.0 | RY28: -23.6 | RZ28: -10.6 | SA28: -23.8 | SB28: -10.2 | SC28: -23.9 | SD28: -9.7 | SE28: -24.1 | SF28: -9.3 | SG28: -24.3 | SH28: -8.9 | SI28: -24.4 | SJ28: -8.5 | SK28: -24.6 | SL28: -8.0 | SM28: -24.7 | SN28: -7.6 | SO28: -24.9 | SP28: -7.2 | SQ28: -25.0 | SR28: -6.7 | SS28: -25.1 | ST28: -6.3 | SU28: -25.2 | SV28: -5.8 | SW28: -25.3 | SX28: -5.4 | SY28: -25.4 | SZ28: -5.0 | TA28: -25.5 | TB28: -4.5 | TC28: -25.6 | TD28: -4.1 | TE28: -25.7 | TF28: -3.6 | TG28: -25.7 | TH28: -3.2 | TI28: -25.8 | TJ28: -2.7 | TK28: -25.9 | TL28: -2.3 | TM28: -25.9 | TN28: -1.8 | TO28: -25.9 | TP28: -1.4 | TQ28: -26.0 | TR28: -0.9 | TS28: -26.0 | TT28: -0.5 | TU28: -26.0 | TV28: -0.0 | TW28: -26.0 | TX28: 0.5 | TY28: -26.0 | TZ28: 0.9 | UA28: -26.0 | UB28: 1.4 | UC28: -26.0 | UD28: 1.8 | UE28: -25.9 | UF28: 2.3 | UG28: -25.9 | UH28: 2.7 | UI28: -25.9 | UJ28: 3.2 | UK28: -25.8 | UL28: 3.6 | UM28: -25.7 | UN28: 4.1 | UO28: -25.7 | UP28: =COS(UP$1/360*2*PI())*$A28 -> 4.5 | UQ28: -25.6 | UR28: 5.0 | US28: -25.5 | UT28: 5.4 | UU28: -25.4 | UV28: 5.8 | UW28: -25.3 | UX28: 6.3 | UY28: -25.2 | UZ28: 6.7 | VA28: -25.1 | VB28: 7.2 | VC28: -25.0 | VD28: 7.6 | VE28: -24.9 | VF28: 8.0 | VG28: -24.7 | VH28: 8.5 | VI28: -24.6 | VJ28: 8.9 | VK28: -24.4 | VL28: 9.3 | VM28: -24.3 | VN28: 9.7 | VO28: -24.1 | VP28: 10.2 | VQ28: -23.9 | VR28: 10.6 | VS28: -23.8 | VT28: 11.0 | VU28: -23.6 | VV28: 11.4 | VW28: -23.4 | VX28: 11.8 | VY28: -23.2 | VZ28: 12.2 | WA28: -23.0 | WB28: 12.6 | WC28: -22.7 | WD28: 13.0 | WE28: -22.5 | WF28: 13.4 | WG28: -22.3 | WH28: 13.8 | WI28: -22.0 | WJ28: 14.2 | WK28: -21.8 | WL28: 14.5 | WM28: -21.6 | WN28: 14.9 | WO28: -21.3 | WP28: 15.3 | WQ28: -21.0 | WR28: 15.6 | WS28: -20.8 | WT28: 16.0 | WU28: -20.5 | WV28: 16.4 | WW28: -20.2 | WX28: 16.7 | WY28: -19.9 | WZ28: 17.1 | XA28: -19.6 | XB28: 17.4 | XC28: -19.3 | XD28: 17.7 | XE28: -19.0 | XF28: 18.1 | XG28: -18.7 | XH28: 18.4 | XI28: -18.4 | XJ28: 18.7 | XK28: -18.1 | XL28: 19.0 | XM28: -17.7 | XN28: 19.3 | XO28: -17.4 | XP28: 19.6 | XQ28: -17.1 | XR28: 19.9 | XS28: -16.7 | XT28: 20.2 | XU28: -16.4 | XV28: 20.5 | XW28: -16.0 | XX28: 20.8 | XY28: -15.6 | XZ28: 21.0 | YA28: -15.3 | YB28: 21.3 | YC28: -14.9 | YD28: 21.6 | YE28: -14.5 | YF28: 21.8 | YG28: -14.2 | YH28: 22.0 | YI28: -13.8 | YJ28: 22.3 | YK28: -13.4 | YL28: =COS(YL$1/360*2*PI())*$A28 -> 22.5 | YM28: -13.0 | YN28: 22.7 | YO28: -12.6 | YP28: 23.0 | YQ28: -12.2 | YR28: 23.2 | YS28: -11.8 | YT28: 23.4 | YU28: -11.4 | YV28: 23.6 | YW28: -11.0 | YX28: 23.8 | YY28: -10.6 | YZ28: 23.9 | ZA28: -10.2 | ZB28: 24.1 | ZC28: -9.7 | ZD28: 24.3 | ZE28: -9.3 | ZF28: 24.4 | ZG28: -8.9 | ZH28: 24.6 | ZI28: -8.5 | ZJ28: 24.7 | ZK28: -8.0 | ZL28: 24.9 | ZM28: -7.6 | ZN28: 25.0 | ZO28: -7.2 | ZP28: 25.1 | ZQ28: -6.7 | ZR28: 25.2 | ZS28: -6.3 | ZT28: 25.3 | ZU28: -5.8 | ZV28: 25.4 | ZW28: -5.4 | ZX28: 25.5 | ZY28: -5.0 | ZZ28: 25.6 | AAA28: -4.5 | AAB28: 25.7 | AAC28: -4.1 | AAD28: 25.7 | AAE28: -3.6 | AAF28: 25.8 | AAG28: -3.2 | AAH28: 25.9 | AAI28: -2.7 | AAJ28: 25.9 | AAK28: -2.3 | AAL28: 25.9 | AAM28: -1.8 | AAN28: 26.0 | AAO28: -1.4 | AAP28: 26.0 | AAQ28: -0.9 | AAR28: 26.0 | AAS28: -0.5 | AAT28: 26.0 | AAU28: -0.0
A29: 27 | B29: 27.0 | C29: 0.0 | D29: 27.0 | E29: 0.5 | F29: 27.0 | G29: 0.9 | H29: 27.0 | I29: 1.4 | J29: 26.9 | K29: 1.9 | L29: 26.9 | M29: 2.4 | N29: 26.9 | O29: 2.8 | P29: 26.8 | Q29: 3.3 | R29: 26.7 | S29: 3.8 | T29: =COS(T$1/360*2*PI())*$A29 -> 26.7 | U29: 4.2 | V29: 26.6 | W29: 4.7 | X29: 26.5 | Y29: 5.2 | Z29: 26.4 | AA29: 5.6 | AB29: 26.3 | AC29: 6.1 | AD29: 26.2 | AE29: 6.5 | AF29: 26.1 | AG29: 7.0 | AH29: 26.0 | AI29: 7.4 | AJ29: 25.8 | AK29: 7.9 | AL29: 25.7 | AM29: 8.3 | AN29: 25.5 | AO29: 8.8 | AP29: 25.4 | AQ29: 9.2 | AR29: 25.2 | AS29: 9.7 | AT29: 25.0 | AU29: 10.1 | AV29: 24.9 | AW29: 10.5 | AX29: 24.7 | AY29: 11.0 | AZ29: 24.5 | BA29: 11.4 | BB29: 24.3 | BC29: 11.8 | BD29: 24.1 | BE29: 12.3 | BF29: 23.8 | BG29: 12.7 | BH29: 23.6 | BI29: 13.1 | BJ29: 23.4 | BK29: 13.5 | BL29: 23.1 | BM29: 13.9 | BN29: 22.9 | BO29: 14.3 | BP29: 22.6 | BQ29: 14.7 | BR29: 22.4 | BS29: 15.1 | BT29: 22.1 | BU29: 15.5 | BV29: 21.8 | BW29: 15.9 | BX29: 21.6 | BY29: 16.2 | BZ29: 21.3 | CA29: 16.6 | CB29: 21.0 | CC29: 17.0 | CD29: 20.7 | CE29: 17.4 | CF29: 20.4 | CG29: 17.7 | CH29: 20.1 | CI29: 18.1 | CJ29: 19.7 | CK29: 18.4 | CL29: 19.4 | CM29: 18.8 | CN29: 19.1 | CO29: 19.1 | CP29: 18.8 | CQ29: 19.4 | CR29: 18.4 | CS29: 19.7 | CT29: 18.1 | CU29: 20.1 | CV29: 17.7 | CW29: 20.4 | CX29: 17.4 | CY29: 20.7 | CZ29: 17.0 | DA29: 21.0 | DB29: 16.6 | DC29: 21.3 | DD29: 16.2 | DE29: 21.6 | DF29: 15.9 | DG29: 21.8 | DH29: 15.5 | DI29: 22.1 | DJ29: 15.1 | DK29: 22.4 | DL29: 14.7 | DM29: 22.6 | DN29: 14.3 | DO29: 22.9 | DP29: 13.9 | DQ29: 23.1 | DR29: 13.5 | DS29: 23.4 | DT29: 13.1 | DU29: 23.6 | DV29: 12.7 | DW29: 23.8 | DX29: 12.3 | DY29: 24.1 | DZ29: 11.8 | EA29: 24.3 | EB29: 11.4 | EC29: 24.5 | ED29: 11.0 | EE29: 24.7 | EF29: 10.5 | EG29: 24.9 | EH29: 10.1 | EI29: 25.0 | EJ29: 9.7 | EK29: 25.2 | EL29: 9.2 | EM29: 25.4 | EN29: 8.8 | EO29: 25.5 | EP29: 8.3 | EQ29: 25.7 | ER29: 7.9 | ES29: 25.8 | ET29: 7.4 | EU29: 26.0 | EV29: 7.0 | EW29: 26.1 | EX29: 6.5 | EY29: 26.2 | EZ29: 6.1 | FA29: 26.3 | FB29: 5.6 | FC29: 26.4 | FD29: 5.2 | FE29: 26.5 | FF29: 4.7 | FG29: 26.6 | FH29: 4.2 | FI29: 26.7 | FJ29: 3.8 | FK29: 26.7 | FL29: 3.3 | FM29: 26.8 | FN29: 2.8 | FO29: 26.9 | FP29: 2.4 | FQ29: 26.9 | FR29: 1.9 | FS29: 26.9 | FT29: 1.4 | FU29: 27.0 | FV29: 0.9 | FW29: 27.0 | FX29: 0.5 | FY29: 27.0 | FZ29: 0.0 | GA29: 27.0 | GB29: -0.5 | GC29: 27.0 | GD29: -0.9 | GE29: 27.0 | GF29: -1.4 | GG29: 27.0 | GH29: -1.9 | GI29: 26.9 | GJ29: -2.4 | GK29: 26.9 | GL29: -2.8 | GM29: 26.9 | GN29: -3.3 | GO29: 26.8 | GP29: -3.8 | GQ29: 26.7 | GR29: -4.2 | GS29: 26.7 | GT29: -4.7 | GU29: 26.6 | GV29: -5.2 | GW29: 26.5 | GX29: -5.6 | GY29: 26.4 | GZ29: -6.1 | HA29: 26.3 | HB29: -6.5 | HC29: 26.2 | HD29: -7.0 | HE29: 26.1 | HF29: -7.4 | HG29: 26.0 | HH29: -7.9 | HI29: 25.8 | HJ29: -8.3 | HK29: 25.7 | HL29: -8.8 | HM29: 25.5 | HN29: -9.2 | HO29: 25.4 | HP29: -9.7 | HQ29: 25.2 | HR29: -10.1 | HS29: 25.0 | HT29: -10.5 | HU29: 24.9 | HV29: -11.0 | HW29: 24.7 | HX29: -11.4 | HY29: 24.5 | HZ29: -11.8 | IA29: 24.3 | IB29: -12.3 | IC29: 24.1 | ID29: -12.7 | IE29: 23.8 | IF29: -13.1 | IG29: 23.6 | IH29: -13.5 | II29: 23.4 | IJ29: -13.9 | IK29: 23.1 | IL29: -14.3 | IM29: 22.9 | IN29: -14.7 | IO29: 22.6 | IP29: -15.1 | IQ29: 22.4 | IR29: -15.5 | IS29: 22.1 | IT29: -15.9 | IU29: 21.8 | IV29: -16.2 | IW29: 21.6 | IX29: -16.6 | IY29: 21.3 | IZ29: -17.0 | JA29: 21.0 | JB29: -17.4 | JC29: 20.7 | JD29: -17.7 | JE29: 20.4 | JF29: -18.1 | JG29: 20.1 | JH29: -18.4 | JI29: 19.7 | JJ29: -18.8 | JK29: 19.4 | JL29: -19.1 | JM29: 19.1 | JN29: -19.4 | JO29: 18.8 | JP29: -19.7 | JQ29: 18.4 | JR29: -20.1 | JS29: 18.1 | JT29: -20.4 | JU29: 17.7 | JV29: -20.7 | JW29: 17.4 | JX29: -21.0 | JY29: 17.0 | JZ29: -21.3 | KA29: 16.6 | KB29: -21.6 | KC29: 16.2 | KD29: -21.8 | KE29: 15.9 | KF29: -22.1 | KG29: 15.5 | KH29: -22.4 | KI29: 15.1 | KJ29: -22.6 | KK29: 14.7 | KL29: -22.9 | KM29: 14.3 | KN29: -23.1 | KO29: 13.9 | KP29: -23.4 | KQ29: 13.5 | KR29: -23.6 | KS29: 13.1 | KT29: -23.8 | KU29: 12.7 | KV29: -24.1 | KW29: 12.3 | KX29: -24.3 | KY29: 11.8 | KZ29: -24.5 | LA29: 11.4 | LB29: -24.7 | LC29: 11.0 | LD29: -24.9 | LE29: 10.5 | LF29: -25.0 | LG29: 10.1 | LH29: -25.2 | LI29: 9.7 | LJ29: -25.4 | LK29: 9.2 | LL29: -25.5 | LM29: 8.8 | LN29: -25.7 | LO29: 8.3 | LP29: -25.8 | LQ29: 7.9 | LR29: -26.0 | LS29: 7.4 | LT29: -26.1 | LU29: 7.0 | LV29: -26.2 | LW29: 6.5 | LX29: -26.3 | LY29: 6.1 | LZ29: -26.4 | MA29: 5.6 | MB29: -26.5 | MC29: 5.2 | MD29: -26.6 | ME29: 4.7 | MF29: -26.7 | MG29: 4.2 | MH29: -26.7 | MI29: 3.8 | MJ29: -26.8 | MK29: 3.3 | ML29: -26.9 | MM29: 2.8 | MN29: -26.9 | MO29: 2.4 | MP29: -26.9 | MQ29: 1.9 | MR29: -27.0 | MS29: 1.4 | MT29: -27.0 | MU29: 0.9 | MV29: -27.0 | MW29: 0.5 | MX29: -27.0 | MY29: 0.0 | MZ29: -27.0 | NA29: -0.5 | NB29: -27.0 | NC29: -0.9 | ND29: -27.0 | NE29: -1.4 | NF29: -26.9 | NG29: -1.9 | NH29: -26.9 | NI29: -2.4 | NJ29: -26.9 | NK29: -2.8 | NL29: -26.8 | NM29: -3.3 | NN29: -26.7 | NO29: -3.8 | NP29: -26.7 | NQ29: -4.2 | NR29: -26.6 | NS29: -4.7 | NT29: -26.5 | NU29: -5.2 | NV29: -26.4 | NW29: -5.6 | NX29: -26.3 | NY29: -6.1 | NZ29: -26.2 | OA29: -6.5 | OB29: -26.1 | OC29: -7.0 | OD29: -26.0 | OE29: -7.4 | OF29: -25.8 | OG29: -7.9 | OH29: -25.7 | OI29: -8.3 | OJ29: -25.5 | OK29: -8.8 | OL29: -25.4 | OM29: -9.2 | ON29: -25.2 | OO29: -9.7 | OP29: -25.0 | OQ29: -10.1 | OR29: -24.9 | OS29: -10.5 | OT29: -24.7 | OU29: -11.0 | OV29: -24.5 | OW29: -11.4 | OX29: -24.3 | OY29: -11.8 | OZ29: -24.1 | PA29: -12.3 | PB29: -23.8 | PC29: -12.7 | PD29: -23.6 | PE29: -13.1 | PF29: -23.4 | PG29: -13.5 | PH29: -23.1 | PI29: -13.9 | PJ29: -22.9 | PK29: -14.3 | PL29: -22.6 | PM29: -14.7 | PN29: -22.4 | PO29: -15.1 | PP29: -22.1 | PQ29: -15.5 | PR29: -21.8 | PS29: -15.9 | PT29: -21.6 | PU29: -16.2 | PV29: -21.3 | PW29: -16.6 | PX29: -21.0 | PY29: -17.0 | PZ29: -20.7 | QA29: -17.4 | QB29: -20.4 | QC29: -17.7 | QD29: -20.1 | QE29: -18.1 | QF29: -19.7 | QG29: -18.4 | QH29: -19.4 | QI29: -18.8 | QJ29: -19.1 | QK29: -19.1 | QL29: -18.8 | QM29: -19.4 | QN29: -18.4 | QO29: -19.7 | QP29: -18.1 | QQ29: -20.1 | QR29: -17.7 | QS29: -20.4 | QT29: -17.4 | QU29: -20.7 | QV29: -17.0 | QW29: -21.0 | QX29: -16.6 | QY29: -21.3 | QZ29: -16.2 | RA29: -21.6 | RB29: -15.9 | RC29: -21.8 | RD29: -15.5 | RE29: -22.1 | RF29: -15.1 | RG29: -22.4 | RH29: -14.7 | RI29: -22.6 | RJ29: -14.3 | RK29: -22.9 | RL29: -13.9 | RM29: -23.1 | RN29: -13.5 | RO29: -23.4 | RP29: -13.1 | RQ29: -23.6 | RR29: -12.7 | RS29: -23.8 | RT29: -12.3 | RU29: -24.1 | RV29: -11.8 | RW29: -24.3 | RX29: -11.4 | RY29: -24.5 | RZ29: -11.0 | SA29: -24.7 | SB29: -10.5 | SC29: -24.9 | SD29: -10.1 | SE29: -25.0 | SF29: -9.7 | SG29: -25.2 | SH29: -9.2 | SI29: -25.4 | SJ29: -8.8 | SK29: -25.5 | SL29: -8.3 | SM29: -25.7 | SN29: -7.9 | SO29: -25.8 | SP29: -7.4 | SQ29: -26.0 | SR29: -7.0 | SS29: -26.1 | ST29: -6.5 | SU29: -26.2 | SV29: -6.1 | SW29: -26.3 | SX29: -5.6 | SY29: -26.4 | SZ29: -5.2 | TA29: -26.5 | TB29: -4.7 | TC29: -26.6 | TD29: -4.2 | TE29: -26.7 | TF29: -3.8 | TG29: -26.7 | TH29: -3.3 | TI29: -26.8 | TJ29: -2.8 | TK29: -26.9 | TL29: -2.4 | TM29: -26.9 | TN29: -1.9 | TO29: -26.9 | TP29: -1.4 | TQ29: -27.0 | TR29: -0.9 | TS29: -27.0 | TT29: -0.5 | TU29: -27.0 | TV29: -0.0 | TW29: -27.0 | TX29: 0.5 | TY29: -27.0 | TZ29: 0.9 | UA29: -27.0 | UB29: 1.4 | UC29: -27.0 | UD29: 1.9 | UE29: -26.9 | UF29: 2.4 | UG29: -26.9 | UH29: 2.8 | UI29: -26.9 | UJ29: 3.3 | UK29: -26.8 | UL29: 3.8 | UM29: -26.7 | UN29: 4.2 | UO29: -26.7 | UP29: 4.7 | UQ29: -26.6 | UR29: 5.2 | US29: -26.5 | UT29: 5.6 | UU29: -26.4 | UV29: 6.1 | UW29: -26.3 | UX29: 6.5 | UY29: -26.2 | UZ29: 7.0 | VA29: -26.1 | VB29: 7.4 | VC29: -26.0 | VD29: 7.9 | VE29: -25.8 | VF29: 8.3 | VG29: -25.7 | VH29: 8.8 | VI29: -25.5 | VJ29: 9.2 | VK29: -25.4 | VL29: 9.7 | VM29: -25.2 | VN29: 10.1 | VO29: -25.0 | VP29: 10.5 | VQ29: -24.9 | VR29: 11.0 | VS29: -24.7 | VT29: 11.4 | VU29: -24.5 | VV29: 11.8 | VW29: -24.3 | VX29: 12.3 | VY29: -24.1 | VZ29: 12.7 | WA29: -23.8 | WB29: 13.1 | WC29: -23.6 | WD29: 13.5 | WE29: -23.4 | WF29: 13.9 | WG29: -23.1 | WH29: 14.3 | WI29: -22.9 | WJ29: 14.7 | WK29: -22.6 | WL29: 15.1 | WM29: -22.4 | WN29: 15.5 | WO29: -22.1 | WP29: 15.9 | WQ29: -21.8 | WR29: 16.2 | WS29: -21.6 | WT29: 16.6 | WU29: -21.3 | WV29: 17.0 | WW29: -21.0 | WX29: 17.4 | WY29: -20.7 | WZ29: 17.7 | XA29: -20.4 | XB29: 18.1 | XC29: -20.1 | XD29: 18.4 | XE29: -19.7 | XF29: 18.8 | XG29: -19.4 | XH29: 19.1 | XI29: -19.1 | XJ29: 19.4 | XK29: -18.8 | XL29: 19.7 | XM29: -18.4 | XN29: 20.1 | XO29: -18.1 | XP29: =COS(XP$1/360*2*PI())*$A29 -> 20.4 | XQ29: -17.7 | XR29: 20.7 | XS29: -17.4 | XT29: 21.0 | XU29: -17.0 | XV29: 21.3 | XW29: -16.6 | XX29: 21.6 | XY29: -16.2 | XZ29: 21.8 | YA29: -15.9 | YB29: 22.1 | YC29: -15.5 | YD29: 22.4 | YE29: -15.1 | YF29: 22.6 | YG29: -14.7 | YH29: 22.9 | YI29: -14.3 | YJ29: 23.1 | YK29: -13.9 | YL29: 23.4 | YM29: -13.5 | YN29: 23.6 | YO29: -13.1 | YP29: 23.8 | YQ29: -12.7 | YR29: 24.1 | YS29: -12.3 | YT29: 24.3 | YU29: -11.8 | YV29: 24.5 | YW29: -11.4 | YX29: 24.7 | YY29: -11.0 | YZ29: 24.9 | ZA29: -10.5 | ZB29: 25.0 | ZC29: -10.1 | ZD29: 25.2 | ZE29: -9.7 | ZF29: 25.4 | ZG29: -9.2 | ZH29: 25.5 | ZI29: -8.8 | ZJ29: 25.7 | ZK29: -8.3 | ZL29: 25.8 | ZM29: -7.9 | ZN29: 26.0 | ZO29: -7.4 | ZP29: 26.1 | ZQ29: -7.0 | ZR29: 26.2 | ZS29: -6.5 | ZT29: 26.3 | ZU29: -6.1 | ZV29: 26.4 | ZW29: -5.6 | ZX29: 26.5 | ZY29: -5.2 | ZZ29: 26.6 | AAA29: -4.7 | AAB29: 26.7 | AAC29: -4.2 | AAD29: 26.7 | AAE29: -3.8 | AAF29: 26.8 | AAG29: -3.3 | AAH29: 26.9 | AAI29: -2.8 | AAJ29: 26.9 | AAK29: -2.4 | AAL29: 26.9 | AAM29: -1.9 | AAN29: 27.0 | AAO29: -1.4 | AAP29: 27.0 | AAQ29: -0.9 | AAR29: 27.0 | AAS29: -0.5 | AAT29: 27.0 | AAU29: -0.0
A30: 28 | B30: 28.0 | C30: 0.0 | D30: 28.0 | E30: 0.5 | F30: 28.0 | G30: 1.0 | H30: 28.0 | I30: 1.5 | J30: 27.9 | K30: 2.0 | L30: 27.9 | M30: 2.4 | N30: 27.8 | O30: 2.9 | P30: 27.8 | Q30: 3.4 | R30: 27.7 | S30: 3.9 | T30: 27.7 | U30: 4.4 | V30: 27.6 | W30: 4.9 | X30: 27.5 | Y30: 5.3 | Z30: 27.4 | AA30: 5.8 | AB30: 27.3 | AC30: 6.3 | AD30: 27.2 | AE30: 6.8 | AF30: 27.0 | AG30: 7.2 | AH30: 26.9 | AI30: 7.7 | AJ30: 26.8 | AK30: 8.2 | AL30: 26.6 | AM30: 8.7 | AN30: 26.5 | AO30: 9.1 | AP30: 26.3 | AQ30: 9.6 | AR30: 26.1 | AS30: 10.0 | AT30: 26.0 | AU30: 10.5 | AV30: 25.8 | AW30: 10.9 | AX30: 25.6 | AY30: 11.4 | AZ30: 25.4 | BA30: 11.8 | BB30: 25.2 | BC30: 12.3 | BD30: 24.9 | BE30: 12.7 | BF30: 24.7 | BG30: 13.1 | BH30: 24.5 | BI30: 13.6 | BJ30: 24.2 | BK30: 14.0 | BL30: 24.0 | BM30: 14.4 | BN30: 23.7 | BO30: 14.8 | BP30: 23.5 | BQ30: 15.2 | BR30: 23.2 | BS30: 15.7 | BT30: 22.9 | BU30: 16.1 | BV30: 22.7 | BW30: 16.5 | BX30: 22.4 | BY30: 16.9 | BZ30: 22.1 | CA30: 17.2 | CB30: 21.8 | CC30: 17.6 | CD30: 21.4 | CE30: 18.0 | CF30: 21.1 | CG30: 18.4 | CH30: 20.8 | CI30: 18.7 | CJ30: 20.5 | CK30: 19.1 | CL30: 20.1 | CM30: 19.5 | CN30: 19.8 | CO30: 19.8 | CP30: 19.5 | CQ30: 20.1 | CR30: 19.1 | CS30: 20.5 | CT30: 18.7 | CU30: 20.8 | CV30: 18.4 | CW30: 21.1 | CX30: 18.0 | CY30: 21.4 | CZ30: 17.6 | DA30: 21.8 | DB30: 17.2 | DC30: 22.1 | DD30: 16.9 | DE30: 22.4 | DF30: 16.5 | DG30: 22.7 | DH30: 16.1 | DI30: 22.9 | DJ30: 15.7 | DK30: 23.2 | DL30: 15.2 | DM30: 23.5 | DN30: 14.8 | DO30: 23.7 | DP30: 14.4 | DQ30: 24.0 | DR30: 14.0 | DS30: 24.2 | DT30: 13.6 | DU30: 24.5 | DV30: 13.1 | DW30: 24.7 | DX30: 12.7 | DY30: 24.9 | DZ30: 12.3 | EA30: 25.2 | EB30: 11.8 | EC30: 25.4 | ED30: 11.4 | EE30: 25.6 | EF30: 10.9 | EG30: 25.8 | EH30: 10.5 | EI30: 26.0 | EJ30: 10.0 | EK30: 26.1 | EL30: 9.6 | EM30: 26.3 | EN30: 9.1 | EO30: 26.5 | EP30: 8.7 | EQ30: 26.6 | ER30: 8.2 | ES30: 26.8 | ET30: 7.7 | EU30: 26.9 | EV30: 7.2 | EW30: 27.0 | EX30: 6.8 | EY30: 27.2 | EZ30: 6.3 | FA30: 27.3 | FB30: 5.8 | FC30: 27.4 | FD30: 5.3 | FE30: 27.5 | FF30: 4.9 | FG30: 27.6 | FH30: 4.4 | FI30: 27.7 | FJ30: 3.9 | FK30: 27.7 | FL30: 3.4 | FM30: 27.8 | FN30: 2.9 | FO30: 27.8 | FP30: 2.4 | FQ30: 27.9 | FR30: 2.0 | FS30: 27.9 | FT30: 1.5 | FU30: 28.0 | FV30: 1.0 | FW30: 28.0 | FX30: 0.5 | FY30: 28.0 | FZ30: 0.0 | GA30: 28.0 | GB30: -0.5 | GC30: 28.0 | GD30: -1.0 | GE30: 28.0 | GF30: -1.5 | GG30: 28.0 | GH30: -2.0 | GI30: 27.9 | GJ30: -2.4 | GK30: 27.9 | GL30: -2.9 | GM30: 27.8 | GN30: -3.4 | GO30: 27.8 | GP30: -3.9 | GQ30: 27.7 | GR30: -4.4 | GS30: 27.7 | GT30: -4.9 | GU30: 27.6 | GV30: -5.3 | GW30: 27.5 | GX30: -5.8 | GY30: 27.4 | GZ30: -6.3 | HA30: 27.3 | HB30: -6.8 | HC30: 27.2 | HD30: -7.2 | HE30: 27.0 | HF30: -7.7 | HG30: 26.9 | HH30: -8.2 | HI30: 26.8 | HJ30: -8.7 | HK30: 26.6 | HL30: -9.1 | HM30: 26.5 | HN30: -9.6 | HO30: 26.3 | HP30: -10.0 | HQ30: 26.1 | HR30: -10.5 | HS30: 26.0 | HT30: -10.9 | HU30: 25.8 | HV30: -11.4 | HW30: 25.6 | HX30: -11.8 | HY30: 25.4 | HZ30: -12.3 | IA30: 25.2 | IB30: -12.7 | IC30: 24.9 | ID30: -13.1 | IE30: 24.7 | IF30: -13.6 | IG30: 24.5 | IH30: -14.0 | II30: 24.2 | IJ30: -14.4 | IK30: 24.0 | IL30: -14.8 | IM30: 23.7 | IN30: -15.2 | IO30: 23.5 | IP30: -15.7 | IQ30: 23.2 | IR30: -16.1 | IS30: 22.9 | IT30: -16.5 | IU30: 22.7 | IV30: -16.9 | IW30: 22.4 | IX30: -17.2 | IY30: 22.1 | IZ30: -17.6 | JA30: 21.8 | JB30: -18.0 | JC30: 21.4 | JD30: -18.4 | JE30: 21.1 | JF30: -18.7 | JG30: 20.8 | JH30: -19.1 | JI30: 20.5 | JJ30: -19.5 | JK30: 20.1 | JL30: -19.8 | JM30: 19.8 | JN30: -20.1 | JO30: 19.5 | JP30: -20.5 | JQ30: 19.1 | JR30: -20.8 | JS30: 18.7 | JT30: -21.1 | JU30: 18.4 | JV30: -21.4 | JW30: 18.0 | JX30: -21.8 | JY30: 17.6 | JZ30: -22.1 | KA30: 17.2 | KB30: -22.4 | KC30: 16.9 | KD30: -22.7 | KE30: 16.5 | KF30: -22.9 | KG30: 16.1 | KH30: -23.2 | KI30: 15.7 | KJ30: -23.5 | KK30: 15.2 | KL30: -23.7 | KM30: 14.8 | KN30: -24.0 | KO30: 14.4 | KP30: -24.2 | KQ30: 14.0 | KR30: -24.5 | KS30: 13.6 | KT30: -24.7 | KU30: 13.1 | KV30: -24.9 | KW30: 12.7 | KX30: -25.2 | KY30: 12.3 | KZ30: -25.4 | LA30: 11.8 | LB30: -25.6 | LC30: 11.4 | LD30: -25.8 | LE30: 10.9 | LF30: -26.0 | LG30: 10.5 | LH30: -26.1 | LI30: 10.0 | LJ30: -26.3 | LK30: 9.6 | LL30: -26.5 | LM30: 9.1 | LN30: -26.6 | LO30: 8.7 | LP30: -26.8 | LQ30: 8.2 | LR30: -26.9 | LS30: 7.7 | LT30: -27.0 | LU30: 7.2 | LV30: -27.2 | LW30: 6.8 | LX30: -27.3 | LY30: 6.3 | LZ30: -27.4 | MA30: 5.8 | MB30: -27.5 | MC30: 5.3 | MD30: -27.6 | ME30: 4.9 | MF30: -27.7 | MG30: 4.4 | MH30: -27.7 | MI30: 3.9 | MJ30: -27.8 | MK30: 3.4 | ML30: -27.8 | MM30: 2.9 | MN30: -27.9 | MO30: 2.4 | MP30: -27.9 | MQ30: 2.0 | MR30: -28.0 | MS30: 1.5 | MT30: -28.0 | MU30: 1.0 | MV30: -28.0 | MW30: 0.5 | MX30: -28.0 | MY30: 0.0 | MZ30: -28.0 | NA30: -0.5 | NB30: -28.0 | NC30: -1.0 | ND30: -28.0 | NE30: -1.5 | NF30: -27.9 | NG30: -2.0 | NH30: -27.9 | NI30: -2.4 | NJ30: -27.8 | NK30: -2.9 | NL30: -27.8 | NM30: -3.4 | NN30: -27.7 | NO30: -3.9 | NP30: -27.7 | NQ30: -4.4 | NR30: -27.6 | NS30: -4.9 | NT30: -27.5 | NU30: -5.3 | NV30: -27.4 | NW30: -5.8 | NX30: -27.3 | NY30: -6.3 | NZ30: -27.2 | OA30: -6.8 | OB30: -27.0 | OC30: -7.2 | OD30: -26.9 | OE30: -7.7 | OF30: -26.8 | OG30: -8.2 | OH30: -26.6 | OI30: -8.7 | OJ30: -26.5 | OK30: -9.1 | OL30: -26.3 | OM30: -9.6 | ON30: -26.1 | OO30: -10.0 | OP30: -26.0 | OQ30: -10.5 | OR30: -25.8 | OS30: -10.9 | OT30: -25.6 | OU30: -11.4 | OV30: -25.4 | OW30: -11.8 | OX30: -25.2 | OY30: -12.3 | OZ30: -24.9 | PA30: -12.7 | PB30: -24.7 | PC30: -13.1 | PD30: -24.5 | PE30: -13.6 | PF30: -24.2 | PG30: -14.0 | PH30: -24.0 | PI30: -14.4 | PJ30: -23.7 | PK30: -14.8 | PL30: -23.5 | PM30: -15.2 | PN30: -23.2 | PO30: -15.7 | PP30: -22.9 | PQ30: -16.1 | PR30: -22.7 | PS30: -16.5 | PT30: -22.4 | PU30: -16.9 | PV30: -22.1 | PW30: -17.2 | PX30: -21.8 | PY30: -17.6 | PZ30: -21.4 | QA30: -18.0 | QB30: -21.1 | QC30: -18.4 | QD30: -20.8 | QE30: -18.7 | QF30: -20.5 | QG30: -19.1 | QH30: -20.1 | QI30: -19.5 | QJ30: -19.8 | QK30: -19.8 | QL30: -19.5 | QM30: -20.1 | QN30: -19.1 | QO30: -20.5 | QP30: -18.7 | QQ30: -20.8 | QR30: -18.4 | QS30: -21.1 | QT30: -18.0 | QU30: -21.4 | QV30: -17.6 | QW30: -21.8 | QX30: -17.2 | QY30: -22.1 | QZ30: -16.9 | RA30: -22.4 | RB30: -16.5 | RC30: -22.7 | RD30: -16.1 | RE30: -22.9 | RF30: -15.7 | RG30: -23.2 | RH30: -15.2 | RI30: -23.5 | RJ30: -14.8 | RK30: -23.7 | RL30: -14.4 | RM30: -24.0 | RN30: -14.0 | RO30: -24.2 | RP30: -13.6 | RQ30: -24.5 | RR30: -13.1 | RS30: -24.7 | RT30: -12.7 | RU30: -24.9 | RV30: -12.3 | RW30: -25.2 | RX30: -11.8 | RY30: -25.4 | RZ30: -11.4 | SA30: -25.6 | SB30: -10.9 | SC30: -25.8 | SD30: -10.5 | SE30: -26.0 | SF30: -10.0 | SG30: -26.1 | SH30: -9.6 | SI30: -26.3 | SJ30: -9.1 | SK30: -26.5 | SL30: -8.7 | SM30: -26.6 | SN30: -8.2 | SO30: -26.8 | SP30: -7.7 | SQ30: -26.9 | SR30: -7.2 | SS30: -27.0 | ST30: -6.8 | SU30: -27.2 | SV30: -6.3 | SW30: -27.3 | SX30: -5.8 | SY30: -27.4 | SZ30: -5.3 | TA30: -27.5 | TB30: -4.9 | TC30: -27.6 | TD30: -4.4 | TE30: -27.7 | TF30: -3.9 | TG30: -27.7 | TH30: -3.4 | TI30: -27.8 | TJ30: -2.9 | TK30: -27.8 | TL30: -2.4 | TM30: -27.9 | TN30: -2.0 | TO30: -27.9 | TP30: -1.5 | TQ30: -28.0 | TR30: -1.0 | TS30: -28.0 | TT30: -0.5 | TU30: -28.0 | TV30: -0.0 | TW30: -28.0 | TX30: 0.5 | TY30: -28.0 | TZ30: 1.0 | UA30: -28.0 | UB30: 1.5 | UC30: -28.0 | UD30: 2.0 | UE30: -27.9 | UF30: 2.4 | UG30: -27.9 | UH30: 2.9 | UI30: -27.8 | UJ30: 3.4 | UK30: -27.8 | UL30: 3.9 | UM30: -27.7 | UN30: 4.4 | UO30: -27.7 | UP30: 4.9 | UQ30: -27.6 | UR30: 5.3 | US30: -27.5 | UT30: 5.8 | UU30: -27.4 | UV30: 6.3 | UW30: -27.3 | UX30: 6.8 | UY30: -27.2 | UZ30: 7.2 | VA30: -27.0 | VB30: 7.7 | VC30: -26.9 | VD30: 8.2 | VE30: -26.8 | VF30: 8.7 | VG30: -26.6 | VH30: 9.1 | VI30: -26.5 | VJ30: 9.6 | VK30: -26.3 | VL30: 10.0 | VM30: -26.1 | VN30: 10.5 | VO30: -26.0 | VP30: 10.9 | VQ30: -25.8 | VR30: 11.4 | VS30: -25.6 | VT30: 11.8 | VU30: -25.4 | VV30: 12.3 | VW30: -25.2 | VX30: 12.7 | VY30: -24.9 | VZ30: 13.1 | WA30: -24.7 | WB30: 13.6 | WC30: -24.5 | WD30: 14.0 | WE30: -24.2 | WF30: 14.4 | WG30: -24.0 | WH30: 14.8 | WI30: -23.7 | WJ30: 15.2 | WK30: -23.5 | WL30: 15.7 | WM30: -23.2 | WN30: 16.1 | WO30: -22.9 | WP30: 16.5 | WQ30: -22.7 | WR30: 16.9 | WS30: -22.4 | WT30: 17.2 | WU30: -22.1 | WV30: 17.6 | WW30: -21.8 | WX30: 18.0 | WY30: -21.4 | WZ30: 18.4 | XA30: -21.1 | XB30: 18.7 | XC30: -20.8 | XD30: 19.1 | XE30: -20.5 | XF30: 19.5 | XG30: -20.1 | XH30: 19.8 | XI30: -19.8 | XJ30: 20.1 | XK30: -19.5 | XL30: 20.5 | XM30: -19.1 | XN30: 20.8 | XO30: -18.7 | XP30: 21.1 | XQ30: -18.4 | XR30: 21.4 | XS30: -18.0 | XT30: 21.8 | XU30: -17.6 | XV30: 22.1 | XW30: -17.2 | XX30: 22.4 | XY30: -16.9 | XZ30: 22.7 | YA30: -16.5 | YB30: 22.9 | YC30: -16.1 | YD30: 23.2 | YE30: -15.7 | YF30: 23.5 | YG30: -15.2 | YH30: 23.7 | YI30: -14.8 | YJ30: 24.0 | YK30: -14.4 | YL30: 24.2 | YM30: -14.0 | YN30: 24.5 | YO30: -13.6 | YP30: 24.7 | YQ30: -13.1 | YR30: 24.9 | YS30: -12.7 | YT30: 25.2 | YU30: -12.3 | YV30: 25.4 | YW30: -11.8 | YX30: 25.6 | YY30: -11.4 | YZ30: 25.8 | ZA30: -10.9 | ZB30: 26.0 | ZC30: -10.5 | ZD30: 26.1 | ZE30: -10.0 | ZF30: 26.3 | ZG30: -9.6 | ZH30: 26.5 | ZI30: -9.1 | ZJ30: 26.6 | ZK30: -8.7 | ZL30: 26.8 | ZM30: -8.2 | ZN30: 26.9 | ZO30: -7.7 | ZP30: 27.0 | ZQ30: -7.2 | ZR30: 27.2 | ZS30: -6.8 | ZT30: 27.3 | ZU30: -6.3 | ZV30: 27.4 | ZW30: -5.8 | ZX30: 27.5 | ZY30: -5.3 | ZZ30: 27.6 | AAA30: -4.9 | AAB30: 27.7 | AAC30: -4.4 | AAD30: 27.7 | AAE30: -3.9 | AAF30: 27.8 | AAG30: -3.4 | AAH30: 27.8 | AAI30: -2.9 | AAJ30: 27.9 | AAK30: -2.4 | AAL30: 27.9 | AAM30: -2.0 | AAN30: 28.0 | AAO30: -1.5 | AAP30: 28.0 | AAQ30: -1.0 | AAR30: 28.0 | AAS30: -0.5 | AAT30: 28.0 | AAU30: -0.0
